Workbook

Sheet CAPA

Sheet DADOS
B2: DATA | D2: 2023-04-28
B4: CLIENTE | E4: 1
B6: REVISÃO | D6: R01
B8: PROJETO | D8: CONSTRUÇÃO DO CENTRO DE ATENÇÃO PSICOSSOCIAL
B10: BDI TIPO 1 | D10: 0.2652
B12: BDI TIPO 2 | D12: 0.2025
B14: BANCOS DE DADOS | D14: SINAPI: 03/2023 Minas Gerais SETOP: 01/2023 Minas Gerais SICRO : 10/2022 Minas Gerais SUDECAP: 02/2023 Minas Gerais
B16: RESPONSÁVEL | D16: FLÁVIA CRISTINA BARBOSA
B18: CREA | D18: CREA - MG 187.842/D
B20: TIPO | D20: PROJETO EXECUTIVO

Sheet CLIENTES
B1: PREFEITURA MUNICIPAL DE POUSO ALEGRE
B2: PREFEITURA MUNICIPAL DE CACHOEIRA DE MINAS
B3: PREFEITURA MUNICIPAL DE ITAJUBÁ
B4: PREFEITURA MUNICIPAL DE SANTA RITA DO SAPUCAÍ
B5: RYZA
B6: FAPEPE

Sheet ORC
A3: 1000 | D3: A | E3: ADMINISTRAÇÃO DE OBRA | M3: =SUMIF(A:A,D3,M:M) -> 0 | N3: =SUMIF(A:A,D3,N:N) -> 0
D4: A.B | M4: =IFERROR(SUMIFS(M:M,A:A,LEFT(D4,SEARCH(".",D4)-1),B:B,RIGHT(D4,LEN(D4)-SEARCH(".",D4))),"") -> 0 | N4: =IFERROR(SUMIFS(N:N,A:A,LEFT(D4,SEARCH(".",D4)-1),B:B,RIGHT(D4,LEN(D4)-SEARCH(".",D4))),"") -> 0
D5: A.B.C | M5: =IFERROR(SUMIFS(M:M,A:A,LEFT(D5,SEARCH(".",D5)-1),B:B,LEFT(RIGHT(D5,LEN(D5)-SEARCH(".",D5)),SEARCH(".",RIGHT(D5,LEN(D5)-SEARCH(".",D5)))-1),C:C,RIGHT(D5,LEN(D5)-SEARCH(".",D5,SEARCH(".",D5)+1))),"") -> 0 | N5: =IFERROR(SUMIFS(N:N,A:A,LEFT(D5,SEARCH(".",D5)-1),B:B,LEFT(RIGHT(D5,LEN(D5)-SEARCH(".",D5)),SEARCH(".",RIGHT(D5,LEN(D5)-SEARCH(".",D5)))-1),C:C,RIGHT(D5,LEN(D5)-SEARCH(".",D5,SEARCH(".",D5)+1))),"") -> 0
A6: =IFERROR(LEFT(D6,SEARCH(".",D6)-1),"") -> a | B6: =IFERROR(LEFT(RIGHT(D6,LEN(D6)-SEARCH(".",D6)),SEARCH(".",RIGHT(D6,LEN(D6)-SEARCH(".",D6)))-1),"") -> a/a | C6: =IFERROR(IF(LEN(D6)-LEN(SUBSTITUTE(D6,".",""))<>3,"",MID(D6,SEARCH(".",D6,SEARCH(".",D6)+1)+1,LEN(D6)-SEARCH(".",D6,SEARCH(".",D6)+1)-(LEN(D6)-(SEARCH(".",D6,SEARCH(".",D6,SEARCH(".",D6)+1)+1)-1)))),"") ->  | D6: a.a/a.a.a/a.a.a.a | E6: =IF($G6="SINAPI",VLOOKUP($F6,DADOS_SINAPI,2,0),IF(G6="SETOP",VLOOKUP($F6,DADOS_SETOP,2,0),IF(G6="CPU",VLOOKUP($F6,DADOS_COMPOSICAO,2,0),IF(G6="SICRO",VLOOKUP($F6,DADOS_SICRO,2,0),IF(G6="SUDECAP",VLOOKUP(F6,DADOS_SUDECAP,2,0),IF(G6="COTAÇÃO",VLOOKUP($F6,DADOS_COTACAO,2,0),"")))))) ->  | H6: =IF(G6="SINAPI",VLOOKUP($F6,DADOS_SINAPI,3,0),IF(G6="SETOP",VLOOKUP($F6,DADOS_SETOP,3,0),IF(G6="CPU",VLOOKUP($F6,DADOS_COMPOSICAO,10,0),IF(G6="SICRO",VLOOKUP($F6,DADOS_SICRO,3,0),IF(G6="SUDECAP",VLOOKUP(F6,DADOS_SUDECAP,3,0),IF(G6="COTAÇÃO",VLOOKUP($F6,DADOS_COTACAO,9,0),"")))))) ->  | J6: =IF(G6="SINAPI",VLOOKUP($F6,DADOS_SINAPI,4,0),IF(G6="SETOP",VLOOKUP($F6,DADOS_SETOP,4,0),IF(G6="CPU",VLOOKUP($F6,DADOS_COMPOSICAO,13,0),IF(G6="SICRO",VLOOKUP($F6,DADOS_SICRO,4,0),IF(G6="SUDECAP",VLOOKUP(F6,DADOS_SUDECAP,4,0),IF(G6="COTAÇÃO",VLOOKUP(F6,DADOS_COTACAO,12,0),"")))))) ->  | K6: BDI 1 | L6: =TRUNC(J6*(1+$N$17),2) ->  | M6: =IFERROR(TRUNC(I6*J6,2),"") ->  | N6: =IFERROR(TRUNC(L6*I6,2),"") -> 
A7: =IFERROR(LEFT(D7,SEARCH(".",D7)-1),"") -> a | B7: =IFERROR(LEFT(RIGHT(D7,LEN(D7)-SEARCH(".",D7)),SEARCH(".",RIGHT(D7,LEN(D7)-SEARCH(".",D7)))-1),"") -> a/a | C7: =IFERROR(IF(LEN(D7)-LEN(SUBSTITUTE(D7,".",""))<>3,"",MID(D7,SEARCH(".",D7,SEARCH(".",D7)+1)+1,LEN(D7)-SEARCH(".",D7,SEARCH(".",D7)+1)-(LEN(D7)-(SEARCH(".",D7,SEARCH(".",D7,SEARCH(".",D7)+1)+1)-1)))),"") ->  | D7: a.a/a.a.a/a.a.a.a | E7: =VLOOKUP($F7,DADOS_COTACAO,2,0) ->  | G7: COTAÇÃO | H7: =VLOOKUP($F7,DADOS_COTACAO,9,0) ->  | J7: =VLOOKUP($F7,DADOS_COTACAO,12,0) ->  | K7: BDI 2 | L7: =TRUNC(J7*(1+$N$18),2) ->  | M7: =IFERROR(TRUNC(I7*J7,2),"") ->  | N7: =IFERROR(TRUNC(L7*I7,2),"") -> 
A8: 2000
E11: MEMORIAL DE CÁLCULO | M11: Revisão: | N11: =DADOS!D6 -> R01 | O11: a
M12: Data: | N12: =DADOS!D2 -> 2023-04-28
D13: Projeto: | E13: =DADOS!D8 -> CONSTRUÇÃO DO CENTRO DE ATENÇÃO PSICOSSOCIAL | M13: Bancos:
D14: Responsável: | F14: Cliente: | M14: =DADOS!D14 -> SINAPI: 03/2023 Minas Gerais SETOP: 01/2023 Minas Gerais SICRO : 10/2022 Minas Gerais SUDECAP: 02/2023 Minas Gerais
M17: BDI 1: | N17: =DADOS!D10 -> 0.2652
M18: BDI 2: | N18: =DADOS!D12 -> 0.2025
D20: =E11&" DE "&DADOS!D20&" - "&E13 -> MEMORIAL DE CÁLCULO DE PROJETO EXECUTIVO - CONSTRUÇÃO DO CENTRO DE ATENÇÃO PSICOSSOCIAL
D22: Item | E22: Descrição | F22: Código | G22: Banco | H22: Unidade | I22: Quantidade | J22: Valor Unitário | K22: BDI | L22: Valor Unit. com BDI | M22: Total | N22: Total com BDI
M23: =ROUND(I23*J23,2) -> 0 | N23: =ROUND(L23*I23,2) -> 0
A24: 1000 | D24: 1 | E24: CANTEIRO DE OBRAS | M24: =SUMIF(A:A,D24,M:M) -> 81264.74 | N24: =SUMIF(A:A,D24,N:N) -> 102814.93
A25: =IFERROR(LEFT(D25,SEARCH(".",D25)-1),"") -> 1 | B25: =IFERROR(LEFT(RIGHT(D25,LEN(D25)-SEARCH(".",D25)),SEARCH(".",RIGHT(D25,LEN(D25)-SEARCH(".",D25)))-1),"") ->  | C25: =IFERROR(IF(LEN(D25)-LEN(SUBSTITUTE(D25,".",""))<>3,"",MID(D25,SEARCH(".",D25,SEARCH(".",D25)+1)+1,LEN(D25)-SEARCH(".",D25,SEARCH(".",D25)+1)-(LEN(D25)-(SEARCH(".",D25,SEARCH(".",D25,SEARCH(".",D25)+1)+1)-1)))),"") ->  | D25: 1.1 | E25: =IF($G25="SINAPI",VLOOKUP($F25,DADOS_SINAPI,2,0),IF(G25="SETOP",VLOOKUP($F25,DADOS_SETOP,2,0),IF(G25="CPU",VLOOKUP($F25,DADOS_COMPOSICAO,2,0),IF(G25="SICRO",VLOOKUP($F25,DADOS_SICRO,2,0),IF(G25="SUDECAP",VLOOKUP(F25,DADOS_SUDECAP,2,0),IF(G25="COTAÇÃO",VLOOKUP($F25,DADOS_COTACAO,2,0),"")))))) -> LOCAÇÃO DE CONTAINER COM ISOLAMENTO TÉRMICO, TIPO 2, PARA ESCRITÓRIO DE OBRA COM SANITÁRIO CONTENDO UM (1) VASO SANITÁRIO E UM (1) LAVATÓRIO, COM MEDIDAS REFERENCIAIS DE (6) METROS COMPRIMENTO, (2,3) METROS LARGURA E (2,5) METROS ALTURA ÚTIL INTERNA, INCLUSIVE AR CONDICIONADO E LIGAÇÕES ELÉTRICAS E HIDROSSANITÁRIAS INTERNAS, EXCLUSIVE MOBILIZAÇÃO/DESMOBILIZAÇÃO E LIGAÇÕES PROVISÓRIAS EXTERNAS | F25: ED-16349 | G25: SETOP | H25: =IF(G25="SINAPI",VLOOKUP($F25,DADOS_SINAPI,3,0),IF(G25="SETOP",VLOOKUP($F25,DADOS_SETOP,3,0),IF(G25="CPU",VLOOKUP($F25,DADOS_COMPOSICAO,10,0),IF(G25="SICRO",VLOOKUP($F25,DADOS_SICRO,3,0),IF(G25="SUDECAP",VLOOKUP(F25,DADOS_SUDECAP,3,0),IF(G25="COTAÇÃO",VLOOKUP($F25,DADOS_COTACAO,9,0),"")))))) -> mês | I25: =F27 -> 12 | J25: =IF(G25="SINAPI",VLOOKUP($F25,DADOS_SINAPI,4,0),IF(G25="SETOP",VLOOKUP($F25,DADOS_SETOP,4,0),IF(G25="CPU",VLOOKUP($F25,DADOS_COMPOSICAO,13,0),IF(G25="SICRO",VLOOKUP($F25,DADOS_SICRO,4,0),IF(G25="SUDECAP",VLOOKUP(F25,DADOS_SUDECAP,4,0),IF(G25="COTAÇÃO",VLOOKUP(F25,DADOS_COTACAO,12,0),"")))))) -> 953.49 | K25: BDI 1 | L25: =TRUNC(J25*(1+$N$17),2) -> 1206.35 | M25: =IFERROR(TRUNC(I25*J25,2),"") -> 11441.88 | N25: =IFERROR(TRUNC(L25*I25,2),"") -> 14476.2
A26: 2000
A27: 2000 | E27: Quantidade | F27: 12 | G27: meses
A28: 2000
A29: 1 | D29: 1.2 | E29: LIGAÇÕES PROVISÓRIAS PARA CONTAINER TIPO 2 (CORRESPONDENTE AO CÓDIGO ED-16349) | F29: ED-16357 | G29: SETOP | H29: un | I29: =F31 -> 1 | J29: 635 | K29: BDI 1 | L29: 803.4 | M29: 635 | N29: 803.4
A30: 2000
A31: 2000 | E31: Quantidade | F31: 1 | G31: un
A32: 2000
A33: 1 | D33: 1.3 | E33: LOCAÇÃO DE CONTAINER COM ISOLAMENTO TÉRMICO, TIPO 3, PARA DEPÓSITO/FERRAMENTARIA DE OBRA, COM MEDIDAS REFERENCIAIS DE (6) METROS COMPRIMENTO, (2,3) METROS LARGURA E (2,5) METROS ALTURA ÚTIL INTERNA, INCLUSIVE LIGAÇÕES ELÉTRICAS INTERNAS, EXCLUSIVE MOBILIZAÇÃO/DESMOBILIZAÇÃO E LIGAÇÕES PROVISÓRIAS EXTERNAS | F33: ED-16350 | G33: SETOP | H33: mês | I33: =F35 -> 12 | J33: 689.44 | K33: BDI 1 | L33: 872.27 | M33: 8273.28 | N33: 10467.24
A34: 2000
A35: 2000 | E35: Quantidade | F35: 12 | G35: meses
A36: 2000
A37: 1 | D37: 1.4 | E37: LIGAÇÕES PROVISÓRIAS PARA CONTAINER TIPO 3 (CORRESPONDENTE AO CÓDIGO ED-16350) | F37: ED-16358 | G37: SETOP | H37: un | I37: =F39 -> 1 | J37: 331 | K37: BDI 1 | L37: 418.78 | M37: 331 | N37: 418.78
A38: 2000
A39: 2000 | E39: Quantidade | F39: 1 | G39: un
A40: 2000
A41: 1 | D41: 1.5 | E41: LOCAÇÃO DE CONTAINER COM ISOLAMENTO TÉRMICO, TIPO 4, PARA REFEITÓRIO DE OBRA, COM MEDIDAS REFERENCIAIS DE (6) METROS COMPRIMENTO, (2,3) METROS LARGURA E (2,5) METROS ALTURA ÚTIL INTERNA, INCLUSIVE LIGAÇÕES ELÉTRICAS INTERNAS, EXCLUSIVE MOBILIZAÇÃO/DESMOBILIZAÇÃO E LIGAÇÕES PROVISÓRIAS EXTERNAS | F41: ED-16351 | G41: SETOP | H41: mês | I41: =F43 -> 12 | J41: 609.04 | K41: BDI 1 | L41: 770.55 | M41: 7308.48 | N41: 9246.6
A42: 2000
A43: 2000 | E43: Quantidade | F43: 12 | G43: meses
A44: 2000
A45: 1 | D45: 1.6 | E45: LIGAÇÕES PROVISÓRIAS PARA CONTAINER TIPO 4 (CORRESPONDENTE AO CÓDIGO ED-16351) | F45: ED-16359 | G45: SETOP | H45: un | I45: =F47 -> 1 | J45: 331 | K45: BDI 1 | L45: 418.78 | M45: 331 | N45: 418.78
A46: 2000
A47: 2000 | E47: Quantidade | F47: 1 | G47: un
A48: 2000
A49: 1 | D49: 1.7 | E49: MOBILIZAÇÃO E DESMOBILIZAÇÃO DE CONTAINER, INCLUSIVE CARGA, DESCARGA E TRANSPORTE EM CAMINHÃO CARROCERIA COM GUINDAUTO (MUNCK), EXCLUSIVE LOCAÇÃO DO CONTAINER | F49: ED-50137 | G49: SETOP | H49: un | I49: =F54 -> 3 | J49: 631.9 | K49: BDI 1 | L49: 799.47 | M49: 1895.7 | N49: 2398.41
A50: 2000
A51: 2000 | E51: Container Tipo 2 | F51: 1 | G51: un
A52: 2000 | E52: Container Tipo 3 | F52: 1 | G52: un
A53: 2000 | E53: Container Tipo 4 | F53: 1 | G53: un
A54: 2000 | E54: Total | F54: =SUM(F51:F53) -> 3 | G54: un
A55: 2000
A56: =IFERROR(LEFT(D56,SEARCH(".",D56)-1),"") -> 1 | B56: =IFERROR(LEFT(RIGHT(D56,LEN(D56)-SEARCH(".",D56)),SEARCH(".",RIGHT(D56,LEN(D56)-SEARCH(".",D56)))-1),"") ->  | C56: =IFERROR(IF(LEN(D56)-LEN(SUBSTITUTE(D56,".",""))<>3,"",MID(D56,SEARCH(".",D56,SEARCH(".",D56)+1)+1,LEN(D56)-SEARCH(".",D56,SEARCH(".",D56)+1)-(LEN(D56)-(SEARCH(".",D56,SEARCH(".",D56,SEARCH(".",D56)+1)+1)-1)))),"") ->  | D56: 1.8 | E56: =IF($G56="SINAPI",VLOOKUP($F56,DADOS_SINAPI,2,0),IF(G56="SETOP",VLOOKUP($F56,DADOS_SETOP,2,0),IF(G56="CPU",VLOOKUP($F56,DADOS_COMPOSICAO,2,0),IF(G56="SICRO",VLOOKUP($F56,DADOS_SICRO,2,0),IF(G56="SUDECAP",VLOOKUP(F56,DADOS_SUDECAP,2,0),IF(G56="COTAÇÃO",VLOOKUP($F56,DADOS_COTACAO,2,0),"")))))) -> LOCAÇÃO DE BANHEIRO QUÍMICO, DIMENSÃO (110X120X230)CM, LINHA PADRÃO, CONTENDO UMA (1) PIA/HIGIENIZADOR DE MÃOS, INCLUSIVE MANUTENÇÃO E MOBILIZAÇÃO/DESMOBILIZAÇÃO | F56: ED-50155 | G56: SETOP | H56: =IF(G56="SINAPI",VLOOKUP($F56,DADOS_SINAPI,3,0),IF(G56="SETOP",VLOOKUP($F56,DADOS_SETOP,3,0),IF(G56="CPU",VLOOKUP($F56,DADOS_COMPOSICAO,10,0),IF(G56="SICRO",VLOOKUP($F56,DADOS_SICRO,3,0),IF(G56="SUDECAP",VLOOKUP(F56,DADOS_SUDECAP,3,0),IF(G56="COTAÇÃO",VLOOKUP($F56,DADOS_COTACAO,9,0),"")))))) -> mês | I56: =F58 -> 12 | J56: =IF(G56="SINAPI",VLOOKUP($F56,DADOS_SINAPI,4,0),IF(G56="SETOP",VLOOKUP($F56,DADOS_SETOP,4,0),IF(G56="CPU",VLOOKUP($F56,DADOS_COMPOSICAO,13,0),IF(G56="SICRO",VLOOKUP($F56,DADOS_SICRO,4,0),IF(G56="SUDECAP",VLOOKUP(F56,DADOS_SUDECAP,4,0),IF(G56="COTAÇÃO",VLOOKUP(F56,DADOS_COTACAO,12,0),"")))))) -> 820 | K56: BDI 1 | L56: =TRUNC(J56*(1+$N$17),2) -> 1037.46 | M56: =IFERROR(TRUNC(I56*J56,2),"") -> 9840 | N56: =IFERROR(TRUNC(L56*I56,2),"") -> 12449.52
A57: 2000
A58: 2000 | E58: Quantidade | F58: 12 | G58: meses
A59: 2000
A60: =IFERROR(LEFT(D60,SEARCH(".",D60)-1),"") -> 1 | B60: =IFERROR(LEFT(RIGHT(D60,LEN(D60)-SEARCH(".",D60)),SEARCH(".",RIGHT(D60,LEN(D60)-SEARCH(".",D60)))-1),"") ->  | C60: =IFERROR(IF(LEN(D60)-LEN(SUBSTITUTE(D60,".",""))<>3,"",MID(D60,SEARCH(".",D60,SEARCH(".",D60)+1)+1,LEN(D60)-SEARCH(".",D60,SEARCH(".",D60)+1)-(LEN(D60)-(SEARCH(".",D60,SEARCH(".",D60,SEARCH(".",D60)+1)+1)-1)))),"") ->  | D60: 1.9 | E60: =IF($G60="SINAPI",VLOOKUP($F60,DADOS_SINAPI,2,0),IF(G60="SETOP",VLOOKUP($F60,DADOS_SETOP,2,0),IF(G60="CPU",VLOOKUP($F60,DADOS_COMPOSICAO,2,0),IF(G60="SICRO",VLOOKUP($F60,DADOS_SICRO,2,0),IF(G60="SUDECAP",VLOOKUP(F60,DADOS_SUDECAP,2,0),IF(G60="COTAÇÃO",VLOOKUP($F60,DADOS_COTACAO,2,0),"")))))) -> LIGAÇÃO DE ÁGUA PROVISÓRIA PARA CANTEIRO, INCLUSIVE HIDRÔMETRO E CAVALETE PARA MEDIÇÃO DE ÁGUA - ENTRADA PRINCIPAL, EM AÇO GALVANIZADO DN 20MM (1/2") - PADRÃO CONCESSIONÁRIA | F60: ED-50150 | G60: SETOP | H60: =IF(G60="SINAPI",VLOOKUP($F60,DADOS_SINAPI,3,0),IF(G60="SETOP",VLOOKUP($F60,DADOS_SETOP,3,0),IF(G60="CPU",VLOOKUP($F60,DADOS_COMPOSICAO,10,0),IF(G60="SICRO",VLOOKUP($F60,DADOS_SICRO,3,0),IF(G60="SUDECAP",VLOOKUP(F60,DADOS_SUDECAP,3,0),IF(G60="COTAÇÃO",VLOOKUP($F60,DADOS_COTACAO,9,0),"")))))) -> un | I60: =F62 -> 1 | J60: =IF(G60="SINAPI",VLOOKUP($F60,DADOS_SINAPI,4,0),IF(G60="SETOP",VLOOKUP($F60,DADOS_SETOP,4,0),IF(G60="CPU",VLOOKUP($F60,DADOS_COMPOSICAO,13,0),IF(G60="SICRO",VLOOKUP($F60,DADOS_SICRO,4,0),IF(G60="SUDECAP",VLOOKUP(F60,DADOS_SUDECAP,4,0),IF(G60="COTAÇÃO",VLOOKUP(F60,DADOS_COTACAO,12,0),"")))))) -> 371.6 | K60: BDI 1 | L60: =TRUNC(J60*(1+$N$17),2) -> 470.14 | M60: =IFERROR(TRUNC(I60*J60,2),"") -> 371.6 | N60: =IFERROR(TRUNC(L60*I60,2),"") -> 470.14
A61: 2000
A62: 2000 | E62: Quantidade | F62: 1 | G62: un
A63: 2000
A64: =IFERROR(LEFT(D64,SEARCH(".",D64)-1),"") -> 1 | B64: =IFERROR(LEFT(RIGHT(D64,LEN(D64)-SEARCH(".",D64)),SEARCH(".",RIGHT(D64,LEN(D64)-SEARCH(".",D64)))-1),"") ->  | C64: =IFERROR(IF(LEN(D64)-LEN(SUBSTITUTE(D64,".",""))<>3,"",MID(D64,SEARCH(".",D64,SEARCH(".",D64)+1)+1,LEN(D64)-SEARCH(".",D64,SEARCH(".",D64)+1)-(LEN(D64)-(SEARCH(".",D64,SEARCH(".",D64,SEARCH(".",D64)+1)+1)-1)))),"") ->  | D64: 1.10 | E64: =IF($G64="SINAPI",VLOOKUP($F64,DADOS_SINAPI,2,0),IF(G64="SETOP",VLOOKUP($F64,DADOS_SETOP,2,0),IF(G64="CPU",VLOOKUP($F64,DADOS_COMPOSICAO,2,0),IF(G64="SICRO",VLOOKUP($F64,DADOS_SICRO,2,0),IF(G64="SUDECAP",VLOOKUP(F64,DADOS_SUDECAP,2,0),IF(G64="COTAÇÃO",VLOOKUP($F64,DADOS_COTACAO,2,0),"")))))) -> LIGAÇÃO PROVISÓRIA COM ENTRADA DE ENERGIA AÉREA, PADRÃO CEMIG, CARGA INSTALADA DE 15,1KVA ATÉ 30KVA, TRIFÁSICO, COM SAÍDA SUBTERRÂNEA, INCLUSIVE POSTE, CAIXA PARA MEDIDOR, DISJUNTOR, BARRAMENTO, ATERRAMENTO E ACESSÓRIOS | F64: ED-50151 | G64: SETOP | H64: =IF(G64="SINAPI",VLOOKUP($F64,DADOS_SINAPI,3,0),IF(G64="SETOP",VLOOKUP($F64,DADOS_SETOP,3,0),IF(G64="CPU",VLOOKUP($F64,DADOS_COMPOSICAO,10,0),IF(G64="SICRO",VLOOKUP($F64,DADOS_SICRO,3,0),IF(G64="SUDECAP",VLOOKUP(F64,DADOS_SUDECAP,3,0),IF(G64="COTAÇÃO",VLOOKUP($F64,DADOS_COTACAO,9,0),"")))))) -> un | I64: =F66 -> 1 | J64: =IF(G64="SINAPI",VLOOKUP($F64,DADOS_SINAPI,4,0),IF(G64="SETOP",VLOOKUP($F64,DADOS_SETOP,4,0),IF(G64="CPU",VLOOKUP($F64,DADOS_COMPOSICAO,13,0),IF(G64="SICRO",VLOOKUP($F64,DADOS_SICRO,4,0),IF(G64="SUDECAP",VLOOKUP(F64,DADOS_SUDECAP,4,0),IF(G64="COTAÇÃO",VLOOKUP(F64,DADOS_COTACAO,12,0),"")))))) -> 1151.74 | K64: BDI 1 | L64: =TRUNC(J64*(1+$N$17),2) -> 1457.18 | M64: =IFERROR(TRUNC(I64*J64,2),"") -> 1151.74 | N64: =IFERROR(TRUNC(L64*I64,2),"") -> 1457.18
A65: 2000
A66: 2000 | E66: Quantidade | F66: 1 | G66: un
A67: 2000
A68: =IFERROR(LEFT(D68,SEARCH(".",D68)-1),"") -> 1 | B68: =IFERROR(LEFT(RIGHT(D68,LEN(D68)-SEARCH(".",D68)),SEARCH(".",RIGHT(D68,LEN(D68)-SEARCH(".",D68)))-1),"") ->  | C68: =IFERROR(IF(LEN(D68)-LEN(SUBSTITUTE(D68,".",""))<>3,"",MID(D68,SEARCH(".",D68,SEARCH(".",D68)+1)+1,LEN(D68)-SEARCH(".",D68,SEARCH(".",D68)+1)-(LEN(D68)-(SEARCH(".",D68,SEARCH(".",D68,SEARCH(".",D68)+1)+1)-1)))),"") ->  | D68: 1.11 | E68: =IF($G68="SINAPI",VLOOKUP($F68,DADOS_SINAPI,2,0),IF(G68="SETOP",VLOOKUP($F68,DADOS_SETOP,2,0),IF(G68="CPU",VLOOKUP($F68,DADOS_COMPOSICAO,2,0),IF(G68="SICRO",VLOOKUP($F68,DADOS_SICRO,2,0),IF(G68="SUDECAP",VLOOKUP(F68,DADOS_SUDECAP,2,0),IF(G68="COTAÇÃO",VLOOKUP($F68,DADOS_COTACAO,2,0),"")))))) -> EXECUÇÃO DE CENTRAL DE ARMADURA EM CANTEIRO DE OBRA, NÃO INCLUSO MOBILIÁRIO E EQUIPAMENTOS. AF_04/2016 | F68: 93582 | G68: SINAPI | H68: =IF(G68="SINAPI",VLOOKUP($F68,DADOS_SINAPI,3,0),IF(G68="SETOP",VLOOKUP($F68,DADOS_SETOP,3,0),IF(G68="CPU",VLOOKUP($F68,DADOS_COMPOSICAO,10,0),IF(G68="SICRO",VLOOKUP($F68,DADOS_SICRO,3,0),IF(G68="SUDECAP",VLOOKUP(F68,DADOS_SUDECAP,3,0),IF(G68="COTAÇÃO",VLOOKUP($F68,DADOS_COTACAO,9,0),"")))))) -> M2 | I68: =F70 -> 60 | J68: =IF(G68="SINAPI",VLOOKUP($F68,DADOS_SINAPI,4,0),IF(G68="SETOP",VLOOKUP($F68,DADOS_SETOP,4,0),IF(G68="CPU",VLOOKUP($F68,DADOS_COMPOSICAO,13,0),IF(G68="SICRO",VLOOKUP($F68,DADOS_SICRO,4,0),IF(G68="SUDECAP",VLOOKUP(F68,DADOS_SUDECAP,4,0),IF(G68="COTAÇÃO",VLOOKUP(F68,DADOS_COTACAO,12,0),"")))))) -> 314.83 | K68: BDI 1 | L68: =TRUNC(J68*(1+$N$17),2) -> 398.32 | M68: =IFERROR(TRUNC(I68*J68,2),"") -> 18889.8 | N68: =IFERROR(TRUNC(L68*I68,2),"") -> 23899.2
A69: 2000
A70: 2000 | E70: Área | F70: 60 | G70: m²
A71: 2000
A72: =IFERROR(LEFT(D72,SEARCH(".",D72)-1),"") -> 1 | B72: =IFERROR(LEFT(RIGHT(D72,LEN(D72)-SEARCH(".",D72)),SEARCH(".",RIGHT(D72,LEN(D72)-SEARCH(".",D72)))-1),"") ->  | C72: =IFERROR(IF(LEN(D72)-LEN(SUBSTITUTE(D72,".",""))<>3,"",MID(D72,SEARCH(".",D72,SEARCH(".",D72)+1)+1,LEN(D72)-SEARCH(".",D72,SEARCH(".",D72)+1)-(LEN(D72)-(SEARCH(".",D72,SEARCH(".",D72,SEARCH(".",D72)+1)+1)-1)))),"") ->  | D72: 1.12 | E72: =IF($G72="SINAPI",VLOOKUP($F72,DADOS_SINAPI,2,0),IF(G72="SETOP",VLOOKUP($F72,DADOS_SETOP,2,0),IF(G72="CPU",VLOOKUP($F72,DADOS_COMPOSICAO,2,0),IF(G72="SICRO",VLOOKUP($F72,DADOS_SICRO,2,0),IF(G72="SUDECAP",VLOOKUP(F72,DADOS_SUDECAP,2,0),IF(G72="COTAÇÃO",VLOOKUP($F72,DADOS_COTACAO,2,0),"")))))) -> EXECUÇÃO DE CENTRAL DE FÔRMAS, PRODUÇÃO DE ARGAMASSA OU CONCRETO EM CANTEIRO DE OBRA, NÃO INCLUSO MOBILIÁRIO E EQUIPAMENTOS. AF_04/2016 | F72: 93583 | G72: SINAPI | H72: =IF(G72="SINAPI",VLOOKUP($F72,DADOS_SINAPI,3,0),IF(G72="SETOP",VLOOKUP($F72,DADOS_SETOP,3,0),IF(G72="CPU",VLOOKUP($F72,DADOS_COMPOSICAO,10,0),IF(G72="SICRO",VLOOKUP($F72,DADOS_SICRO,3,0),IF(G72="SUDECAP",VLOOKUP(F72,DADOS_SUDECAP,3,0),IF(G72="COTAÇÃO",VLOOKUP($F72,DADOS_COTACAO,9,0),"")))))) -> M2 | I72: =F74 -> 36 | J72: =IF(G72="SINAPI",VLOOKUP($F72,DADOS_SINAPI,4,0),IF(G72="SETOP",VLOOKUP($F72,DADOS_SETOP,4,0),IF(G72="CPU",VLOOKUP($F72,DADOS_COMPOSICAO,13,0),IF(G72="SICRO",VLOOKUP($F72,DADOS_SICRO,4,0),IF(G72="SUDECAP",VLOOKUP(F72,DADOS_SUDECAP,4,0),IF(G72="COTAÇÃO",VLOOKUP(F72,DADOS_COTACAO,12,0),"")))))) -> 491.45 | K72: BDI 1 | L72: =TRUNC(J72*(1+$N$17),2) -> 621.78 | M72: =IFERROR(TRUNC(I72*J72,2),"") -> 17692.2 | N72: =IFERROR(TRUNC(L72*I72,2),"") -> 22384.08
A73: 2000
A74: 2000 | E74: Área | F74: =6*6 -> 36 | G74: m²
A75: 2000
A76: =IFERROR(LEFT(D76,SEARCH(".",D76)-1),"") -> 1 | B76: =IFERROR(LEFT(RIGHT(D76,LEN(D76)-SEARCH(".",D76)),SEARCH(".",RIGHT(D76,LEN(D76)-SEARCH(".",D76)))-1),"") ->  | C76: =IFERROR(IF(LEN(D76)-LEN(SUBSTITUTE(D76,".",""))<>3,"",MID(D76,SEARCH(".",D76,SEARCH(".",D76)+1)+1,LEN(D76)-SEARCH(".",D76,SEARCH(".",D76)+1)-(LEN(D76)-(SEARCH(".",D76,SEARCH(".",D76,SEARCH(".",D76)+1)+1)-1)))),"") ->  | D76: 1.13 | E76: =IF($G76="SINAPI",VLOOKUP($F76,DADOS_SINAPI,2,0),IF(G76="SETOP",VLOOKUP($F76,DADOS_SETOP,2,0),IF(G76="CPU",VLOOKUP($F76,DADOS_COMPOSICAO,2,0),IF(G76="SICRO",VLOOKUP($F76,DADOS_SICRO,2,0),IF(G76="SUDECAP",VLOOKUP(F76,DADOS_SUDECAP,2,0),IF(G76="COTAÇÃO",VLOOKUP($F76,DADOS_COTACAO,2,0),"")))))) -> TAPUME FIXO DE PROTEÇÃO PARA FECHAMENTO DE OBRA EM TELHA METÁLICA GALVANIZADA, TIPO TRAPEZOIDAL, ESP. 0,5MM, COM MÓDULO NA DIMENSÃO DE (300X220)CM, COM REAPROVEITAMENTO, EXCLUSIVE PINTURA ESMALTE, INCLUSIVE PONTALETE E FIXAÇÃO | F76: ED-29823 | G76: SETOP | H76: =IF(G76="SINAPI",VLOOKUP($F76,DADOS_SINAPI,3,0),IF(G76="SETOP",VLOOKUP($F76,DADOS_SETOP,3,0),IF(G76="CPU",VLOOKUP($F76,DADOS_COMPOSICAO,10,0),IF(G76="SICRO",VLOOKUP($F76,DADOS_SICRO,3,0),IF(G76="SUDECAP",VLOOKUP(F76,DADOS_SUDECAP,3,0),IF(G76="COTAÇÃO",VLOOKUP($F76,DADOS_COTACAO,9,0),"")))))) -> m2 | I76: =F80 -> 51.172 | J76: =IF(G76="SINAPI",VLOOKUP($F76,DADOS_SINAPI,4,0),IF(G76="SETOP",VLOOKUP($F76,DADOS_SETOP,4,0),IF(G76="CPU",VLOOKUP($F76,DADOS_COMPOSICAO,13,0),IF(G76="SICRO",VLOOKUP($F76,DADOS_SICRO,4,0),IF(G76="SUDECAP",VLOOKUP(F76,DADOS_SUDECAP,4,0),IF(G76="COTAÇÃO",VLOOKUP(F76,DADOS_COTACAO,12,0),"")))))) -> 58.23 | K76: BDI 1 | L76: =TRUNC(J76*(1+$N$17),2) -> 73.67 | M76: =IFERROR(TRUNC(I76*J76,2),"") -> 2979.74 | N76: =IFERROR(TRUNC(L76*I76,2),"") -> 3769.84
A77: 2000
A78: 2000 | E78: Comprimento | F78: 23.26 | G78: m
A79: 2000 | E79: Altura | F79: 2.2 | G79: m
A80: 2000 | E80: Total | F80: =F78*F79 -> 51.172 | G80: m²
A81: 2000
A82: =IFERROR(LEFT(D82,SEARCH(".",D82)-1),"") -> 1 | B82: =IFERROR(LEFT(RIGHT(D82,LEN(D82)-SEARCH(".",D82)),SEARCH(".",RIGHT(D82,LEN(D82)-SEARCH(".",D82)))-1),"") ->  | C82: =IFERROR(IF(LEN(D82)-LEN(SUBSTITUTE(D82,".",""))<>3,"",MID(D82,SEARCH(".",D82,SEARCH(".",D82)+1)+1,LEN(D82)-SEARCH(".",D82,SEARCH(".",D82)+1)-(LEN(D82)-(SEARCH(".",D82,SEARCH(".",D82,SEARCH(".",D82)+1)+1)-1)))),"") ->  | D82: 1.14 | E82: =IF($G82="SINAPI",VLOOKUP($F82,DADOS_SINAPI,2,0),IF(G82="SETOP",VLOOKUP($F82,DADOS_SETOP,2,0),IF(G82="CPU",VLOOKUP($F82,DADOS_COMPOSICAO,2,0),IF(G82="SICRO",VLOOKUP($F82,DADOS_SICRO,2,0),IF(G82="SUDECAP",VLOOKUP(F82,DADOS_SUDECAP,2,0),IF(G82="COTAÇÃO",VLOOKUP($F82,DADOS_COTACAO,2,0),"")))))) -> REMOÇÃO DE TAPUME/ CHAPAS METÁLICAS E DE MADEIRA, DE FORMA MANUAL, SEM REAPROVEITAMENTO. AF_12/2017 | F82: 97637 | G82: SINAPI | H82: =IF(G82="SINAPI",VLOOKUP($F82,DADOS_SINAPI,3,0),IF(G82="SETOP",VLOOKUP($F82,DADOS_SETOP,3,0),IF(G82="CPU",VLOOKUP($F82,DADOS_COMPOSICAO,10,0),IF(G82="SICRO",VLOOKUP($F82,DADOS_SICRO,3,0),IF(G82="SUDECAP",VLOOKUP(F82,DADOS_SUDECAP,3,0),IF(G82="COTAÇÃO",VLOOKUP($F82,DADOS_COTACAO,9,0),"")))))) -> M2 | I82: =F84 -> 51.172 | J82: =IF(G82="SINAPI",VLOOKUP($F82,DADOS_SINAPI,4,0),IF(G82="SETOP",VLOOKUP($F82,DADOS_SETOP,4,0),IF(G82="CPU",VLOOKUP($F82,DADOS_COMPOSICAO,13,0),IF(G82="SICRO",VLOOKUP($F82,DADOS_SICRO,4,0),IF(G82="SUDECAP",VLOOKUP(F82,DADOS_SUDECAP,4,0),IF(G82="COTAÇÃO",VLOOKUP(F82,DADOS_COTACAO,12,0),"")))))) -> 2.41 | K82: BDI 1 | L82: =TRUNC(J82*(1+$N$17),2) -> 3.04 | M82: =IFERROR(TRUNC(I82*J82,2),"") -> 123.32 | N82: =IFERROR(TRUNC(L82*I82,2),"") -> 155.56
A83: 2000
A84: 2000 | E84: Total | F84: =F80 -> 51.172 | G84: m²
A85: 2000
A86: 1000 | D86: 2 | E86: SERVIÇOS PRELIMINARES | M86: =SUMIF(A:A,D86,M:M) -> 15236.36 | N86: =SUMIF(A:A,D86,N:N) -> 19276.03
A87: =IFERROR(LEFT(D87,SEARCH(".",D87)-1),"") -> 2 | B87: =IFERROR(LEFT(RIGHT(D87,LEN(D87)-SEARCH(".",D87)),SEARCH(".",RIGHT(D87,LEN(D87)-SEARCH(".",D87)))-1),"") ->  | C87: =IFERROR(IF(LEN(D87)-LEN(SUBSTITUTE(D87,".",""))<>3,"",MID(D87,SEARCH(".",D87,SEARCH(".",D87)+1)+1,LEN(D87)-SEARCH(".",D87,SEARCH(".",D87)+1)-(LEN(D87)-(SEARCH(".",D87,SEARCH(".",D87,SEARCH(".",D87)+1)+1)-1)))),"") ->  | D87: 2.1 | E87: =IF($G87="SINAPI",VLOOKUP($F87,DADOS_SINAPI,2,0),IF(G87="SETOP",VLOOKUP($F87,DADOS_SETOP,2,0),IF(G87="CPU",VLOOKUP($F87,DADOS_COMPOSICAO,2,0),IF(G87="SICRO",VLOOKUP($F87,DADOS_SICRO,2,0),IF(G87="SUDECAP",VLOOKUP(F87,DADOS_SUDECAP,2,0),IF(G87="COTAÇÃO",VLOOKUP($F87,DADOS_COTACAO,2,0),"")))))) -> FORNECIMENTO E COLOCAÇÃO DE PLACA DE OBRA EM CHAPA GALVANIZADA #26, ESP. 0,45MM, DIMENSÃO (3X1,5)M, PLOTADA COM ADESIVO VINÍLICO, AFIXADA COM REBITES 4,8X40MM, EM ESTRUTURA METÁLICA DE METALON 20X20MM, ESP. 1,25MM, INCLUSIVE SUPORTE EM EUCALIPTO AUTOCLAVADO PINTADO COM TINTA PVA DUAS (2) DEMÃOS | F87: ED-28427 | G87: SETOP | H87: =IF(G87="SINAPI",VLOOKUP($F87,DADOS_SINAPI,3,0),IF(G87="SETOP",VLOOKUP($F87,DADOS_SETOP,3,0),IF(G87="CPU",VLOOKUP($F87,DADOS_COMPOSICAO,10,0),IF(G87="SICRO",VLOOKUP($F87,DADOS_SICRO,3,0),IF(G87="SUDECAP",VLOOKUP(F87,DADOS_SUDECAP,3,0),IF(G87="COTAÇÃO",VLOOKUP($F87,DADOS_COTACAO,9,0),"")))))) -> un | I87: =F89 -> 1 | J87: =IF(G87="SINAPI",VLOOKUP($F87,DADOS_SINAPI,4,0),IF(G87="SETOP",VLOOKUP($F87,DADOS_SETOP,4,0),IF(G87="CPU",VLOOKUP($F87,DADOS_COMPOSICAO,13,0),IF(G87="SICRO",VLOOKUP($F87,DADOS_SICRO,4,0),IF(G87="SUDECAP",VLOOKUP(F87,DADOS_SUDECAP,4,0),IF(G87="COTAÇÃO",VLOOKUP(F87,DADOS_COTACAO,12,0),"")))))) -> 1390.32 | K87: BDI 1 | L87: =TRUNC(J87*(1+$N$17),2) -> 1759.03 | M87: =IFERROR(TRUNC(I87*J87,2),"") -> 1390.32 | N87: =IFERROR(TRUNC(L87*I87,2),"") -> 1759.03
A88: 2000
A89: 2000 | E89: Quantidade | F89: 1 | G89: un
A90: 2000
A91: =IFERROR(LEFT(D91,SEARCH(".",D91)-1),"") -> 2 | B91: =IFERROR(LEFT(RIGHT(D91,LEN(D91)-SEARCH(".",D91)),SEARCH(".",RIGHT(D91,LEN(D91)-SEARCH(".",D91)))-1),"") ->  | C91: =IFERROR(IF(LEN(D91)-LEN(SUBSTITUTE(D91,".",""))<>3,"",MID(D91,SEARCH(".",D91,SEARCH(".",D91)+1)+1,LEN(D91)-SEARCH(".",D91,SEARCH(".",D91)+1)-(LEN(D91)-(SEARCH(".",D91,SEARCH(".",D91,SEARCH(".",D91)+1)+1)-1)))),"") ->  | D91: 2.2 | E91: =IF($G91="SINAPI",VLOOKUP($F91,DADOS_SINAPI,2,0),IF(G91="SETOP",VLOOKUP($F91,DADOS_SETOP,2,0),IF(G91="CPU",VLOOKUP($F91,DADOS_COMPOSICAO,2,0),IF(G91="SICRO",VLOOKUP($F91,DADOS_SICRO,2,0),IF(G91="SUDECAP",VLOOKUP(F91,DADOS_SUDECAP,2,0),IF(G91="COTAÇÃO",VLOOKUP($F91,DADOS_COTACAO,2,0),"")))))) -> LOCACAO CONVENCIONAL DE OBRA, UTILIZANDO GABARITO DE TÁBUAS CORRIDAS PONTALETADAS A CADA 2,00M - 2 UTILIZAÇÕES. AF_10/2018 | F91: 99059 | G91: SINAPI | H91: =IF(G91="SINAPI",VLOOKUP($F91,DADOS_SINAPI,3,0),IF(G91="SETOP",VLOOKUP($F91,DADOS_SETOP,3,0),IF(G91="CPU",VLOOKUP($F91,DADOS_COMPOSICAO,10,0),IF(G91="SICRO",VLOOKUP($F91,DADOS_SICRO,3,0),IF(G91="SUDECAP",VLOOKUP(F91,DADOS_SUDECAP,3,0),IF(G91="COTAÇÃO",VLOOKUP($F91,DADOS_COTACAO,9,0),"")))))) -> M | I91: =F96 -> 213.18 | J91: =IF(G91="SINAPI",VLOOKUP($F91,DADOS_SINAPI,4,0),IF(G91="SETOP",VLOOKUP($F91,DADOS_SETOP,4,0),IF(G91="CPU",VLOOKUP($F91,DADOS_COMPOSICAO,13,0),IF(G91="SICRO",VLOOKUP($F91,DADOS_SICRO,4,0),IF(G91="SUDECAP",VLOOKUP(F91,DADOS_SUDECAP,4,0),IF(G91="COTAÇÃO",VLOOKUP(F91,DADOS_COTACAO,12,0),"")))))) -> 64.95 | K91: BDI 1 | L91: =TRUNC(J91*(1+$N$17),2) -> 82.17 | M91: =IFERROR(TRUNC(I91*J91,2),"") -> 13846.04 | N91: =IFERROR(TRUNC(L91*I91,2),"") -> 17517
A92: 2000
A93: 2000 | E93: UPA | F93: 180.68 | G93: m
A94: 2000 | E94: Casa de Máquinas | F94: 18.6 | G94: m
A95: 2000 | E95: Casa de Gás | F95: 13.9 | G95: m
A96: 2000 | E96: Total | F96: =SUM(F93:F95) -> 213.18 | G96: m
A97: 2000
A98: 1000 | D98: 3 | E98: ADMINISTRAÇÃO DE OBRA | M98: =SUMIF(A:A,D98,M:M) -> 303549.24 | N98: =SUMIF(A:A,D98,N:N) -> 384050.28
A99: =IFERROR(LEFT(D99,SEARCH(".",D99)-1),"") -> 3 | B99: =IFERROR(LEFT(RIGHT(D99,LEN(D99)-SEARCH(".",D99)),SEARCH(".",RIGHT(D99,LEN(D99)-SEARCH(".",D99)))-1),"") ->  | C99: =IFERROR(IF(LEN(D99)-LEN(SUBSTITUTE(D99,".",""))<>3,"",MID(D99,SEARCH(".",D99,SEARCH(".",D99)+1)+1,LEN(D99)-SEARCH(".",D99,SEARCH(".",D99)+1)-(LEN(D99)-(SEARCH(".",D99,SEARCH(".",D99,SEARCH(".",D99)+1)+1)-1)))),"") ->  | D99: 3.1 | E99: =IF($G99="SINAPI",VLOOKUP($F99,DADOS_SINAPI,2,0),IF(G99="SETOP",VLOOKUP($F99,DADOS_SETOP,2,0),IF(G99="CPU",VLOOKUP($F99,DADOS_COMPOSICAO,2,0),IF(G99="SICRO",VLOOKUP($F99,DADOS_SICRO,2,0),IF(G99="SUDECAP",VLOOKUP(F99,DADOS_SUDECAP,2,0),IF(G99="COTAÇÃO",VLOOKUP($F99,DADOS_COTACAO,2,0),"")))))) -> ENGENHEIRO CIVIL PLENO COM ENCARGOS COMPLEMENTARES | F99: 100320 | G99: SINAPI | H99: =IF(G99="SINAPI",VLOOKUP($F99,DADOS_SINAPI,3,0),IF(G99="SETOP",VLOOKUP($F99,DADOS_SETOP,3,0),IF(G99="CPU",VLOOKUP($F99,DADOS_COMPOSICAO,10,0),IF(G99="SICRO",VLOOKUP($F99,DADOS_SICRO,3,0),IF(G99="SUDECAP",VLOOKUP(F99,DADOS_SUDECAP,3,0),IF(G99="COTAÇÃO",VLOOKUP($F99,DADOS_COTACAO,9,0),"")))))) -> MES | I99: =F101 -> 12 | J99: =IF(G99="SINAPI",VLOOKUP($F99,DADOS_SINAPI,4,0),IF(G99="SETOP",VLOOKUP($F99,DADOS_SETOP,4,0),IF(G99="CPU",VLOOKUP($F99,DADOS_COMPOSICAO,13,0),IF(G99="SICRO",VLOOKUP($F99,DADOS_SICRO,4,0),IF(G99="SUDECAP",VLOOKUP(F99,DADOS_SUDECAP,4,0),IF(G99="COTAÇÃO",VLOOKUP(F99,DADOS_COTACAO,12,0),"")))))) -> 19486.5 | K99: BDI 1 | L99: =TRUNC(J99*(1+$N$17),2) -> 24654.31 | M99: =IFERROR(TRUNC(I99*J99,2),"") -> 233838 | N99: =IFERROR(TRUNC(L99*I99,2),"") -> 295851.72
A100: 2000
A101: 2000 | E101: Quantidade | F101: 12 | G101: mês
A102: 2000
A103: =IFERROR(LEFT(D103,SEARCH(".",D103)-1),"") -> 3 | B103: =IFERROR(LEFT(RIGHT(D103,LEN(D103)-SEARCH(".",D103)),SEARCH(".",RIGHT(D103,LEN(D103)-SEARCH(".",D103)))-1),"") ->  | C103: =IFERROR(IF(LEN(D103)-LEN(SUBSTITUTE(D103,".",""))<>3,"",MID(D103,SEARCH(".",D103,SEARCH(".",D103)+1)+1,LEN(D103)-SEARCH(".",D103,SEARCH(".",D103)+1)-(LEN(D103)-(SEARCH(".",D103,SEARCH(".",D103,SEARCH(".",D103)+1)+1)-1)))),"") ->  | D103: 3.2 | E103: =IF($G103="SINAPI",VLOOKUP($F103,DADOS_SINAPI,2,0),IF(G103="SETOP",VLOOKUP($F103,DADOS_SETOP,2,0),IF(G103="CPU",VLOOKUP($F103,DADOS_COMPOSICAO,2,0),IF(G103="SICRO",VLOOKUP($F103,DADOS_SICRO,2,0),IF(G103="SUDECAP",VLOOKUP(F103,DADOS_SUDECAP,2,0),IF(G103="COTAÇÃO",VLOOKUP($F103,DADOS_COTACAO,2,0),"")))))) -> TÉCNICO EM SEGURANÇA DO TRABALHO COM ENCARGOS COMPLEMENTARES | F103: 100321 | G103: SINAPI | H103: =IF(G103="SINAPI",VLOOKUP($F103,DADOS_SINAPI,3,0),IF(G103="SETOP",VLOOKUP($F103,DADOS_SETOP,3,0),IF(G103="CPU",VLOOKUP($F103,DADOS_COMPOSICAO,10,0),IF(G103="SICRO",VLOOKUP($F103,DADOS_SICRO,3,0),IF(G103="SUDECAP",VLOOKUP(F103,DADOS_SUDECAP,3,0),IF(G103="COTAÇÃO",VLOOKUP($F103,DADOS_COTACAO,9,0),"")))))) -> MES | I103: =F105 -> 12 | J103: =IF(G103="SINAPI",VLOOKUP($F103,DADOS_SINAPI,4,0),IF(G103="SETOP",VLOOKUP($F103,DADOS_SETOP,4,0),IF(G103="CPU",VLOOKUP($F103,DADOS_COMPOSICAO,13,0),IF(G103="SICRO",VLOOKUP($F103,DADOS_SICRO,4,0),IF(G103="SUDECAP",VLOOKUP(F103,DADOS_SUDECAP,4,0),IF(G103="COTAÇÃO",VLOOKUP(F103,DADOS_COTACAO,12,0),"")))))) -> 5809.27 | K103: BDI 1 | L103: =TRUNC(J103*(1+$N$17),2) -> 7349.88 | M103: =IFERROR(TRUNC(I103*J103,2),"") -> 69711.24 | N103: =IFERROR(TRUNC(L103*I103,2),"") -> 88198.56
A104: 2000
A105: 2000 | E105: Quantidade | F105: 12 | G105: mês
A106: 2000
A107: 1000 | D107: 4 | E107: ESTRUTURA | M107: =SUMIF(A:A,D107,M:M) -> 1680493.09 | N107: =SUMIF(A:A,D107,N:N) -> 2126013.17
D108: 4.1 | E108: MOVIMENTAÇÃO DE TERRA | M108: =IFERROR(SUMIFS(M:M,A:A,LEFT(D108,SEARCH(".",D108)-1),B:B,RIGHT(D108,LEN(D108)-SEARCH(".",D108))),"") -> 22186.88 | N108: =IFERROR(SUMIFS(N:N,A:A,LEFT(D108,SEARCH(".",D108)-1),B:B,RIGHT(D108,LEN(D108)-SEARCH(".",D108))),"") -> 28052.25
A109: =IFERROR(LEFT(D109,SEARCH(".",D109)-1),"") -> 4 | B109: =IFERROR(LEFT(RIGHT(D109,LEN(D109)-SEARCH(".",D109)),SEARCH(".",RIGHT(D109,LEN(D109)-SEARCH(".",D109)))-1),"") -> 1 | C109: =IFERROR(IF(LEN(D109)-LEN(SUBSTITUTE(D109,".",""))<>3,"",MID(D109,SEARCH(".",D109,SEARCH(".",D109)+1)+1,LEN(D109)-SEARCH(".",D109,SEARCH(".",D109)+1)-(LEN(D109)-(SEARCH(".",D109,SEARCH(".",D109,SEARCH(".",D109)+1)+1)-1)))),"") ->  | D109: 4.1.1 | E109: =IF($G109="SINAPI",VLOOKUP($F109,DADOS_SINAPI,2,0),IF(G109="SETOP",VLOOKUP($F109,DADOS_SETOP,2,0),IF(G109="CPU",VLOOKUP($F109,DADOS_COMPOSICAO,2,0),IF(G109="SICRO",VLOOKUP($F109,DADOS_SICRO,2,0),IF(G109="SUDECAP",VLOOKUP(F109,DADOS_SUDECAP,2,0),IF(G109="COTAÇÃO",VLOOKUP($F109,DADOS_COTACAO,2,0),"")))))) -> ESCAVAÇÃO MANUAL PARA BLOCO DE COROAMENTO OU SAPATA (INCLUINDO ESCAVAÇÃO PARA COLOCAÇÃO DE FÔRMAS). AF_06/2017 | F109: 96523 | G109: SINAPI | H109: =IF(G109="SINAPI",VLOOKUP($F109,DADOS_SINAPI,3,0),IF(G109="SETOP",VLOOKUP($F109,DADOS_SETOP,3,0),IF(G109="CPU",VLOOKUP($F109,DADOS_COMPOSICAO,10,0),IF(G109="SICRO",VLOOKUP($F109,DADOS_SICRO,3,0),IF(G109="SUDECAP",VLOOKUP(F109,DADOS_SUDECAP,3,0),IF(G109="COTAÇÃO",VLOOKUP($F109,DADOS_COTACAO,9,0),"")))))) -> M3 | I109: =ROUND(F115,2) -> 116.17 | J109: =IF(G109="SINAPI",VLOOKUP($F109,DADOS_SINAPI,4,0),IF(G109="SETOP",VLOOKUP($F109,DADOS_SETOP,4,0),IF(G109="CPU",VLOOKUP($F109,DADOS_COMPOSICAO,13,0),IF(G109="SICRO",VLOOKUP($F109,DADOS_SICRO,4,0),IF(G109="SUDECAP",VLOOKUP(F109,DADOS_SUDECAP,4,0),IF(G109="COTAÇÃO",VLOOKUP(F109,DADOS_COTACAO,12,0),"")))))) -> 83.29 | K109: BDI 1 | L109: =TRUNC(J109*(1+$N$17),2) -> 105.37 | M109: =IFERROR(TRUNC(I109*J109,2),"") -> 9675.79 | N109: =IFERROR(TRUNC(L109*I109,2),"") -> 12240.83
A110: 2000
A111: 2000 | E111: BLOCOS 80X80 | F111: 19 | G111: UN
A112: 2000 | E112: BLOCOS 170X80 | F112: 50 | G112: UN
A113: 2000 | E113: BLOCOS 230X80 | F113: 5 | G113: UN
A114: 2000 | E114: Hméd | F114: 1.3 | G114: M
A115: 2000 | E115: ESCAVAÇÃO TOTAL | F115: =0.8*0.8*F114*F111+2.3*0.8*F114*F113+1.7*0.8*F114*F112 -> 116.168 | G115: M³
A116: 2000
A117: 4 | B117: 1 | D117: 4.1.2 | E117: ESCAVAÇÃO MANUAL DE VALA PARA VIGA BALDRAME (INCLUINDO ESCAVAÇÃO PARA COLOCAÇÃO DE FÔRMAS). AF_06/2017 | F117: 96527 | G117: SINAPI | H117: M3 | I117: =ROUND(F123,2) -> 51.88 | J117: 109.17 | K117: BDI 1 | L117: 138.12 | M117: 5663.73 | N117: 7165.66
A118: 2000
A119: 2000 | E119: COMPRIMENTO TOTAL DAS VIGAS BALDRAME (PRÉ-MOLDADAS) | F119: 448 | G119: M
A120: 2000 | E120: ÁREA DA SEÇÃO DAS VIGAS (PRÉ-MOLDADAS) | F120: =0.2*0.5 -> 0.1 | G120: M²
A121: 2000 | E121: COMPRIMENTO TOTAL DAS VIGAS BALDRAME | F121: =118.06 -> 118.06 | G121: M
A122: 2000 | E122: ÁREA DA SEÇÃO DAS VIGAS BALDRAME | F122: =0.3*0.2 -> 0.06 | G122: M²
A123: 2000 | E123: ESCAVAÇÃO TOTAL | F123: =F122*F121+F120*F119 -> 51.8836 | G123: M³
A124: 2000
A125: 4 | B125: 1 | D125: 4.1.3 | E125: REATERRO MANUAL DE VALAS COM COMPACTAÇÃO MECANIZADA. AF_04/2016 | F125: 93382 | G125: SINAPI | H125: M3 | I125: =ROUND(F131,2) -> 56.92 | J125: 29.22 | K125: BDI 1 | L125: 36.96 | M125: 1663.2 | N125: 2103.76
A126: 2000
A127: 2000 | E127: VOLUME TOTAL ESCAVADO | F127: =F115+F123 -> 168.0516 | G127: M³
A128: 2000 | E128: VOLUME DE CONCRETO DAS VIGAS BALDRAME | F128: =F210+F241 -> 51.92 | G128: M³
A129: 2000 | E129: VOLUME DE CONCRETO DOS BLOCOS DE COROAMENTO | F129: =F189 -> 72.35 | G129: M³
A130: 2000 | E130: EMPOLAMENTO | F130: 1.3 | G130: -
A131: 2000 | E131: VOLUME DE REATERRO | F131: =(F127-F128-F129)*F130 -> 56.91608 | G131: M³
A132: 2000
A133: 4 | B133: 1 | D133: 4.1.4 | E133: CARGA, MANOBRA E DESCARGA DE SOLOS E MATERIAIS GRANULARES EM CAMINHÃO BASCULANTE 6 M³ - CARGA COM ESCAVADEIRA HIDRÁULICA (CAÇAMBA DE 1,20 M³ / 155 HP) E DESCARGA LIVRE (UNIDADE: M3). AF_07/2020 | F133: 100977 | G133: SINAPI | H133: M3 | I133: =ROUND(F138,2) -> 161.55 | J133: 7.06 | K133: BDI 1 | L133: 8.93 | M133: 1140.54 | N133: 1442.64
A134: 2000
A135: 2000 | E135: VOLUME TOTAL ESCAVADO | F135: =F127 -> 168.0516 | G135: M³
A136: 2000 | E136: VOLUME DE REATERRO | F136: =F131 -> 56.91608 | G136: M³
A137: 2000 | E137: EMPOLAMENTO | F137: 1.3 | G137: -
A138: 2000 | E138: VOLUME DE BOTA FORA | F138: =F135*F137-F136 -> 161.551 | G138: M³
A139: 2000
A140: 4 | B140: 1 | D140: 4.1.5 | E140: TRANSPORTE COM CAMINHÃO BASCULANTE DE 10 M³, EM VIA URBANA PAVIMENTADA, DMT ATÉ 30 KM (UNIDADE: M3XKM). AF_07/2020 | F140: 95875 | G140: SINAPI | H140: M3XKM | I140: =ROUND(F144,2) -> 1696.29 | J140: 2.26 | K140: BDI 1 | L140: 2.85 | M140: 3833.61 | N140: 4834.42
A141: 2000
A142: 2000 | E142: VOLUME DE BOTA FORA | F142: =F138 -> 161.551 | G142: M³
A143: 2000 | E143: DMT | F143: 10.5 | G143: KM
A144: 2000 | E144: TRANSPORTE | F144: =F142*F143 -> 1696.2855 | G144: M³xkm
A145: 2000
A146: 4 | B146: 1 | D146: 4.1.6 | E146: ESPALHAMENTO DE MATERIAL COM TRATOR DE ESTEIRAS. AF_11/2019 | F146: 100574 | G146: SINAPI | H146: M3 | I146: =ROUND(F148,2) -> 161.55 | J146: 1.3 | K146: BDI 1 | L146: 1.64 | M146: 210.01 | N146: 264.94
A147: 2000
A148: 2000 | E148: VOLUME DE BOTA FORA | F148: =F138 -> 161.551 | G148: M³
A149: 2000
D150: 4.2 | E150: FUNDAÇÃO | M150: =IFERROR(SUMIFS(M:M,A:A,LEFT(D150,SEARCH(".",D150)-1),B:B,RIGHT(D150,LEN(D150)-SEARCH(".",D150))),"") -> 601297.45 | N150: =IFERROR(SUMIFS(N:N,A:A,LEFT(D150,SEARCH(".",D150)-1),B:B,RIGHT(D150,LEN(D150)-SEARCH(".",D150))),"") -> 760725.08
D151: 4.2.1 | E151: ESTAQUEAMENTO | M151: =IFERROR(SUMIFS(M:M,A:A,LEFT(D151,SEARCH(".",D151)-1),B:B,LEFT(RIGHT(D151,LEN(D151)-SEARCH(".",D151)),SEARCH(".",RIGHT(D151,LEN(D151)-SEARCH(".",D151)))-1),C:C,RIGHT(D151,LEN(D151)-SEARCH(".",D151,SEARCH(".",D151)+1))),"") -> 307160.05 | N151: =IFERROR(SUMIFS(N:N,A:A,LEFT(D151,SEARCH(".",D151)-1),B:B,LEFT(RIGHT(D151,LEN(D151)-SEARCH(".",D151)),SEARCH(".",RIGHT(D151,LEN(D151)-SEARCH(".",D151)))-1),C:C,RIGHT(D151,LEN(D151)-SEARCH(".",D151,SEARCH(".",D151)+1))),"") -> 388607.96
A152: =IFERROR(LEFT(D152,SEARCH(".",D152)-1),"") -> 4 | B152: =IFERROR(LEFT(RIGHT(D152,LEN(D152)-SEARCH(".",D152)),SEARCH(".",RIGHT(D152,LEN(D152)-SEARCH(".",D152)))-1),"") -> 2 | C152: =IFERROR(IF(LEN(D152)-LEN(SUBSTITUTE(D152,".",""))<>3,"",MID(D152,SEARCH(".",D152,SEARCH(".",D152)+1)+1,LEN(D152)-SEARCH(".",D152,SEARCH(".",D152)+1)-(LEN(D152)-(SEARCH(".",D152,SEARCH(".",D152,SEARCH(".",D152)+1)+1)-1)))),"") -> 1 | D152: 4.2.1.1 | E152: =IF($G152="SINAPI",VLOOKUP($F152,DADOS_SINAPI,2,0),IF(G152="SETOP",VLOOKUP($F152,DADOS_SETOP,2,0),IF(G152="CPU",VLOOKUP($F152,DADOS_COMPOSICAO,2,0),IF(G152="SICRO",VLOOKUP($F152,DADOS_SICRO,2,0),IF(G152="SUDECAP",VLOOKUP(F152,DADOS_SUDECAP,2,0),IF(G152="COTAÇÃO",VLOOKUP($F152,DADOS_COTACAO,2,0),"")))))) -> MOBILIZAÇÃO E DESMOBILIZAÇÃO DE EQUIPAMENTO PARA ESTACA TIPO HÉLICE CONTÍNUA (CUSTO FIXO), INCLUSIVE CARGA E DESGARGA, EXCLUSIVE TRANSPORTE EM QUILÔMETRO RODADO (CUSTO VARIÁVEL) | F152: ED-19753 | G152: SETOP | H152: =IF(G152="SINAPI",VLOOKUP($F152,DADOS_SINAPI,3,0),IF(G152="SETOP",VLOOKUP($F152,DADOS_SETOP,3,0),IF(G152="CPU",VLOOKUP($F152,DADOS_COMPOSICAO,10,0),IF(G152="SICRO",VLOOKUP($F152,DADOS_SICRO,3,0),IF(G152="SUDECAP",VLOOKUP(F152,DADOS_SUDECAP,3,0),IF(G152="COTAÇÃO",VLOOKUP($F152,DADOS_COTACAO,9,0),"")))))) -> un | I152: =F154 -> 1 | J152: =IF(G152="SINAPI",VLOOKUP($F152,DADOS_SINAPI,4,0),IF(G152="SETOP",VLOOKUP($F152,DADOS_SETOP,4,0),IF(G152="CPU",VLOOKUP($F152,DADOS_COMPOSICAO,13,0),IF(G152="SICRO",VLOOKUP($F152,DADOS_SICRO,4,0),IF(G152="SUDECAP",VLOOKUP(F152,DADOS_SUDECAP,4,0),IF(G152="COTAÇÃO",VLOOKUP(F152,DADOS_COTACAO,12,0),"")))))) -> 19359.86 | K152: BDI 1 | L152: =TRUNC(J152*(1+$N$17),2) -> 24494.09 | M152: =IFERROR(TRUNC(I152*J152,2),"") -> 19359.86 | N152: =IFERROR(TRUNC(L152*I152,2),"") -> 24494.09
A153: 2000
A154: 2000 | E154: QUANTIDADE | F154: 1 | G154: UN
A155: 2000
A156: =IFERROR(LEFT(D156,SEARCH(".",D156)-1),"") -> 4 | B156: =IFERROR(LEFT(RIGHT(D156,LEN(D156)-SEARCH(".",D156)),SEARCH(".",RIGHT(D156,LEN(D156)-SEARCH(".",D156)))-1),"") -> 2 | C156: =IFERROR(IF(LEN(D156)-LEN(SUBSTITUTE(D156,".",""))<>3,"",MID(D156,SEARCH(".",D156,SEARCH(".",D156)+1)+1,LEN(D156)-SEARCH(".",D156,SEARCH(".",D156)+1)-(LEN(D156)-(SEARCH(".",D156,SEARCH(".",D156,SEARCH(".",D156)+1)+1)-1)))),"") -> 1 | D156: 4.2.1.2 | E156: =IF($G156="SINAPI",VLOOKUP($F156,DADOS_SINAPI,2,0),IF(G156="SETOP",VLOOKUP($F156,DADOS_SETOP,2,0),IF(G156="CPU",VLOOKUP($F156,DADOS_COMPOSICAO,2,0),IF(G156="SICRO",VLOOKUP($F156,DADOS_SICRO,2,0),IF(G156="SUDECAP",VLOOKUP(F156,DADOS_SUDECAP,2,0),IF(G156="COTAÇÃO",VLOOKUP($F156,DADOS_COTACAO,2,0),"")))))) -> MOBILIZAÇÃO E DESMOBILIZAÇÃO DE EQUIPAMENTO PARA ESTACA TIPO HÉLICE CONTÍNUA (CUSTO VARIÁVEL), EXCLUSIVE CUSTO FIXO DE TRANSPORTE | F156: ED-19754 | G156: SETOP | H156: =IF(G156="SINAPI",VLOOKUP($F156,DADOS_SINAPI,3,0),IF(G156="SETOP",VLOOKUP($F156,DADOS_SETOP,3,0),IF(G156="CPU",VLOOKUP($F156,DADOS_COMPOSICAO,10,0),IF(G156="SICRO",VLOOKUP($F156,DADOS_SICRO,3,0),IF(G156="SUDECAP",VLOOKUP(F156,DADOS_SUDECAP,3,0),IF(G156="COTAÇÃO",VLOOKUP($F156,DADOS_COTACAO,9,0),"")))))) -> km | I156: =F158 -> 50 | J156: =IF(G156="SINAPI",VLOOKUP($F156,DADOS_SINAPI,4,0),IF(G156="SETOP",VLOOKUP($F156,DADOS_SETOP,4,0),IF(G156="CPU",VLOOKUP($F156,DADOS_COMPOSICAO,13,0),IF(G156="SICRO",VLOOKUP($F156,DADOS_SICRO,4,0),IF(G156="SUDECAP",VLOOKUP(F156,DADOS_SUDECAP,4,0),IF(G156="COTAÇÃO",VLOOKUP(F156,DADOS_COTACAO,12,0),"")))))) -> 24.75 | K156: BDI 1 | L156: =TRUNC(J156*(1+$N$17),2) -> 31.31 | M156: =IFERROR(TRUNC(I156*J156,2),"") -> 1237.5 | N156: =IFERROR(TRUNC(L156*I156,2),"") -> 1565.5
A157: 2000
A158: 2000 | E158: QUANTIDADE | F158: 50 | G158: KM
A159: 2000
A160: =IFERROR(LEFT(D160,SEARCH(".",D160)-1),"") -> 4 | B160: =IFERROR(LEFT(RIGHT(D160,LEN(D160)-SEARCH(".",D160)),SEARCH(".",RIGHT(D160,LEN(D160)-SEARCH(".",D160)))-1),"") -> 2 | C160: =IFERROR(IF(LEN(D160)-LEN(SUBSTITUTE(D160,".",""))<>3,"",MID(D160,SEARCH(".",D160,SEARCH(".",D160)+1)+1,LEN(D160)-SEARCH(".",D160,SEARCH(".",D160)+1)-(LEN(D160)-(SEARCH(".",D160,SEARCH(".",D160,SEARCH(".",D160)+1)+1)-1)))),"") -> 1 | D160: 4.2.1.3 | E160: =IF($G160="SINAPI",VLOOKUP($F160,DADOS_SINAPI,2,0),IF(G160="SETOP",VLOOKUP($F160,DADOS_SETOP,2,0),IF(G160="CPU",VLOOKUP($F160,DADOS_COMPOSICAO,2,0),IF(G160="SICRO",VLOOKUP($F160,DADOS_SICRO,2,0),IF(G160="SUDECAP",VLOOKUP(F160,DADOS_SUDECAP,2,0),IF(G160="COTAÇÃO",VLOOKUP($F160,DADOS_COTACAO,2,0),"")))))) -> ESTACA HÉLICE CONTÍNUA , DIÂMETRO DE 50 CM, INCLUSO CONCRETO FCK=30MPA E ARMADURA MÍNIMA (EXCLUSIVE MOBILIZAÇÃO, DESMOBILIZAÇÃO E BOMBEAMENTO). AF_12/2019 | F160: 100652 | G160: SINAPI | H160: =IF(G160="SINAPI",VLOOKUP($F160,DADOS_SINAPI,3,0),IF(G160="SETOP",VLOOKUP($F160,DADOS_SETOP,3,0),IF(G160="CPU",VLOOKUP($F160,DADOS_COMPOSICAO,10,0),IF(G160="SICRO",VLOOKUP($F160,DADOS_SICRO,3,0),IF(G160="SUDECAP",VLOOKUP(F160,DADOS_SUDECAP,3,0),IF(G160="COTAÇÃO",VLOOKUP($F160,DADOS_COTACAO,9,0),"")))))) -> M | I160: =ROUND(F164,2) -> 169 | J160: =IF(G160="SINAPI",VLOOKUP($F160,DADOS_SINAPI,4,0),IF(G160="SETOP",VLOOKUP($F160,DADOS_SETOP,4,0),IF(G160="CPU",VLOOKUP($F160,DADOS_COMPOSICAO,13,0),IF(G160="SICRO",VLOOKUP($F160,DADOS_SICRO,4,0),IF(G160="SUDECAP",VLOOKUP(F160,DADOS_SUDECAP,4,0),IF(G160="COTAÇÃO",VLOOKUP(F160,DADOS_COTACAO,12,0),"")))))) -> 283.77 | K160: BDI 1 | L160: =TRUNC(J160*(1+$N$17),2) -> 359.02 | M160: =IFERROR(TRUNC(I160*J160,2),"") -> 47957.13 | N160: =IFERROR(TRUNC(L160*I160,2),"") -> 60674.38
A161: 2000
A162: 2000 | E162: QUANTIDADE | F162: 13 | G162: UN
A163: 2000 | E163: PROFUNDIDADE MÉDIA | F163: 13 | G163: M
A164: 2000 | E164: TOTAL | F164: =F162*F163 -> 169 | G164: M
A165: 2000
A166: =IFERROR(LEFT(D166,SEARCH(".",D166)-1),"") -> 4 | B166: =IFERROR(LEFT(RIGHT(D166,LEN(D166)-SEARCH(".",D166)),SEARCH(".",RIGHT(D166,LEN(D166)-SEARCH(".",D166)))-1),"") -> 2 | C166: =IFERROR(IF(LEN(D166)-LEN(SUBSTITUTE(D166,".",""))<>3,"",MID(D166,SEARCH(".",D166,SEARCH(".",D166)+1)+1,LEN(D166)-SEARCH(".",D166,SEARCH(".",D166)+1)-(LEN(D166)-(SEARCH(".",D166,SEARCH(".",D166,SEARCH(".",D166)+1)+1)-1)))),"") -> 1 | D166: 4.2.1.4 | E166: =IF($G166="SINAPI",VLOOKUP($F166,DADOS_SINAPI,2,0),IF(G166="SETOP",VLOOKUP($F166,DADOS_SETOP,2,0),IF(G166="CPU",VLOOKUP($F166,DADOS_COMPOSICAO,2,0),IF(G166="SICRO",VLOOKUP($F166,DADOS_SICRO,2,0),IF(G166="SUDECAP",VLOOKUP(F166,DADOS_SUDECAP,2,0),IF(G166="COTAÇÃO",VLOOKUP($F166,DADOS_COTACAO,2,0),"")))))) -> ESTACA HÉLICE CONTÍNUA, DIÂMETRO DE 30 CM, INCLUSO CONCRETO FCK=30MPA E ARMADURA MÍNIMA (EXCLUSIVE MOBILIZAÇÃO, DESMOBILIZAÇÃO E BOMBEAMENTO). AF_12/2019 | F166: 100651 | G166: SINAPI | H166: =IF(G166="SINAPI",VLOOKUP($F166,DADOS_SINAPI,3,0),IF(G166="SETOP",VLOOKUP($F166,DADOS_SETOP,3,0),IF(G166="CPU",VLOOKUP($F166,DADOS_COMPOSICAO,10,0),IF(G166="SICRO",VLOOKUP($F166,DADOS_SICRO,3,0),IF(G166="SUDECAP",VLOOKUP(F166,DADOS_SUDECAP,3,0),IF(G166="COTAÇÃO",VLOOKUP($F166,DADOS_COTACAO,9,0),"")))))) -> M | I166: =ROUND(F170,2) -> 1508 | J166: =IF(G166="SINAPI",VLOOKUP($F166,DADOS_SINAPI,4,0),IF(G166="SETOP",VLOOKUP($F166,DADOS_SETOP,4,0),IF(G166="CPU",VLOOKUP($F166,DADOS_COMPOSICAO,13,0),IF(G166="SICRO",VLOOKUP($F166,DADOS_SICRO,4,0),IF(G166="SUDECAP",VLOOKUP(F166,DADOS_SUDECAP,4,0),IF(G166="COTAÇÃO",VLOOKUP(F166,DADOS_COTACAO,12,0),"")))))) -> 145.53 | K166: BDI 1 | L166: =TRUNC(J166*(1+$N$17),2) -> 184.12 | M166: =IFERROR(TRUNC(I166*J166,2),"") -> 219459.24 | N166: =IFERROR(TRUNC(L166*I166,2),"") -> 277652.96
A167: 2000
A168: 2000 | E168: QUANTIDADE | F168: 116 | G168: UN
A169: 2000 | E169: PROFUNDIDADE MÉDIA | F169: 13 | G169: M
A170: 2000 | E170: TOTAL | F170: =F168*F169 -> 1508 | G170: M
A171: 2000
A172: =IFERROR(LEFT(D172,SEARCH(".",D172)-1),"") -> 4 | B172: =IFERROR(LEFT(RIGHT(D172,LEN(D172)-SEARCH(".",D172)),SEARCH(".",RIGHT(D172,LEN(D172)-SEARCH(".",D172)))-1),"") -> 2 | C172: =IFERROR(IF(LEN(D172)-LEN(SUBSTITUTE(D172,".",""))<>3,"",MID(D172,SEARCH(".",D172,SEARCH(".",D172)+1)+1,LEN(D172)-SEARCH(".",D172,SEARCH(".",D172)+1)-(LEN(D172)-(SEARCH(".",D172,SEARCH(".",D172,SEARCH(".",D172)+1)+1)-1)))),"") -> 1 | D172: 4.2.1.5 | E172: =IF($G172="SINAPI",VLOOKUP($F172,DADOS_SINAPI,2,0),IF(G172="SETOP",VLOOKUP($F172,DADOS_SETOP,2,0),IF(G172="CPU",VLOOKUP($F172,DADOS_COMPOSICAO,2,0),IF(G172="SICRO",VLOOKUP($F172,DADOS_SICRO,2,0),IF(G172="SUDECAP",VLOOKUP(F172,DADOS_SUDECAP,2,0),IF(G172="COTAÇÃO",VLOOKUP($F172,DADOS_COTACAO,2,0),"")))))) -> ESTACA BROCA DE CONCRETO, DIÂMETRO DE 20CM, ESCAVAÇÃO MANUAL COM TRADO CONCHA, COM ARMADURA DE ARRANQUE. AF_05/2020 | F172: 101173 | G172: SINAPI | H172: =IF(G172="SINAPI",VLOOKUP($F172,DADOS_SINAPI,3,0),IF(G172="SETOP",VLOOKUP($F172,DADOS_SETOP,3,0),IF(G172="CPU",VLOOKUP($F172,DADOS_COMPOSICAO,10,0),IF(G172="SICRO",VLOOKUP($F172,DADOS_SICRO,3,0),IF(G172="SUDECAP",VLOOKUP(F172,DADOS_SUDECAP,3,0),IF(G172="COTAÇÃO",VLOOKUP($F172,DADOS_COTACAO,9,0),"")))))) -> M | I172: =ROUND(F176,2) -> 288 | J172: =IF(G172="SINAPI",VLOOKUP($F172,DADOS_SINAPI,4,0),IF(G172="SETOP",VLOOKUP($F172,DADOS_SETOP,4,0),IF(G172="CPU",VLOOKUP($F172,DADOS_COMPOSICAO,13,0),IF(G172="SICRO",VLOOKUP($F172,DADOS_SICRO,4,0),IF(G172="SUDECAP",VLOOKUP(F172,DADOS_SUDECAP,4,0),IF(G172="COTAÇÃO",VLOOKUP(F172,DADOS_COTACAO,12,0),"")))))) -> 56.81 | K172: BDI 1 | L172: =TRUNC(J172*(1+$N$17),2) -> 71.87 | M172: =IFERROR(TRUNC(I172*J172,2),"") -> 16361.28 | N172: =IFERROR(TRUNC(L172*I172,2),"") -> 20698.56
A173: 2000
A174: 2000 | E174: QUANTIDADE | F174: 48 | G174: UN
A175: 2000 | E175: PROFUNDIDADE MÉDIA | F175: 6 | G175: M
A176: 2000 | E176: TOTAL | F176: =F174*F175 -> 288 | G176: M
A177: 2000
A178: =IFERROR(LEFT(D178,SEARCH(".",D178)-1),"") -> 4 | B178: =IFERROR(LEFT(RIGHT(D178,LEN(D178)-SEARCH(".",D178)),SEARCH(".",RIGHT(D178,LEN(D178)-SEARCH(".",D178)))-1),"") -> 2 | C178: =IFERROR(IF(LEN(D178)-LEN(SUBSTITUTE(D178,".",""))<>3,"",MID(D178,SEARCH(".",D178,SEARCH(".",D178)+1)+1,LEN(D178)-SEARCH(".",D178,SEARCH(".",D178)+1)-(LEN(D178)-(SEARCH(".",D178,SEARCH(".",D178,SEARCH(".",D178)+1)+1)-1)))),"") -> 1 | D178: 4.2.1.6 | E178: =IF($G178="SINAPI",VLOOKUP($F178,DADOS_SINAPI,2,0),IF(G178="SETOP",VLOOKUP($F178,DADOS_SETOP,2,0),IF(G178="CPU",VLOOKUP($F178,DADOS_COMPOSICAO,2,0),IF(G178="SICRO",VLOOKUP($F178,DADOS_SICRO,2,0),IF(G178="SUDECAP",VLOOKUP(F178,DADOS_SUDECAP,2,0),IF(G178="COTAÇÃO",VLOOKUP($F178,DADOS_COTACAO,2,0),"")))))) -> ARRASAMENTO MECANICO DE ESTACA DE CONCRETO ARMADO, DIAMETROS DE ATÉ 40 CM. AF_05/2021 | F178: 95601 | G178: SINAPI | H178: =IF(G178="SINAPI",VLOOKUP($F178,DADOS_SINAPI,3,0),IF(G178="SETOP",VLOOKUP($F178,DADOS_SETOP,3,0),IF(G178="CPU",VLOOKUP($F178,DADOS_COMPOSICAO,10,0),IF(G178="SICRO",VLOOKUP($F178,DADOS_SICRO,3,0),IF(G178="SUDECAP",VLOOKUP(F178,DADOS_SUDECAP,3,0),IF(G178="COTAÇÃO",VLOOKUP($F178,DADOS_COTACAO,9,0),"")))))) -> UN | I178: =F180 -> 164 | J178: =IF(G178="SINAPI",VLOOKUP($F178,DADOS_SINAPI,4,0),IF(G178="SETOP",VLOOKUP($F178,DADOS_SETOP,4,0),IF(G178="CPU",VLOOKUP($F178,DADOS_COMPOSICAO,13,0),IF(G178="SICRO",VLOOKUP($F178,DADOS_SICRO,4,0),IF(G178="SUDECAP",VLOOKUP(F178,DADOS_SUDECAP,4,0),IF(G178="COTAÇÃO",VLOOKUP(F178,DADOS_COTACAO,12,0),"")))))) -> 15.07 | K178: BDI 1 | L178: =TRUNC(J178*(1+$N$17),2) -> 19.06 | M178: =IFERROR(TRUNC(I178*J178,2),"") -> 2471.48 | N178: =IFERROR(TRUNC(L178*I178,2),"") -> 3125.84
A179: 2000
A180: 2000 | E180: QUANTIDADE | F180: =SUM(F174,F168) -> 164 | G180: UN
A181: 2000
A182: =IFERROR(LEFT(D182,SEARCH(".",D182)-1),"") -> 4 | B182: =IFERROR(LEFT(RIGHT(D182,LEN(D182)-SEARCH(".",D182)),SEARCH(".",RIGHT(D182,LEN(D182)-SEARCH(".",D182)))-1),"") -> 2 | C182: =IFERROR(IF(LEN(D182)-LEN(SUBSTITUTE(D182,".",""))<>3,"",MID(D182,SEARCH(".",D182,SEARCH(".",D182)+1)+1,LEN(D182)-SEARCH(".",D182,SEARCH(".",D182)+1)-(LEN(D182)-(SEARCH(".",D182,SEARCH(".",D182,SEARCH(".",D182)+1)+1)-1)))),"") -> 1 | D182: 4.2.1.7 | E182: =IF($G182="SINAPI",VLOOKUP($F182,DADOS_SINAPI,2,0),IF(G182="SETOP",VLOOKUP($F182,DADOS_SETOP,2,0),IF(G182="CPU",VLOOKUP($F182,DADOS_COMPOSICAO,2,0),IF(G182="SICRO",VLOOKUP($F182,DADOS_SICRO,2,0),IF(G182="SUDECAP",VLOOKUP(F182,DADOS_SUDECAP,2,0),IF(G182="COTAÇÃO",VLOOKUP($F182,DADOS_COTACAO,2,0),"")))))) -> ARRASAMENTO MECANICO DE ESTACA DE CONCRETO ARMADO, DIAMETROS DE 41 CM A 60 CM. AF_05/2021 | F182: 95602 | G182: SINAPI | H182: =IF(G182="SINAPI",VLOOKUP($F182,DADOS_SINAPI,3,0),IF(G182="SETOP",VLOOKUP($F182,DADOS_SETOP,3,0),IF(G182="CPU",VLOOKUP($F182,DADOS_COMPOSICAO,10,0),IF(G182="SICRO",VLOOKUP($F182,DADOS_SICRO,3,0),IF(G182="SUDECAP",VLOOKUP(F182,DADOS_SUDECAP,3,0),IF(G182="COTAÇÃO",VLOOKUP($F182,DADOS_COTACAO,9,0),"")))))) -> UN | I182: =F184 -> 13 | J182: =IF(G182="SINAPI",VLOOKUP($F182,DADOS_SINAPI,4,0),IF(G182="SETOP",VLOOKUP($F182,DADOS_SETOP,4,0),IF(G182="CPU",VLOOKUP($F182,DADOS_COMPOSICAO,13,0),IF(G182="SICRO",VLOOKUP($F182,DADOS_SICRO,4,0),IF(G182="SUDECAP",VLOOKUP(F182,DADOS_SUDECAP,4,0),IF(G182="COTAÇÃO",VLOOKUP(F182,DADOS_COTACAO,12,0),"")))))) -> 24.12 | K182: BDI 1 | L182: =TRUNC(J182*(1+$N$17),2) -> 30.51 | M182: =IFERROR(TRUNC(I182*J182,2),"") -> 313.56 | N182: =IFERROR(TRUNC(L182*I182,2),"") -> 396.63
A183: 2000
A184: 2000 | E184: QUANTIDADE | F184: =F162 -> 13 | G184: UN
A185: 2000
D186: 4.2.2 | E186: CÁLICES E BLOCOS DE COROAMENTO | M186: =IFERROR(SUMIFS(M:M,A:A,LEFT(D186,SEARCH(".",D186)-1),B:B,LEFT(RIGHT(D186,LEN(D186)-SEARCH(".",D186)),SEARCH(".",RIGHT(D186,LEN(D186)-SEARCH(".",D186)))-1),C:C,RIGHT(D186,LEN(D186)-SEARCH(".",D186,SEARCH(".",D186)+1))),"") -> 135852.83 | N186: =IFERROR(SUMIFS(N:N,A:A,LEFT(D186,SEARCH(".",D186)-1),B:B,LEFT(RIGHT(D186,LEN(D186)-SEARCH(".",D186)),SEARCH(".",RIGHT(D186,LEN(D186)-SEARCH(".",D186)))-1),C:C,RIGHT(D186,LEN(D186)-SEARCH(".",D186,SEARCH(".",D186)+1))),"") -> 171858.22
A187: =IFERROR(LEFT(D187,SEARCH(".",D187)-1),"") -> 4 | B187: =IFERROR(LEFT(RIGHT(D187,LEN(D187)-SEARCH(".",D187)),SEARCH(".",RIGHT(D187,LEN(D187)-SEARCH(".",D187)))-1),"") -> 2 | C187: =IFERROR(IF(LEN(D187)-LEN(SUBSTITUTE(D187,".",""))<>3,"",MID(D187,SEARCH(".",D187,SEARCH(".",D187)+1)+1,LEN(D187)-SEARCH(".",D187,SEARCH(".",D187)+1)-(LEN(D187)-(SEARCH(".",D187,SEARCH(".",D187,SEARCH(".",D187)+1)+1)-1)))),"") -> 2 | D187: 4.2.2.1 | E187: =IF($G187="SINAPI",VLOOKUP($F187,DADOS_SINAPI,2,0),IF(G187="SETOP",VLOOKUP($F187,DADOS_SETOP,2,0),IF(G187="CPU",VLOOKUP($F187,DADOS_COMPOSICAO,2,0),IF(G187="SICRO",VLOOKUP($F187,DADOS_SICRO,2,0),IF(G187="SUDECAP",VLOOKUP(F187,DADOS_SUDECAP,2,0),IF(G187="COTAÇÃO",VLOOKUP($F187,DADOS_COTACAO,2,0),"")))))) -> FORNECIMENTO DE CONCRETO ESTRUTURAL, USINADO BOMBEADO, COM FCK 30MPA, INCLUSIVE LANÇAMENTO, ADENSAMENTO E ACABAMENTO (FUNDAÇÃO) | F187: ED-49806 | G187: SETOP | H187: =IF(G187="SINAPI",VLOOKUP($F187,DADOS_SINAPI,3,0),IF(G187="SETOP",VLOOKUP($F187,DADOS_SETOP,3,0),IF(G187="CPU",VLOOKUP($F187,DADOS_COMPOSICAO,10,0),IF(G187="SICRO",VLOOKUP($F187,DADOS_SICRO,3,0),IF(G187="SUDECAP",VLOOKUP(F187,DADOS_SUDECAP,3,0),IF(G187="COTAÇÃO",VLOOKUP($F187,DADOS_COTACAO,9,0),"")))))) -> m3 | I187: =ROUND(F189,2) -> 72.35 | J187: =IF(G187="SINAPI",VLOOKUP($F187,DADOS_SINAPI,4,0),IF(G187="SETOP",VLOOKUP($F187,DADOS_SETOP,4,0),IF(G187="CPU",VLOOKUP($F187,DADOS_COMPOSICAO,13,0),IF(G187="SICRO",VLOOKUP($F187,DADOS_SICRO,4,0),IF(G187="SUDECAP",VLOOKUP(F187,DADOS_SUDECAP,4,0),IF(G187="COTAÇÃO",VLOOKUP(F187,DADOS_COTACAO,12,0),"")))))) -> 737.11 | K187: BDI 1 | L187: =TRUNC(J187*(1+$N$17),2) -> 932.59 | M187: =IFERROR(TRUNC(I187*J187,2),"") -> 53329.9 | N187: =IFERROR(TRUNC(L187*I187,2),"") -> 67472.88
A188: 2000
A189: 2000 | E189: VOLUME DE CONCRETO | F189: =5.7+2.97+51.18+12.5 -> 72.35 | G189: M³
A190: 2000
A191: =IFERROR(LEFT(D191,SEARCH(".",D191)-1),"") -> 4 | B191: =IFERROR(LEFT(RIGHT(D191,LEN(D191)-SEARCH(".",D191)),SEARCH(".",RIGHT(D191,LEN(D191)-SEARCH(".",D191)))-1),"") -> 2 | C191: =IFERROR(IF(LEN(D191)-LEN(SUBSTITUTE(D191,".",""))<>3,"",MID(D191,SEARCH(".",D191,SEARCH(".",D191)+1)+1,LEN(D191)-SEARCH(".",D191,SEARCH(".",D191)+1)-(LEN(D191)-(SEARCH(".",D191,SEARCH(".",D191,SEARCH(".",D191)+1)+1)-1)))),"") -> 2 | D191: 4.2.2.2 | E191: =IF($G191="SINAPI",VLOOKUP($F191,DADOS_SINAPI,2,0),IF(G191="SETOP",VLOOKUP($F191,DADOS_SETOP,2,0),IF(G191="CPU",VLOOKUP($F191,DADOS_COMPOSICAO,2,0),IF(G191="SICRO",VLOOKUP($F191,DADOS_SICRO,2,0),IF(G191="SUDECAP",VLOOKUP(F191,DADOS_SUDECAP,2,0),IF(G191="COTAÇÃO",VLOOKUP($F191,DADOS_COTACAO,2,0),"")))))) -> FÔRMA E DESFORMA DE TÁBUA E SARRAFO, REAPROVEITAMENTO (3X) (FUNDAÇÃO) | F191: ED-49810 | G191: SETOP | H191: =IF(G191="SINAPI",VLOOKUP($F191,DADOS_SINAPI,3,0),IF(G191="SETOP",VLOOKUP($F191,DADOS_SETOP,3,0),IF(G191="CPU",VLOOKUP($F191,DADOS_COMPOSICAO,10,0),IF(G191="SICRO",VLOOKUP($F191,DADOS_SICRO,3,0),IF(G191="SUDECAP",VLOOKUP(F191,DADOS_SUDECAP,3,0),IF(G191="COTAÇÃO",VLOOKUP($F191,DADOS_COTACAO,9,0),"")))))) -> m2 | I191: =ROUND(F193,2) -> 457.94 | J191: =IF(G191="SINAPI",VLOOKUP($F191,DADOS_SINAPI,4,0),IF(G191="SETOP",VLOOKUP($F191,DADOS_SETOP,4,0),IF(G191="CPU",VLOOKUP($F191,DADOS_COMPOSICAO,13,0),IF(G191="SICRO",VLOOKUP($F191,DADOS_SICRO,4,0),IF(G191="SUDECAP",VLOOKUP(F191,DADOS_SUDECAP,4,0),IF(G191="COTAÇÃO",VLOOKUP(F191,DADOS_COTACAO,12,0),"")))))) -> 56.15 | K191: BDI 1 | L191: =TRUNC(J191*(1+$N$17),2) -> 71.04 | M191: =IFERROR(TRUNC(I191*J191,2),"") -> 25713.33 | N191: =IFERROR(TRUNC(L191*I191,2),"") -> 32532.05
A192: 2000
A193: 2000 | E193: ÁREA DE FORMA | F193: =33.23+20.11+327.37+77.23 -> 457.94 | G193: M²
A194: 2000
A195: =IFERROR(LEFT(D195,SEARCH(".",D195)-1),"") -> 4 | B195: =IFERROR(LEFT(RIGHT(D195,LEN(D195)-SEARCH(".",D195)),SEARCH(".",RIGHT(D195,LEN(D195)-SEARCH(".",D195)))-1),"") -> 2 | C195: =IFERROR(IF(LEN(D195)-LEN(SUBSTITUTE(D195,".",""))<>3,"",MID(D195,SEARCH(".",D195,SEARCH(".",D195)+1)+1,LEN(D195)-SEARCH(".",D195,SEARCH(".",D195)+1)-(LEN(D195)-(SEARCH(".",D195,SEARCH(".",D195,SEARCH(".",D195)+1)+1)-1)))),"") -> 2 | D195: 4.2.2.3 | E195: =IF($G195="SINAPI",VLOOKUP($F195,DADOS_SINAPI,2,0),IF(G195="SETOP",VLOOKUP($F195,DADOS_SETOP,2,0),IF(G195="CPU",VLOOKUP($F195,DADOS_COMPOSICAO,2,0),IF(G195="SICRO",VLOOKUP($F195,DADOS_SICRO,2,0),IF(G195="SUDECAP",VLOOKUP(F195,DADOS_SUDECAP,2,0),IF(G195="COTAÇÃO",VLOOKUP($F195,DADOS_COTACAO,2,0),"")))))) -> CORTE, DOBRA E MONTAGEM DE AÇO CA-50/60, INCLUSIVE ESPAÇADOR | F195: ED-48298 | G195: SETOP | H195: =IF(G195="SINAPI",VLOOKUP($F195,DADOS_SINAPI,3,0),IF(G195="SETOP",VLOOKUP($F195,DADOS_SETOP,3,0),IF(G195="CPU",VLOOKUP($F195,DADOS_COMPOSICAO,10,0),IF(G195="SICRO",VLOOKUP($F195,DADOS_SICRO,3,0),IF(G195="SUDECAP",VLOOKUP(F195,DADOS_SUDECAP,3,0),IF(G195="COTAÇÃO",VLOOKUP($F195,DADOS_COTACAO,9,0),"")))))) -> Kg | I195: =ROUND(F197,2) -> 4032.5 | J195: =IF(G195="SINAPI",VLOOKUP($F195,DADOS_SINAPI,4,0),IF(G195="SETOP",VLOOKUP($F195,DADOS_SETOP,4,0),IF(G195="CPU",VLOOKUP($F195,DADOS_COMPOSICAO,13,0),IF(G195="SICRO",VLOOKUP($F195,DADOS_SICRO,4,0),IF(G195="SUDECAP",VLOOKUP(F195,DADOS_SUDECAP,4,0),IF(G195="COTAÇÃO",VLOOKUP(F195,DADOS_COTACAO,12,0),"")))))) -> 13.52 | K195: BDI 1 | L195: =TRUNC(J195*(1+$N$17),2) -> 17.1 | M195: =IFERROR(TRUNC(I195*J195,2),"") -> 54519.4 | N195: =IFERROR(TRUNC(L195*I195,2),"") -> 68955.75
A196: 2000
A197: 2000 | E197: PESO DE AÇO | F197: =533.4+175.1+2798.4+525.6 -> 4032.5 | G197: KG
A198: 2000
A199: =IFERROR(LEFT(D199,SEARCH(".",D199)-1),"") -> 4 | B199: =IFERROR(LEFT(RIGHT(D199,LEN(D199)-SEARCH(".",D199)),SEARCH(".",RIGHT(D199,LEN(D199)-SEARCH(".",D199)))-1),"") -> 2 | C199: =IFERROR(IF(LEN(D199)-LEN(SUBSTITUTE(D199,".",""))<>3,"",MID(D199,SEARCH(".",D199,SEARCH(".",D199)+1)+1,LEN(D199)-SEARCH(".",D199,SEARCH(".",D199)+1)-(LEN(D199)-(SEARCH(".",D199,SEARCH(".",D199,SEARCH(".",D199)+1)+1)-1)))),"") -> 2 | D199: 4.2.2.4 | E199: =IF($G199="SINAPI",VLOOKUP($F199,DADOS_SINAPI,2,0),IF(G199="SETOP",VLOOKUP($F199,DADOS_SETOP,2,0),IF(G199="CPU",VLOOKUP($F199,DADOS_COMPOSICAO,2,0),IF(G199="SICRO",VLOOKUP($F199,DADOS_SICRO,2,0),IF(G199="SUDECAP",VLOOKUP(F199,DADOS_SUDECAP,2,0),IF(G199="COTAÇÃO",VLOOKUP($F199,DADOS_COTACAO,2,0),"")))))) -> LASTRO DE CONCRETO MAGRO, INCLUSIVE TRANSPORTE, LANÇAMENTO E ADENSAMENTO | F199: ED-49812 | G199: SETOP | H199: =IF(G199="SINAPI",VLOOKUP($F199,DADOS_SINAPI,3,0),IF(G199="SETOP",VLOOKUP($F199,DADOS_SETOP,3,0),IF(G199="CPU",VLOOKUP($F199,DADOS_COMPOSICAO,10,0),IF(G199="SICRO",VLOOKUP($F199,DADOS_SICRO,3,0),IF(G199="SUDECAP",VLOOKUP(F199,DADOS_SUDECAP,3,0),IF(G199="COTAÇÃO",VLOOKUP($F199,DADOS_COTACAO,9,0),"")))))) -> m3 | I199: =ROUND(F205,2) -> 4.47 | J199: =IF(G199="SINAPI",VLOOKUP($F199,DADOS_SINAPI,4,0),IF(G199="SETOP",VLOOKUP($F199,DADOS_SETOP,4,0),IF(G199="CPU",VLOOKUP($F199,DADOS_COMPOSICAO,13,0),IF(G199="SICRO",VLOOKUP($F199,DADOS_SICRO,4,0),IF(G199="SUDECAP",VLOOKUP(F199,DADOS_SUDECAP,4,0),IF(G199="COTAÇÃO",VLOOKUP(F199,DADOS_COTACAO,12,0),"")))))) -> 512.35 | K199: BDI 1 | L199: =TRUNC(J199*(1+$N$17),2) -> 648.22 | M199: =IFERROR(TRUNC(I199*J199,2),"") -> 2290.2 | N199: =IFERROR(TRUNC(L199*I199,2),"") -> 2897.54
A200: 2000
A201: 2000 | E201: BLOCOS 80X80 | F201: =3+2+14 -> 19 | G201: UN
A202: 2000 | E202: BLOCOS 170X80 | F202: =7+4+2+7+30 -> 50 | G202: UN
A203: 2000 | E203: BLOCOS 230X80 | F203: 5 | G203: UN
A204: 2000 | E204: ESPESSURA DE LASTRO | F204: 0.05 | G204: M
A205: 2000 | E205: VOLUME DE LASTRO | F205: =0.8*0.8*F201*F204+0.8*2.3*F203*F204+1.7*0.8*F202*F204 -> 4.468 | G205: M³
A206: 2000
D207: 4.2.3 | E207: VIGAS BALDRAME | M207: =IFERROR(SUMIFS(M:M,A:A,LEFT(D207,SEARCH(".",D207)-1),B:B,LEFT(RIGHT(D207,LEN(D207)-SEARCH(".",D207)),SEARCH(".",RIGHT(D207,LEN(D207)-SEARCH(".",D207)))-1),C:C,RIGHT(D207,LEN(D207)-SEARCH(".",D207,SEARCH(".",D207)+1))),"") -> 18948.31 | N207: =IFERROR(SUMIFS(N:N,A:A,LEFT(D207,SEARCH(".",D207)-1),B:B,LEFT(RIGHT(D207,LEN(D207)-SEARCH(".",D207)),SEARCH(".",RIGHT(D207,LEN(D207)-SEARCH(".",D207)))-1),C:C,RIGHT(D207,LEN(D207)-SEARCH(".",D207,SEARCH(".",D207)+1))),"") -> 23970.99
A208: =IFERROR(LEFT(D208,SEARCH(".",D208)-1),"") -> 4 | B208: =IFERROR(LEFT(RIGHT(D208,LEN(D208)-SEARCH(".",D208)),SEARCH(".",RIGHT(D208,LEN(D208)-SEARCH(".",D208)))-1),"") -> 2 | C208: =IFERROR(IF(LEN(D208)-LEN(SUBSTITUTE(D208,".",""))<>3,"",MID(D208,SEARCH(".",D208,SEARCH(".",D208)+1)+1,LEN(D208)-SEARCH(".",D208,SEARCH(".",D208)+1)-(LEN(D208)-(SEARCH(".",D208,SEARCH(".",D208,SEARCH(".",D208)+1)+1)-1)))),"") -> 3 | D208: 4.2.3.1 | E208: =IF($G208="SINAPI",VLOOKUP($F208,DADOS_SINAPI,2,0),IF(G208="SETOP",VLOOKUP($F208,DADOS_SETOP,2,0),IF(G208="CPU",VLOOKUP($F208,DADOS_COMPOSICAO,2,0),IF(G208="SICRO",VLOOKUP($F208,DADOS_SICRO,2,0),IF(G208="SUDECAP",VLOOKUP(F208,DADOS_SUDECAP,2,0),IF(G208="COTAÇÃO",VLOOKUP($F208,DADOS_COTACAO,2,0),"")))))) -> FORNECIMENTO DE CONCRETO ESTRUTURAL, USINADO BOMBEADO, COM FCK 30MPA, INCLUSIVE LANÇAMENTO, ADENSAMENTO E ACABAMENTO (FUNDAÇÃO) | F208: ED-49806 | G208: SETOP | H208: =IF(G208="SINAPI",VLOOKUP($F208,DADOS_SINAPI,3,0),IF(G208="SETOP",VLOOKUP($F208,DADOS_SETOP,3,0),IF(G208="CPU",VLOOKUP($F208,DADOS_COMPOSICAO,10,0),IF(G208="SICRO",VLOOKUP($F208,DADOS_SICRO,3,0),IF(G208="SUDECAP",VLOOKUP(F208,DADOS_SUDECAP,3,0),IF(G208="COTAÇÃO",VLOOKUP($F208,DADOS_COTACAO,9,0),"")))))) -> m3 | I208: =ROUND(F210,2) -> 7.38 | J208: =IF(G208="SINAPI",VLOOKUP($F208,DADOS_SINAPI,4,0),IF(G208="SETOP",VLOOKUP($F208,DADOS_SETOP,4,0),IF(G208="CPU",VLOOKUP($F208,DADOS_COMPOSICAO,13,0),IF(G208="SICRO",VLOOKUP($F208,DADOS_SICRO,4,0),IF(G208="SUDECAP",VLOOKUP(F208,DADOS_SUDECAP,4,0),IF(G208="COTAÇÃO",VLOOKUP(F208,DADOS_COTACAO,12,0),"")))))) -> 737.11 | K208: BDI 1 | L208: =TRUNC(J208*(1+$N$17),2) -> 932.59 | M208: =IFERROR(TRUNC(I208*J208,2),"") -> 5439.87 | N208: =IFERROR(TRUNC(L208*I208,2),"") -> 6882.51
... 2739 more rows

Sheet ABC
A2: CURVA ABC DE SERVIÇOS | H2: Revisão: | I2: =DADOS!D6 -> R01
H3: Data: | I3: =DADOS!D2 -> 2023-04-28
A4: Projeto: | C4: Responsável: | D4: Cliente: | H4: Bancos:
A5: =DADOS!D8 -> CONSTRUÇÃO DO CENTRO DE ATENÇÃO PSICOSSOCIAL | H5: =DADOS!D14 -> SINAPI: 03/2023 Minas Gerais SETOP: 01/2023 Minas Gerais SICRO : 10/2022 Minas Gerais SUDECAP: 02/2023 Minas Gerais
H8: BDI 1: | I8: =DADOS!D10 -> 0.2652
H9: BDI 2: | I9: =DADOS!D12 -> 0.2025
A11: =A2&" DE "&DADOS!D20&" - "&A5 -> CURVA ABC DE SERVIÇOS DE PROJETO EXECUTIVO - CONSTRUÇÃO DO CENTRO DE ATENÇÃO PSICOSSOCIAL
A13: Código | B13: Banco | C13: Descrição | D13: Unidade | E13: Quantidade | F13: Valor Unitário | G13: Total | H13: Peso (%) | I13: Peso Acumulado (%)
A15: DAC-4.4 | B15: CPU | C15: FORNECIMENTO E EXECUÇÃO DE LAJE ALVEOLAR | D15: M³ | E15: 170.83 | F15: 3055.65 | G15: 521996.68 | H15: 0.08290089377 | I15: 0.08290089377
A16: DAC-4.3 | B16: CPU | C16: FORNECIMENTO E EXECUÇÃO DE VIGAS PRÉ-FABRICADAS | D16: M³ | E16: 94.59 | F16: 3935.61 | G16: 372269.34 | H16: 0.05912194884 | I16: 0.1420228426
A17: ED-49664 | B17: SETOP | C17: FORNECIMENTO DE ESTRUTURA METÁLICA EM PERFIL LAMINADO, INCLUSIVE FABRICAÇÃO, TRANSPORTE, MONTAGEM E APLICAÇÃO DE FUNDO PREPARADOR ANTICORROSIVO EM SUPERFÍCIE METÁLICA, UMA (1) DEMÃO | D17: Kg | E17: 10162.17 | F17: 30.9 | G17: 314011.05 | H17: 0.04986965951 | I17: 0.1918925021
A18: ED-48298 | B18: SETOP | C18: CORTE, DOBRA E MONTAGEM DE AÇO CA-50/60, INCLUSIVE ESPAÇADOR | D18: Kg | E18: 17345.54 | F18: 17.1 | G18: 296608.73 | H18: 0.04710591036 | I18: 0.2389984125
A19: 100320 | B19: SINAPI | C19: ENGENHEIRO CIVIL PLENO COM ENCARGOS COMPLEMENTARES | D19: MES | E19: 12 | F19: 24654.31 | G19: 295851.72 | H19: 0.04698568583 | I19: 0.2859840983
A20: 100651 | B20: SINAPI | C20: ESTACA HÉLICE CONTÍNUA, DIÂMETRO DE 30 CM, INCLUSO CONCRETO FCK=30MPA E ARMADURA MÍNIMA (EXCLUSIVE MOBILIZAÇÃO, DESMOBILIZAÇÃO E BOMBEAMENTO). AF_12/2019 | D20: M | E20: 1508 | F20: 184.12 | G20: 277652.96 | H20: 0.04409545007 | I20: 0.3300795484
A21: DAC-9.1 | B21: CPU | C21: EXECUÇÃO DE PASSEIO (CALÇADA) OU PISO DE CONCRETO COM CONCRETO MOLDADO IN LOCO, USINADO, ACABAMENTO CONVENCIONAL, ESPESSURA 10 CM, ARMADO | D21: M2 | E21: 1523.83 | F21: 165.57 | G21: 252300.52 | H21: 0.04006910275 | I21: 0.3701486511
A22: 103318 | B22: SINAPI | C22: ALVENARIA DE VEDAÇÃO DE BLOCOS VAZADOS DE CONCRETO DE 14X19X39 CM (ESPESSURA 14 CM) E ARGAMASSA DE ASSENTAMENTO COM PREPARO EM BETONEIRA. AF_12/2021 | D22: M2 | E22: 2278.21 | F22: 108.33 | G22: 246798.48 | H22: 0.03919529636 | I22: 0.4093439475
A23: DAC-4.2 | B23: CPU | C23: FORNECIMENTO E EXECUÇÃO DE PILARES PRÉ-FABRICADOS | D23: M³ | E23: 52.05 | F23: 3611.16 | G23: 187960.87 | H23: 0.02985100234 | I23: 0.4391949498
A24: 87779 | B24: SINAPI | C24: EMBOÇO OU MASSA ÚNICA EM ARGAMASSA TRAÇO 1:2:8, PREPARO MECÂNICO COM BETONEIRA 400 L, APLICADA MANUALMENTE EM PANOS DE FACHADA COM PRESENÇA DE VÃOS, ESPESSURA DE 35 MM. AF_08/2022 | D24: M2 | E24: 1918.7 | F24: 80.04 | G24: 153572.74 | H24: 0.02438965206 | I24: 0.4635846019
A25: ED-50497 | B25: SETOP | C25: PINTURA ESMALTE EM ESTRUTURA METÁLICA, DUAS (2) DEMÃOS, INCLUSIVE UMA (1) DEMÃO FUNDO ANTICORROSIVO | D25: m2 | E25: 3360.4015 | F25: 41.63 | G25: 139893.5 | H25: 0.0222171838 | I25: 0.4858017857
A26: ED-50754 | B26: SETOP | C26: REVESTIMENTO COM PORCELANATO APLICADO EM PISO, ACABAMENTO POLÍDO, AMBIENTE INTERNO, PADRÃO EXTRA, BORDA RETIFICADA, DIMENSÃO DA PEÇA (60X60CM), ASSENTAMENTO COM ARGAMASSA INDUSTRIALIZADA, INCLUSIVE REJUNTAMENTO | D26: m2 | E26: 843.61 | F26: 160.54 | G26: 135433.14 | H26: 0.0215088118 | I26: 0.5073105975
A27: ED-48428 | B27: SETOP | C27: COBERTURA EM TELHA METÁLICA GALVANIZADA TRAPEZOIDAL, TIPO SIMPLES, ESP. 0,50MM, ACABAMENTO NATURAL, INCLUSIVE ACESSÓRIOS PARA FIXAÇÃO, FORNECIMENTO E INSTALAÇÃO | D27: m2 | E27: 1038.63 | F27: 125.54 | G27: 130389.61 | H27: 0.02070782367 | I27: 0.5280184212
A28: ED-49806 | B28: SETOP | C28: FORNECIMENTO DE CONCRETO ESTRUTURAL, USINADO BOMBEADO, COM FCK 30MPA, INCLUSIVE LANÇAMENTO, ADENSAMENTO E ACABAMENTO (FUNDAÇÃO) | D28: m3 | E28: 139.33 | F28: 932.59 | G28: 129937.75 | H28: 0.02063606153 | I28: 0.5486544827
A29: DAC-14.1 | B29: CPU | C29: BANCADA EM AÇO INOXIDÁVEL COM RODABANCA | D29: M2 | E29: 50.87 | F29: 2477.07 | G29: 126008.55 | H29: 0.0200120457 | I29: 0.5686665284
A30: 100321 | B30: SINAPI | C30: TÉCNICO EM SEGURANÇA DO TRABALHO COM ENCARGOS COMPLEMENTARES | D30: MES | E30: 12 | F30: 7349.88 | G30: 88198.56 | H30: 0.01400725279 | I30: 0.5826737812
A31: ED-9081 | B31: SETOP | C31: REVESTIMENTO COM CERÂMICA APLICADO EM PAREDE, ACABAMENTO ESMALTADO, AMBIENTE INTERNO/EXTERNO, PADRÃO EXTRA, DIMENSÃO DA PEÇA ATÉ 2025 CM2, PEI III, ASSENTAMENTO COM ARGAMASSA INDUSTRIALIZADA, INCLUSIVE REJUNTAMENTO | D31: m2 | E31: 971.09 | F31: 87.74 | G31: 85203.43 | H31: 0.01353158127 | I31: 0.5962053625
A32: 87529 | B32: SINAPI | C32: MASSA ÚNICA, PARA RECEBIMENTO DE PINTURA, EM ARGAMASSA TRAÇO 1:2:8, PREPARO MECÂNICO COM BETONEIRA 400L, APLICADA MANUALMENTE EM FACES INTERNAS DE PAREDES, ESPESSURA DE 20MM, COM EXECUÇÃO DE TALISCAS. AF_06/2014 | D32: M2 | E32: 1873.85 | F32: 44.69 | G32: 83742.35 | H32: 0.01329953988 | I32: 0.6095049023
A33: 94569 | B33: SINAPI | C33: JANELA DE ALUMÍNIO TIPO MAXIM-AR, COM VIDROS, BATENTE E FERRAGENS. EXCLUSIVE ALIZAR, ACABAMENTO E CONTRAMARCO. FORNECIMENTO E INSTALAÇÃO. AF_12/2019 | D33: M2 | E33: 98.88 | F33: 808.36 | G33: 79930.63 | H33: 0.01269418163 | I33: 0.622199084
A34: 96114 | B34: SINAPI | C34: FORRO EM DRYWALL, PARA AMBIENTES COMERCIAIS, INCLUSIVE ESTRUTURA DE FIXAÇÃO. AF_05/2017_PS | D34: M2 | E34: 837.91 | F34: 91.75 | G34: 76878.24 | H34: 0.01220941636 | I34: 0.6344085003
A35: COT-ELE-004 | B35: COTAÇÃO | C35: GERADOR ELÉTRICO 72 KVA | D35: UN | E35: 1 | F35: 71377.04 | G35: 71377.04 | H35: 0.01133574338 | I35: 0.6457442437
A36: 87630 | B36: SINAPI | C36: CONTRAPISO EM ARGAMASSA TRAÇO 1:4 (CIMENTO E AREIA), PREPARO MECÂNICO COM BETONEIRA 400 L, APLICADO EM ÁREAS SECAS SOBRE LAJE, ADERIDO, ACABAMENTO NÃO REFORÇADO, ESPESSURA 3CM. AF_07/2021 | D36: M2 | E36: 1337.03 | F36: 48.19 | G36: 64431.46 | H36: 0.01023268121 | I36: 0.6559769249
A37: 100652 | B37: SINAPI | C37: ESTACA HÉLICE CONTÍNUA , DIÂMETRO DE 50 CM, INCLUSO CONCRETO FCK=30MPA E ARMADURA MÍNIMA (EXCLUSIVE MOBILIZAÇÃO, DESMOBILIZAÇÃO E BOMBEAMENTO). AF_12/2019 | D37: M | E37: 169 | F37: 359.02 | G37: 60674.38 | H37: 0.009636000617 | I37: 0.6656129255
A38: ED-49804 | B38: SETOP | C38: FORNECIMENTO DE CONCRETO ESTRUTURAL, USINADO BOMBEADO, COM FCK 20MPA, INCLUSIVE LANÇAMENTO, ADENSAMENTO E ACABAMENTO (FUNDAÇÃO) | D38: m3 | E38: 62.3 | F38: 884.09 | G38: 55078.8 | H38: 0.008747338676 | I38: 0.6743602642
A39: DAC-8.2 | B39: CPU | C39: REVESTIMENTO COM PASTILHA APLICADO EM PAREDE, ACABAMENTO ESMALTADO, AMBIENTE INTERNO/EXTERNO, PADRÃO EXTRA, DIMENSÃO DA PEÇA ATÉ 2025 CM2, ASSENTAMENTO COM ARGAMASSA. | D39: M2 | E39: 294.64 | F39: 174.19 | G39: 51323.33 | H39: 0.008150913772 | I39: 0.682511178
A40: ED-48533 | B40: SETOP | C40: DIVISÓRIA EM GRANITO CINZA ANDORINHA E = 3 CM, INCLUSIVE FERRAGENS EM LATÃO CROMADO | D40: m2 | E40: 61.299 | F40: 796.21 | G40: 48806.87 | H40: 0.007751262221 | I40: 0.6902624402
A41: 90844 | B41: SINAPI | C41: KIT DE PORTA DE MADEIRA PARA PINTURA, SEMI-OCA (LEVE OU MÉDIA), PADRÃO MÉDIO, 90X210CM, ESPESSURA DE 3,5CM, ITENS INCLUSOS: DOBRADIÇAS, MONTAGEM E INSTALAÇÃO DO BATENTE, FECHADURA COM EXECUÇÃO DO FURO - FORNECIMENTO E INSTALAÇÃO. AF_12/2019 | D41: UN | E41: 33 | F41: 1413.62 | G41: 46649.46 | H41: 0.007408633189 | I41: 0.6976710734
A42: 98555 | B42: SINAPI | C42: IMPERMEABILIZAÇÃO DE SUPERFÍCIE COM ARGAMASSA POLIMÉRICA / MEMBRANA ACRÍLICA, 3 DEMÃOS. AF_06/2018 | D42: M2 | E42: 1457.81 | F42: 30.94 | G42: 45104.63 | H42: 0.007163291039 | I42: 0.7048343644
A43: ED-49810 | B43: SETOP | C43: FÔRMA E DESFORMA DE TÁBUA E SARRAFO, REAPROVEITAMENTO (3X) (FUNDAÇÃO) | D43: m2 | E43: 632.28 | F43: 71.04 | G43: 44917.15 | H43: 0.007133516406 | I43: 0.7119678809
A44: 87535 | B44: SINAPI | C44: EMBOÇO, PARA RECEBIMENTO DE CERÂMICA, EM ARGAMASSA TRAÇO 1:2:8, PREPARO MECÂNICO COM BETONEIRA 400L, APLICADO MANUALMENTE EM FACES INTERNAS DE PAREDES, PARA AMBIENTE COM ÁREA MAIOR QUE 10M2, ESPESSURA DE 20MM, COM EXECUÇÃO DE TALISCAS. AF_06/2014 | D44: M2 | E44: 1026.01 | F44: 38.86 | G44: 39870.74 | H44: 0.006332070888 | I44: 0.7182999517
A45: 98295 | B45: SINAPI | C45: CABO ELETRÔNICO CATEGORIA 5E, INSTALADO EM EDIFICAÇÃO INSTITUCIONAL - FORNECIMENTO E INSTALAÇÃO. AF_11/2019 | D45: M | E45: 6093.38 | F45: 6.38 | G45: 38875.76 | H45: 0.006174053157 | I45: 0.7244740049
A46: 98680 | B46: SINAPI | C46: PISO CIMENTADO, TRAÇO 1:3 (CIMENTO E AREIA), ACABAMENTO LISO, ESPESSURA 3,0 CM, PREPARO MECÂNICO DA ARGAMASSA. AF_09/2020 | D46: M2 | E46: 669.78 | F46: 56.75 | G46: 38010.01 | H46: 0.006036559085 | I46: 0.730510564
A47: COT-ARQ-003 | B47: COTAÇÃO | C47: CORTINA HOSPITALAR - FORNECIMENTO E INSTALAÇÃO | D47: M | E47: 22.61 | F47: 1550.09 | G47: 35047.53 | H47: 0.005566072875 | I47: 0.7360766369
A48: 88489 | B48: SINAPI | C48: APLICAÇÃO MANUAL DE PINTURA COM TINTA LÁTEX ACRÍLICA EM PAREDES, DUAS DEMÃOS. AF_06/2014 | D48: M2 | E48: 1910.348 | F48: 17.3 | G48: 33049.02 | H48: 0.005248679544 | I48: 0.7413253164
A49: 95626 | B49: SINAPI | C49: APLICAÇÃO MANUAL DE TINTA LÁTEX ACRÍLICA EM PAREDE EXTERNAS DE CASAS, DUAS DEMÃOS. AF_11/2016 | D49: M2 | E49: 1678.98 | F49: 18.96 | G49: 31833.46 | H49: 0.005055630403 | I49: 0.7463809468
A50: 92996 | B50: SINAPI | C50: CABO DE COBRE FLEXÍVEL ISOLADO, 150 MM², ANTI-CHAMA 0,6/1,0 KV, PARA REDE ENTERRADA DE DISTRIBUIÇÃO DE ENERGIA ELÉTRICA - FORNECIMENTO E INSTALAÇÃO. AF_12/2021 | D50: M | E50: 165.12 | F50: 186.03 | G50: 30717.27 | H50: 0.004878362707 | I50: 0.7512593095
A51: ED-50480 | B51: SETOP | C51: EMASSAMENTO EM TETO COM MASSA CORRIDA (PVA), DUAS (2) DEMÃOS, INCLUSIVE LIXAMENTO PARA PINTURA | D51: m2 | E51: 837.91 | F51: 33.74 | G51: 28271.08 | H51: 0.004489871085 | I51: 0.7557491806
A52: 91341 | B52: SINAPI | C52: PORTA EM ALUMÍNIO DE ABRIR TIPO VENEZIANA COM GUARNIÇÃO, FIXAÇÃO COM PARAFUSOS - FORNECIMENTO E INSTALAÇÃO. AF_12/2019 | D52: M2 | E52: 33.54 | F52: 823.01 | G52: 27603.75 | H52: 0.004383889082 | I52: 0.7601330697
A53: 92992 | B53: SINAPI | C53: CABO DE COBRE FLEXÍVEL ISOLADO, 95 MM², ANTI-CHAMA 0,6/1,0 KV, PARA REDE ENTERRADA DE DISTRIBUIÇÃO DE ENERGIA ELÉTRICA - FORNECIMENTO E INSTALAÇÃO. AF_12/2021 | D53: M | E53: 228.56 | F53: 118.24 | G53: 27024.93 | H53: 0.004291963794 | I53: 0.7644250335
A54: ED-19753 | B54: SETOP | C54: MOBILIZAÇÃO E DESMOBILIZAÇÃO DE EQUIPAMENTO PARA ESTACA TIPO HÉLICE CONTÍNUA (CUSTO FIXO), INCLUSIVE CARGA E DESGARGA, EXCLUSIVE TRANSPORTE EM QUILÔMETRO RODADO (CUSTO VARIÁVEL) | D54: un | E54: 1 | F54: 24494.09 | G54: 24494.09 | H54: 0.003890028483 | I54: 0.768315062
A55: 93358 | B55: SINAPI | C55: ESCAVAÇÃO MANUAL DE VALA COM PROFUNDIDADE MENOR OU IGUAL A 1,30 M. AF_02/2021 | D55: M3 | E55: 268.986 | F55: 88.93 | G55: 23920.91 | H55: 0.003798998911 | I55: 0.7721140609
A56: 93582 | B56: SINAPI | C56: EXECUÇÃO DE CENTRAL DE ARMADURA EM CANTEIRO DE OBRA, NÃO INCLUSO MOBILIÁRIO E EQUIPAMENTOS. AF_04/2016 | D56: M2 | E56: 60 | F56: 398.32 | G56: 23899.2 | H56: 0.003795551037 | I56: 0.7759096119
A57: 93202 | B57: SINAPI | C57: FIXAÇÃO (ENCUNHAMENTO) DE ALVENARIA DE VEDAÇÃO COM TIJOLO MACIÇO. AF_03/2016 | D57: M | E57: 757.04 | F57: 31.09 | G57: 23536.37 | H57: 0.003737928197 | I57: 0.7796475401
A58: ED-48202 | B58: SETOP | C58: ALVENARIA ESTRUTURAL COM BLOCO DE CONCRETO, ESP. 19CM, (FBK 4,5MPA), COM ACABAMENTO APARENTE, INCLUSIVE ARGAMASSA PARA ASSENTAMENTO | D58: m2 | E58: 273.81 | F58: 84.65 | G58: 23178.01 | H58: 0.00368101526 | I58: 0.7833285554
A59: 91835 | B59: SINAPI | C59: ELETRODUTO FLEXÍVEL CORRUGADO REFORÇADO, PVC, DN 25 MM (3/4"), PARA CIRCUITOS TERMINAIS, INSTALADO EM FORRO - FORNECIMENTO E INSTALAÇÃO. AF_03/2023 | D59: M | E59: 1540.72 | F59: 15.04 | G59: 23172.42 | H59: 0.003680127484 | I59: 0.7870086828
A60: 93583 | B60: SINAPI | C60: EXECUÇÃO DE CENTRAL DE FÔRMAS, PRODUÇÃO DE ARGAMASSA OU CONCRETO EM CANTEIRO DE OBRA, NÃO INCLUSO MOBILIÁRIO E EQUIPAMENTOS. AF_04/2016 | D60: M2 | E60: 36 | F60: 621.78 | G60: 22384.08 | H60: 0.003554927281 | I60: 0.7905636101
A61: ED-50940 | B61: SETOP | C61: GUARDA-CORPO EM TUBO GALVANIZADO DIN 2440 D = 2", COM SUBDIVISÕES EM TUBO DE AÇO D = 1/2", H = 1,05 M | D61: m | E61: 37.5 | F61: 595.82 | G61: 22343.25 | H61: 0.003548442865 | I61: 0.794112053
A62: ED-51094 | B62: SETOP | C62: APILOAMENTO MECANIZADO EM FUNDO DE VALA COM PLACA VIBRATÓRIA, EXCLUSIVE ESCAVAÇÃO | D62: m2 | E62: 1523.83 | F62: 14.43 | G62: 21988.86 | H62: 0.003492160423 | I62: 0.7976042134
A63: ED-13935 | B63: SETOP | C63: CABO DE COBRE NU #50 MM2 - 7 FIOSX3,00MM, PARA ELEMENTOS DE CAPTAÇÃO/ANEL DE CINTAMENTO (SPDA), INCLUSIVE PRESILHA DE FIXAÇÃO | D63: m | E63: 302.81 | F63: 70.93 | G63: 21478.31 | H63: 0.003411077434 | I63: 0.8010152908
A64: ED-49392 | B64: SETOP | C64: LUMINÁRIA COMERCIAL CHANFRADA DE SOBREPOR, PARA DUAS (2) LÂMPADAS TUBULARES FLUORESCENTE 2X32W-ØT8 OU 2X40W-ØT10 OU LED 2X18W-ØT8, FORNECIMENTO E INSTALAÇÃO, EXCLUSIVE BASE, REATOR E LÂMPADAS | D64: un | E64: 194 | F64: 106.92 | G64: 20742.48 | H64: 0.003294216605 | I64: 0.8043095074
A65: 101173 | B65: SINAPI | C65: ESTACA BROCA DE CONCRETO, DIÂMETRO DE 20CM, ESCAVAÇÃO MANUAL COM TRADO CONCHA, COM ARMADURA DE ARRANQUE. AF_05/2020 | D65: M | E65: 288 | F65: 71.87 | G65: 20698.56 | H65: 0.003287241451 | I65: 0.8075967489
A66: COT-LOU-001 | B66: COTAÇÃO | C66: BEBEDOURO 100 LITROS - 3 TORNEIRAS | D66: UN | E66: 4 | F66: 4995 | G66: 19980 | H66: 0.003173123357 | I66: 0.8107698723
A67: 103244 | B67: SINAPI | C67: AR CONDICIONADO SPLIT INVERTER, HI-WALL (PAREDE), 9000 BTU/H, CICLO FRIO - FORNECIMENTO E INSTALAÇÃO. AF_11/2021_PE | D67: UN | E67: 7 | F67: 2795.73 | G67: 19570.11 | H67: 0.003108026683 | I67: 0.8138778989
A68: 91926 | B68: SINAPI | C68: CABO DE COBRE FLEXÍVEL ISOLADO, 2,5 MM², ANTI-CHAMA 450/750 V, PARA CIRCUITOS TERMINAIS - FORNECIMENTO E INSTALAÇÃO. AF_03/2023 | D68: M | E68: 3836.21 | F68: 5.01 | G68: 19219.41 | H68: 0.003052330269 | I68: 0.8169302292
A69: 96523 | B69: SINAPI | C69: ESCAVAÇÃO MANUAL PARA BLOCO DE COROAMENTO OU SAPATA (INCLUINDO ESCAVAÇÃO PARA COLOCAÇÃO DE FÔRMAS). AF_06/2017 | D69: M3 | E69: 179.67 | F69: 105.37 | G69: 18931.82 | H69: 0.003006656668 | I69: 0.8199368859
A70: 102491 | B70: SINAPI | C70: PINTURA DE PISO COM TINTA ACRÍLICA, APLICAÇÃO MANUAL, 2 DEMÃOS, INCLUSO FUNDO PREPARADOR. AF_05/2021 | D70: M2 | E70: 848.46 | F70: 22.25 | G70: 18878.23 | H70: 0.002998145773 | I70: 0.8229350317
A71: 90279 | B71: SINAPI | C71: GRAUTE FGK=20 MPA; TRAÇO 1:0,04:1,8:2,1 (EM MASSA SECA DE CIMENTO/ CAL/ AREIA GROSSA/ BRITA 0) - PREPARO MECÂNICO COM BETONEIRA 400 L. AF_09/2021 | D71: M3 | E71: 26.01 | F71: 722.18 | G71: 18783.9 | H71: 0.002983164756 | I71: 0.8259181964
A72: DAC-16.1 | B72: CPU | C72: TUBO PVC, ÁGUA PLUVIAL, DN 200 MM, FORNECIDO E INSTALADO | D72: M | E72: 48.7 | F72: 363.91 | G72: 17722.41 | H72: 0.00281458424 | I72: 0.8287327806
A73: 99059 | B73: SINAPI | C73: LOCACAO CONVENCIONAL DE OBRA, UTILIZANDO GABARITO DE TÁBUAS CORRIDAS PONTALETADAS A CADA 2,00M - 2 UTILIZAÇÕES. AF_10/2018 | D73: M | E73: 213.18 | F73: 82.17 | G73: 17517 | H73: 0.002781962054 | I73: 0.8315147427
A74: 87905 | B74: SINAPI | C74: CHAPISCO APLICADO EM ALVENARIA (COM PRESENÇA DE VÃOS) E ESTRUTURAS DE CONCRETO DE FACHADA, COM COLHER DE PEDREIRO. ARGAMASSA TRAÇO 1:3 COM PREPARO EM BETONEIRA 400L. AF_10/2022 | D74: M2 | E74: 1918.7 | F74: 9.1 | G74: 17460.17 | H74: 0.002772936599 | I74: 0.8342876793
A75: 92877 | B75: SINAPI | C75: CORTE E DOBRA DE AÇO CA-25, DIÂMETRO DE 10,0 MM. AF_06/2022 | D75: KG | E75: 1273.71012 | F75: 13.14 | G75: 16736.55 | H75: 0.002658014901 | I75: 0.8369456942
A76: 88488 | B76: SINAPI | C76: APLICAÇÃO MANUAL DE PINTURA COM TINTA LÁTEX ACRÍLICA EM TETO, DUAS DEMÃOS. AF_06/2014 | D76: M2 | E76: 851.07 | F76: 19.62 | G76: 16697.99 | H76: 0.002651890995 | I76: 0.8395975852
A77: DAC-6.4 | B77: CPU | C77: ACABAMENTO PARA ESQUADRIAS EM ALUMÍNIO | D77: M | E77: 301.6 | F77: 54.37 | G77: 16397.99 | H77: 0.0026042465 | I77: 0.8422018317
A78: 94228 | B78: SINAPI | C78: CALHA EM CHAPA DE AÇO GALVANIZADO NÚMERO 24, DESENVOLVIMENTO DE 50 CM, INCLUSO TRANSPORTE VERTICAL. AF_07/2019 | D78: M | E78: 125.1 | F78: 129.79 | G78: 16236.72 | H78: 0.002578634408 | I78: 0.8447804661
A79: 100903 | B79: SINAPI | C79: LÂMPADA TUBULAR LED DE 18/20 W, BASE G13 - FORNECIMENTO E INSTALAÇÃO. AF_02/2020_PS | D79: UN | E79: 388 | F79: 41.76 | G79: 16202.88 | H79: 0.002573260109 | I79: 0.8473537262
A80: 103247 | B80: SINAPI | C80: AR CONDICIONADO SPLIT INVERTER, HI-WALL (PAREDE), 12000 BTU/H, CICLO FRIO - FORNECIMENTO E INSTALAÇÃO. AF_11/2021_PE | D80: UN | E80: 5 | F80: 3102.8 | G80: 15514 | H80: 0.002463855643 | I80: 0.8498175819
A81: 100674 | B81: SINAPI | C81: JANELA FIXA DE ALUMÍNIO PARA VIDRO, COM VIDRO, BATENTE E FERRAGENS. EXCLUSIVE ACABAMENTO, ALIZAR E CONTRAMARCO. FORNECIMENTO E INSTALAÇÃO. AF_12/2019 | D81: M2 | E81: 17.5725 | F81: 874.99 | G81: 15375.76 | H81: 0.00244190106 | I81: 0.8522594829
A82: ED-50329 | B82: SETOP | C82: TORNEIRA METÁLICA PARA LAVATÓRIO, FECHAMENTO AUTOMÁTICO, ACABAMENTO CROMADO, COM AREJADOR, APLICAÇÃO DE MESA, INCLUSIVE ENGATE FLEXÍVEL METÁLICO, FORNECIMENTO E INSTALAÇÃO | D82: un | E82: 35 | F82: 436.26 | G82: 15269.1 | H82: 0.002424961854 | I82: 0.8546844448
A83: 86932 | B83: SINAPI | C83: VASO SANITÁRIO SIFONADO COM CAIXA ACOPLADA LOUÇA BRANCA - PADRÃO MÉDIO, INCLUSO ENGATE FLEXÍVEL EM METAL CROMADO, 1/2 X 40CM - FORNECIMENTO E INSTALAÇÃO. AF_01/2020 | D83: UN | E83: 22 | F83: 687.99 | G83: 15135.78 | H83: 0.002403788641 | I83: 0.8570882334
A84: 87879 | B84: SINAPI | C84: CHAPISCO APLICADO EM ALVENARIAS E ESTRUTURAS DE CONCRETO INTERNAS, COM COLHER DE PEDREIRO. ARGAMASSA TRAÇO 1:3 COM PREPARO EM BETONEIRA 400L. AF_10/2022 | D84: M2 | E84: 2899.85 | F84: 5.16 | G84: 14963.22 | H84: 0.002376383527 | I84: 0.8594646169
A85: 96624 | B85: SINAPI | C85: LASTRO COM MATERIAL GRANULAR (PEDRA BRITADA N.2), APLICADO EM PISOS OU LAJES SOBRE SOLO, ESPESSURA DE *10 CM*. AF_08/2017 | D85: M3 | E85: 76.1915 | F85: 195.59 | G85: 14902.29 | H85: 0.00236670693 | I85: 0.8618313239
A86: COT-DAD-003 | B86: COTAÇÃO | C86: SWITCH (10/100/1000) BASE T, 24 PORTAS | D86: UN | E86: 14 | F86: 1051.63 | G86: 14722.82 | H86: 0.002338204405 | I86: 0.8641695283
A87: ED-16349 | B87: SETOP | C87: LOCAÇÃO DE CONTAINER COM ISOLAMENTO TÉRMICO, TIPO 2, PARA ESCRITÓRIO DE OBRA COM SANITÁRIO CONTENDO UM (1) VASO SANITÁRIO E UM (1) LAVATÓRIO, COM MEDIDAS REFERENCIAIS DE (6) METROS COMPRIMENTO, (2,3) METROS LARGURA E (2,5) METROS ALTURA ÚTIL INTERNA, INCLUSIVE AR CONDICIONADO E LIGAÇÕES ELÉTRICAS E HIDROSSANITÁRIAS INTERNAS, EXCLUSIVE MOBILIZAÇÃO/DESMOBILIZAÇÃO E LIGAÇÕES PROVISÓRIAS EXTERNAS | D87: mês | E87: 12 | F87: 1206.35 | G87: 14476.2 | H87: 0.002299037454 | I87: 0.8664685657
A88: ED-50266 | B88: SETOP | C88: LIMPEZA FINAL PARA ENTREGA DA OBRA | D88: m2 | E88: 1761.42 | F88: 8.17 | G88: 14390.8 | H88: 0.002285474655 | I88: 0.8687540404
A89: 92367 | B89: SINAPI | C89: TUBO DE AÇO GALVANIZADO COM COSTURA, CLASSE MÉDIA, DN 65 (2 1/2"), CONEXÃO ROSQUEADA, INSTALADO EM REDE DE ALIMENTAÇÃO PARA HIDRANTE - FORNECIMENTO E INSTALAÇÃO. AF_10/2020 | D89: M | E89: 87.696 | F89: 155.99 | G89: 13679.69 | H89: 0.002172539732 | I89: 0.8709265801
A90: 91939 | B90: SINAPI | C90: CAIXA RETANGULAR 4" X 2" ALTA (2,00 M DO PISO), PVC, INSTALADA EM PAREDE - FORNECIMENTO E INSTALAÇÃO. AF_03/2023 | D90: UN | E90: 383 | F90: 35.31 | G90: 13523.73 | H90: 0.002147770948 | I90: 0.8730743511
A91: 103250 | B91: SINAPI | C91: AR CONDICIONADO SPLIT INVERTER, HI-WALL (PAREDE), 18000 BTU/H, CICLO FRIO - FORNECIMENTO E INSTALAÇÃO. AF_11/2021_PE | D91: UN | E91: 3 | F91: 4505.35 | G91: 13516.05 | H91: 0.002146551249 | I91: 0.8752209023
A92: ED-50548 | B92: SETOP | C92: PISO CIMENTADO COM ARGAMASSA, TRAÇO 1:3 (CIMENTO E AREIA), ESP. 30MM, ACABAMENTO DESEMPENADO E FELTRADO, MODULAÇÃO DE 100X100CM, INCLUSIVE JUNTA PLÁSTICA | D92: m2 | E92: 178.68 | F92: 74.93 | G92: 13388.49 | H92: 0.002126292809 | I92: 0.8773471951
A93: 98301 | B93: SINAPI | C93: PATCH PANEL 24 PORTAS, CATEGORIA 5E - FORNECIMENTO E INSTALAÇÃO. AF_11/2019 | D93: UN | E93: 19 | F93: 695.44 | G93: 13213.36 | H93: 0.002098479541 | I93: 0.8794456747
A94: 90843 | B94: SINAPI | C94: KIT DE PORTA DE MADEIRA PARA PINTURA, SEMI-OCA (LEVE OU MÉDIA), PADRÃO MÉDIO, 80X210CM, ESPESSURA DE 3,5CM, ITENS INCLUSOS: DOBRADIÇAS, MONTAGEM E INSTALAÇÃO DO BATENTE, FECHADURA COM EXECUÇÃO DO FURO - FORNECIMENTO E INSTALAÇÃO. AF_12/2019 | D94: UN | E94: 10 | F94: 1314.55 | G94: 13145.5 | H94: 0.002087702357 | I94: 0.881533377
A95: 103523 | B95: SINAPI | C95: RESERVATÓRIO TÉRMICO/BOILER SOLAR EM AÇO INOX 1000 L COM 5 PLACAS COLETORAS EM VIDRO TEMPERADO COM SERPENTINA EM TUBO DE COBRE 2 X 1 M - FORNECIMENTO E INSTALAÇÃO. AF_12/2021 | D95: UN | E95: 1 | F95: 13067.49 | G95: 13067.49 | H95: 0.0020753132 | I95: 0.8836086902
A96: DAC-6.3 | B96: CPU | C96: PORTA DE ABRIR COM MOLA HIDRÁULICA, EM VIDRO TEMPERADO, 2 FOLHAS DE 80X210 CM, ESPESSURA DD 10MM, INCLUSIVE ACESSÓRIOS. AF_01/2021 | D96: UN | E96: 3 | F96: 4344.6 | G96: 13033.8 | H96: 0.002069962723 | I96: 0.8856786529
A97: 92990 | B97: SINAPI | C97: CABO DE COBRE FLEXÍVEL ISOLADO, 70 MM², ANTI-CHAMA 0,6/1,0 KV, PARA REDE ENTERRADA DE DISTRIBUIÇÃO DE ENERGIA ELÉTRICA - FORNECIMENTO E INSTALAÇÃO. AF_12/2021 | D97: M | E97: 137.08 | F97: 91.43 | G97: 12533.22 | H97: 0.001990463119 | I97: 0.8876691161
A98: ED-50155 | B98: SETOP | C98: LOCAÇÃO DE BANHEIRO QUÍMICO, DIMENSÃO (110X120X230)CM, LINHA PADRÃO, CONTENDO UMA (1) PIA/HIGIENIZADOR DE MÃOS, INCLUSIVE MANUTENÇÃO E MOBILIZAÇÃO/DESMOBILIZAÇÃO | D98: mês | E98: 12 | F98: 1037.46 | G98: 12449.52 | H98: 0.001977170305 | I98: 0.8896462864
A99: 103253 | B99: SINAPI | C99: AR CONDICIONADO SPLIT INVERTER, HI-WALL (PAREDE), 24000 BTU/H, CICLO FRIO - FORNECIMENTO E INSTALAÇÃO. AF_11/2021_PE | D99: UN | E99: 2 | F99: 6140.87 | G99: 12281.74 | H99: 0.001950524327 | I99: 0.8915968107
A100: 90445 | B100: SINAPI | C100: RASGO EM CONTRAPISO PARA RAMAIS/ DISTRIBUIÇÃO COM DIÂMETROS MAIORES QUE 40 MM E MENORES OU IGUAIS A 75 MM. AF_05/2015 | D100: M | E100: 342.2 | F100: 34.69 | G100: 11870.91 | H100: 0.001885278368 | I100: 0.8934820891
A101: 87745 | B101: SINAPI | C101: CONTRAPISO EM ARGAMASSA TRAÇO 1:4 (CIMENTO E AREIA), PREPARO MECÂNICO COM BETONEIRA 400 L, APLICADO EM ÁREAS MOLHADAS SOBRE LAJE, ADERIDO, ACABAMENTO NÃO REFORÇADO, ESPESSURA 3CM. AF_07/2021 | D101: M2 | E101: 186.8 | F101: 61.48 | G101: 11484.46 | H101: 0.001823904318 | I101: 0.8953059934
A102: ED-48344 | B102: SETOP | C102: BANCADA EM GRANITO CINZA ANDORINHA E = 3 CM, APOIADA EM ALVENARIA | D102: m2 | E102: 27.1 | F102: 420.24 | G102: 11388.5 | H102: 0.001808664432 | I102: 0.8971146578
A103: 90467 | B103: SINAPI | C103: CHUMBAMENTO LINEAR EM ALVENARIA PARA RAMAIS/DISTRIBUIÇÃO COM DIÂMETROS MAIORES QUE 40 MM E MENORES OU IGUAIS A 75 MM. AF_05/2015 | D103: M | E103: 448.56 | F103: 24.5 | G103: 10989.72 | H103: 0.001745332193 | I103: 0.89885999
A104: DAC-9.2 | B104: CPU | C104: RODAPÉ COM REVESTIMENTO EM PORCELANATO 60X60 COM BORDA RETIFICADA E ACABAMENTO POLIDO, ALTURA 10CM | D104: M | E104: 500.59 | F104: 21.73 | G104: 10877.82 | H104: 0.001727560796 | I104: 0.9005875508
A105: ED-16350 | B105: SETOP | C105: LOCAÇÃO DE CONTAINER COM ISOLAMENTO TÉRMICO, TIPO 3, PARA DEPÓSITO/FERRAMENTARIA DE OBRA, COM MEDIDAS REFERENCIAIS DE (6) METROS COMPRIMENTO, (2,3) METROS LARGURA E (2,5) METROS ALTURA ÚTIL INTERNA, INCLUSIVE LIGAÇÕES ELÉTRICAS INTERNAS, EXCLUSIVE MOBILIZAÇÃO/DESMOBILIZAÇÃO E LIGAÇÕES PROVISÓRIAS EXTERNAS | D105: mês | E105: 12 | F105: 872.27 | G105: 10467.24 | H105: 0.001662354541 | I105: 0.9022499053
A106: COT-ARQ-002 | B106: COTAÇÃO | C106: BRISE METÁLICO - FORNECIMENTO E INSTALAÇÃO | D106: M² | E106: 8.772 | F106: 1153.62 | G106: 10119.55 | H106: 0.001607136159 | I106: 0.9038570415
A107: ED-20586 | B107: SETOP | C107: ENTRADA DE ENERGIA AÉREA, TIPO C6, PADRÃO CEMIG, CARGA INSTALADA DE 47,1KVA ATÉ 57KVA, TRIFÁSICO, COM SAÍDA SUBTERRÂNEA, INCLUSIVE POSTE, CAIXA PARA MEDIDOR, DISJUNTOR, BARRAMENTO, ATERRAMENTO E ACESSÓRIOS | D107: un | E107: 1 | F107: 9511.02 | G107: 9511.02 | H107: 0.001510492478 | I107: 0.905367534
A108: ED-16351 | B108: SETOP | C108: LOCAÇÃO DE CONTAINER COM ISOLAMENTO TÉRMICO, TIPO 4, PARA REFEITÓRIO DE OBRA, COM MEDIDAS REFERENCIAIS DE (6) METROS COMPRIMENTO, (2,3) METROS LARGURA E (2,5) METROS ALTURA ÚTIL INTERNA, INCLUSIVE LIGAÇÕES ELÉTRICAS INTERNAS, EXCLUSIVE MOBILIZAÇÃO/DESMOBILIZAÇÃO E LIGAÇÕES PROVISÓRIAS EXTERNAS | D108: mês | E108: 12 | F108: 770.55 | G108: 9246.6 | H108: 0.00146849862 | I108: 0.9068360326
A109: 93183 | B109: SINAPI | C109: VERGA PRÉ-MOLDADA PARA JANELAS COM MAIS DE 1,5 M DE VÃO. AF_03/2016 | D109: M | E109: 91.1 | F109: 99.07 | G109: 9025.27 | H109: 0.0014333481 | I109: 0.9082693807
A110: 89356 | B110: SINAPI | C110: TUBO, PVC, SOLDÁVEL, DN 25MM, INSTALADO EM RAMAL OU SUB-RAMAL DE ÁGUA - FORNECIMENTO E INSTALAÇÃO. AF_06/2022 | D110: M | E110: 313.8 | F110: 27.82 | G110: 8729.91 | H110: 0.001386440507 | I110: 0.9096558212
A111: 93195 | B111: SINAPI | C111: CONTRAVERGA PRÉ-MOLDADA PARA VÃOS DE MAIS DE 1,5 M DE COMPRIMENTO. AF_03/2016 | D111: M | E111: 91.1 | F111: 93.89 | G111: 8553.37 | H111: 0.00135840331 | I111: 0.9110142245
A112: 91930 | B112: SINAPI | C112: CABO DE COBRE FLEXÍVEL ISOLADO, 6 MM², ANTI-CHAMA 450/750 V, PARA CIRCUITOS TERMINAIS - FORNECIMENTO E INSTALAÇÃO. AF_03/2023 | D112: M | E112: 779.15 | F112: 10.89 | G112: 8484.94 | H112: 0.0013475356 | I112: 0.9123617601
A113: ED-51019 | B113: SETOP | C113: BARRA CHATA DE ALUMÍNIO 7/8" X 1/8" X 3M | D113: U | E113: 238.9733333 | F113: 34.8 | G113: 8316.27 | H113: 0.001320748277 | I113: 0.9136825084
A114: 93382 | B114: SINAPI | C114: REATERRO MANUAL DE VALAS COM COMPACTAÇÃO MECANIZADA. AF_04/2016 | D114: M3 | E114: 221.555 | F114: 36.96 | G114: 8188.66 | H114: 0.001300481897 | I114: 0.9149829903
A115: DAC-6.7 | B115: CPU | C115: FORNECIMENTO E INSTALAÇÃO DE ESPELHO CRISTAL, ESPESSURA 4 MM | D115: M2 | E115: 16.14 | F115: 492.47 | G115: 7948.46 | H115: 0.001262334538 | I115: 0.9162453248
A116: ED-50998 | B116: SETOP | C116: PEITORIL DE GRANITO CINZA ANDORINHA E = 3 CM | D116: m2 | E116: 22.16 | F116: 356.64 | G116: 7903.14 | H116: 0.001255137043 | I116: 0.9175004619
A117: 94589 | B117: SINAPI | C117: CONTRAMARCO DE ALUMÍNIO, FIXAÇÃO COM ARGAMASSA - FORNECIMENTO E INSTALAÇÃO. AF_12/2019 | D117: M | E117: 301.6 | F117: 24.97 | G117: 7530.95 | H117: 0.001196027695 | I117: 0.9186964896
A118: 89987 | B118: SINAPI | C118: REGISTRO DE GAVETA BRUTO, LATÃO, ROSCÁVEL, 3/4", COM ACABAMENTO E CANOPLA CROMADOS - FORNECIMENTO E INSTALAÇÃO. AF_08/2021 | D118: UN | E118: 47 | F118: 159.27 | G118: 7485.69 | H118: 0.001188839729 | I118: 0.9198853293
A119: 91222 | B119: SINAPI | C119: RASGO EM ALVENARIA PARA RAMAIS/ DISTRIBUIÇÃO COM DIÂMETROS MAIORES QUE 40 MM E MENORES OU IGUAIS A 75 MM. AF_05/2015 | D119: M | E119: 448.56 | F119: 16.29 | G119: 7307.04 | H119: 0.001160467432 | I119: 0.9210457967
A120: 95875 | B120: SINAPI | C120: TRANSPORTE COM CAMINHÃO BASCULANTE DE 10 M³, EM VIA URBANA PAVIMENTADA, DMT ATÉ 30 KM (UNIDADE: M3XKM). AF_07/2020 | D120: M3XKM | E120: 2560.367146 | F120: 2.85 | G120: 7297.03 | H120: 0.001158877694 | I120: 0.9222046744
A121: 88485 | B121: SINAPI | C121: APLICAÇÃO DE FUNDO SELADOR ACRÍLICO EM PAREDES, UMA DEMÃO. AF_06/2014 | D121: M2 | E121: 1910.348 | F121: 3.79 | G121: 7240.21 | H121: 0.001149853827 | I121: 0.9233545282
A122: 88415 | B122: SINAPI | C122: APLICAÇÃO MANUAL DE FUNDO SELADOR ACRÍLICO EM PAREDES EXTERNAS DE CASAS. AF_06/2014 | D122: M2 | E122: 1678.98 | F122: 4.27 | G122: 7169.24 | H122: 0.001138582727 | I122: 0.924493111
A123: 96527 | B123: SINAPI | C123: ESCAVAÇÃO MANUAL DE VALA PARA VIGA BALDRAME (INCLUINDO ESCAVAÇÃO PARA COLOCAÇÃO DE FÔRMAS). AF_06/2017 | D123: M3 | E123: 51.88 | F123: 138.12 | G123: 7165.66 | H123: 0.00113801417 | I123: 0.9256311251
A124: COT-ARQ-007 | B124: COTAÇÃO | C124: PELÍCULA JATEADA PARA VIDROS | D124: M2 | E124: 98.88 | F124: 71.53 | G124: 7072.88 | H124: 0.001123279316 | I124: 0.9267544045
A125: DAC-6.8 | B125: CPU | C125: FORNECIMENTO E INSTALAÇÃO DE PLACAS DE IDENTIFICAÇÃO | D125: UN | E125: 42 | F125: 166.77 | G125: 7004.34 | H125: 0.001112394137 | I125: 0.9278667986
A126: ED-50282 | B126: SETOP | C126: LAVATÓRIO DE LOUÇA BRANCA COM COLUNA, TAMANHO MÉDIO, INCLUSIVE ACESSÓRIOS DE FIXAÇÃO, VÁLVULA DE ESCOAMENTO DE METAL COM ACABAMENTO CROMADO, SIFÃO DE METAL TIPO COPO COM ACABAMENTO CROMADO, FORNECIMENTO, INSTALAÇÃO E REJUNTAMENTO, EXCLUSIVE TORNEIRA E ENGATE FLEXÍVEL | D126: U | E126: 12 | F126: 579.06 | G126: 6948.72 | H126: 0.001103560847 | I126: 0.9289703594
A127: DAC-4.5 | B127: CPU | C127: DRENO DE BRITA 2 + AREIA | D127: M³ | E127: 41.33 | F127: 164.85 | G127: 6813.25 | H127: 0.001082046182 | I127: 0.9300524056
A128: 98561 | B128: SINAPI | C128: IMPERMEABILIZAÇÃO DE PAREDES COM ARGAMASSA DE CIMENTO E AREIA, COM ADITIVO IMPERMEABILIZANTE, E = 2CM. AF_06/2018 | D128: M2 | E128: 130.16 | F128: 51.73 | G128: 6733.17 | H128: 0.001069328278 | I128: 0.9311217339
A129: COT-ARQ-008 | B129: COTAÇÃO | C129: COIFA PARA FOGÃO INDUSTRIAL - FORNECIMENTO E INSTALAÇÃO | D129: UN | E129: 1 | F129: 6642.3 | G129: 6642.3 | H129: 0.00105489676 | I129: 0.9321766307
A130: ED-50279 | B130: SETOP | C130: CUBA DE LOUÇA BRANCA DE EMBUTIR, FORMATO OVAL, INCLUSIVE VÁLVULA DE ESCOAMENTO DE METAL COM ACABAMENTO CROMADO, SIFÃO DE METAL TIPO COPO COM ACABAMENTO CROMADO, FORNECIMENTO E INSTALAÇÃO | D130: un | E130: 17 | F130: 388.11 | G130: 6597.87 | H130: 0.001047840611 | I130: 0.9332244713
A131: COT-ARQ-009 | B131: COTAÇÃO | C131: FOGÃO INDUSTRIAL 6 BOCAS | D131: UN | E131: 1 | F131: 6465.93 | G131: 6465.93 | H131: 0.001026886562 | I131: 0.9342513578
A132: DAC-21.3 | B132: CPU | C132: ABRIGO PARA HIDRANTE, 90X60X17CM, COM REGISTRO GLOBO ANGULAR 45° 2 1/2", ADAPTADOR STORZ 2 1/2", 2 MANGUEIRA DE INCÊNDIO DE 15M, REDUÇÃO DE 2 1/2" X 1 1/2" E ESGUICHO EM LATÃO 1 1/2" - FORNECIMENTO E INSTALAÇÃO | D132: UN | E132: 2 | F132: 3224.94 | G132: 6449.88 | H132: 0.001024337581 | I132: 0.9352756954
A133: ED-50277 | B133: SETOP | C133: CUBA EM AÇO INOXIDÁVEL DE EMBUTIR, AISI 304, APLICAÇÃO PARA PIA (465X330X115MM), NÚMERO 1, ASSENTAMENTO EM BANCADA, INCLUSIVE VÁLVULA DE ESCOAMENTO DE METAL COM ACABAMENTO CROMADO, SIFÃO DE METAL TIPO COPO COM ACABAMENTO CROMADO, FORNECIMENTO E INSTALAÇÃO | D133: un | E133: 11 | F133: 576.66 | G133: 6343.26 | H133: 0.001007404728 | I133: 0.9362831001
A134: ED-48160 | B134: SETOP | C134: BARRA DE APOIO EM AÇO INOX POLIDO RETA, DN 1.1/4" (31,75MM), PARA ACESSIBILIDADE (PMR/PCR), COMPRIMENTO 80CM, INSTALADO EM PAREDE, INCLUSIVE FORNECIMENTO, INSTALAÇÃO E ACESSÓRIOS PARA FIXAÇÃO | D134: un | E134: 22 | F134: 286.99 | G134: 6313.78 | H134: 0.001002722862 | I134: 0.937285823
A135: 89800 | B135: SINAPI | C135: TUBO PVC, SERIE NORMAL, ESGOTO PREDIAL, DN 100 MM, FORNECIDO E INSTALADO EM PRUMADA DE ESGOTO SANITÁRIO OU VENTILAÇÃO. AF_08/2022 | D135: M | E135: 165.3 | F135: 36.36 | G135: 6010.3 | H135: 0.0009545256912 | I135: 0.9382403487
A136: ED-50482 | B136: SETOP | C136: EMASSAMENTO EM ESQUADRIA DE MADEIRA COM MASSA A ÓLEO, DUAS (2) DEMÃOS, INCLUSIVE LIXAMENTO PARA PINTURA A ÓLEO OU ESMALTE | D136: m2 | E136: 158.34 | F136: 37.66 | G136: 5963.08 | H136: 0.0009470264478 | I136: 0.9391873751
A137: ED-49812 | B137: SETOP | C137: LASTRO DE CONCRETO MAGRO, INCLUSIVE TRANSPORTE, LANÇAMENTO E ADENSAMENTO | D137: m3 | E137: 9.08 | F137: 648.22 | G137: 5885.82 | H137: 0.0009347564022 | I137: 0.9401221315
A138: 89798 | B138: SINAPI | C138: TUBO PVC, SERIE NORMAL, ESGOTO PREDIAL, DN 50 MM, FORNECIDO E INSTALADO EM PRUMADA DE ESGOTO SANITÁRIO OU VENTILAÇÃO. AF_08/2022 | D138: M | E138: 316 | F138: 18.24 | G138: 5763.84 | H138: 0.0009153841506 | I138: 0.9410375157
A139: ED-15762 | B139: SETOP | C139: CONJUNTO DE DUAS (2) TOMADAS DE DADOS (CONECTOR RJ45 CAT.6E), COM PLACA 4"X2" DE DOIS (2) POSTOS, INCLUSIVE FORNECIMENTO, INSTALAÇÃO, SUPORTE, MÓDULO E PLACA | D139: un | E139: 68 | F139: 82.79 | G139: 5629.72 | H139: 0.0008940838851 | I139: 0.9419315996
A140: 92986 | B140: SINAPI | C140: CABO DE COBRE FLEXÍVEL ISOLADO, 35 MM², ANTI-CHAMA 0,6/1,0 KV, PARA REDE ENTERRADA DE DISTRIBUIÇÃO DE ENERGIA ELÉTRICA - FORNECIMENTO E INSTALAÇÃO. AF_12/2021 | D140: M | E140: 123.63 | F140: 45.39 | G140: 5611.56 | H140: 0.000891199805 | I140: 0.9428227994
A141: COT-DAD-009 | B141: COTAÇÃO | C141: CAMERA POE | D141: UN | E141: 17 | F141: 327.07 | G141: 5560.19 | H141: 0.0008830414793 | I141: 0.9437058409
A142: COT-INC-009 | B142: COTAÇÃO | C142: BOMBA DE INCÊNDIO 4 CV | D142: UN | E142: 1 | F142: 5429.88 | G142: 5429.88 | H142: 0.0008623462989 | I142: 0.9445681872
A143: COT-ARQ-004 | B143: COTAÇÃO | C143: PAINEL EM MADEIRA - FORNECIMENTO E INSTALAÇÃO | D143: M² | E143: 13.3 | F143: 388.63 | G143: 5168.77 | H143: 0.0008208781188 | I143: 0.9453890653
A144: 91846 | B144: SINAPI | C144: ELETRODUTO FLEXÍVEL CORRUGADO, PVC, DN 32 MM (1"), PARA CIRCUITOS TERMINAIS, INSTALADO EM LAJE - FORNECIMENTO E INSTALAÇÃO. AF_03/2023 | D144: M | E144: 437.83 | F144: 11.71 | G144: 5126.98 | H144: 0.0008142412406 | I144: 0.9462033065
A145: 89580 | B145: SINAPI | C145: TUBO PVC, SÉRIE R, ÁGUA PLUVIAL, DN 150 MM, FORNECIDO E INSTALADO EM CONDUTORES VERTICAIS DE ÁGUAS PLUVIAIS. AF_06/2022 | D145: M | E145: 53.9 | F145: 93.61 | G145: 5045.57 | H145: 0.0008013121129 | I145: 0.9470046186
A146: 91924 | B146: SINAPI | C146: CABO DE COBRE FLEXÍVEL ISOLADO, 1,5 MM², ANTI-CHAMA 450/750 V, PARA CIRCUITOS TERMINAIS - FORNECIMENTO E INSTALAÇÃO. AF_03/2023 | D146: M | E146: 1462.29 | F146: 3.42 | G146: 5001.03 | H146: 0.0007942384935 | I146: 0.9477988571
A147: ED-49925 | B147: SETOP | C147: CAIXA DE DRENAGEM DE INSPEÇÃO/PASSAGEM EM ALVENARIA (80X80X100CM), REVESTIMENTO EM ARGAMASSA COM ADITIVO IMPERMEABILIZANTE, COM TAMPA EM GRELHA, INCLUSIVE ESCAVAÇÃO, REATERRO E TRANSPORTE E RETIRADA DO MATERIAL ESCAVADO (EM CAÇAMBA) | D147: un | E147: 3 | F147: 1662.96 | G147: 4988.88 | H147: 0.0007923088915 | I147: 0.948591166
A148: COT-DAD-006 | B148: COTAÇÃO | C148: RACK - GABINETE 19" - 24U | D148: UN | E148: 2 | F148: 2466.24 | G148: 4932.48 | H148: 0.0007833517265 | I148: 0.9493745178
A149: 93184 | B149: SINAPI | C149: VERGA PRÉ-MOLDADA PARA PORTAS COM ATÉ 1,5 M DE VÃO. AF_03/2016 | D149: M | E149: 86.3 | F149: 57.04 | G149: 4922.55 | H149: 0.0007817746937 | I149: 0.9501562924
A150: ED-48402 | B150: SETOP | C150: COLOCAÇÃO DE CUMEEIRA GALVANIZADA TRAPEZOIDAL E = 0,50 MM, SIMPLES | D150: m | E150: 70.71 | F150: 69.34 | G150: 4903.03 | H150: 0.0007786746252 | I150: 0.9509349671
A151: ED-29802 | B151: SETOP | C151: PERFURAÇÃO MECÂNICA DE ESTACA TIPO TRADO ROTATIVO, INCLUSIVE AFASTAMENTO LATERAL, EXCLUSIVE ARMAÇÃO, CONCRETO ESTRUTURAL, TRANSPORTE E RETIRADA DO MATERIAL ESCAVADO | D151: m3 | E151: 38.29 | F151: 125.5 | G151: 4805.39 | H151: 0.0007631679303 | I151: 0.951698135
A152: ED-50493 | B152: SETOP | C152: PINTURA ESMALTE EM ESQUADRIA DE MADEIRA, DUAS (2) DEMÃOS, INCLUSIVE UMA (1) DEMÃO DE FUNDO NIVELADOR, EXCLUSIVE MASSA A ÓLEO | D152: m2 | E152: 158.34 | F152: 30.07 | G152: 4761.28 | H152: 0.0007561626014 | I152: 0.9524542976
A153: DAC-6.2 | B153: CPU | C153: PORTA DE ABRIR COM MOLA HIDRÁULICA, EM VIDRO TEMPERADO, 2 FOLHAS DE 100X210 CM, ESPESSURA DD 10MM, INCLUSIVE ACESSÓRIOS. AF_01/2021 | D153: UN | E153: 1 | F153: 4743.14 | G153: 4743.14 | H153: 0.0007532816976 | I153: 0.9532075793
A154: ED-49883 | B154: SETOP | C154: CAIXA DE ESGOTO DE INSPEÇÃO/PASSAGEM EM ALVENARIA (60X60X60CM), REVESTIMENTO EM ARGAMASSA COM ADITIVO IMPERMEABILIZANTE, COM TAMPA DE CONCRETO, INCLUSIVE ESCAVAÇÃO, REATERRO E TRANSPORTE E RETIRADA DO MATERIAL ESCAVADO (EM CAÇAMBA) | D154: un | E154: 9 | F154: 521.85 | G154: 4696.65 | H154: 0.0007458983891 | I154: 0.9539534777
A155: ED-50937 | B155: SETOP | C155: CORRIMÃO DUPLO EM TUBO GALVANIZADO DIN 2440, D = 1 1/2" - FIXADO EM ALVENARIA | D155: m | E155: 24.99 | F155: 183.68 | G155: 4590.16 | H155: 0.0007289861815 | I155: 0.9546824639
A156: ED-15755 | B156: SETOP | C156: CONJUNTO DE DUAS (2) TOMADAS PADRÃO, TRÊS (3) POLOS, CORRENTE 10A, TENSÃO 250V, (2P+T/10A-250V), COM PLACA 4"X2" DE DOIS (2) POSTOS, INCLUSIVE FORNECIMENTO, INSTALAÇÃO, SUPORTE, MÓDULO E PLACA | D156: un | E156: 94 | F156: 48.76 | G156: 4583.44 | H156: 0.0007279189449 | I156: 0.9554103828
A157: 94266 | B157: SINAPI | C157: GUIA (MEIO-FIO) CONCRETO, MOLDADA IN LOCO EM TRECHO CURVO COM EXTRUSORA, 15 CM BASE X 30 CM ALTURA. AF_06/2016 | D157: M | E157: 67.96 | F157: 63.22 | G157: 4296.43 | H157: 0.0006823374566 | I157: 0.9560927203
A158: 92000 | B158: SINAPI | C158: TOMADA BAIXA DE EMBUTIR (1 MÓDULO), 2P+T 10 A, INCLUINDO SUPORTE E PLACA - FORNECIMENTO E INSTALAÇÃO. AF_03/2023 | D158: UN | E158: 115 | F158: 36.33 | G158: 4177.95 | H158: 0.0006635210575 | I158: 0.9567562413
A159: 91844 | B159: SINAPI | C159: ELETRODUTO FLEXÍVEL CORRUGADO, PVC, DN 25 MM (3/4"), PARA CIRCUITOS TERMINAIS, INSTALADO EM LAJE - FORNECIMENTO E INSTALAÇÃO. AF_03/2023 | D159: M | E159: 486.47 | F159: 8.03 | G159: 3906.35 | H159: 0.0006203869081 | I159: 0.9573766282
A160: 89357 | B160: SINAPI | C160: TUBO, PVC, SOLDÁVEL, DN 32MM, INSTALADO EM RAMAL OU SUB-RAMAL DE ÁGUA - FORNECIMENTO E INSTALAÇÃO. AF_06/2022 | D160: M | E160: 97.4 | F160: 39.92 | G160: 3888.2 | H160: 0.0006175044162 | I160: 0.9579941327
A161: 90469 | B161: SINAPI | C161: CHUMBAMENTO LINEAR EM CONTRAPISO PARA RAMAIS/DISTRIBUIÇÃO COM DIÂMETROS MAIORES QUE 40 MM E MENORES OU IGUAIS A 75 MM. AF_05/2015 | D161: M | E161: 342.2 | F161: 11.22 | G161: 3839.48 | H161: 0.0006097669502 | I161: 0.9586038996
A162: ED-49343 | B162: SETOP | C162: HASTE DE AÇO COBREADA PARA ATERRAMENTO DIÂMETRO 3/4"X 2400 MM,CONFORME PADRÕES TELEBRÁS | D162: U | E162: 16 | F162: 236.42 | G162: 3782.72 | H162: 0.0006007526118 | I162: 0.9592046522
A163: ED-29823 | B163: SETOP | C163: TAPUME FIXO DE PROTEÇÃO PARA FECHAMENTO DE OBRA EM TELHA METÁLICA GALVANIZADA, TIPO TRAPEZOIDAL, ESP. 0,5MM, COM MÓDULO NA DIMENSÃO DE (300X220)CM, COM REAPROVEITAMENTO, EXCLUSIVE PINTURA ESMALTE, INCLUSIVE PONTALETE E FIXAÇÃO | D163: m2 | E163: 51.172 | F163: 73.67 | G163: 3769.84 | H163: 0.0005987070748 | I163: 0.9598033593
A164: ED-51003 | B164: SETOP | C164: SOLEIRA DE GRANITO CINZA ANDORINHA E = 3 CM | D164: m2 | E164: 10.44 | F164: 360.86 | G164: 3767.37 | H164: 0.0005983148018 | I164: 0.9604016741
A165: 89636 | B165: SINAPI | C165: TUBO, CPVC, SOLDÁVEL, DN 35MM, INSTALADO EM RAMAL OU SUB-RAMAL DE ÁGUA FORNECIMENTO E INSTALAÇÃO. AF_06/2022 | D165: M | E165: 43.1 | F165: 85.43 | G165: 3682.03 | H165: 0.0005847615312 | I165: 0.9609864356
A166: COT-DAD-001 | B166: COTAÇÃO | C166: NVR 24 PORTAS | D166: UN | E166: 1 | F166: 3650.05 | G166: 3650.05 | H166: 0.000579682628 | I166: 0.9615661183
A167: 88484 | B167: SINAPI | C167: APLICAÇÃO DE FUNDO SELADOR ACRÍLICO EM TETO, UMA DEMÃO. AF_06/2014 | D167: M2 | E167: 851.07 | F167: 4.28 | G167: 3642.57 | H167: 0.000578494692 | I167: 0.9621446129
A168: 103316 | B168: SINAPI | C168: ALVENARIA DE VEDAÇÃO DE BLOCOS VAZADOS DE CONCRETO DE 9X19X39 CM (ESPESSURA 9 CM) E ARGAMASSA DE ASSENTAMENTO COM PREPARO EM BETONEIRA. AF_12/2021 | D168: M2 | E168: 43.315 | F168: 83.41 | G168: 3612.9 | H168: 0.0005737826514 | I168: 0.9627183956
A169: 91928 | B169: SINAPI | C169: CABO DE COBRE FLEXÍVEL ISOLADO, 4 MM², ANTI-CHAMA 450/750 V, PARA CIRCUITOS TERMINAIS - FORNECIMENTO E INSTALAÇÃO. AF_03/2023 | D169: M | E169: 456.9 | F169: 7.78 | G169: 3554.68 | H169: 0.0005645364431 | I169: 0.963282932
A170: 93182 | B170: SINAPI | C170: VERGA PRÉ-MOLDADA PARA JANELAS COM ATÉ 1,5 M DE VÃO. AF_03/2016 | D170: M | E170: 43.5 | F170: 77.62 | G170: 3376.47 | H170: 0.000536234025 | I170: 0.9638191661
A171: 90444 | B171: SINAPI | C171: RASGO EM CONTRAPISO PARA RAMAIS/ DISTRIBUIÇÃO COM DIÂMETROS MENORES OU IGUAIS A 40 MM. AF_05/2015 | D171: M | E171: 103.15 | F171: 32.49 | G171: 3351.34 | H171: 0.0005322430045 | I171: 0.9643514091
A172: 89578 | B172: SINAPI | C172: TUBO PVC, SÉRIE R, ÁGUA PLUVIAL, DN 100 MM, FORNECIDO E INSTALADO EM CONDUTORES VERTICAIS DE ÁGUAS PLUVIAIS. AF_06/2022 | D172: M | E172: 74.3 | F172: 45.07 | G172: 3348.7 | H172: 0.000531823733 | I172: 0.9648832328
A173: 93194 | B173: SINAPI | C173: CONTRAVERGA PRÉ-MOLDADA PARA VÃOS DE ATÉ 1,5 M DE COMPRIMENTO. AF_03/2016 | D173: M | E173: 43.5 | F173: 75.74 | G173: 3294.69 | H173: 0.0005232461357 | I173: 0.9654064789
A174: COT-CLI-001 | B174: COTAÇÃO | C174: CABO PP TETRAPOLAR | D174: UN | E174: 82.1 | F174: 39.68 | G174: 3257.72 | H174: 0.0005173747458 | I174: 0.9659238537
A175: ED-2552 | B175: SETOP | C175: LAVATÓRIO DE CANTO DE LOUÇA BRANCA SEM COLUNA, TAMANHO PEQUENO, INCLUSIVE ACESSÓRIOS DE FIXAÇÃO COM PARAFUSO CASTELO, VÁLVULA DE ESCOAMENTO DE METAL COM ACABAMENTO CROMADO, SIFÃO DE METAL TIPO COPO COM ACABAMENTO CROMADO, FORNECIMENTO, INSTALAÇÃO E REJUNTAMENTO, EXCLUSIVE TORNEIRA E ENGATE FLEXÍVEL | D175: un | E175: 6 | F175: 522.08 | G175: 3132.48 | H175: 0.0004974847574 | I175: 0.9664213384
A176: 95601 | B176: SINAPI | C176: ARRASAMENTO MECANICO DE ESTACA DE CONCRETO ARMADO, DIAMETROS DE ATÉ 40 CM. AF_05/2021 | D176: UN | E176: 164 | F176: 19.06 | G176: 3125.84 | H176: 0.0004964302259 | I176: 0.9669177687
A177: ED-50290 | B177: SETOP | C177: TANQUE DE LOUÇA BRANCA COM COLUNA, CAPACIDADE 22 LITROS, INCLUSIVE ACESSÓRIOS DE FIXAÇÃO, VÁLVULA DE ESCOAMENTO DE METAL COM ACABAMENTO CROMADO, SIFÃO DE METAL TIPO COPO COM ACABAMENTO CROMADO, FORNECIMENTO, INSTALAÇÃO E REJUNTAMENTO, EXCLUSIVE TORNEIRA | D177: U | E177: 4 | F177: 779.86 | G177: 3119.44 | H177: 0.00049541381 | I177: 0.9674131825
A178: 97328 | B178: SINAPI | C178: TUBO EM COBRE FLEXÍVEL, DN 3/8", COM ISOLAMENTO, INSTALADO EM RAMAL DE ALIMENTAÇÃO DE AR CONDICIONADO COM CONDENSADORA INDIVIDUAL  FORNECIMENTO E INSTALAÇÃO. AF_12/2015 | D178: M | E178: 44.6 | F178: 69.51 | G178: 3100.14 | H178: 0.0004923486808 | I178: 0.9679055312
A179: ED-50316 | B179: SETOP | C179: DUCHA HIGIÊNICA COM REGISTRO PARA CONTROLE DE FLUXO DE ÁGUA, DIÂMETRO 1/2" (20MM), INCLUSIVE FORNECIMENTO E INSTALAÇÃO | D179: un | E179: 16 | F179: 191.77 | G179: 3068.32 | H179: 0.0004872951881 | I179: 0.9683928263
A180: 97330 | B180: SINAPI | C180: TUBO EM COBRE FLEXÍVEL, DN 5/8", COM ISOLAMENTO, INSTALADO EM RAMAL DE ALIMENTAÇÃO DE AR CONDICIONADO COM CONDENSADORA INDIVIDUAL  FORNECIMENTO E INSTALAÇÃO. AF_12/2015 | D180: M | E180: 29.3 | F180: 104.59 | G180: 3064.48 | H180: 0.0004866853386 | I180: 0.9688795117
A181: 92984 | B181: SINAPI | C181: CABO DE COBRE FLEXÍVEL ISOLADO, 25 MM², ANTI-CHAMA 0,6/1,0 KV, PARA REDE ENTERRADA DE DISTRIBUIÇÃO DE ENERGIA ELÉTRICA - FORNECIMENTO E INSTALAÇÃO. AF_12/2021 | D181: M | E181: 89 | F181: 32.78 | G181: 2917.42 | H181: 0.0004633300072 | I181: 0.9693428417
A182: 91932 | B182: SINAPI | C182: CABO DE COBRE FLEXÍVEL ISOLADO, 10 MM², ANTI-CHAMA 450/750 V, PARA CIRCUITOS TERMINAIS - FORNECIMENTO E INSTALAÇÃO. AF_03/2023 | D182: M | E182: 145.5 | F182: 19.59 | G182: 2850.34 | H182: 0.0004526766981 | I182: 0.9697955184
A183: ED-48163 | B183: SETOP | C183: BARRA DE APOIO EM AÇO INOX POLIDO RETA, DN 1.1/4" (31,75MM), PARA ACESSIBILIDADE (PMR/PCR), COMPRIMENTO 40CM, INSTALADO EM PORTA/PAREDE, INCLUSIVE FORNECIMENTO, INSTALAÇÃO E ACESSÓRIOS PARA FIXAÇÃO | D183: un | E183: 16 | F183: 170.83 | G183: 2733.28 | H183: 0.0004340858162 | I183: 0.9702296042
A184: 97327 | B184: SINAPI | C184: TUBO EM COBRE FLEXÍVEL, DN 1/4, COM ISOLAMENTO, INSTALADO EM RAMAL DE ALIMENTAÇÃO DE AR CONDICIONADO COM CONDENSADORA INDIVIDUAL FORNECIMENTO E INSTALAÇÃO. AF_12/2015 | D184: M | E184: 67.8 | F184: 38.6 | G184: 2617.08 | H184: 0.0004156315152 | I184: 0.9706452357
A185: 38605 | B185: SINAPI | C185: ABERTURA PARA ENCAIXE DE CUBA OU LAVATORIO EM BANCADA DE MARMORE/ GRANITO OU OUTRO TIPO DE PEDRA NATURAL | D185: UN | E185: 17 | F185: 151.36 | G185: 2573.12 | H185: 0.0004086500086 | I185: 0.9710538857
A186: 100858 | B186: SINAPI | C186: MICTÓRIO SIFONADO LOUÇA BRANCA  PADRÃO MÉDIO  FORNECIMENTO E INSTALAÇÃO. AF_01/2020 | D186: UN | E186: 3 | F186: 850.17 | G186: 2550.51 | H186: 0.0004050592018 | I186: 0.9714589449
A187: 94499 | B187: SINAPI | C187: REGISTRO DE GAVETA BRUTO, LATÃO, ROSCÁVEL, 2 1/2" - FORNECIMENTO E INSTALAÇÃO. AF_08/2021 | D187: UN | E187: 5 | F187: 498.28 | G187: 2491.4 | H187: 0.0003956716482 | I187: 0.9718546166
A188: 98562 | B188: SINAPI | C188: IMPERMEABILIZAÇÃO DE FLOREIRA OU VIGA BALDRAME COM ARGAMASSA DE CIMENTO E AREIA, COM ADITIVO IMPERMEABILIZANTE, E = 2 CM. AF_06/2018 | D188: M2 | E188: 47.81 | F188: 52.01 | G188: 2486.59 | H188: 0.0003949077481 | I188: 0.9722495243
A189: COT-DAD-008 | B189: COTAÇÃO | C189: SWITCH 24 PORTAS RJ45 COM FIBRA | D189: UN | E189: 1 | F189: 2460.63 | G189: 2460.63 | H189: 0.0003907849112 | I189: 0.9726403092
A190: 89448 | B190: SINAPI | C190: TUBO, PVC, SOLDÁVEL, DN 40MM, INSTALADO EM PRUMADA DE ÁGUA - FORNECIMENTO E INSTALAÇÃO. AF_06/2022 | D190: M | E190: 97.1 | F190: 25.26 | G190: 2452.74 | H190: 0.000389531861 | I190: 0.9730298411
A191: ED-48182 | B191: SETOP | C191: DISPENSER EM PLÁSTICO PARA PAPEL TOALHA 2 OU 3 FOLHAS | D191: U | E191: 30 | F191: 81.56 | G191: 2446.8 | H191: 0.0003885885 | I191: 0.9734184296
A192: COT-ARQ-006 | B192: COTAÇÃO | C192: JANELA DE ALUMÍNIO TIPO GUILHOTINA, 1000 X 1000 MM COM DUAS FOLHAS - FORNECIMENTO E INSTALAÇÃO | D192: UN | E192: 2 | F192: 1217.49 | G192: 2434.98 | H192: 0.0003867113069 | I192: 0.9738051409
A193: ED-50137 | B193: SETOP | C193: MOBILIZAÇÃO E DESMOBILIZAÇÃO DE CONTAINER, INCLUSIVE CARGA, DESCARGA E TRANSPORTE EM CAMINHÃO CARROCERIA COM GUINDAUTO (MUNCK), EXCLUSIVE LOCAÇÃO DO CONTAINER | D193: un | E193: 3 | F193: 799.47 | G193: 2398.41 | H193: 0.0003809034429 | I193: 0.9741860443
A194: 92390 | B194: SINAPI | C194: JOELHO 90 GRAUS, EM FERRO GALVANIZADO, DN 65 (2 1/2"), CONEXÃO ROSQUEADA, INSTALADO EM REDE DE ALIMENTAÇÃO PARA HIDRANTE - FORNECIMENTO E INSTALAÇÃO. AF_10/2020 | D194: UN | E194: 13 | F194: 181.18 | G194: 2355.34 | H194: 0.0003740632816 | I194: 0.9745601076
A195: ED-50496 | B195: SETOP | C195: PINTURA ESMALTE EM TUBO GALVANIZADO, DUAS (2) DEMÃOS, INCLUSIVE UMA (1) DEMÃO DE FUNDO ANTICORROSIVO | D195: m | E195: 87.696 | F195: 26.29 | G195: 2305.52 | H195: 0.0003661511192 | I195: 0.9749262587
A196: 89449 | B196: SINAPI | C196: TUBO, PVC, SOLDÁVEL, DN 50MM, INSTALADO EM PRUMADA DE ÁGUA - FORNECIMENTO E INSTALAÇÃO. AF_06/2022 | D196: M | E196: 81.5 | F196: 27.89 | G196: 2273.03 | H196: 0.0003609912204 | I196: 0.97528725
A197: 102184 | B197: SINAPI | C197: PORTA DE ABRIR COM MOLA HIDRÁULICA, EM VIDRO TEMPERADO, 90X210 CM, ESPESSURA 10 MM, INCLUSIVE ACESSÓRIOS. AF_01/2021 | D197: UN | E197: 1 | F197: 2268.35 | G197: 2268.35 | H197: 0.0003602479663 | I197: 0.9756474979
A198: DAC-21.4 | B198: CPU | C198: INSTALAÇÃO DO SISTEMA DE ALARME | D198: UN | E198: 1 | F198: 2265.21 | G198: 2265.21 | H198: 0.0003597492872 | I198: 0.9760072472
A199: 89711 | B199: SINAPI | C199: TUBO PVC, SERIE NORMAL, ESGOTO PREDIAL, DN 40 MM, FORNECIDO E INSTALADO EM RAMAL DE DESCARGA OU RAMAL DE ESGOTO SANITÁRIO. AF_08/2022 | D199: M | E199: 88.6 | F199: 25.53 | G199: 2261.95 | H199: 0.0003592315504 | I199: 0.9763664788
A200: 92982 | B200: SINAPI | C200: CABO DE COBRE FLEXÍVEL ISOLADO, 16 MM², ANTI-CHAMA 0,6/1,0 KV, PARA DISTRIBUIÇÃO - FORNECIMENTO E INSTALAÇÃO. AF_12/2015 | D200: M | E200: 113.64 | F200: 19.88 | G200: 2259.16 | H200: 0.0003587884566 | I200: 0.9767252672
A201: ED-49149 | B201: SETOP | C201: CAIXA DE PASSAGEM EM CHAPA DE AÇO, EMBUTIR 230 X 230 X 102 MM | D201: un | E201: 15 | F201: 150.25 | G201: 2253.75 | H201: 0.0003579292675 | I201: 0.9770831965
A202: ED-48377 | B202: SETOP | C202: ORGANIZADOR DE CABOS DE 1U PARA RACK 19" | D202: cj | E202: 13 | F202: 170.56 | G202: 2217.28 | H202: 0.0003521372851 | I202: 0.9774353338
A203: 96358 | B203: SINAPI | C203: PAREDE COM PLACAS DE GESSO ACARTONADO (DRYWALL), PARA USO INTERNO, COM DUAS FACES SIMPLES E ESTRUTURA METÁLICA COM GUIAS SIMPLES, SEM VÃOS. AF_06/2017_PS | D203: M2 | E203: 18.2875 | F203: 119.85 | G203: 2191.75 | H203: 0.0003480827386 | I203: 0.9777834165
A204: 100977 | B204: SINAPI | C204: CARGA, MANOBRA E DESCARGA DE SOLOS E MATERIAIS GRANULARES EM CAMINHÃO BASCULANTE 6 M³ - CARGA COM ESCAVADEIRA HIDRÁULICA (CAÇAMBA DE 1,20 M³ / 155 HP) E DESCARGA LIVRE (UNIDADE: M3). AF_07/2020 | D204: M3 | E204: 242.54 | F204: 8.93 | G204: 2165.88 | H204: 0.000343974195 | I204: 0.9781273907
A205: COT-ELE-003 | B205: COTAÇÃO | C205: QUADRO DE DISTRIBUIÇÃO COM BARRAMENTO 225A / 50 DISJ. - EMBUTIR | D205: UN | E205: 1 | F205: 2163.23 | G205: 2163.23 | H205: 0.0003435533353 | I205: 0.9784709441
A206: 93185 | B206: SINAPI | C206: VERGA PRÉ-MOLDADA PARA PORTAS COM MAIS DE 1,5 M DE VÃO. AF_03/2016 | D206: M | E206: 22 | F206: 97.63 | G206: 2147.86 | H206: 0.000341112349 | I206: 0.9788120564
... 228 more rows

Sheet Auxiliar_ABC (hidden)
A1: DAC-4.4 | B1: CPU | C1: FORNECIMENTO E EXECUÇÃO DE LAJE ALVEOLAR | D1: M³ | E1: 170.83 | F1: 3055.65 | G1: 521996.68 | H1: 0.08290089377 | I1: 0.08290089377 | R1: QUANTIDADE TOTAL | V1: VALOR TOTAL | W1: % | X1: =W1 -> %
A2: DAC-4.3 | B2: CPU | C2: FORNECIMENTO E EXECUÇÃO DE VIGAS PRÉ-FABRICADAS | D2: M³ | E2: 94.59 | F2: 3935.61 | G2: 372269.34 | H2: 0.05912194884 | I2: 0.1420228426 | R2: =SUMIF(ORC!$F:$F,O2,ORC!$I:$I) -> 0 | V2: =SUMIF(ORC!$F:$F,O2,ORC!$N:$N) -> 0 | W2: =V2/SUM($I:$I) -> 0 | X2: =W2+X1 -> 
A3: ED-49664 | B3: SETOP | C3: FORNECIMENTO DE ESTRUTURA METÁLICA EM PERFIL LAMINADO, INCLUSIVE FABRICAÇÃO, TRANSPORTE, MONTAGEM E APLICAÇÃO DE FUNDO PREPARADOR ANTICORROSIVO EM SUPERFÍCIE METÁLICA, UMA (1) DEMÃO | D3: Kg | E3: 10162.17 | F3: 30.9 | G3: 314011.05 | H3: 0.04986965951 | I3: 0.1918925021
A4: ED-48298 | B4: SETOP | C4: CORTE, DOBRA E MONTAGEM DE AÇO CA-50/60, INCLUSIVE ESPAÇADOR | D4: Kg | E4: 17345.54 | F4: 17.1 | G4: 296608.73 | H4: 0.04710591036 | I4: 0.2389984125
A5: 100320 | B5: SINAPI | C5: ENGENHEIRO CIVIL PLENO COM ENCARGOS COMPLEMENTARES | D5: MES | E5: 12 | F5: 24654.31 | G5: 295851.72 | H5: 0.04698568583 | I5: 0.2859840983
A6: 100651 | B6: SINAPI | C6: ESTACA HÉLICE CONTÍNUA, DIÂMETRO DE 30 CM, INCLUSO CONCRETO FCK=30MPA E ARMADURA MÍNIMA (EXCLUSIVE MOBILIZAÇÃO, DESMOBILIZAÇÃO E BOMBEAMENTO). AF_12/2019 | D6: M | E6: 1508 | F6: 184.12 | G6: 277652.96 | H6: 0.04409545007 | I6: 0.3300795484
A7: DAC-9.1 | B7: CPU | C7: EXECUÇÃO DE PASSEIO (CALÇADA) OU PISO DE CONCRETO COM CONCRETO MOLDADO IN LOCO, USINADO, ACABAMENTO CONVENCIONAL, ESPESSURA 10 CM, ARMADO | D7: M2 | E7: 1523.83 | F7: 165.57 | G7: 252300.52 | H7: 0.04006910275 | I7: 0.3701486511
A8: 103318 | B8: SINAPI | C8: ALVENARIA DE VEDAÇÃO DE BLOCOS VAZADOS DE CONCRETO DE 14X19X39 CM (ESPESSURA 14 CM) E ARGAMASSA DE ASSENTAMENTO COM PREPARO EM BETONEIRA. AF_12/2021 | D8: M2 | E8: 2278.21 | F8: 108.33 | G8: 246798.48 | H8: 0.03919529636 | I8: 0.4093439475
A9: DAC-4.2 | B9: CPU | C9: FORNECIMENTO E EXECUÇÃO DE PILARES PRÉ-FABRICADOS | D9: M³ | E9: 52.05 | F9: 3611.16 | G9: 187960.87 | H9: 0.02985100234 | I9: 0.4391949498
A10: 87779 | B10: SINAPI | C10: EMBOÇO OU MASSA ÚNICA EM ARGAMASSA TRAÇO 1:2:8, PREPARO MECÂNICO COM BETONEIRA 400 L, APLICADA MANUALMENTE EM PANOS DE FACHADA COM PRESENÇA DE VÃOS, ESPESSURA DE 35 MM. AF_08/2022 | D10: M2 | E10: 1918.7 | F10: 80.04 | G10: 153572.74 | H10: 0.02438965206 | I10: 0.4635846019
A11: ED-50497 | B11: SETOP | C11: PINTURA ESMALTE EM ESTRUTURA METÁLICA, DUAS (2) DEMÃOS, INCLUSIVE UMA (1) DEMÃO FUNDO ANTICORROSIVO | D11: m2 | E11: 3360.4015 | F11: 41.63 | G11: 139893.5 | H11: 0.0222171838 | I11: 0.4858017857
A12: ED-50754 | B12: SETOP | C12: REVESTIMENTO COM PORCELANATO APLICADO EM PISO, ACABAMENTO POLÍDO, AMBIENTE INTERNO, PADRÃO EXTRA, BORDA RETIFICADA, DIMENSÃO DA PEÇA (60X60CM), ASSENTAMENTO COM ARGAMASSA INDUSTRIALIZADA, INCLUSIVE REJUNTAMENTO | D12: m2 | E12: 843.61 | F12: 160.54 | G12: 135433.14 | H12: 0.0215088118 | I12: 0.5073105975
A13: ED-48428 | B13: SETOP | C13: COBERTURA EM TELHA METÁLICA GALVANIZADA TRAPEZOIDAL, TIPO SIMPLES, ESP. 0,50MM, ACABAMENTO NATURAL, INCLUSIVE ACESSÓRIOS PARA FIXAÇÃO, FORNECIMENTO E INSTALAÇÃO | D13: m2 | E13: 1038.63 | F13: 125.54 | G13: 130389.61 | H13: 0.02070782367 | I13: 0.5280184212
A14: ED-49806 | B14: SETOP | C14: FORNECIMENTO DE CONCRETO ESTRUTURAL, USINADO BOMBEADO, COM FCK 30MPA, INCLUSIVE LANÇAMENTO, ADENSAMENTO E ACABAMENTO (FUNDAÇÃO) | D14: m3 | E14: 139.33 | F14: 932.59 | G14: 129937.75 | H14: 0.02063606153 | I14: 0.5486544827
A15: DAC-14.1 | B15: CPU | C15: BANCADA EM AÇO INOXIDÁVEL COM RODABANCA | D15: M2 | E15: 50.87 | F15: 2477.07 | G15: 126008.55 | H15: 0.0200120457 | I15: 0.5686665284
A16: 100321 | B16: SINAPI | C16: TÉCNICO EM SEGURANÇA DO TRABALHO COM ENCARGOS COMPLEMENTARES | D16: MES | E16: 12 | F16: 7349.88 | G16: 88198.56 | H16: 0.01400725279 | I16: 0.5826737812
A17: ED-9081 | B17: SETOP | C17: REVESTIMENTO COM CERÂMICA APLICADO EM PAREDE, ACABAMENTO ESMALTADO, AMBIENTE INTERNO/EXTERNO, PADRÃO EXTRA, DIMENSÃO DA PEÇA ATÉ 2025 CM2, PEI III, ASSENTAMENTO COM ARGAMASSA INDUSTRIALIZADA, INCLUSIVE REJUNTAMENTO | D17: m2 | E17: 971.09 | F17: 87.74 | G17: 85203.43 | H17: 0.01353158127 | I17: 0.5962053625
A18: 87529 | B18: SINAPI | C18: MASSA ÚNICA, PARA RECEBIMENTO DE PINTURA, EM ARGAMASSA TRAÇO 1:2:8, PREPARO MECÂNICO COM BETONEIRA 400L, APLICADA MANUALMENTE EM FACES INTERNAS DE PAREDES, ESPESSURA DE 20MM, COM EXECUÇÃO DE TALISCAS. AF_06/2014 | D18: M2 | E18: 1873.85 | F18: 44.69 | G18: 83742.35 | H18: 0.01329953988 | I18: 0.6095049023
A19: 94569 | B19: SINAPI | C19: JANELA DE ALUMÍNIO TIPO MAXIM-AR, COM VIDROS, BATENTE E FERRAGENS. EXCLUSIVE ALIZAR, ACABAMENTO E CONTRAMARCO. FORNECIMENTO E INSTALAÇÃO. AF_12/2019 | D19: M2 | E19: 98.88 | F19: 808.36 | G19: 79930.63 | H19: 0.01269418163 | I19: 0.622199084
A20: 96114 | B20: SINAPI | C20: FORRO EM DRYWALL, PARA AMBIENTES COMERCIAIS, INCLUSIVE ESTRUTURA DE FIXAÇÃO. AF_05/2017_PS | D20: M2 | E20: 837.91 | F20: 91.75 | G20: 76878.24 | H20: 0.01220941636 | I20: 0.6344085003
A21: COT-ELE-004 | B21: COTAÇÃO | C21: GERADOR ELÉTRICO 72 KVA | D21: UN | E21: 1 | F21: 71377.04 | G21: 71377.04 | H21: 0.01133574338 | I21: 0.6457442437
A22: 87630 | B22: SINAPI | C22: CONTRAPISO EM ARGAMASSA TRAÇO 1:4 (CIMENTO E AREIA), PREPARO MECÂNICO COM BETONEIRA 400 L, APLICADO EM ÁREAS SECAS SOBRE LAJE, ADERIDO, ACABAMENTO NÃO REFORÇADO, ESPESSURA 3CM. AF_07/2021 | D22: M2 | E22: 1337.03 | F22: 48.19 | G22: 64431.46 | H22: 0.01023268121 | I22: 0.6559769249
A23: 100652 | B23: SINAPI | C23: ESTACA HÉLICE CONTÍNUA , DIÂMETRO DE 50 CM, INCLUSO CONCRETO FCK=30MPA E ARMADURA MÍNIMA (EXCLUSIVE MOBILIZAÇÃO, DESMOBILIZAÇÃO E BOMBEAMENTO). AF_12/2019 | D23: M | E23: 169 | F23: 359.02 | G23: 60674.38 | H23: 0.009636000617 | I23: 0.6656129255
A24: ED-49804 | B24: SETOP | C24: FORNECIMENTO DE CONCRETO ESTRUTURAL, USINADO BOMBEADO, COM FCK 20MPA, INCLUSIVE LANÇAMENTO, ADENSAMENTO E ACABAMENTO (FUNDAÇÃO) | D24: m3 | E24: 62.3 | F24: 884.09 | G24: 55078.8 | H24: 0.008747338676 | I24: 0.6743602642
A25: DAC-8.2 | B25: CPU | C25: REVESTIMENTO COM PASTILHA APLICADO EM PAREDE, ACABAMENTO ESMALTADO, AMBIENTE INTERNO/EXTERNO, PADRÃO EXTRA, DIMENSÃO DA PEÇA ATÉ 2025 CM2, ASSENTAMENTO COM ARGAMASSA. | D25: M2 | E25: 294.64 | F25: 174.19 | G25: 51323.33 | H25: 0.008150913772 | I25: 0.682511178
A26: ED-48533 | B26: SETOP | C26: DIVISÓRIA EM GRANITO CINZA ANDORINHA E = 3 CM, INCLUSIVE FERRAGENS EM LATÃO CROMADO | D26: m2 | E26: 61.299 | F26: 796.21 | G26: 48806.87 | H26: 0.007751262221 | I26: 0.6902624402
A27: 90844 | B27: SINAPI | C27: KIT DE PORTA DE MADEIRA PARA PINTURA, SEMI-OCA (LEVE OU MÉDIA), PADRÃO MÉDIO, 90X210CM, ESPESSURA DE 3,5CM, ITENS INCLUSOS: DOBRADIÇAS, MONTAGEM E INSTALAÇÃO DO BATENTE, FECHADURA COM EXECUÇÃO DO FURO - FORNECIMENTO E INSTALAÇÃO. AF_12/2019 | D27: UN | E27: 33 | F27: 1413.62 | G27: 46649.46 | H27: 0.007408633189 | I27: 0.6976710734
A28: 98555 | B28: SINAPI | C28: IMPERMEABILIZAÇÃO DE SUPERFÍCIE COM ARGAMASSA POLIMÉRICA / MEMBRANA ACRÍLICA, 3 DEMÃOS. AF_06/2018 | D28: M2 | E28: 1457.81 | F28: 30.94 | G28: 45104.63 | H28: 0.007163291039 | I28: 0.7048343644
A29: ED-49810 | B29: SETOP | C29: FÔRMA E DESFORMA DE TÁBUA E SARRAFO, REAPROVEITAMENTO (3X) (FUNDAÇÃO) | D29: m2 | E29: 632.28 | F29: 71.04 | G29: 44917.15 | H29: 0.007133516406 | I29: 0.7119678809
A30: 87535 | B30: SINAPI | C30: EMBOÇO, PARA RECEBIMENTO DE CERÂMICA, EM ARGAMASSA TRAÇO 1:2:8, PREPARO MECÂNICO COM BETONEIRA 400L, APLICADO MANUALMENTE EM FACES INTERNAS DE PAREDES, PARA AMBIENTE COM ÁREA MAIOR QUE 10M2, ESPESSURA DE 20MM, COM EXECUÇÃO DE TALISCAS. AF_06/2014 | D30: M2 | E30: 1026.01 | F30: 38.86 | G30: 39870.74 | H30: 0.006332070888 | I30: 0.7182999517
A31: 98295 | B31: SINAPI | C31: CABO ELETRÔNICO CATEGORIA 5E, INSTALADO EM EDIFICAÇÃO INSTITUCIONAL - FORNECIMENTO E INSTALAÇÃO. AF_11/2019 | D31: M | E31: 6093.38 | F31: 6.38 | G31: 38875.76 | H31: 0.006174053157 | I31: 0.7244740049
A32: 98680 | B32: SINAPI | C32: PISO CIMENTADO, TRAÇO 1:3 (CIMENTO E AREIA), ACABAMENTO LISO, ESPESSURA 3,0 CM, PREPARO MECÂNICO DA ARGAMASSA. AF_09/2020 | D32: M2 | E32: 669.78 | F32: 56.75 | G32: 38010.01 | H32: 0.006036559085 | I32: 0.730510564
A33: COT-ARQ-003 | B33: COTAÇÃO | C33: CORTINA HOSPITALAR - FORNECIMENTO E INSTALAÇÃO | D33: M | E33: 22.61 | F33: 1550.09 | G33: 35047.53 | H33: 0.005566072875 | I33: 0.7360766369
A34: 88489 | B34: SINAPI | C34: APLICAÇÃO MANUAL DE PINTURA COM TINTA LÁTEX ACRÍLICA EM PAREDES, DUAS DEMÃOS. AF_06/2014 | D34: M2 | E34: 1910.348 | F34: 17.3 | G34: 33049.02 | H34: 0.005248679544 | I34: 0.7413253164
A35: 95626 | B35: SINAPI | C35: APLICAÇÃO MANUAL DE TINTA LÁTEX ACRÍLICA EM PAREDE EXTERNAS DE CASAS, DUAS DEMÃOS. AF_11/2016 | D35: M2 | E35: 1678.98 | F35: 18.96 | G35: 31833.46 | H35: 0.005055630403 | I35: 0.7463809468
A36: 92996 | B36: SINAPI | C36: CABO DE COBRE FLEXÍVEL ISOLADO, 150 MM², ANTI-CHAMA 0,6/1,0 KV, PARA REDE ENTERRADA DE DISTRIBUIÇÃO DE ENERGIA ELÉTRICA - FORNECIMENTO E INSTALAÇÃO. AF_12/2021 | D36: M | E36: 165.12 | F36: 186.03 | G36: 30717.27 | H36: 0.004878362707 | I36: 0.7512593095
A37: ED-50480 | B37: SETOP | C37: EMASSAMENTO EM TETO COM MASSA CORRIDA (PVA), DUAS (2) DEMÃOS, INCLUSIVE LIXAMENTO PARA PINTURA | D37: m2 | E37: 837.91 | F37: 33.74 | G37: 28271.08 | H37: 0.004489871085 | I37: 0.7557491806
A38: 91341 | B38: SINAPI | C38: PORTA EM ALUMÍNIO DE ABRIR TIPO VENEZIANA COM GUARNIÇÃO, FIXAÇÃO COM PARAFUSOS - FORNECIMENTO E INSTALAÇÃO. AF_12/2019 | D38: M2 | E38: 33.54 | F38: 823.01 | G38: 27603.75 | H38: 0.004383889082 | I38: 0.7601330697
A39: 92992 | B39: SINAPI | C39: CABO DE COBRE FLEXÍVEL ISOLADO, 95 MM², ANTI-CHAMA 0,6/1,0 KV, PARA REDE ENTERRADA DE DISTRIBUIÇÃO DE ENERGIA ELÉTRICA - FORNECIMENTO E INSTALAÇÃO. AF_12/2021 | D39: M | E39: 228.56 | F39: 118.24 | G39: 27024.93 | H39: 0.004291963794 | I39: 0.7644250335
A40: ED-19753 | B40: SETOP | C40: MOBILIZAÇÃO E DESMOBILIZAÇÃO DE EQUIPAMENTO PARA ESTACA TIPO HÉLICE CONTÍNUA (CUSTO FIXO), INCLUSIVE CARGA E DESGARGA, EXCLUSIVE TRANSPORTE EM QUILÔMETRO RODADO (CUSTO VARIÁVEL) | D40: un | E40: 1 | F40: 24494.09 | G40: 24494.09 | H40: 0.003890028483 | I40: 0.768315062
A41: 93358 | B41: SINAPI | C41: ESCAVAÇÃO MANUAL DE VALA COM PROFUNDIDADE MENOR OU IGUAL A 1,30 M. AF_02/2021 | D41: M3 | E41: 268.986 | F41: 88.93 | G41: 23920.91 | H41: 0.003798998911 | I41: 0.7721140609
A42: 93582 | B42: SINAPI | C42: EXECUÇÃO DE CENTRAL DE ARMADURA EM CANTEIRO DE OBRA, NÃO INCLUSO MOBILIÁRIO E EQUIPAMENTOS. AF_04/2016 | D42: M2 | E42: 60 | F42: 398.32 | G42: 23899.2 | H42: 0.003795551037 | I42: 0.7759096119
A43: 93202 | B43: SINAPI | C43: FIXAÇÃO (ENCUNHAMENTO) DE ALVENARIA DE VEDAÇÃO COM TIJOLO MACIÇO. AF_03/2016 | D43: M | E43: 757.04 | F43: 31.09 | G43: 23536.37 | H43: 0.003737928197 | I43: 0.7796475401
A44: ED-48202 | B44: SETOP | C44: ALVENARIA ESTRUTURAL COM BLOCO DE CONCRETO, ESP. 19CM, (FBK 4,5MPA), COM ACABAMENTO APARENTE, INCLUSIVE ARGAMASSA PARA ASSENTAMENTO | D44: m2 | E44: 273.81 | F44: 84.65 | G44: 23178.01 | H44: 0.00368101526 | I44: 0.7833285554
A45: 91835 | B45: SINAPI | C45: ELETRODUTO FLEXÍVEL CORRUGADO REFORÇADO, PVC, DN 25 MM (3/4"), PARA CIRCUITOS TERMINAIS, INSTALADO EM FORRO - FORNECIMENTO E INSTALAÇÃO. AF_03/2023 | D45: M | E45: 1540.72 | F45: 15.04 | G45: 23172.42 | H45: 0.003680127484 | I45: 0.7870086828
A46: 93583 | B46: SINAPI | C46: EXECUÇÃO DE CENTRAL DE FÔRMAS, PRODUÇÃO DE ARGAMASSA OU CONCRETO EM CANTEIRO DE OBRA, NÃO INCLUSO MOBILIÁRIO E EQUIPAMENTOS. AF_04/2016 | D46: M2 | E46: 36 | F46: 621.78 | G46: 22384.08 | H46: 0.003554927281 | I46: 0.7905636101
A47: ED-50940 | B47: SETOP | C47: GUARDA-CORPO EM TUBO GALVANIZADO DIN 2440 D = 2", COM SUBDIVISÕES EM TUBO DE AÇO D = 1/2", H = 1,05 M | D47: m | E47: 37.5 | F47: 595.82 | G47: 22343.25 | H47: 0.003548442865 | I47: 0.794112053
A48: ED-51094 | B48: SETOP | C48: APILOAMENTO MECANIZADO EM FUNDO DE VALA COM PLACA VIBRATÓRIA, EXCLUSIVE ESCAVAÇÃO | D48: m2 | E48: 1523.83 | F48: 14.43 | G48: 21988.86 | H48: 0.003492160423 | I48: 0.7976042134
A49: ED-13935 | B49: SETOP | C49: CABO DE COBRE NU #50 MM2 - 7 FIOSX3,00MM, PARA ELEMENTOS DE CAPTAÇÃO/ANEL DE CINTAMENTO (SPDA), INCLUSIVE PRESILHA DE FIXAÇÃO | D49: m | E49: 302.81 | F49: 70.93 | G49: 21478.31 | H49: 0.003411077434 | I49: 0.8010152908
A50: ED-49392 | B50: SETOP | C50: LUMINÁRIA COMERCIAL CHANFRADA DE SOBREPOR, PARA DUAS (2) LÂMPADAS TUBULARES FLUORESCENTE 2X32W-ØT8 OU 2X40W-ØT10 OU LED 2X18W-ØT8, FORNECIMENTO E INSTALAÇÃO, EXCLUSIVE BASE, REATOR E LÂMPADAS | D50: un | E50: 194 | F50: 106.92 | G50: 20742.48 | H50: 0.003294216605 | I50: 0.8043095074
A51: 101173 | B51: SINAPI | C51: ESTACA BROCA DE CONCRETO, DIÂMETRO DE 20CM, ESCAVAÇÃO MANUAL COM TRADO CONCHA, COM ARMADURA DE ARRANQUE. AF_05/2020 | D51: M | E51: 288 | F51: 71.87 | G51: 20698.56 | H51: 0.003287241451 | I51: 0.8075967489
A52: COT-LOU-001 | B52: COTAÇÃO | C52: BEBEDOURO 100 LITROS - 3 TORNEIRAS | D52: UN | E52: 4 | F52: 4995 | G52: 19980 | H52: 0.003173123357 | I52: 0.8107698723
A53: 103244 | B53: SINAPI | C53: AR CONDICIONADO SPLIT INVERTER, HI-WALL (PAREDE), 9000 BTU/H, CICLO FRIO - FORNECIMENTO E INSTALAÇÃO. AF_11/2021_PE | D53: UN | E53: 7 | F53: 2795.73 | G53: 19570.11 | H53: 0.003108026683 | I53: 0.8138778989
A54: 91926 | B54: SINAPI | C54: CABO DE COBRE FLEXÍVEL ISOLADO, 2,5 MM², ANTI-CHAMA 450/750 V, PARA CIRCUITOS TERMINAIS - FORNECIMENTO E INSTALAÇÃO. AF_03/2023 | D54: M | E54: 3836.21 | F54: 5.01 | G54: 19219.41 | H54: 0.003052330269 | I54: 0.8169302292
A55: 96523 | B55: SINAPI | C55: ESCAVAÇÃO MANUAL PARA BLOCO DE COROAMENTO OU SAPATA (INCLUINDO ESCAVAÇÃO PARA COLOCAÇÃO DE FÔRMAS). AF_06/2017 | D55: M3 | E55: 179.67 | F55: 105.37 | G55: 18931.82 | H55: 0.003006656668 | I55: 0.8199368859
A56: 102491 | B56: SINAPI | C56: PINTURA DE PISO COM TINTA ACRÍLICA, APLICAÇÃO MANUAL, 2 DEMÃOS, INCLUSO FUNDO PREPARADOR. AF_05/2021 | D56: M2 | E56: 848.46 | F56: 22.25 | G56: 18878.23 | H56: 0.002998145773 | I56: 0.8229350317
A57: 90279 | B57: SINAPI | C57: GRAUTE FGK=20 MPA; TRAÇO 1:0,04:1,8:2,1 (EM MASSA SECA DE CIMENTO/ CAL/ AREIA GROSSA/ BRITA 0) - PREPARO MECÂNICO COM BETONEIRA 400 L. AF_09/2021 | D57: M3 | E57: 26.01 | F57: 722.18 | G57: 18783.9 | H57: 0.002983164756 | I57: 0.8259181964
A58: DAC-16.1 | B58: CPU | C58: TUBO PVC, ÁGUA PLUVIAL, DN 200 MM, FORNECIDO E INSTALADO | D58: M | E58: 48.7 | F58: 363.91 | G58: 17722.41 | H58: 0.00281458424 | I58: 0.8287327806
A59: 99059 | B59: SINAPI | C59: LOCACAO CONVENCIONAL DE OBRA, UTILIZANDO GABARITO DE TÁBUAS CORRIDAS PONTALETADAS A CADA 2,00M - 2 UTILIZAÇÕES. AF_10/2018 | D59: M | E59: 213.18 | F59: 82.17 | G59: 17517 | H59: 0.002781962054 | I59: 0.8315147427
A60: 87905 | B60: SINAPI | C60: CHAPISCO APLICADO EM ALVENARIA (COM PRESENÇA DE VÃOS) E ESTRUTURAS DE CONCRETO DE FACHADA, COM COLHER DE PEDREIRO. ARGAMASSA TRAÇO 1:3 COM PREPARO EM BETONEIRA 400L. AF_10/2022 | D60: M2 | E60: 1918.7 | F60: 9.1 | G60: 17460.17 | H60: 0.002772936599 | I60: 0.8342876793
A61: 92877 | B61: SINAPI | C61: CORTE E DOBRA DE AÇO CA-25, DIÂMETRO DE 10,0 MM. AF_06/2022 | D61: KG | E61: 1273.71012 | F61: 13.14 | G61: 16736.55 | H61: 0.002658014901 | I61: 0.8369456942
A62: 88488 | B62: SINAPI | C62: APLICAÇÃO MANUAL DE PINTURA COM TINTA LÁTEX ACRÍLICA EM TETO, DUAS DEMÃOS. AF_06/2014 | D62: M2 | E62: 851.07 | F62: 19.62 | G62: 16697.99 | H62: 0.002651890995 | I62: 0.8395975852
A63: DAC-6.4 | B63: CPU | C63: ACABAMENTO PARA ESQUADRIAS EM ALUMÍNIO | D63: M | E63: 301.6 | F63: 54.37 | G63: 16397.99 | H63: 0.0026042465 | I63: 0.8422018317
A64: 94228 | B64: SINAPI | C64: CALHA EM CHAPA DE AÇO GALVANIZADO NÚMERO 24, DESENVOLVIMENTO DE 50 CM, INCLUSO TRANSPORTE VERTICAL. AF_07/2019 | D64: M | E64: 125.1 | F64: 129.79 | G64: 16236.72 | H64: 0.002578634408 | I64: 0.8447804661
A65: 100903 | B65: SINAPI | C65: LÂMPADA TUBULAR LED DE 18/20 W, BASE G13 - FORNECIMENTO E INSTALAÇÃO. AF_02/2020_PS | D65: UN | E65: 388 | F65: 41.76 | G65: 16202.88 | H65: 0.002573260109 | I65: 0.8473537262
A66: 103247 | B66: SINAPI | C66: AR CONDICIONADO SPLIT INVERTER, HI-WALL (PAREDE), 12000 BTU/H, CICLO FRIO - FORNECIMENTO E INSTALAÇÃO. AF_11/2021_PE | D66: UN | E66: 5 | F66: 3102.8 | G66: 15514 | H66: 0.002463855643 | I66: 0.8498175819
A67: 100674 | B67: SINAPI | C67: JANELA FIXA DE ALUMÍNIO PARA VIDRO, COM VIDRO, BATENTE E FERRAGENS. EXCLUSIVE ACABAMENTO, ALIZAR E CONTRAMARCO. FORNECIMENTO E INSTALAÇÃO. AF_12/2019 | D67: M2 | E67: 17.5725 | F67: 874.99 | G67: 15375.76 | H67: 0.00244190106 | I67: 0.8522594829
A68: ED-50329 | B68: SETOP | C68: TORNEIRA METÁLICA PARA LAVATÓRIO, FECHAMENTO AUTOMÁTICO, ACABAMENTO CROMADO, COM AREJADOR, APLICAÇÃO DE MESA, INCLUSIVE ENGATE FLEXÍVEL METÁLICO, FORNECIMENTO E INSTALAÇÃO | D68: un | E68: 35 | F68: 436.26 | G68: 15269.1 | H68: 0.002424961854 | I68: 0.8546844448
A69: 86932 | B69: SINAPI | C69: VASO SANITÁRIO SIFONADO COM CAIXA ACOPLADA LOUÇA BRANCA - PADRÃO MÉDIO, INCLUSO ENGATE FLEXÍVEL EM METAL CROMADO, 1/2 X 40CM - FORNECIMENTO E INSTALAÇÃO. AF_01/2020 | D69: UN | E69: 22 | F69: 687.99 | G69: 15135.78 | H69: 0.002403788641 | I69: 0.8570882334
A70: 87879 | B70: SINAPI | C70: CHAPISCO APLICADO EM ALVENARIAS E ESTRUTURAS DE CONCRETO INTERNAS, COM COLHER DE PEDREIRO. ARGAMASSA TRAÇO 1:3 COM PREPARO EM BETONEIRA 400L. AF_10/2022 | D70: M2 | E70: 2899.85 | F70: 5.16 | G70: 14963.22 | H70: 0.002376383527 | I70: 0.8594646169
A71: 96624 | B71: SINAPI | C71: LASTRO COM MATERIAL GRANULAR (PEDRA BRITADA N.2), APLICADO EM PISOS OU LAJES SOBRE SOLO, ESPESSURA DE *10 CM*. AF_08/2017 | D71: M3 | E71: 76.1915 | F71: 195.59 | G71: 14902.29 | H71: 0.00236670693 | I71: 0.8618313239
A72: COT-DAD-003 | B72: COTAÇÃO | C72: SWITCH (10/100/1000) BASE T, 24 PORTAS | D72: UN | E72: 14 | F72: 1051.63 | G72: 14722.82 | H72: 0.002338204405 | I72: 0.8641695283
A73: ED-16349 | B73: SETOP | C73: LOCAÇÃO DE CONTAINER COM ISOLAMENTO TÉRMICO, TIPO 2, PARA ESCRITÓRIO DE OBRA COM SANITÁRIO CONTENDO UM (1) VASO SANITÁRIO E UM (1) LAVATÓRIO, COM MEDIDAS REFERENCIAIS DE (6) METROS COMPRIMENTO, (2,3) METROS LARGURA E (2,5) METROS ALTURA ÚTIL INTERNA, INCLUSIVE AR CONDICIONADO E LIGAÇÕES ELÉTRICAS E HIDROSSANITÁRIAS INTERNAS, EXCLUSIVE MOBILIZAÇÃO/DESMOBILIZAÇÃO E LIGAÇÕES PROVISÓRIAS EXTERNAS | D73: mês | E73: 12 | F73: 1206.35 | G73: 14476.2 | H73: 0.002299037454 | I73: 0.8664685657
A74: ED-50266 | B74: SETOP | C74: LIMPEZA FINAL PARA ENTREGA DA OBRA | D74: m2 | E74: 1761.42 | F74: 8.17 | G74: 14390.8 | H74: 0.002285474655 | I74: 0.8687540404
A75: 92367 | B75: SINAPI | C75: TUBO DE AÇO GALVANIZADO COM COSTURA, CLASSE MÉDIA, DN 65 (2 1/2"), CONEXÃO ROSQUEADA, INSTALADO EM REDE DE ALIMENTAÇÃO PARA HIDRANTE - FORNECIMENTO E INSTALAÇÃO. AF_10/2020 | D75: M | E75: 87.696 | F75: 155.99 | G75: 13679.69 | H75: 0.002172539732 | I75: 0.8709265801
A76: 91939 | B76: SINAPI | C76: CAIXA RETANGULAR 4" X 2" ALTA (2,00 M DO PISO), PVC, INSTALADA EM PAREDE - FORNECIMENTO E INSTALAÇÃO. AF_03/2023 | D76: UN | E76: 383 | F76: 35.31 | G76: 13523.73 | H76: 0.002147770948 | I76: 0.8730743511
A77: 103250 | B77: SINAPI | C77: AR CONDICIONADO SPLIT INVERTER, HI-WALL (PAREDE), 18000 BTU/H, CICLO FRIO - FORNECIMENTO E INSTALAÇÃO. AF_11/2021_PE | D77: UN | E77: 3 | F77: 4505.35 | G77: 13516.05 | H77: 0.002146551249 | I77: 0.8752209023
A78: ED-50548 | B78: SETOP | C78: PISO CIMENTADO COM ARGAMASSA, TRAÇO 1:3 (CIMENTO E AREIA), ESP. 30MM, ACABAMENTO DESEMPENADO E FELTRADO, MODULAÇÃO DE 100X100CM, INCLUSIVE JUNTA PLÁSTICA | D78: m2 | E78: 178.68 | F78: 74.93 | G78: 13388.49 | H78: 0.002126292809 | I78: 0.8773471951
A79: 98301 | B79: SINAPI | C79: PATCH PANEL 24 PORTAS, CATEGORIA 5E - FORNECIMENTO E INSTALAÇÃO. AF_11/2019 | D79: UN | E79: 19 | F79: 695.44 | G79: 13213.36 | H79: 0.002098479541 | I79: 0.8794456747
A80: 90843 | B80: SINAPI | C80: KIT DE PORTA DE MADEIRA PARA PINTURA, SEMI-OCA (LEVE OU MÉDIA), PADRÃO MÉDIO, 80X210CM, ESPESSURA DE 3,5CM, ITENS INCLUSOS: DOBRADIÇAS, MONTAGEM E INSTALAÇÃO DO BATENTE, FECHADURA COM EXECUÇÃO DO FURO - FORNECIMENTO E INSTALAÇÃO. AF_12/2019 | D80: UN | E80: 10 | F80: 1314.55 | G80: 13145.5 | H80: 0.002087702357 | I80: 0.881533377
A81: 103523 | B81: SINAPI | C81: RESERVATÓRIO TÉRMICO/BOILER SOLAR EM AÇO INOX 1000 L COM 5 PLACAS COLETORAS EM VIDRO TEMPERADO COM SERPENTINA EM TUBO DE COBRE 2 X 1 M - FORNECIMENTO E INSTALAÇÃO. AF_12/2021 | D81: UN | E81: 1 | F81: 13067.49 | G81: 13067.49 | H81: 0.0020753132 | I81: 0.8836086902
A82: DAC-6.3 | B82: CPU | C82: PORTA DE ABRIR COM MOLA HIDRÁULICA, EM VIDRO TEMPERADO, 2 FOLHAS DE 80X210 CM, ESPESSURA DD 10MM, INCLUSIVE ACESSÓRIOS. AF_01/2021 | D82: UN | E82: 3 | F82: 4344.6 | G82: 13033.8 | H82: 0.002069962723 | I82: 0.8856786529
A83: 92990 | B83: SINAPI | C83: CABO DE COBRE FLEXÍVEL ISOLADO, 70 MM², ANTI-CHAMA 0,6/1,0 KV, PARA REDE ENTERRADA DE DISTRIBUIÇÃO DE ENERGIA ELÉTRICA - FORNECIMENTO E INSTALAÇÃO. AF_12/2021 | D83: M | E83: 137.08 | F83: 91.43 | G83: 12533.22 | H83: 0.001990463119 | I83: 0.8876691161
A84: ED-50155 | B84: SETOP | C84: LOCAÇÃO DE BANHEIRO QUÍMICO, DIMENSÃO (110X120X230)CM, LINHA PADRÃO, CONTENDO UMA (1) PIA/HIGIENIZADOR DE MÃOS, INCLUSIVE MANUTENÇÃO E MOBILIZAÇÃO/DESMOBILIZAÇÃO | D84: mês | E84: 12 | F84: 1037.46 | G84: 12449.52 | H84: 0.001977170305 | I84: 0.8896462864
A85: 103253 | B85: SINAPI | C85: AR CONDICIONADO SPLIT INVERTER, HI-WALL (PAREDE), 24000 BTU/H, CICLO FRIO - FORNECIMENTO E INSTALAÇÃO. AF_11/2021_PE | D85: UN | E85: 2 | F85: 6140.87 | G85: 12281.74 | H85: 0.001950524327 | I85: 0.8915968107
A86: 90445 | B86: SINAPI | C86: RASGO EM CONTRAPISO PARA RAMAIS/ DISTRIBUIÇÃO COM DIÂMETROS MAIORES QUE 40 MM E MENORES OU IGUAIS A 75 MM. AF_05/2015 | D86: M | E86: 342.2 | F86: 34.69 | G86: 11870.91 | H86: 0.001885278368 | I86: 0.8934820891
A87: 87745 | B87: SINAPI | C87: CONTRAPISO EM ARGAMASSA TRAÇO 1:4 (CIMENTO E AREIA), PREPARO MECÂNICO COM BETONEIRA 400 L, APLICADO EM ÁREAS MOLHADAS SOBRE LAJE, ADERIDO, ACABAMENTO NÃO REFORÇADO, ESPESSURA 3CM. AF_07/2021 | D87: M2 | E87: 186.8 | F87: 61.48 | G87: 11484.46 | H87: 0.001823904318 | I87: 0.8953059934
A88: ED-48344 | B88: SETOP | C88: BANCADA EM GRANITO CINZA ANDORINHA E = 3 CM, APOIADA EM ALVENARIA | D88: m2 | E88: 27.1 | F88: 420.24 | G88: 11388.5 | H88: 0.001808664432 | I88: 0.8971146578
A89: 90467 | B89: SINAPI | C89: CHUMBAMENTO LINEAR EM ALVENARIA PARA RAMAIS/DISTRIBUIÇÃO COM DIÂMETROS MAIORES QUE 40 MM E MENORES OU IGUAIS A 75 MM. AF_05/2015 | D89: M | E89: 448.56 | F89: 24.5 | G89: 10989.72 | H89: 0.001745332193 | I89: 0.89885999
A90: DAC-9.2 | B90: CPU | C90: RODAPÉ COM REVESTIMENTO EM PORCELANATO 60X60 COM BORDA RETIFICADA E ACABAMENTO POLIDO, ALTURA 10CM | D90: M | E90: 500.59 | F90: 21.73 | G90: 10877.82 | H90: 0.001727560796 | I90: 0.9005875508
A91: ED-16350 | B91: SETOP | C91: LOCAÇÃO DE CONTAINER COM ISOLAMENTO TÉRMICO, TIPO 3, PARA DEPÓSITO/FERRAMENTARIA DE OBRA, COM MEDIDAS REFERENCIAIS DE (6) METROS COMPRIMENTO, (2,3) METROS LARGURA E (2,5) METROS ALTURA ÚTIL INTERNA, INCLUSIVE LIGAÇÕES ELÉTRICAS INTERNAS, EXCLUSIVE MOBILIZAÇÃO/DESMOBILIZAÇÃO E LIGAÇÕES PROVISÓRIAS EXTERNAS | D91: mês | E91: 12 | F91: 872.27 | G91: 10467.24 | H91: 0.001662354541 | I91: 0.9022499053
A92: COT-ARQ-002 | B92: COTAÇÃO | C92: BRISE METÁLICO - FORNECIMENTO E INSTALAÇÃO | D92: M² | E92: 8.772 | F92: 1153.62 | G92: 10119.55 | H92: 0.001607136159 | I92: 0.9038570415
A93: ED-20586 | B93: SETOP | C93: ENTRADA DE ENERGIA AÉREA, TIPO C6, PADRÃO CEMIG, CARGA INSTALADA DE 47,1KVA ATÉ 57KVA, TRIFÁSICO, COM SAÍDA SUBTERRÂNEA, INCLUSIVE POSTE, CAIXA PARA MEDIDOR, DISJUNTOR, BARRAMENTO, ATERRAMENTO E ACESSÓRIOS | D93: un | E93: 1 | F93: 9511.02 | G93: 9511.02 | H93: 0.001510492478 | I93: 0.905367534
A94: ED-16351 | B94: SETOP | C94: LOCAÇÃO DE CONTAINER COM ISOLAMENTO TÉRMICO, TIPO 4, PARA REFEITÓRIO DE OBRA, COM MEDIDAS REFERENCIAIS DE (6) METROS COMPRIMENTO, (2,3) METROS LARGURA E (2,5) METROS ALTURA ÚTIL INTERNA, INCLUSIVE LIGAÇÕES ELÉTRICAS INTERNAS, EXCLUSIVE MOBILIZAÇÃO/DESMOBILIZAÇÃO E LIGAÇÕES PROVISÓRIAS EXTERNAS | D94: mês | E94: 12 | F94: 770.55 | G94: 9246.6 | H94: 0.00146849862 | I94: 0.9068360326
A95: 93183 | B95: SINAPI | C95: VERGA PRÉ-MOLDADA PARA JANELAS COM MAIS DE 1,5 M DE VÃO. AF_03/2016 | D95: M | E95: 91.1 | F95: 99.07 | G95: 9025.27 | H95: 0.0014333481 | I95: 0.9082693807
A96: 89356 | B96: SINAPI | C96: TUBO, PVC, SOLDÁVEL, DN 25MM, INSTALADO EM RAMAL OU SUB-RAMAL DE ÁGUA - FORNECIMENTO E INSTALAÇÃO. AF_06/2022 | D96: M | E96: 313.8 | F96: 27.82 | G96: 8729.91 | H96: 0.001386440507 | I96: 0.9096558212
A97: 93195 | B97: SINAPI | C97: CONTRAVERGA PRÉ-MOLDADA PARA VÃOS DE MAIS DE 1,5 M DE COMPRIMENTO. AF_03/2016 | D97: M | E97: 91.1 | F97: 93.89 | G97: 8553.37 | H97: 0.00135840331 | I97: 0.9110142245
A98: 91930 | B98: SINAPI | C98: CABO DE COBRE FLEXÍVEL ISOLADO, 6 MM², ANTI-CHAMA 450/750 V, PARA CIRCUITOS TERMINAIS - FORNECIMENTO E INSTALAÇÃO. AF_03/2023 | D98: M | E98: 779.15 | F98: 10.89 | G98: 8484.94 | H98: 0.0013475356 | I98: 0.9123617601
A99: ED-51019 | B99: SETOP | C99: BARRA CHATA DE ALUMÍNIO 7/8" X 1/8" X 3M | D99: U | E99: 238.9733333 | F99: 34.8 | G99: 8316.27 | H99: 0.001320748277 | I99: 0.9136825084
A100: 93382 | B100: SINAPI | C100: REATERRO MANUAL DE VALAS COM COMPACTAÇÃO MECANIZADA. AF_04/2016 | D100: M3 | E100: 221.555 | F100: 36.96 | G100: 8188.66 | H100: 0.001300481897 | I100: 0.9149829903
A101: DAC-6.7 | B101: CPU | C101: FORNECIMENTO E INSTALAÇÃO DE ESPELHO CRISTAL, ESPESSURA 4 MM | D101: M2 | E101: 16.14 | F101: 492.47 | G101: 7948.46 | H101: 0.001262334538 | I101: 0.9162453248
A102: ED-50998 | B102: SETOP | C102: PEITORIL DE GRANITO CINZA ANDORINHA E = 3 CM | D102: m2 | E102: 22.16 | F102: 356.64 | G102: 7903.14 | H102: 0.001255137043 | I102: 0.9175004619
A103: 94589 | B103: SINAPI | C103: CONTRAMARCO DE ALUMÍNIO, FIXAÇÃO COM ARGAMASSA - FORNECIMENTO E INSTALAÇÃO. AF_12/2019 | D103: M | E103: 301.6 | F103: 24.97 | G103: 7530.95 | H103: 0.001196027695 | I103: 0.9186964896
A104: 89987 | B104: SINAPI | C104: REGISTRO DE GAVETA BRUTO, LATÃO, ROSCÁVEL, 3/4", COM ACABAMENTO E CANOPLA CROMADOS - FORNECIMENTO E INSTALAÇÃO. AF_08/2021 | D104: UN | E104: 47 | F104: 159.27 | G104: 7485.69 | H104: 0.001188839729 | I104: 0.9198853293
A105: 91222 | B105: SINAPI | C105: RASGO EM ALVENARIA PARA RAMAIS/ DISTRIBUIÇÃO COM DIÂMETROS MAIORES QUE 40 MM E MENORES OU IGUAIS A 75 MM. AF_05/2015 | D105: M | E105: 448.56 | F105: 16.29 | G105: 7307.04 | H105: 0.001160467432 | I105: 0.9210457967
A106: 95875 | B106: SINAPI | C106: TRANSPORTE COM CAMINHÃO BASCULANTE DE 10 M³, EM VIA URBANA PAVIMENTADA, DMT ATÉ 30 KM (UNIDADE: M3XKM). AF_07/2020 | D106: M3XKM | E106: 2560.367146 | F106: 2.85 | G106: 7297.03 | H106: 0.001158877694 | I106: 0.9222046744
A107: 88485 | B107: SINAPI | C107: APLICAÇÃO DE FUNDO SELADOR ACRÍLICO EM PAREDES, UMA DEMÃO. AF_06/2014 | D107: M2 | E107: 1910.348 | F107: 3.79 | G107: 7240.21 | H107: 0.001149853827 | I107: 0.9233545282
A108: 88415 | B108: SINAPI | C108: APLICAÇÃO MANUAL DE FUNDO SELADOR ACRÍLICO EM PAREDES EXTERNAS DE CASAS. AF_06/2014 | D108: M2 | E108: 1678.98 | F108: 4.27 | G108: 7169.24 | H108: 0.001138582727 | I108: 0.924493111
A109: 96527 | B109: SINAPI | C109: ESCAVAÇÃO MANUAL DE VALA PARA VIGA BALDRAME (INCLUINDO ESCAVAÇÃO PARA COLOCAÇÃO DE FÔRMAS). AF_06/2017 | D109: M3 | E109: 51.88 | F109: 138.12 | G109: 7165.66 | H109: 0.00113801417 | I109: 0.9256311251
A110: COT-ARQ-007 | B110: COTAÇÃO | C110: PELÍCULA JATEADA PARA VIDROS | D110: M2 | E110: 98.88 | F110: 71.53 | G110: 7072.88 | H110: 0.001123279316 | I110: 0.9267544045
A111: DAC-6.8 | B111: CPU | C111: FORNECIMENTO E INSTALAÇÃO DE PLACAS DE IDENTIFICAÇÃO | D111: UN | E111: 42 | F111: 166.77 | G111: 7004.34 | H111: 0.001112394137 | I111: 0.9278667986
A112: ED-50282 | B112: SETOP | C112: LAVATÓRIO DE LOUÇA BRANCA COM COLUNA, TAMANHO MÉDIO, INCLUSIVE ACESSÓRIOS DE FIXAÇÃO, VÁLVULA DE ESCOAMENTO DE METAL COM ACABAMENTO CROMADO, SIFÃO DE METAL TIPO COPO COM ACABAMENTO CROMADO, FORNECIMENTO, INSTALAÇÃO E REJUNTAMENTO, EXCLUSIVE TORNEIRA E ENGATE FLEXÍVEL | D112: U | E112: 12 | F112: 579.06 | G112: 6948.72 | H112: 0.001103560847 | I112: 0.9289703594
A113: DAC-4.5 | B113: CPU | C113: DRENO DE BRITA 2 + AREIA | D113: M³ | E113: 41.33 | F113: 164.85 | G113: 6813.25 | H113: 0.001082046182 | I113: 0.9300524056
A114: 98561 | B114: SINAPI | C114: IMPERMEABILIZAÇÃO DE PAREDES COM ARGAMASSA DE CIMENTO E AREIA, COM ADITIVO IMPERMEABILIZANTE, E = 2CM. AF_06/2018 | D114: M2 | E114: 130.16 | F114: 51.73 | G114: 6733.17 | H114: 0.001069328278 | I114: 0.9311217339
A115: COT-ARQ-008 | B115: COTAÇÃO | C115: COIFA PARA FOGÃO INDUSTRIAL - FORNECIMENTO E INSTALAÇÃO | D115: UN | E115: 1 | F115: 6642.3 | G115: 6642.3 | H115: 0.00105489676 | I115: 0.9321766307
A116: ED-50279 | B116: SETOP | C116: CUBA DE LOUÇA BRANCA DE EMBUTIR, FORMATO OVAL, INCLUSIVE VÁLVULA DE ESCOAMENTO DE METAL COM ACABAMENTO CROMADO, SIFÃO DE METAL TIPO COPO COM ACABAMENTO CROMADO, FORNECIMENTO E INSTALAÇÃO | D116: un | E116: 17 | F116: 388.11 | G116: 6597.87 | H116: 0.001047840611 | I116: 0.9332244713
A117: COT-ARQ-009 | B117: COTAÇÃO | C117: FOGÃO INDUSTRIAL 6 BOCAS | D117: UN | E117: 1 | F117: 6465.93 | G117: 6465.93 | H117: 0.001026886562 | I117: 0.9342513578
A118: DAC-21.3 | B118: CPU | C118: ABRIGO PARA HIDRANTE, 90X60X17CM, COM REGISTRO GLOBO ANGULAR 45° 2 1/2", ADAPTADOR STORZ 2 1/2", 2 MANGUEIRA DE INCÊNDIO DE 15M, REDUÇÃO DE 2 1/2" X 1 1/2" E ESGUICHO EM LATÃO 1 1/2" - FORNECIMENTO E INSTALAÇÃO | D118: UN | E118: 2 | F118: 3224.94 | G118: 6449.88 | H118: 0.001024337581 | I118: 0.9352756954
A119: ED-50277 | B119: SETOP | C119: CUBA EM AÇO INOXIDÁVEL DE EMBUTIR, AISI 304, APLICAÇÃO PARA PIA (465X330X115MM), NÚMERO 1, ASSENTAMENTO EM BANCADA, INCLUSIVE VÁLVULA DE ESCOAMENTO DE METAL COM ACABAMENTO CROMADO, SIFÃO DE METAL TIPO COPO COM ACABAMENTO CROMADO, FORNECIMENTO E INSTALAÇÃO | D119: un | E119: 11 | F119: 576.66 | G119: 6343.26 | H119: 0.001007404728 | I119: 0.9362831001
A120: ED-48160 | B120: SETOP | C120: BARRA DE APOIO EM AÇO INOX POLIDO RETA, DN 1.1/4" (31,75MM), PARA ACESSIBILIDADE (PMR/PCR), COMPRIMENTO 80CM, INSTALADO EM PAREDE, INCLUSIVE FORNECIMENTO, INSTALAÇÃO E ACESSÓRIOS PARA FIXAÇÃO | D120: un | E120: 22 | F120: 286.99 | G120: 6313.78 | H120: 0.001002722862 | I120: 0.937285823
A121: 89800 | B121: SINAPI | C121: TUBO PVC, SERIE NORMAL, ESGOTO PREDIAL, DN 100 MM, FORNECIDO E INSTALADO EM PRUMADA DE ESGOTO SANITÁRIO OU VENTILAÇÃO. AF_08/2022 | D121: M | E121: 165.3 | F121: 36.36 | G121: 6010.3 | H121: 0.0009545256912 | I121: 0.9382403487
A122: ED-50482 | B122: SETOP | C122: EMASSAMENTO EM ESQUADRIA DE MADEIRA COM MASSA A ÓLEO, DUAS (2) DEMÃOS, INCLUSIVE LIXAMENTO PARA PINTURA A ÓLEO OU ESMALTE | D122: m2 | E122: 158.34 | F122: 37.66 | G122: 5963.08 | H122: 0.0009470264478 | I122: 0.9391873751
A123: ED-49812 | B123: SETOP | C123: LASTRO DE CONCRETO MAGRO, INCLUSIVE TRANSPORTE, LANÇAMENTO E ADENSAMENTO | D123: m3 | E123: 9.08 | F123: 648.22 | G123: 5885.82 | H123: 0.0009347564022 | I123: 0.9401221315
A124: 89798 | B124: SINAPI | C124: TUBO PVC, SERIE NORMAL, ESGOTO PREDIAL, DN 50 MM, FORNECIDO E INSTALADO EM PRUMADA DE ESGOTO SANITÁRIO OU VENTILAÇÃO. AF_08/2022 | D124: M | E124: 316 | F124: 18.24 | G124: 5763.84 | H124: 0.0009153841506 | I124: 0.9410375157
A125: ED-15762 | B125: SETOP | C125: CONJUNTO DE DUAS (2) TOMADAS DE DADOS (CONECTOR RJ45 CAT.6E), COM PLACA 4"X2" DE DOIS (2) POSTOS, INCLUSIVE FORNECIMENTO, INSTALAÇÃO, SUPORTE, MÓDULO E PLACA | D125: un | E125: 68 | F125: 82.79 | G125: 5629.72 | H125: 0.0008940838851 | I125: 0.9419315996
A126: 92986 | B126: SINAPI | C126: CABO DE COBRE FLEXÍVEL ISOLADO, 35 MM², ANTI-CHAMA 0,6/1,0 KV, PARA REDE ENTERRADA DE DISTRIBUIÇÃO DE ENERGIA ELÉTRICA - FORNECIMENTO E INSTALAÇÃO. AF_12/2021 | D126: M | E126: 123.63 | F126: 45.39 | G126: 5611.56 | H126: 0.000891199805 | I126: 0.9428227994
A127: COT-DAD-009 | B127: COTAÇÃO | C127: CAMERA POE | D127: UN | E127: 17 | F127: 327.07 | G127: 5560.19 | H127: 0.0008830414793 | I127: 0.9437058409
A128: COT-INC-009 | B128: COTAÇÃO | C128: BOMBA DE INCÊNDIO 4 CV | D128: UN | E128: 1 | F128: 5429.88 | G128: 5429.88 | H128: 0.0008623462989 | I128: 0.9445681872
A129: COT-ARQ-004 | B129: COTAÇÃO | C129: PAINEL EM MADEIRA - FORNECIMENTO E INSTALAÇÃO | D129: M² | E129: 13.3 | F129: 388.63 | G129: 5168.77 | H129: 0.0008208781188 | I129: 0.9453890653
A130: 91846 | B130: SINAPI | C130: ELETRODUTO FLEXÍVEL CORRUGADO, PVC, DN 32 MM (1"), PARA CIRCUITOS TERMINAIS, INSTALADO EM LAJE - FORNECIMENTO E INSTALAÇÃO. AF_03/2023 | D130: M | E130: 437.83 | F130: 11.71 | G130: 5126.98 | H130: 0.0008142412406 | I130: 0.9462033065
A131: 89580 | B131: SINAPI | C131: TUBO PVC, SÉRIE R, ÁGUA PLUVIAL, DN 150 MM, FORNECIDO E INSTALADO EM CONDUTORES VERTICAIS DE ÁGUAS PLUVIAIS. AF_06/2022 | D131: M | E131: 53.9 | F131: 93.61 | G131: 5045.57 | H131: 0.0008013121129 | I131: 0.9470046186
A132: 91924 | B132: SINAPI | C132: CABO DE COBRE FLEXÍVEL ISOLADO, 1,5 MM², ANTI-CHAMA 450/750 V, PARA CIRCUITOS TERMINAIS - FORNECIMENTO E INSTALAÇÃO. AF_03/2023 | D132: M | E132: 1462.29 | F132: 3.42 | G132: 5001.03 | H132: 0.0007942384935 | I132: 0.9477988571
A133: ED-49925 | B133: SETOP | C133: CAIXA DE DRENAGEM DE INSPEÇÃO/PASSAGEM EM ALVENARIA (80X80X100CM), REVESTIMENTO EM ARGAMASSA COM ADITIVO IMPERMEABILIZANTE, COM TAMPA EM GRELHA, INCLUSIVE ESCAVAÇÃO, REATERRO E TRANSPORTE E RETIRADA DO MATERIAL ESCAVADO (EM CAÇAMBA) | D133: un | E133: 3 | F133: 1662.96 | G133: 4988.88 | H133: 0.0007923088915 | I133: 0.948591166
A134: COT-DAD-006 | B134: COTAÇÃO | C134: RACK - GABINETE 19" - 24U | D134: UN | E134: 2 | F134: 2466.24 | G134: 4932.48 | H134: 0.0007833517265 | I134: 0.9493745178
A135: 93184 | B135: SINAPI | C135: VERGA PRÉ-MOLDADA PARA PORTAS COM ATÉ 1,5 M DE VÃO. AF_03/2016 | D135: M | E135: 86.3 | F135: 57.04 | G135: 4922.55 | H135: 0.0007817746937 | I135: 0.9501562924
A136: ED-48402 | B136: SETOP | C136: COLOCAÇÃO DE CUMEEIRA GALVANIZADA TRAPEZOIDAL E = 0,50 MM, SIMPLES | D136: m | E136: 70.71 | F136: 69.34 | G136: 4903.03 | H136: 0.0007786746252 | I136: 0.9509349671
A137: ED-29802 | B137: SETOP | C137: PERFURAÇÃO MECÂNICA DE ESTACA TIPO TRADO ROTATIVO, INCLUSIVE AFASTAMENTO LATERAL, EXCLUSIVE ARMAÇÃO, CONCRETO ESTRUTURAL, TRANSPORTE E RETIRADA DO MATERIAL ESCAVADO | D137: m3 | E137: 38.29 | F137: 125.5 | G137: 4805.39 | H137: 0.0007631679303 | I137: 0.951698135
A138: ED-50493 | B138: SETOP | C138: PINTURA ESMALTE EM ESQUADRIA DE MADEIRA, DUAS (2) DEMÃOS, INCLUSIVE UMA (1) DEMÃO DE FUNDO NIVELADOR, EXCLUSIVE MASSA A ÓLEO | D138: m2 | E138: 158.34 | F138: 30.07 | G138: 4761.28 | H138: 0.0007561626014 | I138: 0.9524542976
A139: DAC-6.2 | B139: CPU | C139: PORTA DE ABRIR COM MOLA HIDRÁULICA, EM VIDRO TEMPERADO, 2 FOLHAS DE 100X210 CM, ESPESSURA DD 10MM, INCLUSIVE ACESSÓRIOS. AF_01/2021 | D139: UN | E139: 1 | F139: 4743.14 | G139: 4743.14 | H139: 0.0007532816976 | I139: 0.9532075793
A140: ED-49883 | B140: SETOP | C140: CAIXA DE ESGOTO DE INSPEÇÃO/PASSAGEM EM ALVENARIA (60X60X60CM), REVESTIMENTO EM ARGAMASSA COM ADITIVO IMPERMEABILIZANTE, COM TAMPA DE CONCRETO, INCLUSIVE ESCAVAÇÃO, REATERRO E TRANSPORTE E RETIRADA DO MATERIAL ESCAVADO (EM CAÇAMBA) | D140: un | E140: 9 | F140: 521.85 | G140: 4696.65 | H140: 0.0007458983891 | I140: 0.9539534777
A141: ED-50937 | B141: SETOP | C141: CORRIMÃO DUPLO EM TUBO GALVANIZADO DIN 2440, D = 1 1/2" - FIXADO EM ALVENARIA | D141: m | E141: 24.99 | F141: 183.68 | G141: 4590.16 | H141: 0.0007289861815 | I141: 0.9546824639
A142: ED-15755 | B142: SETOP | C142: CONJUNTO DE DUAS (2) TOMADAS PADRÃO, TRÊS (3) POLOS, CORRENTE 10A, TENSÃO 250V, (2P+T/10A-250V), COM PLACA 4"X2" DE DOIS (2) POSTOS, INCLUSIVE FORNECIMENTO, INSTALAÇÃO, SUPORTE, MÓDULO E PLACA | D142: un | E142: 94 | F142: 48.76 | G142: 4583.44 | H142: 0.0007279189449 | I142: 0.9554103828
A143: 94266 | B143: SINAPI | C143: GUIA (MEIO-FIO) CONCRETO, MOLDADA IN LOCO EM TRECHO CURVO COM EXTRUSORA, 15 CM BASE X 30 CM ALTURA. AF_06/2016 | D143: M | E143: 67.96 | F143: 63.22 | G143: 4296.43 | H143: 0.0006823374566 | I143: 0.9560927203
A144: 92000 | B144: SINAPI | C144: TOMADA BAIXA DE EMBUTIR (1 MÓDULO), 2P+T 10 A, INCLUINDO SUPORTE E PLACA - FORNECIMENTO E INSTALAÇÃO. AF_03/2023 | D144: UN | E144: 115 | F144: 36.33 | G144: 4177.95 | H144: 0.0006635210575 | I144: 0.9567562413
A145: 91844 | B145: SINAPI | C145: ELETRODUTO FLEXÍVEL CORRUGADO, PVC, DN 25 MM (3/4"), PARA CIRCUITOS TERMINAIS, INSTALADO EM LAJE - FORNECIMENTO E INSTALAÇÃO. AF_03/2023 | D145: M | E145: 486.47 | F145: 8.03 | G145: 3906.35 | H145: 0.0006203869081 | I145: 0.9573766282
A146: 89357 | B146: SINAPI | C146: TUBO, PVC, SOLDÁVEL, DN 32MM, INSTALADO EM RAMAL OU SUB-RAMAL DE ÁGUA - FORNECIMENTO E INSTALAÇÃO. AF_06/2022 | D146: M | E146: 97.4 | F146: 39.92 | G146: 3888.2 | H146: 0.0006175044162 | I146: 0.9579941327
A147: 90469 | B147: SINAPI | C147: CHUMBAMENTO LINEAR EM CONTRAPISO PARA RAMAIS/DISTRIBUIÇÃO COM DIÂMETROS MAIORES QUE 40 MM E MENORES OU IGUAIS A 75 MM. AF_05/2015 | D147: M | E147: 342.2 | F147: 11.22 | G147: 3839.48 | H147: 0.0006097669502 | I147: 0.9586038996
A148: ED-49343 | B148: SETOP | C148: HASTE DE AÇO COBREADA PARA ATERRAMENTO DIÂMETRO 3/4"X 2400 MM,CONFORME PADRÕES TELEBRÁS | D148: U | E148: 16 | F148: 236.42 | G148: 3782.72 | H148: 0.0006007526118 | I148: 0.9592046522
A149: ED-29823 | B149: SETOP | C149: TAPUME FIXO DE PROTEÇÃO PARA FECHAMENTO DE OBRA EM TELHA METÁLICA GALVANIZADA, TIPO TRAPEZOIDAL, ESP. 0,5MM, COM MÓDULO NA DIMENSÃO DE (300X220)CM, COM REAPROVEITAMENTO, EXCLUSIVE PINTURA ESMALTE, INCLUSIVE PONTALETE E FIXAÇÃO | D149: m2 | E149: 51.172 | F149: 73.67 | G149: 3769.84 | H149: 0.0005987070748 | I149: 0.9598033593
A150: ED-51003 | B150: SETOP | C150: SOLEIRA DE GRANITO CINZA ANDORINHA E = 3 CM | D150: m2 | E150: 10.44 | F150: 360.86 | G150: 3767.37 | H150: 0.0005983148018 | I150: 0.9604016741
A151: 89636 | B151: SINAPI | C151: TUBO, CPVC, SOLDÁVEL, DN 35MM, INSTALADO EM RAMAL OU SUB-RAMAL DE ÁGUA FORNECIMENTO E INSTALAÇÃO. AF_06/2022 | D151: M | E151: 43.1 | F151: 85.43 | G151: 3682.03 | H151: 0.0005847615312 | I151: 0.9609864356
A152: COT-DAD-001 | B152: COTAÇÃO | C152: NVR 24 PORTAS | D152: UN | E152: 1 | F152: 3650.05 | G152: 3650.05 | H152: 0.000579682628 | I152: 0.9615661183
A153: 88484 | B153: SINAPI | C153: APLICAÇÃO DE FUNDO SELADOR ACRÍLICO EM TETO, UMA DEMÃO. AF_06/2014 | D153: M2 | E153: 851.07 | F153: 4.28 | G153: 3642.57 | H153: 0.000578494692 | I153: 0.9621446129
A154: 103316 | B154: SINAPI | C154: ALVENARIA DE VEDAÇÃO DE BLOCOS VAZADOS DE CONCRETO DE 9X19X39 CM (ESPESSURA 9 CM) E ARGAMASSA DE ASSENTAMENTO COM PREPARO EM BETONEIRA. AF_12/2021 | D154: M2 | E154: 43.315 | F154: 83.41 | G154: 3612.9 | H154: 0.0005737826514 | I154: 0.9627183956
A155: 91928 | B155: SINAPI | C155: CABO DE COBRE FLEXÍVEL ISOLADO, 4 MM², ANTI-CHAMA 450/750 V, PARA CIRCUITOS TERMINAIS - FORNECIMENTO E INSTALAÇÃO. AF_03/2023 | D155: M | E155: 456.9 | F155: 7.78 | G155: 3554.68 | H155: 0.0005645364431 | I155: 0.963282932
A156: 93182 | B156: SINAPI | C156: VERGA PRÉ-MOLDADA PARA JANELAS COM ATÉ 1,5 M DE VÃO. AF_03/2016 | D156: M | E156: 43.5 | F156: 77.62 | G156: 3376.47 | H156: 0.000536234025 | I156: 0.9638191661
A157: 90444 | B157: SINAPI | C157: RASGO EM CONTRAPISO PARA RAMAIS/ DISTRIBUIÇÃO COM DIÂMETROS MENORES OU IGUAIS A 40 MM. AF_05/2015 | D157: M | E157: 103.15 | F157: 32.49 | G157: 3351.34 | H157: 0.0005322430045 | I157: 0.9643514091
A158: 89578 | B158: SINAPI | C158: TUBO PVC, SÉRIE R, ÁGUA PLUVIAL, DN 100 MM, FORNECIDO E INSTALADO EM CONDUTORES VERTICAIS DE ÁGUAS PLUVIAIS. AF_06/2022 | D158: M | E158: 74.3 | F158: 45.07 | G158: 3348.7 | H158: 0.000531823733 | I158: 0.9648832328
A159: 93194 | B159: SINAPI | C159: CONTRAVERGA PRÉ-MOLDADA PARA VÃOS DE ATÉ 1,5 M DE COMPRIMENTO. AF_03/2016 | D159: M | E159: 43.5 | F159: 75.74 | G159: 3294.69 | H159: 0.0005232461357 | I159: 0.9654064789
A160: COT-CLI-001 | B160: COTAÇÃO | C160: CABO PP TETRAPOLAR | D160: UN | E160: 82.1 | F160: 39.68 | G160: 3257.72 | H160: 0.0005173747458 | I160: 0.9659238537
A161: ED-2552 | B161: SETOP | C161: LAVATÓRIO DE CANTO DE LOUÇA BRANCA SEM COLUNA, TAMANHO PEQUENO, INCLUSIVE ACESSÓRIOS DE FIXAÇÃO COM PARAFUSO CASTELO, VÁLVULA DE ESCOAMENTO DE METAL COM ACABAMENTO CROMADO, SIFÃO DE METAL TIPO COPO COM ACABAMENTO CROMADO, FORNECIMENTO, INSTALAÇÃO E REJUNTAMENTO, EXCLUSIVE TORNEIRA E ENGATE FLEXÍVEL | D161: un | E161: 6 | F161: 522.08 | G161: 3132.48 | H161: 0.0004974847574 | I161: 0.9664213384
A162: 95601 | B162: SINAPI | C162: ARRASAMENTO MECANICO DE ESTACA DE CONCRETO ARMADO, DIAMETROS DE ATÉ 40 CM. AF_05/2021 | D162: UN | E162: 164 | F162: 19.06 | G162: 3125.84 | H162: 0.0004964302259 | I162: 0.9669177687
A163: ED-50290 | B163: SETOP | C163: TANQUE DE LOUÇA BRANCA COM COLUNA, CAPACIDADE 22 LITROS, INCLUSIVE ACESSÓRIOS DE FIXAÇÃO, VÁLVULA DE ESCOAMENTO DE METAL COM ACABAMENTO CROMADO, SIFÃO DE METAL TIPO COPO COM ACABAMENTO CROMADO, FORNECIMENTO, INSTALAÇÃO E REJUNTAMENTO, EXCLUSIVE TORNEIRA | D163: U | E163: 4 | F163: 779.86 | G163: 3119.44 | H163: 0.00049541381 | I163: 0.9674131825
A164: 97328 | B164: SINAPI | C164: TUBO EM COBRE FLEXÍVEL, DN 3/8", COM ISOLAMENTO, INSTALADO EM RAMAL DE ALIMENTAÇÃO DE AR CONDICIONADO COM CONDENSADORA INDIVIDUAL  FORNECIMENTO E INSTALAÇÃO. AF_12/2015 | D164: M | E164: 44.6 | F164: 69.51 | G164: 3100.14 | H164: 0.0004923486808 | I164: 0.9679055312
A165: ED-50316 | B165: SETOP | C165: DUCHA HIGIÊNICA COM REGISTRO PARA CONTROLE DE FLUXO DE ÁGUA, DIÂMETRO 1/2" (20MM), INCLUSIVE FORNECIMENTO E INSTALAÇÃO | D165: un | E165: 16 | F165: 191.77 | G165: 3068.32 | H165: 0.0004872951881 | I165: 0.9683928263
A166: 97330 | B166: SINAPI | C166: TUBO EM COBRE FLEXÍVEL, DN 5/8", COM ISOLAMENTO, INSTALADO EM RAMAL DE ALIMENTAÇÃO DE AR CONDICIONADO COM CONDENSADORA INDIVIDUAL  FORNECIMENTO E INSTALAÇÃO. AF_12/2015 | D166: M | E166: 29.3 | F166: 104.59 | G166: 3064.48 | H166: 0.0004866853386 | I166: 0.9688795117
A167: 92984 | B167: SINAPI | C167: CABO DE COBRE FLEXÍVEL ISOLADO, 25 MM², ANTI-CHAMA 0,6/1,0 KV, PARA REDE ENTERRADA DE DISTRIBUIÇÃO DE ENERGIA ELÉTRICA - FORNECIMENTO E INSTALAÇÃO. AF_12/2021 | D167: M | E167: 89 | F167: 32.78 | G167: 2917.42 | H167: 0.0004633300072 | I167: 0.9693428417
A168: 91932 | B168: SINAPI | C168: CABO DE COBRE FLEXÍVEL ISOLADO, 10 MM², ANTI-CHAMA 450/750 V, PARA CIRCUITOS TERMINAIS - FORNECIMENTO E INSTALAÇÃO. AF_03/2023 | D168: M | E168: 145.5 | F168: 19.59 | G168: 2850.34 | H168: 0.0004526766981 | I168: 0.9697955184
A169: ED-48163 | B169: SETOP | C169: BARRA DE APOIO EM AÇO INOX POLIDO RETA, DN 1.1/4" (31,75MM), PARA ACESSIBILIDADE (PMR/PCR), COMPRIMENTO 40CM, INSTALADO EM PORTA/PAREDE, INCLUSIVE FORNECIMENTO, INSTALAÇÃO E ACESSÓRIOS PARA FIXAÇÃO | D169: un | E169: 16 | F169: 170.83 | G169: 2733.28 | H169: 0.0004340858162 | I169: 0.9702296042
A170: 97327 | B170: SINAPI | C170: TUBO EM COBRE FLEXÍVEL, DN 1/4, COM ISOLAMENTO, INSTALADO EM RAMAL DE ALIMENTAÇÃO DE AR CONDICIONADO COM CONDENSADORA INDIVIDUAL FORNECIMENTO E INSTALAÇÃO. AF_12/2015 | D170: M | E170: 67.8 | F170: 38.6 | G170: 2617.08 | H170: 0.0004156315152 | I170: 0.9706452357
A171: 38605 | B171: SINAPI | C171: ABERTURA PARA ENCAIXE DE CUBA OU LAVATORIO EM BANCADA DE MARMORE/ GRANITO OU OUTRO TIPO DE PEDRA NATURAL | D171: UN | E171: 17 | F171: 151.36 | G171: 2573.12 | H171: 0.0004086500086 | I171: 0.9710538857
A172: 100858 | B172: SINAPI | C172: MICTÓRIO SIFONADO LOUÇA BRANCA  PADRÃO MÉDIO  FORNECIMENTO E INSTALAÇÃO. AF_01/2020 | D172: UN | E172: 3 | F172: 850.17 | G172: 2550.51 | H172: 0.0004050592018 | I172: 0.9714589449
A173: 94499 | B173: SINAPI | C173: REGISTRO DE GAVETA BRUTO, LATÃO, ROSCÁVEL, 2 1/2" - FORNECIMENTO E INSTALAÇÃO. AF_08/2021 | D173: UN | E173: 5 | F173: 498.28 | G173: 2491.4 | H173: 0.0003956716482 | I173: 0.9718546166
A174: 98562 | B174: SINAPI | C174: IMPERMEABILIZAÇÃO DE FLOREIRA OU VIGA BALDRAME COM ARGAMASSA DE CIMENTO E AREIA, COM ADITIVO IMPERMEABILIZANTE, E = 2 CM. AF_06/2018 | D174: M2 | E174: 47.81 | F174: 52.01 | G174: 2486.59 | H174: 0.0003949077481 | I174: 0.9722495243
A175: COT-DAD-008 | B175: COTAÇÃO | C175: SWITCH 24 PORTAS RJ45 COM FIBRA | D175: UN | E175: 1 | F175: 2460.63 | G175: 2460.63 | H175: 0.0003907849112 | I175: 0.9726403092
A176: 89448 | B176: SINAPI | C176: TUBO, PVC, SOLDÁVEL, DN 40MM, INSTALADO EM PRUMADA DE ÁGUA - FORNECIMENTO E INSTALAÇÃO. AF_06/2022 | D176: M | E176: 97.1 | F176: 25.26 | G176: 2452.74 | H176: 0.000389531861 | I176: 0.9730298411
A177: ED-48182 | B177: SETOP | C177: DISPENSER EM PLÁSTICO PARA PAPEL TOALHA 2 OU 3 FOLHAS | D177: U | E177: 30 | F177: 81.56 | G177: 2446.8 | H177: 0.0003885885 | I177: 0.9734184296
A178: COT-ARQ-006 | B178: COTAÇÃO | C178: JANELA DE ALUMÍNIO TIPO GUILHOTINA, 1000 X 1000 MM COM DUAS FOLHAS - FORNECIMENTO E INSTALAÇÃO | D178: UN | E178: 2 | F178: 1217.49 | G178: 2434.98 | H178: 0.0003867113069 | I178: 0.9738051409
A179: ED-50137 | B179: SETOP | C179: MOBILIZAÇÃO E DESMOBILIZAÇÃO DE CONTAINER, INCLUSIVE CARGA, DESCARGA E TRANSPORTE EM CAMINHÃO CARROCERIA COM GUINDAUTO (MUNCK), EXCLUSIVE LOCAÇÃO DO CONTAINER | D179: un | E179: 3 | F179: 799.47 | G179: 2398.41 | H179: 0.0003809034429 | I179: 0.9741860443
A180: 92390 | B180: SINAPI | C180: JOELHO 90 GRAUS, EM FERRO GALVANIZADO, DN 65 (2 1/2"), CONEXÃO ROSQUEADA, INSTALADO EM REDE DE ALIMENTAÇÃO PARA HIDRANTE - FORNECIMENTO E INSTALAÇÃO. AF_10/2020 | D180: UN | E180: 13 | F180: 181.18 | G180: 2355.34 | H180: 0.0003740632816 | I180: 0.9745601076
A181: ED-50496 | B181: SETOP | C181: PINTURA ESMALTE EM TUBO GALVANIZADO, DUAS (2) DEMÃOS, INCLUSIVE UMA (1) DEMÃO DE FUNDO ANTICORROSIVO | D181: m | E181: 87.696 | F181: 26.29 | G181: 2305.52 | H181: 0.0003661511192 | I181: 0.9749262587
A182: 89449 | B182: SINAPI | C182: TUBO, PVC, SOLDÁVEL, DN 50MM, INSTALADO EM PRUMADA DE ÁGUA - FORNECIMENTO E INSTALAÇÃO. AF_06/2022 | D182: M | E182: 81.5 | F182: 27.89 | G182: 2273.03 | H182: 0.0003609912204 | I182: 0.97528725
A183: 102184 | B183: SINAPI | C183: PORTA DE ABRIR COM MOLA HIDRÁULICA, EM VIDRO TEMPERADO, 90X210 CM, ESPESSURA 10 MM, INCLUSIVE ACESSÓRIOS. AF_01/2021 | D183: UN | E183: 1 | F183: 2268.35 | G183: 2268.35 | H183: 0.0003602479663 | I183: 0.9756474979
A184: DAC-21.4 | B184: CPU | C184: INSTALAÇÃO DO SISTEMA DE ALARME | D184: UN | E184: 1 | F184: 2265.21 | G184: 2265.21 | H184: 0.0003597492872 | I184: 0.9760072472
A185: 89711 | B185: SINAPI | C185: TUBO PVC, SERIE NORMAL, ESGOTO PREDIAL, DN 40 MM, FORNECIDO E INSTALADO EM RAMAL DE DESCARGA OU RAMAL DE ESGOTO SANITÁRIO. AF_08/2022 | D185: M | E185: 88.6 | F185: 25.53 | G185: 2261.95 | H185: 0.0003592315504 | I185: 0.9763664788
A186: 92982 | B186: SINAPI | C186: CABO DE COBRE FLEXÍVEL ISOLADO, 16 MM², ANTI-CHAMA 0,6/1,0 KV, PARA DISTRIBUIÇÃO - FORNECIMENTO E INSTALAÇÃO. AF_12/2015 | D186: M | E186: 113.64 | F186: 19.88 | G186: 2259.16 | H186: 0.0003587884566 | I186: 0.9767252672
A187: ED-49149 | B187: SETOP | C187: CAIXA DE PASSAGEM EM CHAPA DE AÇO, EMBUTIR 230 X 230 X 102 MM | D187: un | E187: 15 | F187: 150.25 | G187: 2253.75 | H187: 0.0003579292675 | I187: 0.9770831965
A188: ED-48377 | B188: SETOP | C188: ORGANIZADOR DE CABOS DE 1U PARA RACK 19" | D188: cj | E188: 13 | F188: 170.56 | G188: 2217.28 | H188: 0.0003521372851 | I188: 0.9774353338
A189: 96358 | B189: SINAPI | C189: PAREDE COM PLACAS DE GESSO ACARTONADO (DRYWALL), PARA USO INTERNO, COM DUAS FACES SIMPLES E ESTRUTURA METÁLICA COM GUIAS SIMPLES, SEM VÃOS. AF_06/2017_PS | D189: M2 | E189: 18.2875 | F189: 119.85 | G189: 2191.75 | H189: 0.0003480827386 | I189: 0.9777834165
A190: 100977 | B190: SINAPI | C190: CARGA, MANOBRA E DESCARGA DE SOLOS E MATERIAIS GRANULARES EM CAMINHÃO BASCULANTE 6 M³ - CARGA COM ESCAVADEIRA HIDRÁULICA (CAÇAMBA DE 1,20 M³ / 155 HP) E DESCARGA LIVRE (UNIDADE: M3). AF_07/2020 | D190: M3 | E190: 242.54 | F190: 8.93 | G190: 2165.88 | H190: 0.000343974195 | I190: 0.9781273907
A191: COT-ELE-003 | B191: COTAÇÃO | C191: QUADRO DE DISTRIBUIÇÃO COM BARRAMENTO 225A / 50 DISJ. - EMBUTIR | D191: UN | E191: 1 | F191: 2163.23 | G191: 2163.23 | H191: 0.0003435533353 | I191: 0.9784709441
A192: 93185 | B192: SINAPI | C192: VERGA PRÉ-MOLDADA PARA PORTAS COM MAIS DE 1,5 M DE VÃO. AF_03/2016 | D192: M | E192: 22 | F192: 97.63 | G192: 2147.86 | H192: 0.000341112349 | I192: 0.9788120564
A193: 90466 | B193: SINAPI | C193: CHUMBAMENTO LINEAR EM ALVENARIA PARA RAMAIS/DISTRIBUIÇÃO COM DIÂMETROS MENORES OU IGUAIS A 40 MM. AF_05/2015 | D193: M | E193: 135 | F193: 15.46 | G193: 2087.1 | H193: 0.0003314627506 | I193: 0.9791435192
A194: 09.12.01 | B194: SUDECAP | C194: PINTURA COM TINTA ASFALTICA IMPERMEABILIZANTE DILUIDA EM SOLVENTE, PARA MATERIAIS CIMENTICIOS, METAL E MADEIRA | D194: M2 | E194: 130.16 | F194: 15.87 | G194: 2065.63 | H194: 0.000328052993 | I194: 0.9794715721
A195: 90443 | B195: SINAPI | C195: RASGO EM ALVENARIA PARA RAMAIS/ DISTRIBUIÇÃO COM DIAMETROS MENORES OU IGUAIS A 40 MM. AF_05/2015 | D195: M | E195: 135 | F195: 15.13 | G195: 2042.55 | H195: 0.0003243875432 | I195: 0.9797959597
A196: ED-49503 | B196: SETOP | C196: QUADRO DE DISTRIBUIÇÃO PARA 42 MÓDULOS COM BARRAMENTO 100 A | D196: un | E196: 2 | F196: 1018.63 | G196: 2037.26 | H196: 0.0003235474119 | I196: 0.9801195071
A197: 97670 | B197: SINAPI | C197: ELETRODUTO FLEXÍVEL CORRUGADO, PEAD, DN 100 (4"), PARA REDE ENTERRADA DE DISTRIBUIÇÃO DE ENERGIA ELÉTRICA - FORNECIMENTO E INSTALAÇÃO. AF_12/2021 | D197: M | E197: 71.82 | F197: 28.32 | G197: 2033.94 | H197: 0.0003230201462 | I197: 0.9804425272
A198: 96995 | B198: SINAPI | C198: REATERRO MANUAL APILOADO COM SOQUETE. AF_10/2017 | D198: M3 | E198: 36.89 | F198: 53.92 | G198: 1989.1 | H198: 0.0003158988823 | I198: 0.9807584261
A199: 93660 | B199: SINAPI | C199: DISJUNTOR BIPOLAR TIPO DIN, CORRENTE NOMINAL DE 10A - FORNECIMENTO E INSTALAÇÃO. AF_10/2020 | D199: UN | E199: 16 | F199: 122.09 | G199: 1953.44 | H199: 0.00031023554 | I199: 0.9810686617
A200: COT-INC-006 | B200: COTAÇÃO | C200: CENTRAL DE ALARME DE INCÊNDIO ENDEREÇÁVEL | D200: UN | E200: 1 | F200: 1951.81 | G200: 1951.81 | H200: 0.0003099766716 | I200: 0.9813786383
... 215 more rows

Sheet Auxiliar_ABC2 (hidden)
A1: 1 | D1: 1.1 | E1: LOCAÇÃO DE CONTAINER COM ISOLAMENTO TÉRMICO, TIPO 2, PARA ESCRITÓRIO DE OBRA COM SANITÁRIO CONTENDO UM (1) VASO SANITÁRIO E UM (1) LAVATÓRIO, COM MEDIDAS REFERENCIAIS DE (6) METROS COMPRIMENTO, (2,3) METROS LARGURA E (2,5) METROS ALTURA ÚTIL INTERNA, INCLUSIVE AR CONDICIONADO E LIGAÇÕES ELÉTRICAS E HIDROSSANITÁRIAS INTERNAS, EXCLUSIVE MOBILIZAÇÃO/DESMOBILIZAÇÃO E LIGAÇÕES PROVISÓRIAS EXTERNAS | F1: ED-16349 | G1: SETOP | H1: mês | I1: 12 | J1: 953.49 | K1: BDI 1 | L1: 1206.35 | M1: 11441.88 | N1: 14476.2
A2: 1 | D2: 1.2 | E2: LIGAÇÕES PROVISÓRIAS PARA CONTAINER TIPO 2 (CORRESPONDENTE AO CÓDIGO ED-16349) | F2: ED-16357 | G2: SETOP | H2: un | I2: 1 | J2: 635 | K2: BDI 1 | L2: 803.4 | M2: 635 | N2: 803.4
A3: 1 | D3: 1.3 | E3: LOCAÇÃO DE CONTAINER COM ISOLAMENTO TÉRMICO, TIPO 3, PARA DEPÓSITO/FERRAMENTARIA DE OBRA, COM MEDIDAS REFERENCIAIS DE (6) METROS COMPRIMENTO, (2,3) METROS LARGURA E (2,5) METROS ALTURA ÚTIL INTERNA, INCLUSIVE LIGAÇÕES ELÉTRICAS INTERNAS, EXCLUSIVE MOBILIZAÇÃO/DESMOBILIZAÇÃO E LIGAÇÕES PROVISÓRIAS EXTERNAS | F3: ED-16350 | G3: SETOP | H3: mês | I3: 12 | J3: 689.44 | K3: BDI 1 | L3: 872.27 | M3: 8273.28 | N3: 10467.24
A4: 1 | D4: 1.4 | E4: LIGAÇÕES PROVISÓRIAS PARA CONTAINER TIPO 3 (CORRESPONDENTE AO CÓDIGO ED-16350) | F4: ED-16358 | G4: SETOP | H4: un | I4: 1 | J4: 331 | K4: BDI 1 | L4: 418.78 | M4: 331 | N4: 418.78
A5: 1 | D5: 1.5 | E5: LOCAÇÃO DE CONTAINER COM ISOLAMENTO TÉRMICO, TIPO 4, PARA REFEITÓRIO DE OBRA, COM MEDIDAS REFERENCIAIS DE (6) METROS COMPRIMENTO, (2,3) METROS LARGURA E (2,5) METROS ALTURA ÚTIL INTERNA, INCLUSIVE LIGAÇÕES ELÉTRICAS INTERNAS, EXCLUSIVE MOBILIZAÇÃO/DESMOBILIZAÇÃO E LIGAÇÕES PROVISÓRIAS EXTERNAS | F5: ED-16351 | G5: SETOP | H5: mês | I5: 12 | J5: 609.04 | K5: BDI 1 | L5: 770.55 | M5: 7308.48 | N5: 9246.6
A6: 1 | D6: 1.6 | E6: LIGAÇÕES PROVISÓRIAS PARA CONTAINER TIPO 4 (CORRESPONDENTE AO CÓDIGO ED-16351) | F6: ED-16359 | G6: SETOP | H6: un | I6: 1 | J6: 331 | K6: BDI 1 | L6: 418.78 | M6: 331 | N6: 418.78
A7: 1 | D7: 1.7 | E7: MOBILIZAÇÃO E DESMOBILIZAÇÃO DE CONTAINER, INCLUSIVE CARGA, DESCARGA E TRANSPORTE EM CAMINHÃO CARROCERIA COM GUINDAUTO (MUNCK), EXCLUSIVE LOCAÇÃO DO CONTAINER | F7: ED-50137 | G7: SETOP | H7: un | I7: 3 | J7: 631.9 | K7: BDI 1 | L7: 799.47 | M7: 1895.7 | N7: 2398.41
A8: 1 | D8: 1.8 | E8: LOCAÇÃO DE BANHEIRO QUÍMICO, DIMENSÃO (110X120X230)CM, LINHA PADRÃO, CONTENDO UMA (1) PIA/HIGIENIZADOR DE MÃOS, INCLUSIVE MANUTENÇÃO E MOBILIZAÇÃO/DESMOBILIZAÇÃO | F8: ED-50155 | G8: SETOP | H8: mês | I8: 12 | J8: 820 | K8: BDI 1 | L8: 1037.46 | M8: 9840 | N8: 12449.52
A9: 1 | D9: 1.9 | E9: LIGAÇÃO DE ÁGUA PROVISÓRIA PARA CANTEIRO, INCLUSIVE HIDRÔMETRO E CAVALETE PARA MEDIÇÃO DE ÁGUA - ENTRADA PRINCIPAL, EM AÇO GALVANIZADO DN 20MM (1/2") - PADRÃO CONCESSIONÁRIA | F9: ED-50150 | G9: SETOP | H9: un | I9: 1 | J9: 371.6 | K9: BDI 1 | L9: 470.14 | M9: 371.6 | N9: 470.14
A10: 1 | D10: 1.10 | E10: LIGAÇÃO PROVISÓRIA COM ENTRADA DE ENERGIA AÉREA, PADRÃO CEMIG, CARGA INSTALADA DE 15,1KVA ATÉ 30KVA, TRIFÁSICO, COM SAÍDA SUBTERRÂNEA, INCLUSIVE POSTE, CAIXA PARA MEDIDOR, DISJUNTOR, BARRAMENTO, ATERRAMENTO E ACESSÓRIOS | F10: ED-50151 | G10: SETOP | H10: un | I10: 1 | J10: 1151.74 | K10: BDI 1 | L10: 1457.18 | M10: 1151.74 | N10: 1457.18
A11: 1 | D11: 1.11 | E11: EXECUÇÃO DE CENTRAL DE ARMADURA EM CANTEIRO DE OBRA, NÃO INCLUSO MOBILIÁRIO E EQUIPAMENTOS. AF_04/2016 | F11: 93582 | G11: SINAPI | H11: M2 | I11: 60 | J11: 314.83 | K11: BDI 1 | L11: 398.32 | M11: 18889.8 | N11: 23899.2
A12: 1 | D12: 1.12 | E12: EXECUÇÃO DE CENTRAL DE FÔRMAS, PRODUÇÃO DE ARGAMASSA OU CONCRETO EM CANTEIRO DE OBRA, NÃO INCLUSO MOBILIÁRIO E EQUIPAMENTOS. AF_04/2016 | F12: 93583 | G12: SINAPI | H12: M2 | I12: 36 | J12: 491.45 | K12: BDI 1 | L12: 621.78 | M12: 17692.2 | N12: 22384.08
A13: 1 | D13: 1.13 | E13: TAPUME FIXO DE PROTEÇÃO PARA FECHAMENTO DE OBRA EM TELHA METÁLICA GALVANIZADA, TIPO TRAPEZOIDAL, ESP. 0,5MM, COM MÓDULO NA DIMENSÃO DE (300X220)CM, COM REAPROVEITAMENTO, EXCLUSIVE PINTURA ESMALTE, INCLUSIVE PONTALETE E FIXAÇÃO | F13: ED-29823 | G13: SETOP | H13: m2 | I13: 51.172 | J13: 58.23 | K13: BDI 1 | L13: 73.67 | M13: 2979.74 | N13: 3769.84
A14: 1 | D14: 1.14 | E14: REMOÇÃO DE TAPUME/ CHAPAS METÁLICAS E DE MADEIRA, DE FORMA MANUAL, SEM REAPROVEITAMENTO. AF_12/2017 | F14: 97637 | G14: SINAPI | H14: M2 | I14: 51.172 | J14: 2.41 | K14: BDI 1 | L14: 3.04 | M14: 123.32 | N14: 155.56
A15: 2 | D15: 2.1 | E15: FORNECIMENTO E COLOCAÇÃO DE PLACA DE OBRA EM CHAPA GALVANIZADA #26, ESP. 0,45MM, DIMENSÃO (3X1,5)M, PLOTADA COM ADESIVO VINÍLICO, AFIXADA COM REBITES 4,8X40MM, EM ESTRUTURA METÁLICA DE METALON 20X20MM, ESP. 1,25MM, INCLUSIVE SUPORTE EM EUCALIPTO AUTOCLAVADO PINTADO COM TINTA PVA DUAS (2) DEMÃOS | F15: ED-28427 | G15: SETOP | H15: un | I15: 1 | J15: 1390.32 | K15: BDI 1 | L15: 1759.03 | M15: 1390.32 | N15: 1759.03
A16: 2 | D16: 2.2 | E16: LOCACAO CONVENCIONAL DE OBRA, UTILIZANDO GABARITO DE TÁBUAS CORRIDAS PONTALETADAS A CADA 2,00M - 2 UTILIZAÇÕES. AF_10/2018 | F16: 99059 | G16: SINAPI | H16: M | I16: 213.18 | J16: 64.95 | K16: BDI 1 | L16: 82.17 | M16: 13846.04 | N16: 17517
A17: 3 | D17: 3.1 | E17: ENGENHEIRO CIVIL PLENO COM ENCARGOS COMPLEMENTARES | F17: 100320 | G17: SINAPI | H17: MES | I17: 12 | J17: 19486.5 | K17: BDI 1 | L17: 24654.31 | M17: 233838 | N17: 295851.72
A18: 3 | D18: 3.2 | E18: TÉCNICO EM SEGURANÇA DO TRABALHO COM ENCARGOS COMPLEMENTARES | F18: 100321 | G18: SINAPI | H18: MES | I18: 12 | J18: 5809.27 | K18: BDI 1 | L18: 7349.88 | M18: 69711.24 | N18: 88198.56
A19: 4 | B19: 1 | D19: 4.1.1 | E19: ESCAVAÇÃO MANUAL PARA BLOCO DE COROAMENTO OU SAPATA (INCLUINDO ESCAVAÇÃO PARA COLOCAÇÃO DE FÔRMAS). AF_06/2017 | F19: 96523 | G19: SINAPI | H19: M3 | I19: 116.17 | J19: 83.29 | K19: BDI 1 | L19: 105.37 | M19: 9675.79 | N19: 12240.83
A20: 4 | B20: 1 | D20: 4.1.2 | E20: ESCAVAÇÃO MANUAL DE VALA PARA VIGA BALDRAME (INCLUINDO ESCAVAÇÃO PARA COLOCAÇÃO DE FÔRMAS). AF_06/2017 | F20: 96527 | G20: SINAPI | H20: M3 | I20: 51.88 | J20: 109.17 | K20: BDI 1 | L20: 138.12 | M20: 5663.73 | N20: 7165.66
A21: 4 | B21: 1 | D21: 4.1.3 | E21: REATERRO MANUAL DE VALAS COM COMPACTAÇÃO MECANIZADA. AF_04/2016 | F21: 93382 | G21: SINAPI | H21: M3 | I21: 56.92 | J21: 29.22 | K21: BDI 1 | L21: 36.96 | M21: 1663.2 | N21: 2103.76
A22: 4 | B22: 1 | D22: 4.1.4 | E22: CARGA, MANOBRA E DESCARGA DE SOLOS E MATERIAIS GRANULARES EM CAMINHÃO BASCULANTE 6 M³ - CARGA COM ESCAVADEIRA HIDRÁULICA (CAÇAMBA DE 1,20 M³ / 155 HP) E DESCARGA LIVRE (UNIDADE: M3). AF_07/2020 | F22: 100977 | G22: SINAPI | H22: M3 | I22: 161.55 | J22: 7.06 | K22: BDI 1 | L22: 8.93 | M22: 1140.54 | N22: 1442.64
A23: 4 | B23: 1 | D23: 4.1.5 | E23: TRANSPORTE COM CAMINHÃO BASCULANTE DE 10 M³, EM VIA URBANA PAVIMENTADA, DMT ATÉ 30 KM (UNIDADE: M3XKM). AF_07/2020 | F23: 95875 | G23: SINAPI | H23: M3XKM | I23: 1696.29 | J23: 2.26 | K23: BDI 1 | L23: 2.85 | M23: 3833.61 | N23: 4834.42
A24: 4 | B24: 1 | D24: 4.1.6 | E24: ESPALHAMENTO DE MATERIAL COM TRATOR DE ESTEIRAS. AF_11/2019 | F24: 100574 | G24: SINAPI | H24: M3 | I24: 161.55 | J24: 1.3 | K24: BDI 1 | L24: 1.64 | M24: 210.01 | N24: 264.94
A25: 4 | B25: 2 | C25: 1 | D25: 4.2.1.1 | E25: MOBILIZAÇÃO E DESMOBILIZAÇÃO DE EQUIPAMENTO PARA ESTACA TIPO HÉLICE CONTÍNUA (CUSTO FIXO), INCLUSIVE CARGA E DESGARGA, EXCLUSIVE TRANSPORTE EM QUILÔMETRO RODADO (CUSTO VARIÁVEL) | F25: ED-19753 | G25: SETOP | H25: un | I25: 1 | J25: 19359.86 | K25: BDI 1 | L25: 24494.09 | M25: 19359.86 | N25: 24494.09
A26: 4 | B26: 2 | C26: 1 | D26: 4.2.1.2 | E26: MOBILIZAÇÃO E DESMOBILIZAÇÃO DE EQUIPAMENTO PARA ESTACA TIPO HÉLICE CONTÍNUA (CUSTO VARIÁVEL), EXCLUSIVE CUSTO FIXO DE TRANSPORTE | F26: ED-19754 | G26: SETOP | H26: km | I26: 50 | J26: 24.75 | K26: BDI 1 | L26: 31.31 | M26: 1237.5 | N26: 1565.5
A27: 4 | B27: 2 | C27: 1 | D27: 4.2.1.3 | E27: ESTACA HÉLICE CONTÍNUA , DIÂMETRO DE 50 CM, INCLUSO CONCRETO FCK=30MPA E ARMADURA MÍNIMA (EXCLUSIVE MOBILIZAÇÃO, DESMOBILIZAÇÃO E BOMBEAMENTO). AF_12/2019 | F27: 100652 | G27: SINAPI | H27: M | I27: 169 | J27: 283.77 | K27: BDI 1 | L27: 359.02 | M27: 47957.13 | N27: 60674.38
A28: 4 | B28: 2 | C28: 1 | D28: 4.2.1.4 | E28: ESTACA HÉLICE CONTÍNUA, DIÂMETRO DE 30 CM, INCLUSO CONCRETO FCK=30MPA E ARMADURA MÍNIMA (EXCLUSIVE MOBILIZAÇÃO, DESMOBILIZAÇÃO E BOMBEAMENTO). AF_12/2019 | F28: 100651 | G28: SINAPI | H28: M | I28: 1508 | J28: 145.53 | K28: BDI 1 | L28: 184.12 | M28: 219459.24 | N28: 277652.96
A29: 4 | B29: 2 | C29: 1 | D29: 4.2.1.5 | E29: ESTACA BROCA DE CONCRETO, DIÂMETRO DE 20CM, ESCAVAÇÃO MANUAL COM TRADO CONCHA, COM ARMADURA DE ARRANQUE. AF_05/2020 | F29: 101173 | G29: SINAPI | H29: M | I29: 288 | J29: 56.81 | K29: BDI 1 | L29: 71.87 | M29: 16361.28 | N29: 20698.56
A30: 4 | B30: 2 | C30: 1 | D30: 4.2.1.6 | E30: ARRASAMENTO MECANICO DE ESTACA DE CONCRETO ARMADO, DIAMETROS DE ATÉ 40 CM. AF_05/2021 | F30: 95601 | G30: SINAPI | H30: UN | I30: 164 | J30: 15.07 | K30: BDI 1 | L30: 19.06 | M30: 2471.48 | N30: 3125.84
A31: 4 | B31: 2 | C31: 1 | D31: 4.2.1.7 | E31: ARRASAMENTO MECANICO DE ESTACA DE CONCRETO ARMADO, DIAMETROS DE 41 CM A 60 CM. AF_05/2021 | F31: 95602 | G31: SINAPI | H31: UN | I31: 13 | J31: 24.12 | K31: BDI 1 | L31: 30.51 | M31: 313.56 | N31: 396.63
A32: 4 | B32: 2 | C32: 2 | D32: 4.2.2.1 | E32: FORNECIMENTO DE CONCRETO ESTRUTURAL, USINADO BOMBEADO, COM FCK 30MPA, INCLUSIVE LANÇAMENTO, ADENSAMENTO E ACABAMENTO (FUNDAÇÃO) | F32: ED-49806 | G32: SETOP | H32: m3 | I32: 72.35 | J32: 737.11 | K32: BDI 1 | L32: 932.59 | M32: 53329.9 | N32: 67472.88
A33: 4 | B33: 2 | C33: 2 | D33: 4.2.2.2 | E33: FÔRMA E DESFORMA DE TÁBUA E SARRAFO, REAPROVEITAMENTO (3X) (FUNDAÇÃO) | F33: ED-49810 | G33: SETOP | H33: m2 | I33: 457.94 | J33: 56.15 | K33: BDI 1 | L33: 71.04 | M33: 25713.33 | N33: 32532.05
A34: 4 | B34: 2 | C34: 2 | D34: 4.2.2.3 | E34: CORTE, DOBRA E MONTAGEM DE AÇO CA-50/60, INCLUSIVE ESPAÇADOR | F34: ED-48298 | G34: SETOP | H34: Kg | I34: 4032.5 | J34: 13.52 | K34: BDI 1 | L34: 17.1 | M34: 54519.4 | N34: 68955.75
A35: 4 | B35: 2 | C35: 2 | D35: 4.2.2.4 | E35: LASTRO DE CONCRETO MAGRO, INCLUSIVE TRANSPORTE, LANÇAMENTO E ADENSAMENTO | F35: ED-49812 | G35: SETOP | H35: m3 | I35: 4.47 | J35: 512.35 | K35: BDI 1 | L35: 648.22 | M35: 2290.2 | N35: 2897.54
A36: 4 | B36: 2 | C36: 3 | D36: 4.2.3.1 | E36: FORNECIMENTO DE CONCRETO ESTRUTURAL, USINADO BOMBEADO, COM FCK 30MPA, INCLUSIVE LANÇAMENTO, ADENSAMENTO E ACABAMENTO (FUNDAÇÃO) | F36: ED-49806 | G36: SETOP | H36: m3 | I36: 7.38 | J36: 737.11 | K36: BDI 1 | L36: 932.59 | M36: 5439.87 | N36: 6882.51
A37: 4 | B37: 2 | C37: 3 | D37: 4.2.3.2 | E37: FÔRMA E DESFORMA DE TÁBUA E SARRAFO, REAPROVEITAMENTO (3X) (FUNDAÇÃO) | F37: ED-49810 | G37: SETOP | H37: m2 | I37: 95.62 | J37: 56.15 | K37: BDI 1 | L37: 71.04 | M37: 5369.06 | N37: 6792.84
A38: 4 | B38: 2 | C38: 3 | D38: 4.2.3.3 | E38: CORTE, DOBRA E MONTAGEM DE AÇO CA-50/60, INCLUSIVE ESPAÇADOR | F38: ED-48298 | G38: SETOP | H38: Kg | I38: 396.6 | J38: 13.52 | K38: BDI 1 | L38: 17.1 | M38: 5362.03 | N38: 6781.86
A39: 4 | B39: 2 | C39: 3 | D39: 4.2.3.4 | E39: LASTRO DE BRITA COM PEDRA BRITADA NÚMERO 2 E 3, INCLUSIVE ADENSAMENTO E APILOAMENTO MANUAL | F39: ED-49813 | G39: SETOP | H39: m3 | I39: 1.18 | J39: 175.7 | K39: BDI 1 | L39: 222.29 | M39: 207.32 | N39: 262.3
A40: 4 | B40: 2 | C40: 3 | D40: 4.2.3.5 | E40: LASTRO DE CONCRETO MAGRO, INCLUSIVE TRANSPORTE, LANÇAMENTO E ADENSAMENTO | F40: ED-49812 | G40: SETOP | H40: m3 | I40: 1.18 | J40: 512.35 | K40: BDI 1 | L40: 648.22 | M40: 604.57 | N40: 764.89
A41: 4 | B41: 2 | C41: 3 | D41: 4.2.3.6 | E41: IMPERMEABILIZAÇÃO DE FLOREIRA OU VIGA BALDRAME COM ARGAMASSA DE CIMENTO E AREIA, COM ADITIVO IMPERMEABILIZANTE, E = 2 CM. AF_06/2018 | F41: 98562 | G41: SINAPI | H41: M2 | I41: 47.81 | J41: 41.11 | K41: BDI 1 | L41: 52.01 | M41: 1965.46 | N41: 2486.59
A42: 4 | B42: 2 | C42: 4 | D42: 4.2.4.1 | E42: FORNECIMENTO E EXECUÇÃO DE VIGAS PRÉ-FABRICADAS | F42: DAC-4.3 | G42: CPU | H42: M³ | I42: 44.54 | J42: 3110.667561 | K42: BDI 1 | L42: 3935.61 | M42: 138549.13 | N42: 175292.06
A43: 4 | B43: 2 | C43: 4 | D43: 4.2.4.2 | E43: LASTRO DE BRITA COM PEDRA BRITADA NÚMERO 2 E 3, INCLUSIVE ADENSAMENTO E APILOAMENTO MANUAL | F43: ED-49813 | G43: SETOP | H43: m3 | I43: 4.48 | J43: 175.7 | K43: BDI 1 | L43: 222.29 | M43: 787.13 | N43: 995.85
A44: 4 | B44: 3 | C44: 1 | D44: 4.3.1.1 | E44: FORNECIMENTO E EXECUÇÃO DE PILARES PRÉ-FABRICADOS | F44: DAC-4.2 | G44: CPU | H44: M³ | I44: 52.05 | J44: 2854.221233 | K44: BDI 1 | L44: 3611.16 | M44: 148562.21 | N44: 187960.87
A45: 4 | B45: 3 | C45: 1 | D45: 4.3.1.2 | E45: CORTE E DOBRA DE AÇO CA-25, DIÂMETRO DE 10,0 MM. AF_06/2022 | F45: 92877 | G45: SINAPI | H45: KG | I45: 1273.71012 | J45: 10.39 | K45: BDI 1 | L45: 13.14 | M45: 13233.84 | N45: 16736.55
A46: 4 | B46: 3 | C46: 2 | D46: 4.3.2.1 | E46: FORNECIMENTO E EXECUÇÃO DE VIGAS PRÉ-FABRICADAS | F46: DAC-4.3 | G46: CPU | H46: M³ | I46: 50.05 | J46: 3110.667561 | K46: BDI 1 | L46: 3935.61 | M46: 155688.91 | N46: 196977.28
A47: 4 | B47: 3 | C47: 3 | D47: 4.3.3.1 | E47: FORNECIMENTO E EXECUÇÃO DE LAJE ALVEOLAR | F47: DAC-4.4 | G47: CPU | H47: M³ | I47: 170.83 | J47: 2415.15227 | K47: BDI 1 | L47: 3055.65 | M47: 412580.46 | N47: 521996.68
A48: 4 | B48: 3 | C48: 3 | D48: 4.3.3.2 | E48: FORNECIMENTO DE CONCRETO ESTRUTURAL, USINADO BOMBEADO, COM FCK 30MPA, INCLUSIVE LANÇAMENTO, ADENSAMENTO E ACABAMENTO (FUNDAÇÃO) | F48: ED-49806 | G48: SETOP | H48: m3 | I48: 59.6 | J48: 737.11 | K48: BDI 1 | L48: 932.59 | M48: 43931.75 | N48: 55582.36
A49: 4 | B49: 3 | C49: 3 | D49: 4.3.3.3 | E49: CORTE, DOBRA E MONTAGEM DE AÇO CA-50/60, INCLUSIVE ESPAÇADOR | F49: ED-48298 | G49: SETOP | H49: Kg | I49: 4668.9 | J49: 13.52 | K49: BDI 1 | L49: 17.1 | M49: 63123.52 | N49: 79838.19
A50: 4 | B50: 3 | C50: 4 | D50: 4.3.4.1 | E50: FORNECIMENTO DE CONCRETO ESTRUTURAL, USINADO BOMBEADO, COM FCK 30MPA, INCLUSIVE LANÇAMENTO, ADENSAMENTO E ACABAMENTO | F50: ED-49639 | G50: SETOP | H50: m3 | I50: 0.54 | J50: 749.64 | K50: BDI 1 | L50: 948.44 | M50: 404.8 | N50: 512.15
A51: 4 | B51: 3 | C51: 4 | D51: 4.3.4.2 | E51: FÔRMA E DESFORMA DE TÁBUA E SARRAFO, REAPROVEITAMENTO (3X) (FUNDAÇÃO) | F51: ED-49810 | G51: SETOP | H51: m2 | I51: 3.61 | J51: 56.15 | K51: BDI 1 | L51: 71.04 | M51: 202.7 | N51: 256.45
A52: 4 | B52: 3 | C52: 4 | D52: 4.3.4.3 | E52: CORTE, DOBRA E MONTAGEM DE AÇO CA-50/60, INCLUSIVE ESPAÇADOR | F52: ED-48298 | G52: SETOP | H52: Kg | I52: 65.5 | J52: 13.52 | K52: BDI 1 | L52: 17.1 | M52: 885.56 | N52: 1120.05
A53: 4 | B53: 4 | C53: 1 | D53: 4.4.1.1 | E53: ESCAVAÇÃO MANUAL PARA BLOCO DE COROAMENTO OU SAPATA (INCLUINDO ESCAVAÇÃO PARA COLOCAÇÃO DE FÔRMAS). AF_06/2017 | F53: 96523 | G53: SINAPI | H53: M3 | I53: 63.5 | J53: 83.29 | K53: BDI 1 | L53: 105.37 | M53: 5288.91 | N53: 6690.99
A54: 4 | B54: 4 | C54: 1 | D54: 4.4.1.2 | E54: REATERRO MANUAL DE VALAS COM COMPACTAÇÃO MECANIZADA. AF_04/2016 | F54: 93382 | G54: SINAPI | H54: M3 | I54: 1.57 | J54: 29.22 | K54: BDI 1 | L54: 36.96 | M54: 45.87 | N54: 58.02
A55: 4 | B55: 4 | C55: 1 | D55: 4.4.1.3 | E55: CARGA, MANOBRA E DESCARGA DE SOLOS E MATERIAIS GRANULARES EM CAMINHÃO BASCULANTE 6 M³ - CARGA COM ESCAVADEIRA HIDRÁULICA (CAÇAMBA DE 1,20 M³ / 155 HP) E DESCARGA LIVRE (UNIDADE: M3). AF_07/2020 | F55: 100977 | G55: SINAPI | H55: M3 | I55: 80.99 | J55: 7.06 | K55: BDI 1 | L55: 8.93 | M55: 571.78 | N55: 723.24
A56: 4 | B56: 4 | C56: 1 | D56: 4.4.1.4 | E56: TRANSPORTE COM CAMINHÃO BASCULANTE DE 10 M³, EM VIA URBANA PAVIMENTADA, DMT ATÉ 30 KM (UNIDADE: M3XKM). AF_07/2020 | F56: 95875 | G56: SINAPI | H56: M3XKM | I56: 850.4 | J56: 2.26 | K56: BDI 1 | L56: 2.85 | M56: 1921.9 | N56: 2423.64
A57: 4 | B57: 4 | C57: 1 | D57: 4.4.1.5 | E57: ESPALHAMENTO DE MATERIAL COM TRATOR DE ESTEIRAS. AF_11/2019 | F57: 100574 | G57: SINAPI | H57: M3 | I57: 80.99 | J57: 1.3 | K57: BDI 1 | L57: 1.64 | M57: 105.28 | N57: 132.82
A58: 4 | B58: 4 | C58: 2 | D58: 4.4.2.1 | E58: PERFURAÇÃO MECÂNICA DE ESTACA TIPO TRADO ROTATIVO, INCLUSIVE AFASTAMENTO LATERAL, EXCLUSIVE ARMAÇÃO, CONCRETO ESTRUTURAL, TRANSPORTE E RETIRADA DO MATERIAL ESCAVADO | F58: ED-29802 | G58: SETOP | H58: m3 | I58: 38.29 | J58: 99.2 | K58: BDI 1 | L58: 125.5 | M58: 3798.36 | N58: 4805.39
A59: 4 | B59: 4 | C59: 3 | D59: 4.4.3.1 | E59: LASTRO DE CONCRETO MAGRO, INCLUSIVE TRANSPORTE, LANÇAMENTO E ADENSAMENTO | F59: ED-49812 | G59: SETOP | H59: m3 | I59: 3.43 | J59: 512.35 | K59: BDI 1 | L59: 648.22 | M59: 1757.36 | N59: 2223.39
A60: 4 | B60: 4 | C60: 3 | D60: 4.4.3.2 | E60: FÔRMA E DESFORMA DE TÁBUA E SARRAFO, REAPROVEITAMENTO (3X) (FUNDAÇÃO) | F60: ED-49810 | G60: SETOP | H60: m2 | I60: 75.11 | J60: 56.15 | K60: BDI 1 | L60: 71.04 | M60: 4217.42 | N60: 5335.81
A61: 4 | B61: 4 | C61: 3 | D61: 4.4.3.3 | E61: CORTE, DOBRA E MONTAGEM DE AÇO CA-50/60, INCLUSIVE ESPAÇADOR | F61: ED-48298 | G61: SETOP | H61: Kg | I61: 8163.64 | J61: 13.52 | K61: BDI 1 | L61: 17.1 | M61: 110372.41 | N61: 139598.24
A62: 4 | B62: 4 | C62: 3 | D62: 4.4.3.4 | E62: FORNECIMENTO DE CONCRETO ESTRUTURAL, USINADO BOMBEADO, COM FCK 20MPA, INCLUSIVE LANÇAMENTO, ADENSAMENTO E ACABAMENTO (FUNDAÇÃO) | F62: ED-49804 | G62: SETOP | H62: m3 | I62: 62.3 | J62: 698.78 | K62: BDI 1 | L62: 884.09 | M62: 43533.99 | N62: 55078.8
A63: 4 | B63: 4 | C63: 3 | D63: 4.4.3.5 | E63: ALVENARIA ESTRUTURAL COM BLOCO DE CONCRETO, ESP. 19CM, (FBK 4,5MPA), COM ACABAMENTO APARENTE, INCLUSIVE ARGAMASSA PARA ASSENTAMENTO | F63: ED-48202 | G63: SETOP | H63: m2 | I63: 273.81 | J63: 66.91 | K63: BDI 1 | L63: 84.65 | M63: 18320.62 | N63: 23178.01
A64: 4 | B64: 4 | C64: 3 | D64: 4.4.3.6 | E64: GRAUTE FGK=20 MPA; TRAÇO 1:0,04:1,8:2,1 (EM MASSA SECA DE CIMENTO/ CAL/ AREIA GROSSA/ BRITA 0) - PREPARO MECÂNICO COM BETONEIRA 400 L. AF_09/2021 | F64: 90279 | G64: SINAPI | H64: M3 | I64: 26.01 | J64: 570.81 | K64: BDI 1 | L64: 722.18 | M64: 14846.76 | N64: 18783.9
A65: 4 | B65: 4 | C65: 3 | D65: 4.4.3.7 | E65: IMPERMEABILIZAÇÃO DE PAREDES COM ARGAMASSA DE CIMENTO E AREIA, COM ADITIVO IMPERMEABILIZANTE, E = 2CM. AF_06/2018 | F65: 98561 | G65: SINAPI | H65: M2 | I65: 130.16 | J65: 40.89 | K65: BDI 1 | L65: 51.73 | M65: 5322.24 | N65: 6733.17
A66: 4 | B66: 4 | C66: 3 | D66: 4.4.3.8 | E66: PINTURA COM TINTA ASFALTICA IMPERMEABILIZANTE DILUIDA EM SOLVENTE, PARA MATERIAIS CIMENTICIOS, METAL E MADEIRA | F66: 09.12.01 | G66: SUDECAP | H66: M2 | I66: 130.16 | J66: 12.55 | K66: BDI 1 | L66: 15.87 | M66: 1633.5 | N66: 2065.63
A67: 4 | B67: 4 | C67: 4 | D67: 4.4.4.1 | E67: Manta geotêxtil não tecida, A/300, OP/30 ou similar, resistência à tração de 21 KN/m2 (Execução, incluindo fornecimento, transporte e colocação) | F67: RO-40981 | G67: SETOP | H67: m2 | I67: 64.38 | J67: 6.98 | K67: BDI 1 | L67: 8.83 | M67: 449.37 | N67: 568.47
A68: 4 | B68: 4 | C68: 4 | D68: 4.4.4.2 | E68: ENCHIMENTO DE BRITA PARA DRENO, LANÇAMENTO MANUAL. AF_07/2021 | F68: 102719 | G68: SINAPI | H68: M3 | I68: 4.29 | J68: 148.65 | K68: BDI 1 | L68: 188.07 | M68: 637.7 | N68: 806.82
A69: 4 | B69: 4 | C69: 4 | D69: 4.4.4.3 | E69: DRENO DE BRITA 2 + AREIA | F69: DAC-4.5 | G69: CPU | H69: M³ | I69: 41.33 | J69: 130.2982 | K69: BDI 1 | L69: 164.85 | M69: 5385.22 | N69: 6813.25
A70: 4 | B70: 4 | C70: 4 | D70: 4.4.4.4 | E70: Tubo de PVC para dreno tipo barbacã - D = 50 mm - fornecimento e instalação | F70: 2003935 | G70: SICRO | H70: m | I70: 21.27 | J70: 8.76 | K70: BDI 1 | L70: 11.08 | M70: 186.32 | N70: 235.67
A71: 5 | B71: 1 | D71: 5.1.1 | E71: ALVENARIA DE VEDAÇÃO DE BLOCOS VAZADOS DE CONCRETO DE 14X19X39 CM (ESPESSURA 14 CM) E ARGAMASSA DE ASSENTAMENTO COM PREPARO EM BETONEIRA. AF_12/2021 | F71: 103318 | G71: SINAPI | H71: M2 | I71: 2278.21 | J71: 85.63 | K71: BDI 1 | L71: 108.33 | M71: 195083.12 | N71: 246798.48
A72: 5 | B72: 1 | D72: 5.1.2 | E72: ALVENARIA DE VEDAÇÃO DE BLOCOS VAZADOS DE CONCRETO DE 9X19X39 CM (ESPESSURA 9 CM) E ARGAMASSA DE ASSENTAMENTO COM PREPARO EM BETONEIRA. AF_12/2021 | F72: 103316 | G72: SINAPI | H72: M2 | I72: 43.315 | J72: 65.93 | K72: BDI 1 | L72: 83.41 | M72: 2855.75 | N72: 3612.9
A73: 5 | B73: 1 | D73: 5.1.3 | E73: FIXAÇÃO (ENCUNHAMENTO) DE ALVENARIA DE VEDAÇÃO COM TIJOLO MACIÇO. AF_03/2016 | F73: 93202 | G73: SINAPI | H73: M | I73: 757.04 | J73: 24.58 | K73: BDI 1 | L73: 31.09 | M73: 18608.04 | N73: 23536.37
A74: 5 | B74: 1 | D74: 5.1.4 | E74: PAREDE COM PLACAS DE GESSO ACARTONADO (DRYWALL), PARA USO INTERNO, COM DUAS FACES SIMPLES E ESTRUTURA METÁLICA COM GUIAS SIMPLES, SEM VÃOS. AF_06/2017_PS | F74: 96358 | G74: SINAPI | H74: M2 | I74: 18.2875 | J74: 94.73 | K74: BDI 1 | L74: 119.85 | M74: 1732.37 | N74: 2191.75
A75: 5 | B75: 1 | D75: 5.1.5 | E75: ALVENARIA DE VEDAÇÃO COM TIJOLO MACIÇO REQUEIMADO, ESP. 10CM, PARA REVESTIMENTO, INCLUSIVE ARGAMASSA PARA ASSENTAMENTO | F75: ED-48227 | G75: SETOP | H75: m2 | I75: 2.7 | J75: 87.62 | K75: BDI 1 | L75: 110.85 | M75: 236.57 | N75: 299.29
A76: 5 | B76: 2 | D76: 5.2.1 | E76: DIVISÓRIA EM GRANITO CINZA ANDORINHA E = 3 CM, INCLUSIVE FERRAGENS EM LATÃO CROMADO | F76: ED-48533 | G76: SETOP | H76: m2 | I76: 61.299 | J76: 629.32 | K76: BDI 1 | L76: 796.21 | M76: 38576.68 | N76: 48806.87
A77: 5 | B77: 2 | D77: 5.2.2 | E77: CORTINA HOSPITALAR - FORNECIMENTO E INSTALAÇÃO | F77: COT-ARQ-003 | G77: COTAÇÃO | H77: M | I77: 22.61 | J77: 1225.18 | K77: BDI 1 | L77: 1550.09 | M77: 27701.31 | N77: 35047.53
A78: 5 | B78: 2 | D78: 5.2.3 | E78: BOX PARA BANHEIRO 1,65x1,90 M - FORNECIMENTO E INSTALAÇÃO | F78: COT-ARQ-001 | G78: COTAÇÃO | H78: UN | I78: 1 | J78: 760 | K78: BDI 1 | L78: 961.55 | M78: 760 | N78: 961.55
A79: 5 | B79: 3 | D79: 5.3.1 | E79: GUARDA-CORPO EM TUBO GALVANIZADO DIN 2440 D = 2", COM SUBDIVISÕES EM TUBO DE AÇO D = 1/2", H = 1,05 M | F79: ED-50940 | G79: SETOP | H79: m | I79: 37.5 | J79: 470.93 | K79: BDI 1 | L79: 595.82 | M79: 17659.87 | N79: 22343.25
A80: 5 | B80: 3 | D80: 5.3.2 | E80: CORRIMÃO DUPLO EM TUBO GALVANIZADO DIN 2440, D = 1 1/2" - FIXADO EM ALVENARIA | F80: ED-50937 | G80: SETOP | H80: m | I80: 24.99 | J80: 145.18 | K80: BDI 1 | L80: 183.68 | M80: 3628.04 | N80: 4590.16
A81: 6 | B81: 1 | D81: 6.1.1 | E81: KIT DE PORTA DE MADEIRA PARA PINTURA, SEMI-OCA (LEVE OU MÉDIA), PADRÃO MÉDIO, 90X210CM, ESPESSURA DE 3,5CM, ITENS INCLUSOS: DOBRADIÇAS, MONTAGEM E INSTALAÇÃO DO BATENTE, FECHADURA COM EXECUÇÃO DO FURO - FORNECIMENTO E INSTALAÇÃO. AF_12/2019 | F81: 90844 | G81: SINAPI | H81: UN | I81: 33 | J81: 1117.31 | K81: BDI 1 | L81: 1413.62 | M81: 36871.23 | N81: 46649.46
A82: 6 | B82: 1 | D82: 6.1.2 | E82: KIT DE PORTA DE MADEIRA PARA PINTURA, SEMI-OCA (LEVE OU MÉDIA), PADRÃO MÉDIO, 80X210CM, ESPESSURA DE 3,5CM, ITENS INCLUSOS: DOBRADIÇAS, MONTAGEM E INSTALAÇÃO DO BATENTE, FECHADURA COM EXECUÇÃO DO FURO - FORNECIMENTO E INSTALAÇÃO. AF_12/2019 | F82: 90843 | G82: SINAPI | H82: UN | I82: 10 | J82: 1039.01 | K82: BDI 1 | L82: 1314.55 | M82: 10390.1 | N82: 13145.5
A83: 6 | B83: 2 | D83: 6.2.1 | E83: PORTA SANFONADA PVC 1000 X 2100 MM, COMPLETA, NA COR BRANCA | F83: COT-ARQ-005 | G83: COTAÇÃO | H83: UN | I83: 2 | J83: 217.08 | K83: BDI 1 | L83: 274.64 | M83: 434.16 | N83: 549.28
A84: 6 | B84: 2 | D84: 6.2.2 | E84: INSTALAÇÃO DE PORTA SANFONADA EM PVC, INCLUSIVE ACESSÓRIOS (PUXADOR E TRINCOS) | F84: DAC-6.1 | G84: CPU | H84: UN | I84: 2 | J84: 62.44172 | K84: BDI 1 | L84: 79 | M84: 124.88 | N84: 158
A85: 6 | B85: 3 | D85: 6.3.1 | E85: PORTA DE ABRIR COM MOLA HIDRÁULICA, EM VIDRO TEMPERADO, 2 FOLHAS DE 100X210 CM, ESPESSURA DD 10MM, INCLUSIVE ACESSÓRIOS. AF_01/2021 | F85: DAC-6.2 | G85: CPU | H85: UN | I85: 1 | J85: 3748.9293 | K85: BDI 1 | L85: 4743.14 | M85: 3748.92 | N85: 4743.14
A86: 6 | B86: 3 | D86: 6.3.2 | E86: PORTA DE ABRIR COM MOLA HIDRÁULICA, EM VIDRO TEMPERADO, 2 FOLHAS DE 80X210 CM, ESPESSURA DD 10MM, INCLUSIVE ACESSÓRIOS. AF_01/2021 | F86: DAC-6.3 | G86: CPU | H86: UN | I86: 3 | J86: 3433.9293 | K86: BDI 1 | L86: 4344.6 | M86: 10301.78 | N86: 13033.8
A87: 6 | B87: 3 | D87: 6.3.3 | E87: PORTA DE ABRIR COM MOLA HIDRÁULICA, EM VIDRO TEMPERADO, 90X210 CM, ESPESSURA 10 MM, INCLUSIVE ACESSÓRIOS. AF_01/2021 | F87: 102184 | G87: SINAPI | H87: UN | I87: 1 | J87: 1792.88 | K87: BDI 1 | L87: 2268.35 | M87: 1792.88 | N87: 2268.35
A88: 6 | B88: 4 | D88: 6.4.1 | E88: PORTA EM ALUMÍNIO DE ABRIR TIPO VENEZIANA COM GUARNIÇÃO, FIXAÇÃO COM PARAFUSOS - FORNECIMENTO E INSTALAÇÃO. AF_12/2019 | F88: 91341 | G88: SINAPI | H88: M2 | I88: 33.54 | J88: 650.5 | K88: BDI 1 | L88: 823.01 | M88: 21817.77 | N88: 27603.75
A89: 6 | B89: 5 | D89: 6.5.1 | E89: JANELA DE ALUMÍNIO TIPO MAXIM-AR, COM VIDROS, BATENTE E FERRAGENS. EXCLUSIVE ALIZAR, ACABAMENTO E CONTRAMARCO. FORNECIMENTO E INSTALAÇÃO. AF_12/2019 | F89: 94569 | G89: SINAPI | H89: M2 | I89: 98.88 | J89: 638.92 | K89: BDI 1 | L89: 808.36 | M89: 63176.4 | N89: 79930.63
A90: 6 | B90: 5 | D90: 6.5.2 | E90: CONTRAMARCO DE ALUMÍNIO, FIXAÇÃO COM ARGAMASSA - FORNECIMENTO E INSTALAÇÃO. AF_12/2019 | F90: 94589 | G90: SINAPI | H90: M | I90: 301.6 | J90: 19.74 | K90: BDI 1 | L90: 24.97 | M90: 5953.58 | N90: 7530.95
A91: 6 | B91: 5 | D91: 6.5.3 | E91: ACABAMENTO PARA ESQUADRIAS EM ALUMÍNIO | F91: DAC-6.4 | G91: CPU | H91: M | I91: 301.6 | J91: 42.9775 | K91: BDI 1 | L91: 54.37 | M91: 12962.01 | N91: 16397.99
A92: 6 | B92: 5 | D92: 6.5.4 | E92: JANELA DE ALUMÍNIO TIPO GUILHOTINA, 1000 X 1000 MM COM DUAS FOLHAS - FORNECIMENTO E INSTALAÇÃO | F92: COT-ARQ-006 | G92: COTAÇÃO | H92: UN | I92: 2 | J92: 962.295 | K92: BDI 1 | L92: 1217.49 | M92: 1924.59 | N92: 2434.98
A93: 6 | B93: 5 | D93: 6.5.5 | E93: JANELA FIXA DE ALUMÍNIO PARA VIDRO, COM VIDRO, BATENTE E FERRAGENS. EXCLUSIVE ACABAMENTO, ALIZAR E CONTRAMARCO. FORNECIMENTO E INSTALAÇÃO. AF_12/2019 | F93: 100674 | G93: SINAPI | H93: M2 | I93: 17.5725 | J93: 691.59 | K93: BDI 1 | L93: 874.99 | M93: 12152.96 | N93: 15375.76
A94: 6 | B94: 6 | D94: 6.6.1 | E94: VERGA PRÉ-MOLDADA PARA PORTAS COM ATÉ 1,5 M DE VÃO. AF_03/2016 | F94: 93184 | G94: SINAPI | H94: M | I94: 86.3 | J94: 45.09 | K94: BDI 1 | L94: 57.04 | M94: 3891.26 | N94: 4922.55
A95: 6 | B95: 6 | D95: 6.6.2 | E95: VERGA PRÉ-MOLDADA PARA PORTAS COM MAIS DE 1,5 M DE VÃO. AF_03/2016 | F95: 93185 | G95: SINAPI | H95: M | I95: 22 | J95: 77.17 | K95: BDI 1 | L95: 97.63 | M95: 1697.74 | N95: 2147.86
A96: 6 | B96: 6 | D96: 6.6.3 | E96: VERGA PRÉ-MOLDADA PARA JANELAS COM ATÉ 1,5 M DE VÃO. AF_03/2016 | F96: 93182 | G96: SINAPI | H96: M | I96: 43.5 | J96: 61.35 | K96: BDI 1 | L96: 77.62 | M96: 2668.72 | N96: 3376.47
A97: 6 | B97: 6 | D97: 6.6.4 | E97: VERGA PRÉ-MOLDADA PARA JANELAS COM MAIS DE 1,5 M DE VÃO. AF_03/2016 | F97: 93183 | G97: SINAPI | H97: M | I97: 91.1 | J97: 78.31 | K97: BDI 1 | L97: 99.07 | M97: 7134.04 | N97: 9025.27
A98: 6 | B98: 6 | D98: 6.6.5 | E98: CONTRAVERGA PRÉ-MOLDADA PARA VÃOS DE ATÉ 1,5 M DE COMPRIMENTO. AF_03/2016 | F98: 93194 | G98: SINAPI | H98: M | I98: 43.5 | J98: 59.87 | K98: BDI 1 | L98: 75.74 | M98: 2604.34 | N98: 3294.69
A99: 6 | B99: 6 | D99: 6.6.6 | E99: CONTRAVERGA PRÉ-MOLDADA PARA VÃOS DE MAIS DE 1,5 M DE COMPRIMENTO. AF_03/2016 | F99: 93195 | G99: SINAPI | H99: M | I99: 91.1 | J99: 74.21 | K99: BDI 1 | L99: 93.89 | M99: 6760.53 | N99: 8553.37
A100: 6 | B100: 7 | D100: 6.7.1 | E100: EMASSAMENTO EM ESQUADRIA DE MADEIRA COM MASSA A ÓLEO, DUAS (2) DEMÃOS, INCLUSIVE LIXAMENTO PARA PINTURA A ÓLEO OU ESMALTE | F100: ED-50482 | G100: SETOP | H100: m2 | I100: 158.34 | J100: 29.77 | K100: BDI 1 | L100: 37.66 | M100: 4713.78 | N100: 5963.08
A101: 6 | B101: 7 | D101: 6.7.2 | E101: PINTURA ESMALTE EM ESQUADRIA DE MADEIRA, DUAS (2) DEMÃOS, INCLUSIVE UMA (1) DEMÃO DE FUNDO NIVELADOR, EXCLUSIVE MASSA A ÓLEO | F101: ED-50493 | G101: SETOP | H101: m2 | I101: 158.34 | J101: 23.77 | K101: BDI 1 | L101: 30.07 | M101: 3763.74 | N101: 4761.28
A102: 6 | B102: 7 | D102: 6.7.3 | E102: PINTURA ESMALTE EM ESTRUTURA METÁLICA, DUAS (2) DEMÃOS, INCLUSIVE UMA (1) DEMÃO FUNDO ANTICORROSIVO | F102: ED-50497 | G102: SETOP | H102: m2 | I102: 343.6415 | J102: 32.91 | K102: BDI 1 | L102: 41.63 | M102: 11309.24 | N102: 14305.79
A103: 6 | B103: 7 | D103: 6.7.4 | E103: PINTURA ESMALTE EM ESQUADRIA DE PVC, DUAS (2) DEMÃOS. | F103: DAC-6.6 | G103: CPU | H103: M2 | I103: 4.62 | J103: 23.4056 | K103: BDI 1 | L103: 29.61 | M103: 108.13 | N103: 136.79
A104: 6 | B104: 7 | D104: 6.7.5 | E104: PEITORIL DE GRANITO CINZA ANDORINHA E = 3 CM | F104: ED-50998 | G104: SETOP | H104: m2 | I104: 22.16 | J104: 281.89 | K104: BDI 1 | L104: 356.64 | M104: 6246.68 | N104: 7903.14
A105: 6 | B105: 7 | D105: 6.7.6 | E105: PELÍCULA JATEADA PARA VIDROS | F105: COT-ARQ-007 | G105: COTAÇÃO | H105: M2 | I105: 98.88 | J105: 56.54 | K105: BDI 1 | L105: 71.53 | M105: 5590.67 | N105: 7072.88
A106: 6 | B106: 7 | D106: 6.7.7 | E106: APLICAÇÃO DE PELÍCULA JATEADA EM ESQUADRIAS | F106: DAC-6.5 | G106: CPU | H106: M2 | I106: 98.88 | J106: 5.60846 | K106: BDI 1 | L106: 7.09 | M106: 554.56 | N106: 701.05
A107: 6 | B107: 8 | D107: 6.8.1 | E107: BARRA DE APOIO EM AÇO INOX POLIDO RETA, DN 1.1/4" (31,75MM), PARA ACESSIBILIDADE (PMR/PCR), COMPRIMENTO 80CM, INSTALADO EM PAREDE, INCLUSIVE FORNECIMENTO, INSTALAÇÃO E ACESSÓRIOS PARA FIXAÇÃO | F107: ED-48160 | G107: SETOP | H107: un | I107: 22 | J107: 226.84 | K107: BDI 1 | L107: 286.99 | M107: 4990.48 | N107: 6313.78
A108: 6 | B108: 8 | D108: 6.8.2 | E108: BARRA DE APOIO EM AÇO INOX POLIDO RETA, DN 1.1/4" (31,75MM), PARA ACESSIBILIDADE (PMR/PCR), COMPRIMENTO 40CM, INSTALADO EM PORTA/PAREDE, INCLUSIVE FORNECIMENTO, INSTALAÇÃO E ACESSÓRIOS PARA FIXAÇÃO | F108: ED-48163 | G108: SETOP | H108: un | I108: 16 | J108: 135.03 | K108: BDI 1 | L108: 170.83 | M108: 2160.48 | N108: 2733.28
A109: 6 | B109: 8 | D109: 6.8.3 | E109: BARRA DE APOIO LATERAL ARTICULADA, COM TRAVA, EM ACO INOX POLIDO, FIXADA NA PAREDE - FORNECIMENTO E INSTALAÇÃO. AF_01/2020 | F109: 100865 | G109: SINAPI | H109: UN | I109: 2 | J109: 601.21 | K109: BDI 1 | L109: 760.65 | M109: 1202.42 | N109: 1521.3
A110: 6 | B110: 8 | D110: 6.8.4 | E110: FORNECIMENTO E INSTALAÇÃO DE ESPELHO CRISTAL, ESPESSURA 4 MM | F110: DAC-6.7 | G110: CPU | H110: M2 | I110: 16.14 | J110: 389.2445 | K110: BDI 1 | L110: 492.47 | M110: 6282.4 | N110: 7948.46
A111: 6 | B111: 8 | D111: 6.8.5 | E111: FORNECIMENTO E INSTALAÇÃO DE PLACAS DE IDENTIFICAÇÃO | F111: DAC-6.8 | G111: CPU | H111: UN | I111: 42 | J111: 131.8195 | K111: BDI 1 | L111: 166.77 | M111: 5536.41 | N111: 7004.34
A112: 7 | D112: 7.1 | E112: FORNECIMENTO DE ESTRUTURA METÁLICA EM PERFIL LAMINADO, INCLUSIVE FABRICAÇÃO, TRANSPORTE, MONTAGEM E APLICAÇÃO DE FUNDO PREPARADOR ANTICORROSIVO EM SUPERFÍCIE METÁLICA, UMA (1) DEMÃO | F112: ED-49664 | G112: SETOP | H112: Kg | I112: 10162.17 | J112: 24.43 | K112: BDI 1 | L112: 30.9 | M112: 248261.81 | N112: 314011.05
A113: 7 | D113: 7.2 | E113: COBERTURA EM TELHA METÁLICA GALVANIZADA TRAPEZOIDAL, TIPO SIMPLES, ESP. 0,50MM, ACABAMENTO NATURAL, INCLUSIVE ACESSÓRIOS PARA FIXAÇÃO, FORNECIMENTO E INSTALAÇÃO | F113: ED-48428 | G113: SETOP | H113: m2 | I113: 1038.63 | J113: 99.23 | K113: BDI 1 | L113: 125.54 | M113: 103063.25 | N113: 130389.61
A114: 7 | D114: 7.3 | E114: COLOCAÇÃO DE CUMEEIRA GALVANIZADA TRAPEZOIDAL E = 0,50 MM, SIMPLES | F114: ED-48402 | G114: SETOP | H114: m | I114: 70.71 | J114: 54.81 | K114: BDI 1 | L114: 69.34 | M114: 3875.61 | N114: 4903.03
A115: 7 | D115: 7.4 | E115: PINTURA ESMALTE EM ESTRUTURA METÁLICA, DUAS (2) DEMÃOS, INCLUSIVE UMA (1) DEMÃO FUNDO ANTICORROSIVO | F115: ED-50497 | G115: SETOP | H115: m2 | I115: 3016.76 | J115: 32.91 | K115: BDI 1 | L115: 41.63 | M115: 99281.57 | N115: 125587.71
A116: 7 | D116: 7.5 | E116: FORNECIMENTO DE CONCRETO ESTRUTURAL, PREPARADO EM OBRA, COM FCK 30MPA, INCLUSIVE LANÇAMENTO, ADENSAMENTO E ACABAMENTO | F116: ED-49620 | G116: SETOP | H116: m3 | I116: 0.23 | J116: 770.19 | K116: BDI 1 | L116: 974.44 | M116: 177.14 | N116: 224.12
A117: 7 | D117: 7.6 | E117: MONTAGEM E DESMONTAGEM DE FÔRMA DE LAJE MACIÇA, PÉ-DIREITO SIMPLES, EM MADEIRA SERRADA, 2 UTILIZAÇÕES. AF_09/2020 | F117: 92484 | G117: SINAPI | H117: M2 | I117: 3.88 | J117: 281.2 | K117: BDI 1 | L117: 355.77 | M117: 1091.05 | N117: 1380.38
A118: 7 | D118: 7.7 | E118: CORTE, DOBRA E MONTAGEM DE AÇO CA-50/60, INCLUSIVE ESPAÇADOR | F118: ED-48298 | G118: SETOP | H118: Kg | I118: 18.4 | J118: 13.52 | K118: BDI 1 | L118: 17.1 | M118: 248.76 | N118: 314.64
A119: 8 | B119: 1 | D119: 8.1.1 | E119: CHAPISCO APLICADO EM ALVENARIAS E ESTRUTURAS DE CONCRETO INTERNAS, COM COLHER DE PEDREIRO. ARGAMASSA TRAÇO 1:3 COM PREPARO EM BETONEIRA 400L. AF_10/2022 | F119: 87879 | G119: SINAPI | H119: M2 | I119: 2899.85 | J119: 4.08 | K119: BDI 1 | L119: 5.16 | M119: 11831.38 | N119: 14963.22
A120: 8 | B120: 1 | D120: 8.1.2 | E120: MASSA ÚNICA, PARA RECEBIMENTO DE PINTURA, EM ARGAMASSA TRAÇO 1:2:8, PREPARO MECÂNICO COM BETONEIRA 400L, APLICADA MANUALMENTE EM FACES INTERNAS DE PAREDES, ESPESSURA DE 20MM, COM EXECUÇÃO DE TALISCAS. AF_06/2014 | F120: 87529 | G120: SINAPI | H120: M2 | I120: 1873.85 | J120: 35.33 | K120: BDI 1 | L120: 44.69 | M120: 66203.12 | N120: 83742.35
A121: 8 | B121: 1 | D121: 8.1.3 | E121: EMBOÇO, PARA RECEBIMENTO DE CERÂMICA, EM ARGAMASSA TRAÇO 1:2:8, PREPARO MECÂNICO COM BETONEIRA 400L, APLICADO MANUALMENTE EM FACES INTERNAS DE PAREDES, PARA AMBIENTE COM ÁREA MAIOR QUE 10M2, ESPESSURA DE 20MM, COM EXECUÇÃO DE TALISCAS. AF_06/2014 | F121: 87535 | G121: SINAPI | H121: M2 | I121: 1026.01 | J121: 30.72 | K121: BDI 1 | L121: 38.86 | M121: 31519.02 | N121: 39870.74
A122: 8 | B122: 1 | D122: 8.1.4 | E122: REVESTIMENTO COM CERÂMICA APLICADO EM PAREDE, ACABAMENTO ESMALTADO, AMBIENTE INTERNO/EXTERNO, PADRÃO EXTRA, DIMENSÃO DA PEÇA ATÉ 2025 CM2, PEI III, ASSENTAMENTO COM ARGAMASSA INDUSTRIALIZADA, INCLUSIVE REJUNTAMENTO | F122: ED-9081 | G122: SETOP | H122: m2 | I122: 971.09 | J122: 69.35 | K122: BDI 1 | L122: 87.74 | M122: 67345.09 | N122: 85203.43
A123: 8 | B123: 1 | D123: 8.1.5 | E123: REVESTIMENTO COM PASTILHA APLICADO EM PAREDE, ACABAMENTO ESMALTADO, AMBIENTE INTERNO/EXTERNO, PADRÃO EXTRA, DIMENSÃO DA PEÇA ATÉ 2025 CM2, ASSENTAMENTO COM ARGAMASSA. | F123: DAC-8.2 | G123: CPU | H123: M2 | I123: 54.92 | J123: 137.6856 | K123: BDI 1 | L123: 174.19 | M123: 7561.69 | N123: 9566.51
A124: 8 | B124: 1 | D124: 8.1.6 | E124: IMPERMEABILIZAÇÃO DE SUPERFÍCIE COM ARGAMASSA POLIMÉRICA / MEMBRANA ACRÍLICA, 3 DEMÃOS. AF_06/2018 | F124: 98555 | G124: SINAPI | H124: M2 | I124: 1135.62 | J124: 24.46 | K124: BDI 1 | L124: 30.94 | M124: 27777.26 | N124: 35136.08
A125: 8 | B125: 1 | D125: 8.1.7 | E125: FORRO EM DRYWALL, PARA AMBIENTES COMERCIAIS, INCLUSIVE ESTRUTURA DE FIXAÇÃO. AF_05/2017_PS | F125: 96114 | G125: SINAPI | H125: M2 | I125: 837.91 | J125: 72.52 | K125: BDI 1 | L125: 91.75 | M125: 60765.23 | N125: 76878.24
A126: 8 | B126: 1 | D126: 8.1.8 | E126: EMASSAMENTO EM TETO COM MASSA CORRIDA (PVA), DUAS (2) DEMÃOS, INCLUSIVE LIXAMENTO PARA PINTURA | F126: ED-50480 | G126: SETOP | H126: m2 | I126: 837.91 | J126: 26.67 | K126: BDI 1 | L126: 33.74 | M126: 22347.05 | N126: 28271.08
A127: 8 | B127: 1 | D127: 8.1.9 | E127: APLICAÇÃO DE RESINA SINTÉTICA PARA ADERÊNCIA DE REVESTIMENTOS | F127: DAC-8.1 | G127: CPU | H127: M2 | I127: 5.2 | J127: 7.6165 | K127: BDI 1 | L127: 9.63 | M127: 39.6 | N127: 50.07
A128: 8 | B128: 1 | D128: 8.1.10 | E128: APLICAÇÃO MANUAL DE GESSO DESEMPENADO (SEM TALISCAS) EM TETO DE AMBIENTES DE ÁREA MAIOR QUE 10M², ESPESSURA DE 1,0CM. AF_03/2023 | F128: 87414 | G128: SINAPI | H128: M2 | I128: 5.2 | J128: 25.06 | K128: BDI 1 | L128: 31.7 | M128: 130.31 | N128: 164.84
A129: 8 | B129: 1 | D129: 8.1.11 | E129: EMASSAMENTO EM PAREDE EM CHAPA DE GESSO ACARTONADO (DRYWALL) COM MASSA CORRIDA (PVA), UMA (1) DEMÃO, INCLUSIVE LIXAMENTO PARA PINTURA | F129: ED-50484 | G129: SETOP | H129: 36.498 | I129: 36.498 | J129: 11.02 | K129: BDI 1 | L129: 13.94 | M129: 402.2 | N129: 508.78
A130: 8 | B130: 2 | D130: 8.2.1 | E130: CHAPISCO APLICADO EM ALVENARIA (COM PRESENÇA DE VÃOS) E ESTRUTURAS DE CONCRETO DE FACHADA, COM COLHER DE PEDREIRO. ARGAMASSA TRAÇO 1:3 COM PREPARO EM BETONEIRA 400L. AF_10/2022 | F130: 87905 | G130: SINAPI | H130: M2 | I130: 1918.7 | J130: 7.2 | K130: BDI 1 | L130: 9.1 | M130: 13814.64 | N130: 17460.17
A131: 8 | B131: 2 | D131: 8.2.2 | E131: EMBOÇO OU MASSA ÚNICA EM ARGAMASSA TRAÇO 1:2:8, PREPARO MECÂNICO COM BETONEIRA 400 L, APLICADA MANUALMENTE EM PANOS DE FACHADA COM PRESENÇA DE VÃOS, ESPESSURA DE 35 MM. AF_08/2022 | F131: 87779 | G131: SINAPI | H131: M2 | I131: 1918.7 | J131: 63.27 | K131: BDI 1 | L131: 80.04 | M131: 121396.14 | N131: 153572.74
A132: 8 | B132: 2 | D132: 8.2.3 | E132: REVESTIMENTO COM PASTILHA APLICADO EM PAREDE, ACABAMENTO ESMALTADO, AMBIENTE INTERNO/EXTERNO, PADRÃO EXTRA, DIMENSÃO DA PEÇA ATÉ 2025 CM2, ASSENTAMENTO COM ARGAMASSA. | F132: DAC-8.2 | G132: CPU | H132: M2 | I132: 239.72 | J132: 137.6856 | K132: BDI 1 | L132: 174.19 | M132: 33005.99 | N132: 41756.82
A133: 8 | B133: 2 | D133: 8.2.4 | E133: IMPERMEABILIZAÇÃO DE SUPERFÍCIE COM ARGAMASSA POLIMÉRICA / MEMBRANA ACRÍLICA, 3 DEMÃOS. AF_06/2018 | F133: 98555 | G133: SINAPI | H133: M2 | I133: 322.19 | J133: 24.46 | K133: BDI 1 | L133: 30.94 | M133: 7880.76 | N133: 9968.55
A134: 8 | B134: 2 | D134: 8.2.5 | E134: MASSA ÚNICA, PARA RECEBIMENTO DE PINTURA, EM ARGAMASSA TRAÇO 1:2:8, PREPARO MECÂNICO COM BETONEIRA 400L, APLICADA MANUALMENTE EM TETO, ESPESSURA DE 20MM, COM EXECUÇÃO DE TALISCAS. AF_03/2015 | F134: 90406 | G134: SINAPI | H134: M2 | I134: 7.96 | J134: 45.24 | K134: BDI 1 | L134: 57.23 | M134: 360.11 | N134: 455.55
A135: 8 | B135: 2 | D135: 8.2.6 | E135: PAINEL EM MADEIRA - FORNECIMENTO E INSTALAÇÃO | F135: COT-ARQ-004 | G135: COTAÇÃO | H135: M² | I135: 13.3 | J135: 307.17 | K135: BDI 1 | L135: 388.63 | M135: 4085.36 | N135: 5168.77
A136: 8 | B136: 2 | D136: 8.2.7 | E136: BRISE METÁLICO - FORNECIMENTO E INSTALAÇÃO | F136: COT-ARQ-002 | G136: COTAÇÃO | H136: M² | I136: 8.772 | J136: 911.81 | K136: BDI 1 | L136: 1153.62 | M136: 7998.39 | N136: 10119.55
A137: 9 | B137: 1 | D137: 9.1.1 | E137: LASTRO COM MATERIAL GRANULAR (PEDRA BRITADA N.2), APLICADO EM PISOS OU LAJES SOBRE SOLO, ESPESSURA DE *10 CM*. AF_08/2017 | F137: 96624 | G137: SINAPI | H137: M3 | I137: 42.7025 | J137: 154.6 | K137: BDI 1 | L137: 195.59 | M137: 6601.8 | N137: 8352.18
A138: 9 | B138: 1 | D138: 9.1.2 | E138: APILOAMENTO MECANIZADO EM FUNDO DE VALA COM PLACA VIBRATÓRIA, EXCLUSIVE ESCAVAÇÃO | F138: ED-51094 | G138: SETOP | H138: m2 | I138: 854.05 | J138: 11.41 | K138: BDI 1 | L138: 14.43 | M138: 9744.71 | N138: 12323.94
A139: 9 | B139: 1 | D139: 9.1.3 | E139: EXECUÇÃO DE PASSEIO (CALÇADA) OU PISO DE CONCRETO COM CONCRETO MOLDADO IN LOCO, USINADO, ACABAMENTO CONVENCIONAL, ESPESSURA 10 CM, ARMADO | F139: DAC-9.1 | G139: CPU | H139: M2 | I139: 854.05 | J139: 130.865588 | K139: BDI 1 | L139: 165.57 | M139: 111765.75 | N139: 141405.05
A140: 9 | B140: 1 | D140: 9.1.4 | E140: CONTRAPISO EM ARGAMASSA TRAÇO 1:4 (CIMENTO E AREIA), PREPARO MECÂNICO COM BETONEIRA 400 L, APLICADO EM ÁREAS SECAS SOBRE LAJE, ADERIDO, ACABAMENTO NÃO REFORÇADO, ESPESSURA 3CM. AF_07/2021 | F140: 87630 | G140: SINAPI | H140: M2 | I140: 667.25 | J140: 38.09 | K140: BDI 1 | L140: 48.19 | M140: 25415.55 | N140: 32154.77
A141: 9 | B141: 1 | D141: 9.1.5 | E141: CONTRAPISO EM ARGAMASSA TRAÇO 1:4 (CIMENTO E AREIA), PREPARO MECÂNICO COM BETONEIRA 400 L, APLICADO EM ÁREAS MOLHADAS SOBRE LAJE, ADERIDO, ACABAMENTO NÃO REFORÇADO, ESPESSURA 3CM. AF_07/2021 | F141: 87745 | G141: SINAPI | H141: M2 | I141: 186.8 | J141: 48.6 | K141: BDI 1 | L141: 61.48 | M141: 9078.48 | N141: 11484.46
A142: 9 | B142: 1 | D142: 9.1.6 | E142: REVESTIMENTO COM PORCELANATO APLICADO EM PISO, ACABAMENTO POLÍDO, AMBIENTE INTERNO, PADRÃO EXTRA, BORDA RETIFICADA, DIMENSÃO DA PEÇA (60X60CM), ASSENTAMENTO COM ARGAMASSA INDUSTRIALIZADA, INCLUSIVE REJUNTAMENTO | F142: ED-50754 | G142: SETOP | H142: m2 | I142: 843.61 | J142: 126.89 | K142: BDI 1 | L142: 160.54 | M142: 107045.67 | N142: 135433.14
A143: 9 | B143: 1 | D143: 9.1.7 | E143: RODAPÉ COM REVESTIMENTO EM PORCELANATO 60X60 COM BORDA RETIFICADA E ACABAMENTO POLIDO, ALTURA 10CM | F143: DAC-9.2 | G143: CPU | H143: M | I143: 500.59 | J143: 17.1765437 | K143: BDI 1 | L143: 21.73 | M143: 8598.4 | N143: 10877.82
A144: 9 | B144: 1 | D144: 9.1.8 | E144: SOLEIRA DE GRANITO CINZA ANDORINHA E = 3 CM | F144: ED-51003 | G144: SETOP | H144: m2 | I144: 10.44 | J144: 285.22 | K144: BDI 1 | L144: 360.86 | M144: 2977.69 | N144: 3767.37
A145: 9 | B145: 2 | D145: 9.2.1 | E145: LASTRO COM MATERIAL GRANULAR (PEDRA BRITADA N.2), APLICADO EM PISOS OU LAJES SOBRE SOLO, ESPESSURA DE *10 CM*. AF_08/2017 | F145: 96624 | G145: SINAPI | H145: M3 | I145: 33.489 | J145: 154.6 | K145: BDI 1 | L145: 195.59 | M145: 5177.39 | N145: 6550.11
A146: 9 | B146: 2 | D146: 9.2.2 | E146: APILOAMENTO MECANIZADO EM FUNDO DE VALA COM PLACA VIBRATÓRIA, EXCLUSIVE ESCAVAÇÃO | F146: ED-51094 | G146: SETOP | H146: m2 | I146: 669.78 | J146: 11.41 | K146: BDI 1 | L146: 14.43 | M146: 7642.18 | N146: 9664.92
A147: 9 | B147: 2 | D147: 9.2.3 | E147: EXECUÇÃO DE PASSEIO (CALÇADA) OU PISO DE CONCRETO COM CONCRETO MOLDADO IN LOCO, USINADO, ACABAMENTO CONVENCIONAL, ESPESSURA 10 CM, ARMADO | F147: DAC-9.1 | G147: CPU | H147: M2 | I147: 669.78 | J147: 130.865588 | K147: BDI 1 | L147: 165.57 | M147: 87651.15 | N147: 110895.47
A148: 9 | B148: 2 | D148: 9.2.4 | E148: CONTRAPISO EM ARGAMASSA TRAÇO 1:4 (CIMENTO E AREIA), PREPARO MECÂNICO COM BETONEIRA 400 L, APLICADO EM ÁREAS SECAS SOBRE LAJE, ADERIDO, ACABAMENTO NÃO REFORÇADO, ESPESSURA 3CM. AF_07/2021 | F148: 87630 | G148: SINAPI | H148: M2 | I148: 669.78 | J148: 38.09 | K148: BDI 1 | L148: 48.19 | M148: 25511.92 | N148: 32276.69
A149: 9 | B149: 2 | D149: 9.2.5 | E149: PISO CIMENTADO, TRAÇO 1:3 (CIMENTO E AREIA), ACABAMENTO LISO, ESPESSURA 3,0 CM, PREPARO MECÂNICO DA ARGAMASSA. AF_09/2020 | F149: 98680 | G149: SINAPI | H149: M2 | I149: 669.78 | J149: 44.86 | K149: BDI 1 | L149: 56.75 | M149: 30046.33 | N149: 38010.01
A150: 9 | B150: 2 | D150: 9.2.6 | E150: PINTURA DE PISO COM TINTA ACRÍLICA, APLICAÇÃO MANUAL, 2 DEMÃOS, INCLUSO FUNDO PREPARADOR. AF_05/2021 | F150: 102491 | G150: SINAPI | H150: M2 | I150: 848.46 | J150: 17.59 | K150: BDI 1 | L150: 22.25 | M150: 14924.41 | N150: 18878.23
A151: 9 | B151: 2 | D151: 9.2.7 | E151: PLANTIO DE GRAMA ESMERALDA EM PLACAS, INCLUSIVE TERRA VEGETAL E CONSERVAÇÃO POR TRINTA (30) DIAS | F151: ED-50437 | G151: SETOP | H151: m2 | I151: 36.85 | J151: 29.23 | K151: BDI 1 | L151: 36.98 | M151: 1077.12 | N151: 1362.71
A152: 9 | B152: 2 | D152: 9.2.8 | E152: PISO CIMENTADO COM ARGAMASSA, TRAÇO 1:3 (CIMENTO E AREIA), ESP. 30MM, ACABAMENTO DESEMPENADO E FELTRADO, MODULAÇÃO DE 100X100CM, INCLUSIVE JUNTA PLÁSTICA | F152: ED-50548 | G152: SETOP | H152: m2 | I152: 178.68 | J152: 59.23 | K152: BDI 1 | L152: 74.93 | M152: 10583.21 | N152: 13388.49
A153: 9 | B153: 2 | D153: 9.2.9 | E153: GUIA (MEIO-FIO) CONCRETO, MOLDADA IN LOCO EM TRECHO CURVO COM EXTRUSORA, 15 CM BASE X 30 CM ALTURA. AF_06/2016 | F153: 94266 | G153: SINAPI | H153: M | I153: 67.96 | J153: 49.97 | K153: BDI 1 | L153: 63.22 | M153: 3395.96 | N153: 4296.43
A154: 10 | D154: 10.1 | E154: APLICAÇÃO DE FUNDO SELADOR ACRÍLICO EM PAREDES, UMA DEMÃO. AF_06/2014 | F154: 88485 | G154: SINAPI | H154: M2 | I154: 1910.348 | J154: 3 | K154: BDI 1 | L154: 3.79 | M154: 5731.04 | N154: 7240.21
A155: 10 | D155: 10.2 | E155: APLICAÇÃO MANUAL DE PINTURA COM TINTA LÁTEX ACRÍLICA EM PAREDES, DUAS DEMÃOS. AF_06/2014 | F155: 88489 | G155: SINAPI | H155: M2 | I155: 1910.348 | J155: 13.68 | K155: BDI 1 | L155: 17.3 | M155: 26133.56 | N155: 33049.02
A156: 10 | D156: 10.3 | E156: APLICAÇÃO DE FUNDO SELADOR ACRÍLICO EM TETO, UMA DEMÃO. AF_06/2014 | F156: 88484 | G156: SINAPI | H156: M2 | I156: 851.07 | J156: 3.39 | K156: BDI 1 | L156: 4.28 | M156: 2885.12 | N156: 3642.57
A157: 10 | D157: 10.4 | E157: APLICAÇÃO MANUAL DE PINTURA COM TINTA LÁTEX ACRÍLICA EM TETO, DUAS DEMÃOS. AF_06/2014 | F157: 88488 | G157: SINAPI | H157: M2 | I157: 851.07 | J157: 15.51 | K157: BDI 1 | L157: 19.62 | M157: 13200.09 | N157: 16697.99
A158: 10 | D158: 10.5 | E158: APLICAÇÃO MANUAL DE FUNDO SELADOR ACRÍLICO EM PAREDES EXTERNAS DE CASAS. AF_06/2014 | F158: 88415 | G158: SINAPI | H158: M2 | I158: 1678.98 | J158: 3.38 | K158: BDI 1 | L158: 4.27 | M158: 5674.95 | N158: 7169.24
A159: 10 | D159: 10.6 | E159: APLICAÇÃO MANUAL DE TINTA LÁTEX ACRÍLICA EM PAREDE EXTERNAS DE CASAS, DUAS DEMÃOS. AF_11/2016 | F159: 95626 | G159: SINAPI | H159: M2 | I159: 1678.98 | J159: 14.99 | K159: BDI 1 | L159: 18.96 | M159: 25167.91 | N159: 31833.46
A160: 10 | D160: 10.7 | E160: FORNECIMENTO DE ANDAIME METÁLICO TUBULAR TIPO TORRE (LOCAÇÃO), INCLUSIVE RODÍZIOS, EXCLUSIVE MONTAGEM E DESMONTAGEM | F160: ED-9076 | G160: SETOP | H160: mxmês | I160: 12 | J160: 20 | K160: BDI 1 | L160: 25.3 | M160: 240 | N160: 303.6
A161: 10 | D161: 10.8 | E161: MONTAGEM E DESMONTAGEM DE ANDAIME METÁLICO TUBULAR TIPO TORRE, EXCLUSIVE FORNECIMENTO DO ANDAIME | F161: ED-9077 | G161: SETOP | H161: m | I161: 6 | J161: 8.8 | K161: BDI 1 | L161: 11.13 | M161: 52.8 | N161: 66.78
A162: 11 | D162: 11.1 | E162: BANCADA SIMPLES EM CONCRETO, APOIADA EM ALVENARIA | F162: ED-48340 | G162: SETOP | H162: m2 | I162: 3.12 | J162: 283.77 | K162: BDI 1 | L162: 359.02 | M162: 885.36 | N162: 1120.14
A163: 11 | D163: 11.2 | E163: COIFA PARA FOGÃO INDUSTRIAL - FORNECIMENTO E INSTALAÇÃO | F163: COT-ARQ-008 | G163: COTAÇÃO | H163: UN | I163: 1 | J163: 5250 | K163: BDI 1 | L163: 6642.3 | M163: 5250 | N163: 6642.3
A164: 11 | D164: 11.3 | E164: FOGÃO INDUSTRIAL 6 BOCAS | F164: COT-ARQ-009 | G164: COTAÇÃO | H164: UN | I164: 1 | J164: 5110.6 | K164: BDI 1 | L164: 6465.93 | M164: 5110.6 | N164: 6465.93
A165: 12 | B165: 1 | D165: 12.1.1 | E165: BUCHA DE REDUÇÃO, CPVC, 35 X 22 MM | F165: COT-HID-001 | G165: COTAÇÃO | H165: UN | I165: 3 | J165: 25.13 | K165: BDI 1 | L165: 31.79 | M165: 75.39 | N165: 95.37
A166: 12 | B166: 1 | D166: 12.1.2 | E166: INSTALAÇÃO BUCHA DE REDUÇÃO, CPVC, 35 X 22 MM | F166: DAC-12.1 | G166: CPU | H166: UN | I166: 3 | J166: 5.535561 | K166: BDI 1 | L166: 7 | M166: 16.6 | N166: 21
A167: 12 | B167: 1 | D167: 12.1.3 | E167: CONECTOR, CPVC, SOLDÁVEL, DN22MM X 3/4, INSTALADO EM RAMAL OU SUB-RAMAL DE ÁGUA - FORNECIMENTO E INSTALAÇÃO. AF_06/2022 | F167: 89668 | G167: SINAPI | H167: UN | I167: 10 | J167: 29.53 | K167: BDI 1 | L167: 37.36 | M167: 295.3 | N167: 373.6
A168: 12 | B168: 1 | D168: 12.1.4 | E168: CONECTOR, CPVC, SOLDÁVEL, DN 35MM X 1 1/4 , INSTALADO EM RAMAL DE DISTRIBUIÇÃO DE ÁGUA - FORNECIMENTO E INSTALAÇÃO. AF_06/2022 | F168: 89763 | G168: SINAPI | H168: UN | I168: 2 | J168: 56.8 | K168: BDI 1 | L168: 71.86 | M168: 113.6 | N168: 143.72
A169: 12 | B169: 1 | D169: 12.1.5 | E169: JOELHO 45 GRAUS, CPVC, SOLDÁVEL, DN 22MM, INSTALADO EM RAMAL OU SUB-RAMAL DE ÁGUA - FORNECIMENTO E INSTALAÇÃO. AF_06/2022 | F169: 89642 | G169: SINAPI | H169: UN | I169: 3 | J169: 14.54 | K169: BDI 1 | L169: 18.39 | M169: 43.62 | N169: 55.17
A170: 12 | B170: 1 | D170: 12.1.6 | E170: JOELHO 45 GRAUS, CPVC, SOLDÁVEL, DN 35MM, INSTALADO EM RAMAL OU SUB-RAMAL DE ÁGUA FORNECIMENTO E INSTALAÇÃO. AF_06/2022 | F170: 89650 | G170: SINAPI | H170: UN | I170: 1 | J170: 27.96 | K170: BDI 1 | L170: 35.37 | M170: 27.96 | N170: 35.37
A171: 12 | B171: 1 | D171: 12.1.7 | E171: JOELHO 90 GRAUS, CPVC, SOLDÁVEL, DN 22MM, INSTALADO EM RAMAL OU SUB-RAMAL DE ÁGUA - FORNECIMENTO E INSTALAÇÃO. AF_06/2022 | F171: 89641 | G171: SINAPI | H171: UN | I171: 10 | J171: 12.86 | K171: BDI 1 | L171: 16.27 | M171: 128.6 | N171: 162.7
A172: 12 | B172: 1 | D172: 12.1.8 | E172: JOELHO 90 GRAUS, CPVC, SOLDÁVEL, DN 35MM, INSTALADO EM RAMAL OU SUB-RAMAL DE ÁGUA FORNECIMENTO E INSTALAÇÃO. AF_06/2022 | F172: 89649 | G172: SINAPI | H172: UN | I172: 7 | J172: 29.68 | K172: BDI 1 | L172: 37.55 | M172: 207.76 | N172: 262.85
A173: 12 | B173: 1 | D173: 12.1.9 | E173: JOELHO DE TRANSIÇÃO, 90 GRAUS, CPVC, SOLDÁVEL, DN 22MM X 3/4, INSTALADO EM RAMAL OU SUB-RAMAL DE ÁGUA - FORNECIMENTO E INSTALAÇÃO. AF_06/2022 | F173: 89645 | G173: SINAPI | H173: UN | I173: 5 | J173: 32.59 | K173: BDI 1 | L173: 41.23 | M173: 162.95 | N173: 206.15
A174: 12 | B174: 1 | D174: 12.1.10 | E174: LUVA, CPVC, SOLDÁVEL, DN 22MM, INSTALADO EM RAMAL OU SUB-RAMAL DE ÁGUA FORNECIMENTO E INSTALAÇÃO. AF_06/2022 | F174: 89658 | G174: SINAPI | H174: UN | I174: 5 | J174: 8.85 | K174: BDI 1 | L174: 11.19 | M174: 44.25 | N174: 55.95
A175: 12 | B175: 1 | D175: 12.1.11 | E175: TUBO, CPVC, SOLDÁVEL, DN 22MM, INSTALADO EM RAMAL OU SUB-RAMAL DE ÁGUA - FORNECIMENTO E INSTALAÇÃO. AF_06/2022 | F175: 89634 | G175: SINAPI | H175: M | I175: 39.5 | J175: 35.71 | K175: BDI 1 | L175: 45.18 | M175: 1410.54 | N175: 1784.61
A176: 12 | B176: 1 | D176: 12.1.12 | E176: TUBO, CPVC, SOLDÁVEL, DN 35MM, INSTALADO EM RAMAL OU SUB-RAMAL DE ÁGUA FORNECIMENTO E INSTALAÇÃO. AF_06/2022 | F176: 89636 | G176: SINAPI | H176: M | I176: 43.1 | J176: 67.53 | K176: BDI 1 | L176: 85.43 | M176: 2910.54 | N176: 3682.03
A177: 12 | B177: 1 | D177: 12.1.13 | E177: TE, CPVC, SOLDÁVEL, DN 22MM, INSTALADO EM RAMAL OU SUB-RAMAL DE ÁGUA - FORNECIMENTO E INSTALAÇÃO. AF_06/2022 | F177: 89697 | G177: SINAPI | H177: UN | I177: 1 | J177: 16.61 | K177: BDI 1 | L177: 21.01 | M177: 16.61 | N177: 21.01
A178: 12 | B178: 1 | D178: 12.1.14 | E178: TÊ, CPVC, SOLDÁVEL, DN35MM, INSTALADO EM RAMAL OU SUB-RAMAL DE ÁGUA FORNECIMENTO E INSTALAÇÃO. AF_06/2022 | F178: 89706 | G178: SINAPI | H178: UN | I178: 3 | J178: 56.1 | K178: BDI 1 | L178: 70.97 | M178: 168.3 | N178: 212.91
A179: 12 | B179: 1 | D179: 12.1.15 | E179: TE DE REDUÇÃO, CPVC, 35 X 22 MM | F179: COT-HID-002 | G179: COTAÇÃO | H179: UN | I179: 1 | J179: 31.47 | K179: BDI 1 | L179: 39.81 | M179: 31.47 | N179: 39.81
A180: 12 | B180: 1 | D180: 12.1.16 | E180: INSTALAÇÃO TE DE REDUÇÃO, CPVC, 35 X 22 MM | F180: DAC-12.2 | G180: CPU | H180: UN | I180: 1 | J180: 15.537288 | K180: BDI 1 | L180: 19.65 | M180: 15.53 | N180: 19.65
A181: 12 | B181: 1 | D181: 12.1.17 | E181: TÊ MISTURADOR, CPVC, SOLDÁVEL, DN22MM, INSTALADO EM RAMAL OU SUB-RAMAL DE ÁGUA FORNECIMENTO E INSTALAÇÃO. AF_06/2022 | F181: 89702 | G181: SINAPI | H181: UN | I181: 5 | J181: 21.09 | K181: BDI 1 | L181: 26.68 | M181: 105.45 | N181: 133.4
A182: 12 | B182: 2 | D182: 12.2.1 | E182: LUVA EM COBRE, DN 22 MM, SEM ANEL DE SOLDA, INSTALADO EM PRUMADA DE HIDRÁULICA PREDIAL - FORNECIMENTO E INSTALAÇÃO. AF_04/2022 | F182: 92293 | G182: SINAPI | H182: UN | I182: 1 | J182: 9.33 | K182: BDI 1 | L182: 11.8 | M182: 9.33 | N182: 11.8
A183: 12 | B183: 2 | D183: 12.2.2 | E183: LUVA EM COBRE, DN 35 MM, SEM ANEL DE SOLDA, INSTALADO EM PRUMADA DE HIDRÁULICA PREDIAL - FORNECIMENTO E INSTALAÇÃO. AF_04/2022 | F183: 92295 | G183: SINAPI | H183: UN | I183: 2 | J183: 30.23 | K183: BDI 1 | L183: 38.24 | M183: 60.46 | N183: 76.48
A184: 12 | B184: 3 | D184: 12.3.1 | E184: REGISTRO DE GAVETA BRUTO, LATÃO, ROSCÁVEL, 1 1/4" - FORNECIMENTO E INSTALAÇÃO. AF_08/2021 | F184: 94496 | G184: SINAPI | H184: UN | I184: 2 | J184: 111.4 | K184: BDI 1 | L184: 140.94 | M184: 222.8 | N184: 281.88
A185: 12 | B185: 3 | D185: 12.3.2 | E185: REGISTRO DE GAVETA BRUTO, LATÃO, ROSCÁVEL, 3/4", COM ACABAMENTO E CANOPLA CROMADOS - FORNECIMENTO E INSTALAÇÃO. AF_08/2021 | F185: 89987 | G185: SINAPI | H185: UN | I185: 47 | J185: 125.89 | K185: BDI 1 | L185: 159.27 | M185: 5916.83 | N185: 7485.69
A186: 12 | B186: 3 | D186: 12.3.3 | E186: REGISTRO DE PRESSÃO BRUTO, LATÃO, ROSCÁVEL, 3/4'' - FORNECIMENTO E INSTALAÇÃO. AF_08/2021 | F186: 89351 | G186: SINAPI | H186: UN | I186: 5 | J186: 43.09 | K186: BDI 1 | L186: 54.51 | M186: 215.45 | N186: 272.55
A187: 12 | B187: 3 | D187: 12.3.4 | E187: REGISTRO DE PRESSÃO BRUTO, LATÃO, ROSCÁVEL, 3/4", COM ACABAMENTO E CANOPLA CROMADOS - FORNECIMENTO E INSTALAÇÃO. AF_08/2021 | F187: 89985 | G187: SINAPI | H187: UN | I187: 8 | J187: 119.28 | K187: BDI 1 | L187: 150.91 | M187: 954.24 | N187: 1207.28
A188: 12 | B188: 4 | D188: 12.4.1 | E188: ADAPTADOR CURTO COM BOLSA E ROSCA PARA REGISTRO, PVC, SOLDÁVEL, DN 25MM X 3/4 , INSTALADO EM RAMAL OU SUB-RAMAL DE ÁGUA - FORNECIMENTO E INSTALAÇÃO. AF_06/2022 | F188: 89383 | G188: SINAPI | H188: UN | I188: 92 | J188: 6.02 | K188: BDI 1 | L188: 7.61 | M188: 553.84 | N188: 700.12
A189: 12 | B189: 4 | D189: 12.4.2 | E189: ADAPTADOR CURTO COM BOLSA E ROSCA PARA REGISTRO, PVC, SOLDÁVEL, DN 40MM X 1.1/4 , INSTALADO EM PRUMADA DE ÁGUA - FORNECIMENTO E INSTALAÇÃO. AF_06/2022 | F189: 89572 | G189: SINAPI | H189: UN | I189: 2 | J189: 8.87 | K189: BDI 1 | L189: 11.22 | M189: 17.74 | N189: 22.44
A190: 12 | B190: 4 | D190: 12.4.3 | E190: BUCHA DE REDUÇÃO, PVC, SOLDÁVEL, DN 40MM X 32MM, INSTALADO EM PRUMADA DE ÁGUA - FORNECIMENTO E INSTALAÇÃO. AF_06/2022 | F190: 103977 | G190: SINAPI | H190: UN | I190: 3 | J190: 6.84 | K190: BDI 1 | L190: 8.65 | M190: 20.52 | N190: 25.95
A191: 12 | B191: 4 | D191: 12.4.4 | E191: BUCHA DE REDUÇÃO, CURTA, PVC, SOLDÁVEL, DN 50 X 40 MM, INSTALADO EM PRUMADA DE ÁGUA - FORNECIMENTO E INSTALAÇÃO. AF_06/2022 | F191: 103958 | G191: SINAPI | H191: UN | I191: 1 | J191: 9.95 | K191: BDI 1 | L191: 12.58 | M191: 9.95 | N191: 12.58
A192: 12 | B192: 4 | D192: 12.4.5 | E192: BUCHA DE REDUÇÃO , LONGA, PVC, SOLDÁVEL, DN 50 X 32 MM, INSTALADO EM RAMAL DE DISTRIBUIÇÃO DE ÁGUA - FORNECIMENTO E INSTALAÇÃO. AF_06/2022 | F192: 104003 | G192: SINAPI | H192: UN | I192: 1 | J192: 14.75 | K192: BDI 1 | L192: 18.66 | M192: 14.75 | N192: 18.66
A193: 12 | B193: 4 | D193: 12.4.6 | E193: JOELHO 45 GRAUS, PVC, SOLDÁVEL, DN 25MM, INSTALADO EM RAMAL OU SUB-RAMAL DE ÁGUA - FORNECIMENTO E INSTALAÇÃO. AF_06/2022 | F193: 89363 | G193: SINAPI | H193: UN | I193: 4 | J193: 9.4 | K193: BDI 1 | L193: 11.89 | M193: 37.6 | N193: 47.56
A194: 12 | B194: 4 | D194: 12.4.7 | E194: JOELHO 45 GRAUS, PVC, SOLDÁVEL, DN 32MM, INSTALADO EM RAMAL OU SUB-RAMAL DE ÁGUA - FORNECIMENTO E INSTALAÇÃO. AF_06/2022 | F194: 89368 | G194: SINAPI | H194: UN | I194: 21 | J194: 14.35 | K194: BDI 1 | L194: 18.15 | M194: 301.35 | N194: 381.15
A195: 12 | B195: 4 | D195: 12.4.8 | E195: JOELHO 45 GRAUS, PVC, SOLDÁVEL, DN 50MM, INSTALADO EM PRUMADA DE ÁGUA - FORNECIMENTO E INSTALAÇÃO. AF_06/2022 | F195: 89502 | G195: SINAPI | H195: UN | I195: 7 | J195: 17.37 | K195: BDI 1 | L195: 21.97 | M195: 121.59 | N195: 153.79
A196: 12 | B196: 4 | D196: 12.4.9 | E196: JOELHO 90 GRAUS, PVC, SOLDÁVEL, DN 25MM, INSTALADO EM PRUMADA DE ÁGUA - FORNECIMENTO E INSTALAÇÃO. AF_06/2022 | F196: 89481 | G196: SINAPI | H196: UN | I196: 117 | J196: 4.87 | K196: BDI 1 | L196: 6.16 | M196: 569.79 | N196: 720.72
A197: 12 | B197: 4 | D197: 12.4.10 | E197: JOELHO 90 GRAUS, PVC, SOLDÁVEL, DN 32MM, INSTALADO EM PRUMADA DE ÁGUA - FORNECIMENTO E INSTALAÇÃO. AF_06/2022 | F197: 89492 | G197: SINAPI | H197: UN | I197: 1 | J197: 8.02 | K197: BDI 1 | L197: 10.14 | M197: 8.02 | N197: 10.14
A198: 12 | B198: 4 | D198: 12.4.11 | E198: JOELHO 90 GRAUS, PVC, SOLDÁVEL, DN 40MM, INSTALADO EM PRUMADA DE ÁGUA - FORNECIMENTO E INSTALAÇÃO. AF_06/2022 | F198: 89497 | G198: SINAPI | H198: UN | I198: 14 | J198: 13.59 | K198: BDI 1 | L198: 17.19 | M198: 190.26 | N198: 240.66
A199: 12 | B199: 4 | D199: 12.4.12 | E199: JOELHO DE REDUÇÃO, 90 GRAUS, PVC, SOLDÁVEL, DN 32 MM X 25 MM, INSTALADO EM RAMAL OU SUB-RAMAL DE ÁGUA - FORNECIMENTO E INSTALAÇÃO. AF_06/2022 | F199: 103951 | G199: SINAPI | H199: UN | I199: 42 | J199: 14.86 | K199: BDI 1 | L199: 18.8 | M199: 624.12 | N199: 789.6
A200: 12 | B200: 4 | D200: 12.4.13 | E200: TUBO, PVC, SOLDÁVEL, DN 25MM, INSTALADO EM RAMAL OU SUB-RAMAL DE ÁGUA - FORNECIMENTO E INSTALAÇÃO. AF_06/2022 | F200: 89356 | G200: SINAPI | H200: M | I200: 313.8 | J200: 21.99 | K200: BDI 1 | L200: 27.82 | M200: 6900.46 | N200: 8729.91
... 252 more rows

Sheet COT
A2: PLANILHA DE COTAÇÕES | K2: Revisão: | L2: =DADOS!D6 -> R01
K3: Data: | L3: =DADOS!D2 -> 2023-04-28
A4: Projeto: | D4: Responsável: | G4: Cliente: | K4: Bancos:
A5: =DADOS!D8 -> CONSTRUÇÃO DO CENTRO DE ATENÇÃO PSICOSSOCIAL | D5: =DADOS!G8 -> 0 | K5: =DADOS!D14 -> SINAPI: 03/2023 Minas Gerais SETOP: 01/2023 Minas Gerais SICRO : 10/2022 Minas Gerais SUDECAP: 02/2023 Minas Gerais
K8: BDI 1: | L8: =DADOS!D10 -> 0.2652
K9: BDI 2: | L9: =DADOS!D12 -> 0.2025
A11: =A2&" DE "&DADOS!D20&" - "&A5 -> PLANILHA DE COTAÇÕES DE PROJETO EXECUTIVO - CONSTRUÇÃO DO CENTRO DE ATENÇÃO PSICOSSOCIAL
A13: COT-ARQ-001 | B13: BOX PARA BANHEIRO 1,65x1,90 M - FORNECIMENTO E INSTALAÇÃO | I13: UN | L13: =MEDIAN(L15:XFD17) -> 760
A14: EMPRESA | B14: CIDADE | C14: LOCAL / LINK | G14: CNPJ | H14: CONTATO | I14: UN | J14: VALOR | K14: FRETE | L14: TOTAL
A15: VIDRAÇARIA BOM JESUS | B15: POUSO ALEGRE | G15: 15.028.808/0001-54 | H15: (35) 8810-1123 | I15: UN | J15: 630 | K15: 0 | L15: =J15+K15 -> 630
A16: VIDRAÇARIA SÃO JORGE | B16: POUSO ALEGRE | G16: 23.961.877/0001-44 | H16: (35) 9900-4179 | I16: UN | J16: 1200 | K16: 0 | L16: =J16+K16 -> 1200
A17: VIDRAÇARIA CRISTAL | B17: POUSO ALEGRE | G17: 36.084.232/0001-12 | H17: (35) 9878-6061 | I17: UN | J17: 760 | K17: 0 | L17: =J17+K17 -> 760
A19: COT-ARQ-002 | B19: BRISE METÁLICO - FORNECIMENTO E INSTALAÇÃO | I19: M² | L19: =MEDIAN(L21:XFD23) -> 911.81
A20: EMPRESA | B20: CIDADE | C20: LOCAL / LINK | G20: CNPJ | H20: CONTATO | I20: UN | J20: VALOR | K20: FRETE | L20: TOTAL
A21: OLIVER BRISE | B21: SANTO ANDRÉ/SP | G21: 26.804.967/0001-10 | H21: (11) 4106-2676 | I21: M ² | J21: 460 | K21: 1500 | L21: =J21+K21 -> 1960
A22: METAL LINE | B22: SÃO CARLOS/SP | G22: 06.865.553/0001-93 | H22: (16) 3116-7779 | I22: M² | J22: 301.81 | K22: 610 | L22: =J22+K22 -> 911.81
A23: BORGES SERRALHERIA | B23: POUSO ALEGRE/MG | G23: 30.190.654/0001-96 | H23: (35) 99762-7723 | I23: M² | J23: 666.67 | K23: 0 | L23: =J23+K23 -> 666.67
A25: COT-ARQ-003 | B25: CORTINA HOSPITALAR - FORNECIMENTO E INSTALAÇÃO | I25: M | L25: =MEDIAN(L27:XFD29) -> 1225.18
A26: EMPRESA | B26: CIDADE | C26: LOCAL / LINK | G26: CNPJ | H26: CONTATO | I26: UN | J26: VALOR | K26: FRETE | L26: TOTAL
A27: IJS CORTINAS | C27: https://ijscortinas.com.br/divisorias-para-leito/ | G27: 27.211.941/0001-20 | H27: (11) 2861-8040 | I27: M | J27: 281.36 | K27: 0 | L27: =J27+K27 -> 281.36
A28: LVL HOSPITALAR | C28: https://lvlhospitalar.com.br/produtos/cortina-para-leito-hospitalar/ | G28: 37.021.825/0001-00 | H28: (11) 2379-1682 | I28: M | J28: 169 | K28: 2000 | L28: =J28+K28 -> 2169
A31: COT-ARQ-004 | B31: PAINEL EM MADEIRA - FORNECIMENTO E INSTALAÇÃO | I31: M² | L31: =MEDIAN(L33:XFD35) -> 307.17
A32: EMPRESA | B32: CIDADE | C32: LOCAL / LINK | G32: CNPJ | H32: CONTATO | I32: UN | J32: VALOR | K32: FRETE | L32: TOTAL
A33: MADEIREIRA BASE SÓLIDA | C33: https://www.basesolidamadeiras.com/chapas-e-paineis/copia-chapa-painel-de-eucalipto-2-80m-x-60cm-x-1-9cm | G33: 04.308.184/0001-02 | H33: (41) 3653-0008 | I33: M² | J33: 232.14 | K33: 306.8 | L33: =J33+K33 -> 538.94
A34: LEROY MERLIN | C34: https://www.leroymerlin.com.br/painel-de-madeira-eucalipto-saligna-1,7cm-natural-60cm-x-1,83m-madvei_91723380 | G34: 01.438.784/0048-60 | H34: 0800 020 5376 | I34: M² | J34: 145.63 | K34: 161.54 | L34: =J34+K34 -> 307.17
A35: PONTO FRIO | C35: https://www.pontofrio.com.br/painel-madeira-eucalipto-800-x-300-x-18mm-reck-1542553072/p/1542553072?utm_medium=cpc&utm_source=google_freelisting&IdSku=1542553072&idLojista=40698&tipoLojista=3P | G35: 33.041.260/0652-90 | H35: (21) 99664-7398 | I35: M² | J35: 197.87 | K35: 51.66 | L35: =J35+K35 -> 249.53
A37: COT-ARQ-005 | B37: PORTA SANFONADA PVC 1000 X 2100 MM, COMPLETA, NA COR BRANCA | I37: UN | L37: =MEDIAN(L39:XFD41) -> 217.08
A38: EMPRESA | B38: CIDADE | C38: LOCAL / LINK | G38: CNPJ | H38: CONTATO | I38: UN | J38: VALOR | K38: FRETE | L38: TOTAL
A39: MAGAZINE LUIZA | C39: https://www.magazineluiza.com.br/porta-sanfonada-de-pvc-210x105cm-bariri/p/deek7h00fh/cj/prts/?&seller_id=madeiramadeira-openapi&utm_source=google&utm_medium=pla&utm_campaign=&partner_id=69996&gclid=Cj0KCQiA_bieBhDSARIsADU4zLdw-UmjKKE-E2V4yTYZa1mASmvwjvNah9j3maChV4K8aTBuXgMw_gMaAjy5EALw_wcB&gclsrc=aw.ds | G39: 47.960.950/1088-36 | H39: 0800 773 383 | I39: UN | J39: 131.12 | K39: 0 | L39: =J39+K39 -> 131.12
A40: MADEIRA MADEIRA | C40: https://www.madeiramadeira.com.br/porta-sanfonada-de-pvc-210x105cm-bariri-791801.html?origem=pla-791801&utm_source=google&utm_medium=cpc&utm_content=portas-3065&utm_term=&utm_id=17700659450&gclid=Cj0KCQiA_bieBhDSARIsADU4zLeR_fWZrW6vydzE6wZn1ub9J2uoKLpHw3Y5cEXDMDj0pQVhK9245-QaAn3jEALw_wcB | G40: 10.490.181/0001-35 | H40: 0800 080 0099 | I40: UN | J40: 131.12 | K40: 99.6 | L40: =J40+K40 -> 230.72
A41: C&C CASA & CONSTRUÇÃO | C41: https://www.cec.com.br/janelas-e-portas/portas/sanfonada/porta-sanfonada-em-pvc-210x94cm-cinza?produto=1365991&idpublicacao=791d2005-d206-4804-b297-71cab438caf1&gclid=Cj0KCQiA_bieBhDSARIsADU4zLeheg5OOz4VHwrJIdJvQfE23G6m3KfIwPzOq_5zJI22FjhfXuaV9AsaAtVUEALw_wcB | G41: 63.004.030.0030-20 | H41: 11 4001-0100 | I41: UN | J41: 187.99 | K41: 29.09 | L41: =J41+K41 -> 217.08
A43: COT-ARQ-006 | B43: JANELA DE ALUMÍNIO TIPO GUILHOTINA, 1000 X 1000 MM COM DUAS FOLHAS - FORNECIMENTO E INSTALAÇÃO | I43: UN | L43: =MEDIAN(L45:XFD47) -> 962.295
A44: EMPRESA | B44: CIDADE | C44: LOCAL / LINK | G44: CNPJ | H44: CONTATO | I44: UN | J44: VALOR | K44: FRETE | L44: TOTAL
A45: DECORE | G45: 12.639.868/0001-15 | H45: (35) 3422-3456 | I45: UN | J45: 918.55 | K45: 0 | L45: =J45+K45 -> 918.55
A46: WM ESQUADRIAS | G46: 09.033.340/0001-90 | H46: (16) 3413-2790 | I46: UN | J46: 1006.04 | K46: 0 | L46: =J46+K46 -> 1006.04
A48: COT-ARQ-007 | B48: PELÍCULA JATEADA PARA VIDROS | I48: M2 | L48: =MEDIAN(L50:XFD52) -> 56.54
A49: EMPRESA | B49: CIDADE | C49: LOCAL / LINK | G49: CNPJ | H49: CONTATO | I49: UN | J49: VALOR | K49: FRETE | L49: TOTAL
A50: FRAN ADESIVOS | C50: https://www.franadesivos.com.br/adesivo-jateado-para-box-e-portas-de-vidro-50cm-p18365 | G50: 17.121.172/0001-16 | H50: (16) 98147-4440 | I50: M² | J50: 44.9 | K50: 22.89 | L50: =J50+K50 -> 67.79
A51: AMAZON | C51: https://www.amazon.com.br/Adesivo-Jateado-para-Vidro-Janelas/dp/B079RN2FHC/ref=asc_df_B079RN2FHC/?tag=googleshopp00-20&linkCode=df0&hvadid=379685184894&hvpos=&hvnetw=g&hvrand=4997116388034431693&hvpone=&hvptwo=&hvqmt=&hvdev=c&hvdvcmdl=&hvlocint=&hvlocphy=9101220&hvtargid=pla-904056265624&psc=1 | G51: 15.436.940/0001-03 | I51: M² | J51: 30.36 | K51: 10.35 | L51: =J51+K51 -> 40.71
A52: MAGAZINE LUIZA | C52: https://www.magazineluiza.com.br/adesivo-jateado-para-janela-vidro-box-banheiro-imprimax/p/bkj83e0f80/de/avid/?&seller_id=olhomagicoadesivos&utm_source=google&utm_medium=pla&utm_campaign=&partner_id=68055&gclid=CjwKCAiAoL6eBhA3EiwAXDom5vBgU7wtwP6KTHvJFYD6HwM1UTOEXyfJh7bolsih5AOJL9ruWsujphoCLR0QAvD_BwE&gclsrc=aw.ds | G52: 47.960.950/1088-36 | H52: 0800 773 3838 | I52: M² | J52: 39.8 | K52: 16.74 | L52: =J52+K52 -> 56.54
A54: COT-ARQ-008 | B54: COIFA PARA FOGÃO INDUSTRIAL - FORNECIMENTO E INSTALAÇÃO | I54: UN | L54: =MEDIAN(L56:XFD57) -> 5250
A55: EMPRESA | B55: CIDADE | C55: LOCAL / LINK | G55: CNPJ | H55: CONTATO | I55: UN | J55: VALOR | K55: FRETE | L55: TOTAL
A56: INOXSIM | G56: 29.358.545/0001-56 | H56: (35) 9915-0100 | I56: UN | J56: 5900 | K56: 0 | L56: =J56+K56 -> 5900
A57: POUSO INOX | G57: 12.115.379/0001-64 | H57: (35) 9927-5518 | I57: UN | J57: 4600 | K57: 0 | L57: =J57+K57 -> 4600
A59: COT-ARQ-009 | B59: FOGÃO INDUSTRIAL 6 BOCAS | I59: UN | L59: =MEDIAN(L61:XFD63) -> 5110.6
A60: EMPRESA | B60: CIDADE | C60: LOCAL / LINK | G60: CNPJ | H60: CONTATO | I60: UN | J60: VALOR | K60: FRETE | L60: TOTAL
A61: POUSO INOX | G61: 12.115.379/0001-64 | H61: (35) 9927-5518 | I61: UN | J61: 7580 | K61: 0 | L61: =SUM(J61:K61) -> 7580
A62: AMERICANAS | C62: https://www.americanas.com.br/produto/3273221079?pfm_carac=fogao-industrial-6-bocas-40x40&pfm_index=2&pfm_page=search&pfm_pos=grid&pfm_type=search_page&offerId=6099912252131c3c8111517a | G62: 00.776.574/0006-60 | H62: 4003-4848 | I62: UN | J62: 3569.69 | K62: 330 | L62: 3899.69
A63: CASTELLMAQ | C63: https://www.castellmaq.com.br/fogao-industrial-6-bocas-40x40-em-inox-cristal-aco-0620-p620 | G63: 33.600.590/0001-42 | H63: 0800 300 3000 | I63: UN | J63: 4875.78 | K63: 234.82 | L63: =SUM(J63:K63) -> 5110.6
A65: COT-INC-001 | B65: PLACA FOTOLUMINESCENTE "S3" | I65: UN | L65: =MEDIAN(L67:XFD69) -> 37.25
A66: EMPRESA | B66: CIDADE | C66: LOCAL / LINK | G66: CNPJ | H66: CONTATO | I66: UN | J66: VALOR | K66: FRETE | L66: TOTAL
A67: LOJA VIÁRIA | C67: https://www.lojaviaria.com.br/placa-fotoluminescente-s3-saida-acima-24x12cm?utm_source=Site&utm_medium=GoogleMerchant&utm_campaign=GoogleMerchant | G67: 13.851.664/0001-06 | H67: (41) 3679-6752 | I67: UN | J67: 13.38 | K67: 23.87 | L67: =J67+K67 -> 37.25
A68: MAGAZINE LUIZA | C68: https://www.magazineluiza.com.br/placa-saida-emergencia-cima-s3-20x40cm-fotoluminescentebrcontroll/p/ddb652b42k/pi/psds/ | G68: 47.960.950/1088-36 | H68: 0800 770 8411 | I68: UN | J68: 13.77 | K68: 14.67 | L68: =J68+K68 -> 28.44
A69: ACQUA FORT | C69: https://www.acquafort.com.br/placafotoluminescentesaidaemergenciacimas320x40cm/p?idsku=547&gclid=EAIaIQobChMIw_32nMC59wIVpeVcCh2VbQG0EAQYASABEgJmZ_D_BwE | G69: 02.264.256/0001-31 | H69: (41) 3247-1199 | I69: UN | J69: 12.87 | K69: 26.05 | L69: =J69+K69 -> 38.92
A71: COT-INC-002 | B71: PLACA FOTOLUMINESCENTE "E1" - ALARME SONORO | I71: UN | L71: =MEDIAN(L73:XFD75) -> 37.84
A72: EMPRESA | B72: CIDADE | C72: LOCAL / LINK | G72: CNPJ | H72: CONTATO | I72: UN | J72: VALOR | K72: FRETE | L72: TOTAL
A73: VALDÔ ADESIVOS E PLACAS | C73: https://valdoplacas.com.br/produtos/placa-alarme-sonoro-fotoluminescente-e1/?pf=gs&gclid=Cj0KCQjwteOaBhDuARIsADBqRegM54NDMsDHv3zB4JTQ3BgsnNAs1hG3NAQO8oDCAB-n0B8rqrmjLV4aAtg7EALw_wcB | G73: 00.321.078/0001-08 | H73: (51) 3724-2500 | I73: UN | J73: 14.9 | K73: 20.72 | L73: =J73+K73 -> 35.62
A74: SINAL CENTER | C74: https://www.sinalcenter.com.br/placa-fotoluminescente-e1-alarme-sonoro?parceiro=2432 | G74: 38.414.523/0001-57 | H74: (41) 99772-8458 | I74: UN | J74: 16.9 | K74: 20.94 | L74: =J74+K74 -> 37.84
A75: I SINALIZA | C75: https://www.isinaliza.com/placa-alarme-sonoro-quadrada/p?gclid=Cj0KCQiAic6eBhCoARIsANlox86nJt2KWziqu4kprWAynO8rOUHnej55m2nO-uhUeOeUtDD2SGa_abwaAqoAEALw_wcB&idsku=13759&skuId=13760 | G75: 82.962.127.0001-56 | H75: (11) 93004-1270 | I75: UN | J75: 16.9 | K75: 43.02 | L75: =J75+K75 -> 59.92
A77: COT-INC-003 | B77: PLACA FOTOLUMINESCENTE "E2" - ALARME DE INCÊNDIO | I77: UN | L77: =MEDIAN(L79:XFD81) -> 48.62
A78: EMPRESA | B78: CIDADE | C78: LOCAL / LINK | G78: CNPJ | H78: CONTATO | I78: UN | J78: VALOR | K78: FRETE | L78: TOTAL
A79: ACQUA FORT | C79: https://www.acquafort.com.br/placae22030/p?idsku=1901&gclid=Cj0KCQjwteOaBhDuARIsADBqRejfdvQYd-C4SD0RUEB6A5wYwNozKir1-i6Otzs6aFCY9shL2LvcQeMaAqqPEALw_wcB | G79: 02.264.256/0001-31 | H79: (41) 3247-1199 | I79: UN | J79: 11.77 | K79: 26.04 | L79: =J79+K79 -> 37.81
A80: QUALITY TUBOS | C80: https://www.lojaqualitytubos.com.br/placa-sinalizadora-de-alarme-de-incendio-modelo-e2- p1000501?v=1000502 | G80: 29.851.289/0001-34 | H80: (11) 3107-0000 | I80: UN | J80: 15.25 | K80: 49.9 | L80: =J80+K80 -> 65.15
A81: VALDÔ ADESIVOS E PLACAS | C81: https://valdoplacas.com.br/produtos/placa-sinalizacao-alarme-de-incendio-fotoluminescente-e2/ | G81: 00.321.078/0001-08 | H81: (51) 3722-4852 | I81: UN | J81: 27.9 | K81: 20.72 | L81: =J81+K81 -> 48.62
A83: COT-INC-004 | B83: PLACA FOTOLIMINESCENTE "E9" - HIDRANTE | I83: UN | L83: =MEDIAN(L85:XFD87) -> 35.62
A84: EMPRESA | B84: CIDADE | C84: LOCAL / LINK | G84: CNPJ | H84: CONTATO | I84: UN | J84: VALOR | K84: FRETE | L84: TOTAL
A85: VALDÔ ADESIVOS E PLACAS | C85: https://valdoplacas.com.br/produtos/placa-hidrante-fotoluminescente-e9/?pf=gs&gclid=Cj0KCQjwteOaBhDuARIsADBqRegOrlehoP-KCZaunUEuM77Qt6hHmog4vBnC5pcczfAiDEgIcaio8soaAprxEALw_wcB | G85: 00.321.078/0001-08 | H85: (51) 3722-4852 | I85: UN | J85: 14.9 | K85: 20.72 | L85: =J85+K85 -> 35.62
A86: ACQUA FORT | C86: https://www.acquafort.com.br/placafotoluminescentehidranteincendioe820x20/p?idsku=1902&gclid=Cj0KCQjwteOaBhDuARIsADBqReg0G9aEuN7o6X6kqBe0LtS3oArUUjT4tnaS3Ampmt2SvDXJsumh1JgaAr2rEALw_wcB | G86: 02.264.256/0001-31 | H86: (41) 3247-1199 | I86: UN | J86: 5.91 | K86: 25.98 | L86: =J86+K86 -> 31.89
A87: I SINALIZA | C87: https://www.isinaliza.com/placa-hidrante-fotoluminescente-e9/p?idsku=15800 | G87: 82.962.127.0001-56 | H87: (11) 93004-1270 | I87: UN | J87: 21.47 | K87: 43.06 | L87: =J87+K87 -> 64.53
A89: COT-INC-005 | B89: PLACA FOTOLUMINESCENTE "M1" - SISTEMAS DE SEGURANÇA | I89: UN | L89: =MEDIAN(L91:XFD93) -> 66.43
A90: EMPRESA | B90: CIDADE | C90: LOCAL / LINK | G90: CNPJ | H90: CONTATO | I90: UN | J90: VALOR | K90: FRETE | L90: TOTAL
A91: JP EXTINTORES | C91: https://www.jpextintores.com.br/placa-indicativa-m1-a | G91: 27.955.015/0001-60 | H91: (11) 2143-9136 | I91: UN | J91: 59.99 | K91: 22.75 | L91: =J91+K91 -> 82.74
A92: CONTRA INCÊNDIO | C92: https://contraincendio.com.br/produto/sinalizacao-de-emergencia/mensagens-escritas/placa-de-sinalizacao-edificacao-m1/?attribute_modelos=Modelo+2&utm_source=Google+Shopping&utm_medium=cpc&utm_campaign=feed_contraincendio_google_shopping&gclid=Cj0KCQjwteOaBhDuARIsADBqRegd3Da3Znwx2sworlrSL98dX3tCgH3x6183njECLqKJLMexDDzRoccaAv2_EALw_wcB | G92: 15.579.136/0001-75 | H92: (15) 3233-5959 | I92: UN | J92: 48.99 | K92: 17.44 | L92: =J92+K92 -> 66.43
A93: MEGA THOR | C93: https://www.megathor.com.br/placa-sistemas-de-seguranca-m1-fotoluminescente?parceiro=2543&gclid=Cj0KCQjwteOaBhDuARIsADBqReiGrGavUAwj8mayGFEe-8cLDD9WxZRk4bLPfC2uCU2XL8HIMoHpA-UaAvcmEALw_wcB | G93: 40.863.901/0001-21 | H93: (11) 4395-1324 | I93: UN | J93: 21.9 | K93: 39 | L93: =J93+K93 -> 60.9
A95: COT-INC-006 | B95: CENTRAL DE ALARME DE INCÊNDIO ENDEREÇÁVEL | I95: UN | L95: =MEDIAN(L97:XFD99) -> 1542.69
A96: EMPRESA | B96: CIDADE | C96: LOCAL / LINK | G96: CNPJ | H96: CONTATO | I96: UN | J96: VALOR | K96: FRETE | L96: TOTAL
A97: POROCESSTEC | C97: https://www.processtec.com.br/central-de-alarme-de-incendio-intelbras-cie-1125?origem=gs&gclid=EAIaIQobChMIq__mgPTC9QIVFA2RCh3D | G97: 05.690.866/0001-95 | H97: (81) 9 9906-8474 | I97: UN | J97: 1502.69 | K97: 40 | L97: =J97+K97 -> 1542.69
A98: CONTRA INCÊNDIO | C98: https://contraincendio.com.br/produto/alarme-de-incendio/central/intelbras-central/central-alarme-de-incendio-enderecavel-cie-1125-intelbras/ | G98: 15.579.136/0001-75 | H98: (15) 3233-5959 | I98: UN | J98: 1488.26 | K98: 39.14 | L98: =J98+K98 -> 1527.4
A99: NET ALARMES | C99: https://www.netalarmes.com.br/central-de-alarme-de-incendio-intelbras-cie-1125-enderecavel?parceiro=8046&srsltid=AdGWZVQVxCJDRWfNmad_R2Y4AjlHxbydkvffaTEoUUimGx-vIwxyUjQlge0 | G99: 20.544.487/0001-80 | H99: (43) 3344-4002 | I99: UN | J99: 1543.3 | K99: 39.05 | L99: =J99+K99 -> 1582.35
A101: COT-INC-007 | B101: SINALIZADOR VISUAL E ACÚSTICO PARA SISTEMA DE INCÊNDIO ENDEREÇÁVEL | I101: UN | L101: =MEDIAN(L103:XFD105) -> 86.27
A102: EMPRESA | B102: CIDADE | C102: LOCAL / LINK | G102: CNPJ | H102: CONTATO | I102: UN | J102: VALOR | K102: FRETE | L102: TOTAL
A103: NET ALARMES | C103: https://www.netalarmes.com.br/alarme/alarme-de-incendio/sinalizador-audiovisual-convencional-intelbras-sav-420-c | G103: 20.544.487/0001-80 | H103: (43) 3344-4002 | I103: UN | J103: 63.98 | K103: 22.29 | L103: =J103+K103 -> 86.27
A104: ELETRÔNICA SANTANA | C104: https://www.eletronicasantana.com.br/sinalizador-audiovisual-convencional-sav-420c-4615030-intelbras/p | G104: 60.717.899/0001-90 | H104: (11) 2823-7066 | I104: UN | J104: 67.9 | K104: 15.71 | L104: =J104+K104 -> 83.61
A105: UPPER SEG | C105: https://www.upperseg.com.br/deteccao-e-alarme-de-incendio/acessorios/avisador-visual-e-sonoro-convencional-led-24vcc-slim-engesul/ | G105: 17.354.683/0001-88 | H105: (43) 3024-5144 | I105: UN | J105: 61.66 | K105: 29.19 | L105: =J105+K105 -> 90.85
A107: COT-INC-008 | B107: BATERIA PARA ALARME DE INCÊNDIO | I107: UN | L107: =MEDIAN(L109:XFD111) -> 134.4
A108: EMPRESA | B108: CIDADE | C108: LOCAL / LINK | G108: CNPJ | H108: CONTATO | I108: UN | J108: VALOR | K108: FRETE | L108: TOTAL
A109: MAGAZINE LUIZA | C109: https://www.magazineluiza.com.br/bateria-selada-12v-para-sistemas-de-seguranca-xb-12al-intelbras/p/af1k5h907e/cj/batr/?&seller_id=eltecom&utm_source=google&utm_medium=pla&utm_campaign=&partner_id=69095&gclid=CjwKCAiArNOeBhAHEiwAze_nKCdE54lv0yHbDE20nx-CYE2jTk8ZsJdSRT6llfJwt9qIWgTg_ZKFRhoCBcYQAvD_BwE&gclsrc=aw.ds | G109: 47.960.950/1088-36 | H109: 0800 770 8411 | I109: UN | J109: 110.8 | K109: 0 | L109: =J109+K109 -> 110.8
A110: UPPER SEG | C110: https://www.upperseg.com.br/alarme/acessorios/bateria/bateria-de-chumbo-acido-12v-para-sistemas-de-seguranca-xb-12al/ | G110: 17.354.683/0001-88 | H110: (43) 3024-5144 | I110: UN | J110: 106.31 | K110: 28.09 | L110: =J110+K110 -> 134.4
A111: GRUPO MGA | C111: https://www.mgavirtual.com.br/bateria-selada-12v-xb-12al-p2572 | G111: 92.826.742/0001-99 | H111: (51) 3269-6000 | I111: UN | J111: 125 | K111: 25.71 | L111: =J111+K111 -> 150.71
A113: COT-INC-009 | B113: BOMBA DE INCÊNDIO 4 CV | I113: UN | L113: =MEDIAN(L115:XFD117) -> 4291.72
A114: EMPRESA | B114: CIDADE | C114: LOCAL / LINK | G114: CNPJ | H114: CONTATO | I114: UN | J114: VALOR | K114: FRETE | L114: TOTAL
A115: MERITO COMERCIAL | C115: https://www.meritocomercial.com.br/bomba-de-incendio-thebe-thli-13-4-cv-trifasica-220380440v-20370078003-p1023478 | G115: 01.582.892/0001-49 | H115: (11) 98394-0500 | I115: UN | J115: 4722.82 | K115: 95.24 | L115: =J115+K115 -> 4818.06
A116: COLISEU FERRAMENTAS | C116: https://www.coliseuferramentas.com.br/produto/bomba-de-incendio-thebe-thli-13-4cv-trifasico-220380440v.html?utm_source=Site&utm_medium=GoogleMerchant&utm_campaign=GoogleMerchant&srsltid=AdGWZVRJ4J_ljQxqO8i4N-h1b-W0yUxKuaHAvh7Ig7cb33qhCFa1ay_pvvA | G116: 29.851.278/0001-54 | H116: (11) 3567-9661 | I116: UN | J116: 3515.99 | K116: 123.08 | L116: =J116+K116 -> 3639.07
A117: MAGAZINE LUIZA | C117: https://www.magazineluiza.com.br/bomba-centrifuga-monoestagio-thli-13-4cv-ip55-trifasico-thebe/p/fabdd5g49j/cj/mobo/?&seller_id=jumes3&utm_source=google&utm_medium=pla&utm_campaign=&partner_id=69095&gclid=Cj0KCQjw48OaBhDWARIsAMd966AsF9-fXuV9GicNeZYi80u_t8_Y2bmqZtvANZHVtcpFq3CGCt_DX3AaAr2HEALw_wcB&gclsrc=aw.ds | G117: 47.960.950/1088-36 | H117: 0800 770 8411 | I117: UN | J117: 4186.25 | K117: 105.47 | L117: =J117+K117 -> 4291.72
A119: COT-INC-010 | B119: QUADRO DE COMANDO PARA BOMBA DE INCÊNDIO | I119: UN | L119: =MEDIAN(L121:XFD123) -> 1069.36
A120: EMPRESA | B120: CIDADE | C120: LOCAL / LINK | G120: CNPJ | H120: CONTATO | I120: UN | J120: VALOR | K120: FRETE | L120: TOTAL
A121: MEGA THOR | C121: https://www.megathor.com.br/quadro-de-comando-principal-para-jockey-hidrante | G121: 40.863.901/0001-21 | H121: (11) 4395-1324 | I121: UN | J121: 1010.36 | K121: 59 | L121: =J121+K121 -> 1069.36
A122: RICARDO BOMBAS | C122: https://www.ricardobombas.com.br/paineldecomandodimensionarparabombadeincndio5cv220vtrifsico/prod-6990137/ | G122: 18.820.545/0001-00 | H122: (11) 4559-3314 | I122: UN | J122: 956.25 | K122: 46.84 | L122: =J122+K122 -> 1003.09
A123: BOMBA SHOPPING | C123: https://www.bombashopping.com.br/painel-partida-direta-para-combate-a-incendio-weg--500cv-220v-monofasico-comando-24vcc-0000000050261/p | G123: 14.778.311/0001-90 | H123: (11) 2971-5695 | I123: UN | J123: 1061 | K123: 77 | L123: =J123+K123 -> 1138
A125: COT-CLI-001 | B125: CABO PP TETRAPOLAR | I125: UN | L125: =MEDIAN(L127:XFD129) -> 31.37
A126: EMPRESA | B126: CIDADE | C126: LOCAL / LINK | G126: CNPJ | H126: CONTATO | I126: UN | J126: VALOR | K126: FRETE | L126: TOTAL
A127: ELETROFRIGOR | C127: https://www.eletrofrigor.com.br/cabo-pp-4-x-2-5-mm-1kv-preto-metro.html | G127: 07.885.198/0001-87 | H127: (21) 98621-0567 | I127: UN | J127: 13.01 | K127: 18.53 | L127: =J127+K127 -> 31.54
A128: SANTIL | C128: https://www.santil.com.br/produto/cabo-flexivel-hepr-4x25mm-preto-1kv-vendido-por-metro-sil/2898155/ | G128: 49.474.398/0008-63 | H128: (11) 3998-3000 | I128: UN | J128: 9.94 | K128: 15.28 | L128: =J128+K128 -> 25.22
A129: ELETROFIO | C129: https://www.eletrofio.com/materiais-eletricos/cabos/cabos-comando-pp/cabo-de-comando-pp-4x2-50-por-metro?parceiro=3223 | G129: 06.114.741/0001-80 | H129: (16) 3209-3070 | I129: UN | J129: 10.3 | K129: 21.07 | L129: =J129+K129 -> 31.37
A131: COT-HID-001 | B131: BUCHA DE REDUÇÃO, CPVC, 35 X 22 MM | I131: UN | L131: =MEDIAN(L133:XFD135) -> 25.13
A132: EMPRESA | B132: CIDADE | C132: LOCAL / LINK | G132: CNPJ | H132: CONTATO | I132: UN | J132: VALOR | K132: FRETE | L132: TOTAL
A133: PLASTOLÂNDIA | C133: https://www.plastolandia.com.br/bucha-reduc-o-aquatherm-35-x-22-mm-tigre | G133: 43.235.522/0001-85 | H133: (11) 2168-8533 | I133: UN | J133: 13.3 | K133: 24.3 | L133: =J133+K133 -> 37.6
A134: PONTO DO ENCANADOR | C134: https://www.pontodoencanador.com/bucha-de-reducao-aquatherm-35-x-22-mm-tigre | G134: 05.414.611/0001-08 | H134: (19) 3249-3000 | I134: UN | J134: 11.02 | K134: 14.11 | L134: =J134+K134 -> 25.13
A135: TATETI | C135: https://www.tateti.com.br/produto/bucha-de-reducao-super-cpvc-flowguard-35-x-22-mm-amanco/4752282 | G135: 65.369.985/0003-34 | H135: (15) 3229-0010 | I135: UN | J135: 10.52 | K135: 12.52 | L135: =J135+K135 -> 23.04
A137: COT-HID-002 | B137: TE DE REDUÇÃO, CPVC, 35 X 22 MM | I137: UN | L137: =MEDIAN(L139:XFD141) -> 31.47
A138: EMPRESA | B138: CIDADE | C138: LOCAL / LINK | G138: CNPJ | H138: CONTATO | I138: UN | J138: VALOR | K138: FRETE | L138: TOTAL
A139: PLASTOLÂNDIA | C139: https://www.plastolandia.com.br/te-reduc-o-aquatherm-35-x-22-tigre | G139: 43.235.522/0001-85 | H139: (11) 2168-8533 | I139: UN | J139: 17.41 | K139: 24.3 | L139: =J139+K139 -> 41.71
A140: PONTO DO ENCANADOR | C140: https://www.pontodoencanador.com/te-de-reducao-aquatherm-35-x-22-mm-tigre | G140: 05.414.611/0001-08 | H140: (19) 3249-3000 | I140: UN | J140: 14.42 | K140: 14.11 | L140: =J140+K140 -> 28.53
A141: TATETI | C141: https://www.tateti.com.br/produto/te-de-reducao-cpvc-35-x-22-mm-tigre/5056432 | G141: 65.369.985/0003-34 | H141: (15) 3229-0010 | I141: UN | J141: 18.88 | K141: 12.59 | L141: =J141+K141 -> 31.47
A143: COT-LOU-001 | B143: BEBEDOURO 100 LITROS - 3 TORNEIRAS | I143: UN | L143: =MEDIAN(L145:XFD147) -> 3948
A144: EMPRESA | B144: CIDADE | C144: LOCAL / LINK | G144: CNPJ | H144: CONTATO | I144: UN | J144: VALOR | K144: FRETE | L144: TOTAL
A145: MAGAZINE LUIZA | C145: https://www.magazineluiza.com.br/bebedouro-100-litros-02-torneiras-e-01-jato-filtro-110v-frisbel/p/jc7ke4abee/pi/bind/ | G145: 47.960.950/1088-36 | H145: 0800 773 3838 | I145: UN | J145: 2999 | K145: 949 | L145: =J145+K145 -> 3948
A146: AMERICANAS | C146: https://www.americanas.com.br/produto/3096358401?pfm_carac=bebedouro-industrial-100-litros&pfm_index=4&pfm_page=search&pfm_pos=grid&pfm_type=search_page&offerId=6064740e0c07044266513a46&voltagem=220V&condition=NEW | G146: 00.776.574/0006-60 | H146: 4003-4848 | I146: UN | J146: 3855.72 | K146: 247.63 | L146: =J146+K146 -> 4103.35
A147: CÂNOVAS BEBEDOUROS | C147: https://www.canovas.com.br/bebedouro-industrial-100-litros-em-inox-com-3-torneiras-100-resist-prd.html | G147: 02.400.936/0001-35 | H147: (17) 3213-9511 | I147: UN | J147: 2934 | K147: 288.75 | L147: =J147+K147 -> 3222.75
A149: COT-SAN-001 | B149: JUNÇÃO SIMPLES, PVC, ESGOTO PREDIAL, 75 X 50 MM | I149: UN | L149: =MEDIAN(L151:XFD153) -> 49
A150: EMPRESA | B150: CIDADE | C150: LOCAL / LINK | G150: CNPJ | H150: CONTATO | I150: UN | J150: VALOR | K150: FRETE | L150: TOTAL
A151: C&C | C151: https://www.cec.com.br/material-hidraulico/tubos-e-conexoes/juncao/juncao-simples-75x50mm-branca?produto=1034396 | G151: 63.004.030/0030-20 | H151: (11) 4001-0100 | I151: UN | J151: 15.99 | K151: 112.49 | L151: =J151+K151 -> 128.48
A152: TATETI | C152: https://www.tateti.com.br/produto/juncao-simples-de-reducao-para-esgoto-75-x-50-mm-amanco/4752238 | G152: 65.369.985/0003-34 | H152: (15) 3229-0010 | I152: UN | J152: 14.22 | K152: 12.75 | L152: =J152+K152 -> 26.97
A153: TELHA NORTE | C153: https://www.telhanorte.com.br/juncao-simples-para-esgoto-75x50mm-tigre-25100/p | G153: 03.840.986/0056-70 | H153: (11) 3787-1000 | I153: UN | J153: 27.9 | K153: 21.1 | L153: =J153+K153 -> 49
A155: COT-SAN-002 | B155: TE DE REDUÇÃO, PVC, ESGOTO PREDIAL, 75 X 50 MM | I155: UN | L155: =MEDIAN(L157:XFD159) -> 35.85
A156: EMPRESA | B156: CIDADE | C156: LOCAL / LINK | G156: CNPJ | H156: CONTATO | I156: UN | J156: VALOR | K156: FRETE | L156: TOTAL
A157: HIDRAUCONEX | C157: https://www.hidrauconexloja.com.br/te-pvc-esgoto-de-reducao-dn-75mm-x-50mm-kra | G157: 21.951.873/0001-50 | H157: (31) 3568-9125 | I157: UN | J157: 19.76 | K157: 16.09 | L157: =J157+K157 -> 35.85
A158: TAQI | C158: https://www.taqi.com.br/te-de-reducao-para-esgoto-serie-normal-amanco-75-x-50-mm-branco-10407/041474 | G158: 89,237.911/0001-40 | H158: 0800 644 2299 | I158: UN | J158: 14.79 | K158: 10.86 | L158: =J158+K158 -> 25.65
A159: C&C | C159: https://www.cec.com.br/material-hidraulico/tubos-e-conexoes/te/te-de-reducao-curto-esgoto-75x50mm-branco?produto=1034403 | G159: 63.004.030/0030-20 | H159: (11) 4001-0100 | I159: UN | J159: 27.29 | K159: 112.56 | L159: =J159+K159 -> 139.85
A161: COT-ELE-001 | B161: DISJUNTOR TRIPOLAR TERMOMAGNÉTICO 80A / 10KA | I161: UN | L161: =MEDIAN(L163:XFD165) -> 259.9
A162: EMPRESA | B162: CIDADE | C162: LOCAL / LINK | G162: CNPJ | H162: CONTATO | I162: UN | J162: VALOR | K162: FRETE | L162: TOTAL
A163: OFERTA ELÉTRICA | C163: https://www.ofertaeletrica.com.br/disjuntor-tripolar-80a-curva-c-10ka-sdd3c80-steck | G163: 20.526.132/0001-69 | H163: 11 97616-3191 | I163: UN | J163: 274.45 | K163: 0 | L163: =J163+K163 -> 274.45
A164: MAGAZINE LUIZA | C164: https://www.magazineluiza.com.br/disjuntor-tripolar-80a-curva-c-steck/p/kg7hk480fe/cj/djcm/?&seller_id=naomyvictoriabelezaesaude | G164: 47.960.950/1088-36 | H164: 0800 773 3838 | I164: UN | J164: 259.9 | K164: 0 | L164: =J164+K164 -> 259.9
A165: AMERICANAS | C165: https://www.americanas.com.br/produto/3800143528?pfm_carac=disjuntor-tripolar-termomagnetico-80a-curva-c&pfm_index=1&pfm_page=search&pfm_pos=grid&pfm_type=search_page&offerId=6126973c09c351890df6bf0d | G165: 00.776.574/0006-60 | H165: 021 11 3003-1084 | I165: UN | J165: 237.81 | K165: 0 | L165: =J165+K165 -> 237.81
A167: COT-ELE-002 | B167: DISPOSITIVO DE PROTEÇÃO CONTRA SURTOS 175V/ 8KA | I167: UN | L167: =MEDIAN(L169:XFD171) -> 71.24
A168: EMPRESA | B168: CIDADE | C168: LOCAL / LINK | G168: CNPJ | H168: CONTATO | I168: UN | J168: VALOR | K168: FRETE | L168: TOTAL
A169: SHOPTIME | C169: https://www.shoptime.com.br/produto/6699397602?pfm_carac=dps-175v&pfm_index=9&pfm_page=search&pfm_pos=grid&pfm_type=search_page&offerId=6390392a643f314f7f8ef786 | G169: 00.776.574/0006-60 | H169: 021 11 4003-1020 | I169: UN | J169: 50.42 | K169: 9.99 | L169: =J169+K169 -> 60.41
A170: MAGAZINE LUIZA | C170: https://www.magazineluiza.com.br/protetor-surto-dps-clamper-175v-20ka/p/ejc63874ff/cj/dpdp/ | G170: 47.960.950/1088-36 | H170: 0800 773 3838 | I170: UN | J170: 54 | K170: 17.24 | L170: =J170+K170 -> 71.24
A171: ELETROTRAFO PRODUTOS ELÉTRICOS | C171: https://www.eletrotrafo.com.br/para-raio-clamper-surtos-transitor--08ka-vcl-175v-nema-2734-f-l--06510002/p | G171: 80.224.785/0001-15 | H171: (43) 3520-5000 | I171: UN | J171: 44.36 | K171: 32.99 | L171: =J171+K171 -> 77.35
A173: COT-ELE-003 | B173: QUADRO DE DISTRIBUIÇÃO COM BARRAMENTO 225A / 50 DISJ. - EMBUTIR | I173: UN | L173: =MEDIAN(L175:XFD177) -> 1709.8
A174: EMPRESA | B174: CIDADE | C174: LOCAL / LINK | G174: CNPJ | H174: CONTATO | I174: UN | J174: VALOR | K174: FRETE | L174: TOTAL
A175: MERKATHO | C175: https://www.merkatho.com.br/produto/647/quadro-distribuicao-com-barramento-225a--54-din-sobrepor | G175: 14.762.237/0001-14 | H175: 51 3276 7635 51 | I175: UN | J175: 1609 | K175: 100.8 | L175: =J175+K175 -> 1709.8
A176: MERKASHOP | C176: https://www.merkashop.com.br/materiais-eletricos/quadro-de-distribuicao-com-barramento/quadro-de-distribuicao-225a-embutir/quadro-distribuicao-com-barramento-225a-embutir?variant_id=215 | G176: 14.762.237/0001-14 | H176: 51 4100 9329 | I176: UN | J176: 1607 | K176: 177.9 | L176: =J176+K176 -> 1784.9
A177: ELETRORASTRO | C177: https://www.eletrorastro.com.br/produto/quadro-dg-embutir-com-barramento-trifasico-225a-56-din-gomes-89494 | G177: 85.014.793/0007-46 | H177: (41) 3165-3800 | I177: UN | J177: 1587.49 | K177: 0 | L177: =J177+K177 -> 1587.49
A179: COT-ELE-004 | B179: GERADOR ELÉTRICO 72 KVA | I179: UN | L179: =MEDIAN(L181:XFD183) -> 59357.21
A180: EMPRESA | B180: CIDADE | C180: LOCAL / LINK | G180: CNPJ | H180: CONTATO | I180: UN | J180: VALOR | K180: FRETE | L180: TOTAL
A181: CASAS BAHIA | C181: https://www.casasbahia.com.br/gerador-de-energia-a-diesel-72-kva-silenciado-com-qta-nd72100es3qta-1501853456/p/1501853456?utm_medium=Cpc&utm_source=GP_PLA&IdSku=1501853456&idLojista=13835&tipoLojista=3P&&utm_campaign=3p_gg_pmax_longtail_casa&gclid=CjwKCAiAuOieBhAIEiwAgjCvcuoaKsO9ad-wywyWVVa4yQV8AH18TQmuyMmt1wfMNQnfS2MvhabXrBoCUyAQAvD_BwE&gclsrc=aw.ds | G181: 33.041.260/0652-90 | H181: 4003-4336 | I181: UN | J181: 55966.94 | K181: 3390.27 | L181: =J181+K181 -> 59357.21
A182: LOJA DO MECANICO | C182: https://www.lojadomecanico.com.br/produto/122488/33/326/Gerador-de-Energia-a-Diesel--3860CC-40kVa-380V-Trifasico/153/?utm_source=googleshopping&utm_campaign=xmlshopping&utm_medium=cpc&utm_content=122488&gclid=CjwKCAiAuOieBhAIEiwAgjCvcjNE6UZcUKM5baRvmUTyiaAuWH5L8DxtP4Y5v_NWdDlqEGRXjhzjlhoCBYMQAvD_BwE | G182: 05.478.489/0001-25 | H182: (24) 3512-3781 | I182: UN | J182: 56979.9 | K182: 199.9 | L182: =J182+K182 -> 57179.8
A183: EXTRA | C183: https://www.extra.com.br/gerador-de-energia-a-diesel-72-kva-silenciado-com-qta-nd72100es3qta-1501853456/p/1501853456?utm_medium=cpc&utm_source=GP_PLA&IdSku=1501853456&idLojista=13835&tipoLojista=3P&&utm_campaign=3p_gg_pmax_tudo&gclid=CjwKCAiAuOieBhAIEiwAgjCvckHbSXhmN7uSLtmo41mwPkwwYannvSoneHwFmhCuPxzzNiMeWTZanRoCrusQAvD_BwE&gclsrc=aw.ds | G183: 33.041.260/0652-90 | H183: 0800-720-3030 | I183: UN | J183: 55966.94 | K183: 3390.27 | L183: =J183+K183 -> 59357.21
A185: COT-DAD-001 | B185: NVR 24 PORTAS | I185: UN | L185: =MEDIAN(L187:XFD189) -> 2884.96
A186: EMPRESA | B186: CIDADE | C186: LOCAL / LINK | G186: CNPJ | H186: CONTATO | I186: UN | J186: VALOR | K186: FRETE | L186: TOTAL
A187: CFTV CLUBE | B187: CAMPINAS/SP | C187: https://www.cftvclube.com.br/gravadores-de-video/resolucao-de-2-megapixel-1080p/gravador-dvrnvrhvr-32-canais/nvd-5124-intelbras-24-canais-ip-full-hd?parceiro=2410&parceiro=7283&gclid=CjwKCAiAoL6eBhA3EiwAXDom5h2Pcm9pe0uFgHTLRo83cYVJFfDCKJQ_6msMT0sfUQ8jkV-uF1FKexoC1koQAvD_BwE | G187: 23.025.667/0001-44 | H187: (19) 98117-5752 | I187: UN | J187: 4851.1 | K187: 30.85 | L187: =J187+K187 -> 4881.95
A188: MAGAZINE LUIZA | C188: https://www.magazineluiza.com.br/gravador-digital-de-video-em-rede-nvd-3316-intelbras/p/ghkejh5gb5/cj/grbv/?&seller_id=magnumdistribuidora&utm_source=google&utm_medium=pla&utm_campaign=&partner_id=69095&gclid=CjwKCAiAoL6eBhA3EiwAXDom5iCNBFIOi0YYaB1eYJ8xhN1zNtRrdgxKLzT_zFuMhbIQcDxAg-kyyRoCewoQAvD_BwE&gclsrc=aw.ds | G188: 47.960.950/1088-36 | H188: 0800 773 3838 | I188: UN | J188: 2618 | K188: 36.9 | L188: =J188+K188 -> 2654.9
A189: KABUM | C189: https://www.kabum.com.br/produto/305273/gravador-digital-dvr-intelbras-24-canais-full-hd-1080p-com-inteligencia-artificial-mhdx-3016-c-hd-skyhawk-2tb?gclid=CjwKCAiAoL6eBhA3EiwAXDom5vtmgiwWXIaE_qVSzxye5KmU3ocFf9D2G0ttuUqjMeIgd_6IMJUuSRoCRlwQAvD_BwE | G189: 05.570.714/0001-59 | H189: (19) 2114-4444 | I189: UN | J189: 2802.1 | K189: 82.86 | L189: =J189+K189 -> 2884.96
A191: COT-DAD-002 | B191: HD 2 TB | I191: UN | L191: =MEDIAN(L193:XFD195) -> 463.8
A192: EMPRESA | B192: CIDADE | C192: LOCAL / LINK | G192: CNPJ | H192: CONTATO | I192: UN | J192: VALOR | K192: FRETE | L192: TOTAL
A193: AMAZON | C193: https://www.amazon.com.br/Desktop-Seagate-BarraCuda-3-5-SATA/dp/B075QJTBVT/ref=asc_df_B075QJTBVT/?tag=googleshopp00-20&linkCode=df0&hvadid=379787216837&hvpos=&hvnetw=g&hvrand=12239325021909454626&hvpone=&hvptwo=&hvqmt=&hvdev=c&hvdvcmdl=&hvlocint=&hvlocphy=9101220&hvtargid=pla-721841429415&psc=1 | G193: 15.436.940/0001-03 | H193: 0800 038 054 | I193: UN | J193: 398 | K193: 36.21 | L193: =J193+K193 -> 434.21
A194: MAGAZINE LUIZA | C194: https://www.magazineluiza.com.br/disco-rigido-interno-seagate-barracuda-st2000dm008-2tb-prata/p/cba0bg138g/in/hdit/?&seller_id=portaldc&utm_source=google&utm_medium=pla&utm_campaign=&partner_id=67172&gclid=CjwKCAiAoL6eBhA3EiwAXDom5tSuA6j2LcsPVRuBDVdrotzGcaBz4rpwxV8IXbQ-neZ-77MJquVHkBoCC5kQAvD_BwE&gclsrc=aw.ds | G194: 47.960.950/1088-36 | H194: 0800 773 3838 | I194: UN | J194: 454.9 | K194: 8.9 | L194: =J194+K194 -> 463.8
A195: KABUM | C195: https://www.kabum.com.br/produto/217616/hd-seagate-2tb-barracuda-3-5-sata-iii-para-desktop-st2000dm008?gclid=CjwKCAiAoL6eBhA3EiwAXDom5qqregeTZlApAwVXtxtcOUmlrKETYsvnRQ-DVmzhnmbSu6dQwdnJhxoCuEsQAvD_BwE | G195: 05.570.714/0001-59 | H195: (19) 2114-4444 | I195: UN | J195: 463 | K195: 18.8 | L195: =J195+K195 -> 481.8
A197: COT-DAD-003 | B197: SWITCH (10/100/1000) BASE T, 24 PORTAS | I197: UN | L197: =AVERAGE(L199:XFD201) -> 831.2033333
A198: EMPRESA | B198: CIDADE | C198: LOCAL / LINK | G198: CNPJ | H198: CONTATO | I198: UN | J198: VALOR | K198: FRETE | L198: TOTAL
A199: MAGAZINE LUIZA | C199: https://www.magazineluiza.com.br/switch-tp-link-24p-10-100-1000-tl-sg1024d-tp-link/p/jf2ej0g11f/in/swit/?&seller_id=teledaticaltda&utm_source=google&utm_medium=pla&utm_campaign=&partner_id=67172&gclid=CjwKCAiAoL6eBhA3EiwAXDom5mqPzyySZsluB81JhxsJHA6CvR7qz4Vs2x5JU4eY8rBz88zp_tyKxRoCMV4QAvD_BwE&gclsrc=aw.ds | G199: 47.960.950/1088-36 | H199: 0800 773 3838 | I199: UN | J199: 795 | K199: 11.9 | L199: =J199+K199 -> 806.9
A200: AMAZON | C200: https://www.amazon.com.br/Switch-Portas-Gigabit-Tp-link-TL-SG1024D/dp/B07MQ22QWY/ref=asc_df_B07MQ22QWY/?tag=googleshopp00-20&linkCode=df0&hvadid=379725653161&hvpos=&hvnetw=g&hvrand=17616278417141423364&hvpone=&hvptwo=&hvqmt=&hvdev=c&hvdvcmdl=&hvlocint=&hvlocphy=9101220&hvtargid=pla-892385588626&psc=1 | G200: 15.436.940/0001-03 | H200: 0800 038 054 | I200: UN | J200: 762 | K200: 39.32 | L200: =J200+K200 -> 801.32
A201: KABUM | C201: https://www.kabum.com.br/produto/22261/switch-wired-tp-link-gigabit-24-portas-tl-sg1024d?gclid=CjwKCAiAoL6eBhA3EiwAXDom5sRvRfQb2vjR8TkF2JCJ_Jyg2gDVN-YFUsee2rbyr3wK5FzC_kHNghoCdUMQAvD_BwE | G201: 37.021.825/0001-00 | H201: (11) 2379-1682 | I201: UN | J201: 859.99 | K201: 25.4 | L201: =J201+K201 -> 885.39
A203: COT-DAD-004 | B203: PLACA 4X4 " COM FURO | I203: UN | L203: =MEDIAN(L205:XFD207) -> 25.11
A204: EMPRESA | B204: CIDADE | C204: LOCAL / LINK | G204: CNPJ | H204: CONTATO | I204: UN | J204: VALOR | K204: FRETE | L204: TOTAL
A205: MAGAZINE LUIZA | C205: https://www.magazineluiza.com.br/placa-4x4-com-furo-millenium-mec-tronic/p/dakkaafcbc/cj/esad/?&seller_id=akiounidadebelmira&utm_source=google&utm_medium=pla&utm_campaign=&partner_id=68055&gclid=CjwKCAiAoL6eBhA3EiwAXDom5gasIOe7TRKKxw7siP3T9y_8ep6z9dqwyLNGeXz4ujDfyAt_L4enIBoCZo0QAvD_BwE&gclsrc=aw.ds | G205: 47.960.950/1088-36 | H205: 0800 773 3838 | I205: UN | J205: 7.2 | K205: 17.91 | L205: =J205+K205 -> 25.11
A206: ELETROASTRO | C206: https://www.eletrorastro.com.br/produto/placa-novara-branco-4x4-com-furo-dicompel-89891?utm_source=google&utm_medium=cpc&utm_campaign=&gclid=CjwKCAiAoL6eBhA3EiwAXDom5lce7irInrQvLXTjaqCl6HA1P-foe1XFZgrsTCwzOeom7ibtTul-shoCAzsQAvD_BwE | G206: 5.014.793/0007-46 | H206: (41) 3661 3100 | I206: UN | J206: 22.58 | K206: 27.28 | L206: =J206+K206 -> 49.86
A207: TRAMONTINA | C207: https://www.tramontinastore.com/placa-com-1-furo-4x4-9-5-mm-tramontina-liz-branca_57106022/p?idsku=57106022&gclid=CjwKCAiAoL6eBhA3EiwAXDom5hEgkEJ2I0sOrpDwcXD_3ctY6E4axPNW1uHTluoltdHcKqpzg9kWHBoCGo4QAvD_BwE | G207: 61.652.608/0001-95 | H207: (11) 4861-3981 | I207: UN | J207: 14.16 | K207: 7.03 | L207: =J207+K207 -> 21.19
A209: COT-DAD-005 | B209: RÉGUA DE TOMADAS 10A- 10 SAÍDAS PADRÃO | I209: UN | L209: =MEDIAN(L211:XFD213) -> 108.31
A210: EMPRESA | B210: CIDADE | C210: LOCAL / LINK | G210: CNPJ | H210: CONTATO | I210: UN | J210: VALOR | K210: FRETE | L210: TOTAL
A211: CASAS BAHIA | C211: https://www.casasbahia.com.br/regua-para-rack-com-10-tomadas-10a-bivolt-ipec-1524324526/p/1524324526?utm_medium=Cpc&utm_source=GP_PLA&IdSku=1524324526&idLojista=32096&tipoLojista=3P&&utm_campaign=3p_gg_pmax_tudo&gclid=CjwKCAiAoL6eBhA3EiwAXDom5sZzlEBJxaT43KDKau9XLxz9PWayxuA47VzGP9FBe34G3OYnAYxcVhoC_G4QAvD_BwE&gclsrc=aw.ds | G211: 33.041.260/0652-90 | H211: 4003-4336 | I211: UN | J211: 79.65 | K211: 25.84 | L211: =J211+K211 -> 105.49
A212: MAGAZINE LUIZA | C212: https://www.magazineluiza.com.br/regua-de-tomadas-10a-10-saidas-padrao-novo-nbr-pier-telecom/p/ab7dg978ce/cj/extl/?&seller_id=piertelecom&utm_source=google&utm_medium=pla&utm_campaign=&partner_id=69095&gclid=CjwKCAiAoL6eBhA3EiwAXDom5tx4w8pl0BIuQeOlsTyiEr_mDdG46uflI212byYXLFYf_rXTeCdnlRoCb0YQAvD_BwE&gclsrc=aw.ds | G212: 47.960.950/1088-36 | H212: 0800 773 3838 | I212: UN | J212: 111.61 | K212: 0 | L212: =J212+K212 -> 111.61
A213: KABUM | C213: https://www.kabum.com.br/produto/167726/regua-rack-19-polegadas-10a-a2267-ipec-preto-fora-de-linha-mundoware?gclid=CjwKCAiAoL6eBhA3EiwAXDom5gkbc74fICArcD6XJwFN5eI4kBACCC6g8EuCx6fGYmR1uCvbBGyQbhoC6oIQAvD_BwE | G213: 37.021.825/0001-00 | H213: (11) 2379-1682 | I213: UN | J213: 49.39 | K213: 58.92 | L213: =J213+K213 -> 108.31
A215: COT-DAD-006 | B215: RACK - GABINETE 19" - 24U | I215: UN | L215: =MEDIAN(L217:XFD219) -> 1949.29
A216: EMPRESA | B216: CIDADE | C216: LOCAL / LINK | G216: CNPJ | H216: CONTATO | I216: UN | J216: VALOR | K216: FRETE | L216: TOTAL
A217: UNICASERV | C217: https://www.unicaserv.com.br/rack-de-piso-24u-x-470mm?parceiro=3738&gclid=Cj0KCQiAw8OeBhCeARIsAGxWtUwZUB9GpvPC0256BiLlSbzFuNwjp4s-h5-2dKGT6_VJKAUwLvy5C4waAgrJEALw_wcB | G217: 07.709.614/0001-96 | H217: (13) 3345-6012 | I217: UN | J217: 1664 | K217: 150.59 | L217: =J217+K217 -> 1814.59
A218: APL RACK | C218: https://www.rackpiso.com.br/rack-piso-fechado-24u-pro?utm_source=Site&utm_medium=GoogleMerchant&utm_campaign=GoogleMerchant&sku=RPF24UPRO-1100&gclid=Cj0KCQiAw8OeBhCeARIsAGxWtUzItf_cFzEmBBSx_1uwSGF3FbU-YSn-oUc9Rsz1Hf8Lr8_vIULxrLEaAr7OEALw_wcB | G218: 31.690.876/0001-30 | H218: (41) 4103-1706 | I218: UN | J218: 1841.84 | K218: 314.81 | L218: =J218+K218 -> 2156.65
A219: MAGAZINE LUIZA | C219: https://www.magazineluiza.com.br/rack-piso-19-24u-870mm-preto-max-eletron/p/acj83a4d64/in/svdr/?&seller_id=aquiquetemm&utm_source=google&utm_medium=pla&utm_campaign=&partner_id=69087&gclid=Cj0KCQiAw8OeBhCeARIsAGxWtUwcCo4pDcAAXQ1ddkA1AkJh5eqU-Qx4Kt07QAf4lCJDAfimHQHc1lMaAhhLEALw_wcB&gclsrc=aw.ds | G219: 47.960.950/1088-36 | H219: 0800 773 3838 | I219: UN | J219: 1852.85 | K219: 96.44 | L219: =J219+K219 -> 1949.29
A221: COT-DAD-007 | B221: RACK - GABINETE 19" - 28U | I221: UN | L221: =MEDIAN(L223:XFD225) -> 1944.86
A222: EMPRESA | B222: CIDADE | C222: LOCAL / LINK | G222: CNPJ | H222: CONTATO | I222: UN | J222: VALOR | K222: FRETE | L222: TOTAL
A223: RACKFORT | C223: https://www.rackfort.com.br/rack-fechado/rack-servidor-fechado-28u-x-770mm?utm_source=Site&utm_medium=GoogleMerchant&utm_campaign=GoogleMerchant | G223: 31.690.876/0001-30 | H223: (41) 4103-1717 | I223: UN | J223: 1682.1 | K223: 262.76 | L223: =J223+K223 -> 1944.86
A224: APLRACK | C224: https://www.cetti.com.br/interruptor-dr-tetrapolar-125a-steck-sdr-4125003 | G224: 31.690.876/0001-30 | H224: (41) 4103-1717 | I224: UN | J224: 1644.38 | K224: 198.32 | L224: =J224+K224 -> 1842.7
A225: AMAZON | C225: https://www.amazon.com.br/rack-piso-19-28u-570mm/dp/B08QJHQB8F/ref=sr_1_1?__mk_pt_BR=%C3%85M%C3%85%C5%BD%C3%95%C3%91&crid=8EKDWXEZWOKX&keywords=RACK+28U&qid=1674649089&sprefix=rack+28u%2Caps%2C179&sr=8-1&ufe=app_do%3Aamzn1.fos.25548f35-0de7-44b3-b28e-0f56f3f96147 | G225: 15.436.940/0001-03 | H225: 0800 038 054 | I225: UN | J225: 1759.46 | K225: 267.07 | L225: =J225+K225 -> 2026.53
A227: COT-DAD-008 | B227: SWITCH 24 PORTAS RJ45 COM FIBRA | I227: UN | L227: =MEDIAN(L223:XFD225) -> 1944.86
A228: EMPRESA | B228: CIDADE | C228: LOCAL / LINK | G228: CNPJ | H228: CONTATO | I228: UN | J228: VALOR | K228: FRETE | L228: TOTAL
A229: FOURSERV | C229: https://www.fourserv.com.br/switch-ubiquiti-unifi-pro-24-portas-poe-2x-10g-sfp-gerenciavel-layer-3-mpn-usw-pro-24-poe?utm_source=google-shopping&utm_medium=cpc&utm_campaign=google-shopping&gclid=Cj0KCQiAw8OeBhCeARIsAGxWtUzifOtbeA3ghMRkK463xlC1rodY8-8SFM0nQ6oNll_2m61AIHVOOVUaAsVdEALw_wcB# | G229: 05.229.845/0001-77 | H229: (21) 96715-7944 | I229: UN | J229: 7479.15 | K229: 92.1 | L229: =J229+K229 -> 7571.25
A230: KABUM | C230: https://www.kabum.com.br/produto/419523/switch-24-portas-poe-gigabit-c-2-slots-sfp-10gb-tela-touch-usw-pro-24-poe-ubiquiti?gclid=Cj0KCQiAw8OeBhCeARIsAGxWtUzyogweLcfFuxWag6s-AxHLuRWrnyWBQs_BCEGNbIOFjQo-Ti4MhcwaAqzaEALw_wcB | G230: 37.021.825/0001-00 | H230: (11) 2379-1682 | I230: UN | J230: 4797.75 | K230: 58.85 | L230: =J230+K230 -> 4856.6
A231: TUDOEMUBITIQUI | C231: https://www.tudoemubiquiti.com.br/switch-de-24-portas-com-16-portas-poe-8-portas-poe-2-portas-sfp-de-10-giga-usw-pro-24-poe-br | G231: 32.438.394/0001-50 | H231: (47) 3234-0802 | I231: UN | J231: 7081.3 | K231: 88.61 | L231: =J231+K231 -> 7169.91
A233: COT-DAD-009 | B233: CAMERA POE | I233: UN | L233: =MEDIAN(L235:XFD237) -> 258.52
A234: EMPRESA | B234: CIDADE | C234: LOCAL / LINK | G234: CNPJ | H234: CONTATO | I234: UN | J234: VALOR | K234: FRETE | L234: TOTAL
A235: AMERICANAS | C235: https://www.americanas.com.br/produto/5367543888?pfm_carac=camera-ip-poe&pfm_index=4&pfm_page=search&pfm_pos=grid&pfm_type=search_page&offerId=62bca2ed2376eb9c7268ce41 | G235: 00.776.574/0006-60 | H235: 021 11 3003-1084 | I235: UN | J235: 258.52 | K235: 0 | L235: =J235+K235 -> 258.52
A236: AMAZON | C236: https://www.amazon.com.br/GIGA-C%C3%A2mera-Bullet-Pl%C3%A1stica-Prote%C3%A7%C3%A3o/dp/B09XVN4JG1 | G236: 15.436.940/0001-03 | H236: 0800 038 054 | I236: UN | J236: 258.53 | K236: 0 | L236: =J236+K236 -> 258.53
A237: MAGAZINE LUIZA | C237: https://www.magazineluiza.com.br/camera-ip-bullet-ip66-poe-2mp-infra-30m-dwdr-giga-security-gs0369/p/bcgf8ce96e/cj/cagu/?&seller_id=kitalarmes | G237: 47.960.950/1088-36 | H237: 0800 773 3838 | I237: UN | J237: 241 | K237: 9.9 | L237: =J237+K237 -> 250.9
C241: RESPONSÁVEL TÉCNICO: | F241: =DADOS!D16 -> FLÁVIA CRISTINA BARBOSA
F242: =DADOS!D18 -> CREA - MG 187.842/D

Sheet CPU
A2: COMPOSIÇÕES DE CUSTO | L2: Revisão: | M2: =DADOS!D6 -> R01
L3: Data: | M3: =DADOS!D2 -> 2023-04-28
A4: Projeto: | D4: Cliente: | H4: Cliente: | L4: Bancos:
A5: =DADOS!D8 -> CONSTRUÇÃO DO CENTRO DE ATENÇÃO PSICOSSOCIAL | L5: =DADOS!D14 -> SINAPI: 03/2023 Minas Gerais SETOP: 01/2023 Minas Gerais SICRO : 10/2022 Minas Gerais SUDECAP: 02/2023 Minas Gerais
L8: BDI 1: | M8: =DADOS!D10 -> 0.2652
L9: BDI 2: | M9: =DADOS!D12 -> 0.2025
A11: =A2&" DE "&DADOS!D20&" - "&A5 -> COMPOSIÇÕES DE CUSTO DE PROJETO EXECUTIVO - CONSTRUÇÃO DO CENTRO DE ATENÇÃO PSICOSSOCIAL
A13: Código | B13: Descrição | I13: Banco | J13: Unid. | K13: Coeficiente | L13: Preço Unit. | M13: Total
A15: 4 | B15: =VLOOKUP(A15,ORC!$D$24:$N$2945,2,0) -> ESTRUTURA
A16: DAC-4.1 | B16: ESTACA HÉLICE CONTÍNUA, DIÂMETRO DE 25 CM, INCLUSO CONCRETO FCK=30MPA E ARMADURA MÍNIMA (EXCLUSIVE MOBILIZAÇÃO E DESMOBILIZAÇÃO E BOMBEAMENTO). | I16: CPU | J16: M | M16: =SUM(M17:XFD25) -> 120.4311313
B17: 90675 | C17: =IF(I17="SINAPI",VLOOKUP(B17,DADOS_SINAPI,2,0),IF(I17="SETOP",VLOOKUP(B17,DADOS_SETOP,2,0),IF(I17="SICRO",VLOOKUP(B17,DADOS_SICRO,2,0),IF(I17="SUDECAP",VLOOKUP(B17,DADOS_SUDECAP,2,0),IF(I17="COTAÇÃO",VLOOKUP(B17,DADOS_COTACAO,2,0),VLOOKUP(B17,DADOS_COMPOSICAO,2,0)))))) -> PERFURATRIZ COM TORRE METÁLICA PARA EXECUÇÃO DE ESTACA HÉLICE CONTÍNUA, PROFUNDIDADE MÁXIMA DE 30 M, DIÂMETRO MÁXIMO DE 800 MM, POTÊNCIA INSTALADA DE 268 HP, MESA ROTATIVA COM TORQUE MÁXIMO DE 170 KNM - CHI DIURNO. AF_06/2015 | I17: SINAPI | J17: =IF(I17="SINAPI",VLOOKUP(B17,DADOS_SINAPI,3,0),IF(I17="SETOP",VLOOKUP(B17,DADOS_SETOP,3,0),IF(I17="SICRO",VLOOKUP(B17,DADOS_SICRO,3,0),IF(I17="SUDECAP",VLOOKUP(B17,DADOS_SUDECAP,3,0),IF(I17="COTAÇÃO",VLOOKUP(B17,DADOS_COTACAO,9,0),VLOOKUP(B17,DADOS_COMPOSICAO,10,0)))))) -> CHI | K17: 0.0594 | L17: =IF(I17="SINAPI",VLOOKUP(B17,DADOS_SINAPI,4,0),IF(I17="SETOP",VLOOKUP(B17,DADOS_SETOP,4,0),IF(I17="SICRO",VLOOKUP(B17,DADOS_SICRO,4,0),IF(I17="SUDECAP",VLOOKUP(B17,DADOS_SUDECAP,4,0),IF(I17="COTAÇÃO",VLOOKUP(B17,DADOS_COTACAO,12,0),VLOOKUP(B17,DADOS_COMPOSICAO,13,0)))))) -> 286.37 | M17: =K17*L17 -> 17.010378
B18: 90674 | C18: PERFURATRIZ COM TORRE METÁLICA PARA EXECUÇÃO DE ESTACA HÉLICE CONTÍNUA, PROFUNDIDADE MÁXIMA DE 30 M, DIÂMETRO MÁXIMO DE 800 MM, POTÊNCIA INSTALADA DE 268 HP, MESA ROTATIVA COM TORQUE MÁXIMO DE 170 KNM - CHP DIURNO. AF_06/2015 | I18: SINAPI | J18: CHP | K18: 0.0242 | L18: 685.26 | M18: 16.583292
B19: 100973 | C19: CARGA, MANOBRA E DESCARGA DE SOLOS E MATERIAIS GRANULARES EM CAMINHÃO BASCULANTE 6 M³ - CARGA COM PÁ CARREGADEIRA (CAÇAMBA DE 1,7 A 2,8 M³ / 128 HP) E DESCARGA LIVRE (UNIDADE: M3). AF_07/2020 | I19: SINAPI | J19: M3 | K19: 0.0966 | L19: 8.57 | M19: 0.827862
B20: 88316 | C20: SERVENTE COM ENCARGOS COMPLEMENTARES | I20: SINAPI | J20: H | K20: 0.2509 | L20: 17.77 | M20: 4.458493
B21: 90776 | C21: ENCARREGADO GERAL COM ENCARGOS COMPLEMENTARES | I21: SINAPI | J21: H | K21: 0.0836 | L21: 43.59 | M21: 3.644124
B22: 43360 | C22: CONCRETO USINADO BOMBEAVEL, CLASSE DE RESISTENCIA C30, COM BRITA 0 E 1, SLUMP = 220 +/- 30 MM, EXCLUI SERVICO DE BOMBEAMENTO (NBR 8953) | I22: SINAPI | J22: M3 | K22: =0.1133*0.7 -> 0.07931 | L22: 688.63 | M22: 54.6152453
B23: 97913 | C23: =IF(I23="SINAPI",VLOOKUP(B23,DADOS_SINAPI,2,0),IF(I23="SETOP",VLOOKUP(B23,DADOS_SETOP,2,0),IF(I23="SICRO",VLOOKUP(B23,DADOS_SICRO,2,0),IF(I23="SUDECAP",VLOOKUP(B23,DADOS_SUDECAP,2,0),IF(I23="COTAÇÃO",VLOOKUP(B23,DADOS_COTACAO,2,0),VLOOKUP(B23,DADOS_COMPOSICAO,2,0)))))) -> TRANSPORTE COM CAMINHÃO BASCULANTE DE 6 M³, EM VIA URBANA EM REVESTIMENTO PRIMÁRIO (UNIDADE: M3XKM). AF_07/2020 | I23: SINAPI | J23: =IF(I23="SINAPI",VLOOKUP(B23,DADOS_SINAPI,3,0),IF(I23="SETOP",VLOOKUP(B23,DADOS_SETOP,3,0),IF(I23="SICRO",VLOOKUP(B23,DADOS_SICRO,3,0),IF(I23="SUDECAP",VLOOKUP(B23,DADOS_SUDECAP,3,0),IF(I23="COTAÇÃO",VLOOKUP(B23,DADOS_COTACAO,9,0),VLOOKUP(B23,DADOS_COMPOSICAO,10,0)))))) -> M3XKM | K23: 0.029 | L23: =IF(I23="SINAPI",VLOOKUP(B23,DADOS_SINAPI,4,0),IF(I23="SETOP",VLOOKUP(B23,DADOS_SETOP,4,0),IF(I23="SICRO",VLOOKUP(B23,DADOS_SICRO,4,0),IF(I23="SUDECAP",VLOOKUP(B23,DADOS_SUDECAP,4,0),IF(I23="COTAÇÃO",VLOOKUP(B23,DADOS_COTACAO,12,0),VLOOKUP(B23,DADOS_COMPOSICAO,13,0)))))) -> 2.94 | M23: 0.08526
B24: 95579 | C24: =IF(I24="SINAPI",VLOOKUP(B24,DADOS_SINAPI,2,0),IF(I24="SETOP",VLOOKUP(B24,DADOS_SETOP,2,0),IF(I24="SICRO",VLOOKUP(B24,DADOS_SICRO,2,0),IF(I24="SUDECAP",VLOOKUP(B24,DADOS_SUDECAP,2,0),IF(I24="COTAÇÃO",VLOOKUP(B24,DADOS_COTACAO,2,0),VLOOKUP(B24,DADOS_COMPOSICAO,2,0)))))) -> MONTAGEM DE ARMADURA DE ESTACAS, DIÂMETRO = 16,0 MM. AF_09/2021_PS | I24: SINAPI | J24: =IF(I24="SINAPI",VLOOKUP(B24,DADOS_SINAPI,3,0),IF(I24="SETOP",VLOOKUP(B24,DADOS_SETOP,3,0),IF(I24="SICRO",VLOOKUP(B24,DADOS_SICRO,3,0),IF(I24="SUDECAP",VLOOKUP(B24,DADOS_SUDECAP,3,0),IF(I24="COTAÇÃO",VLOOKUP(B24,DADOS_COTACAO,9,0),VLOOKUP(B24,DADOS_COMPOSICAO,10,0)))))) -> KG | K24: 2.2428 | L24: =IF(I24="SINAPI",VLOOKUP(B24,DADOS_SINAPI,4,0),IF(I24="SETOP",VLOOKUP(B24,DADOS_SETOP,4,0),IF(I24="SICRO",VLOOKUP(B24,DADOS_SICRO,4,0),IF(I24="SUDECAP",VLOOKUP(B24,DADOS_SUDECAP,4,0),IF(I24="COTAÇÃO",VLOOKUP(B24,DADOS_COTACAO,12,0),VLOOKUP(B24,DADOS_COMPOSICAO,13,0)))))) -> 8.99 | M24: 20.162772
B25: 95584 | C25: =IF(I25="SINAPI",VLOOKUP(B25,DADOS_SINAPI,2,0),IF(I25="SETOP",VLOOKUP(B25,DADOS_SETOP,2,0),IF(I25="SICRO",VLOOKUP(B25,DADOS_SICRO,2,0),IF(I25="SUDECAP",VLOOKUP(B25,DADOS_SUDECAP,2,0),IF(I25="COTAÇÃO",VLOOKUP(B25,DADOS_COTACAO,2,0),VLOOKUP(B25,DADOS_COMPOSICAO,2,0)))))) -> MONTAGEM DE ARMADURA TRANSVERSAL DE ESTACAS DE SEÇÃO CIRCULAR, DIÂMETRO = 6,30 MM. AF_09/2021_PS | I25: SINAPI | J25: =IF(I25="SINAPI",VLOOKUP(B25,DADOS_SINAPI,3,0),IF(I25="SETOP",VLOOKUP(B25,DADOS_SETOP,3,0),IF(I25="SICRO",VLOOKUP(B25,DADOS_SICRO,3,0),IF(I25="SUDECAP",VLOOKUP(B25,DADOS_SUDECAP,3,0),IF(I25="COTAÇÃO",VLOOKUP(B25,DADOS_COTACAO,9,0),VLOOKUP(B25,DADOS_COMPOSICAO,10,0)))))) -> KG | K25: 0.2185 | L25: =IF(I25="SINAPI",VLOOKUP(B25,DADOS_SINAPI,4,0),IF(I25="SETOP",VLOOKUP(B25,DADOS_SETOP,4,0),IF(I25="SICRO",VLOOKUP(B25,DADOS_SICRO,4,0),IF(I25="SUDECAP",VLOOKUP(B25,DADOS_SUDECAP,4,0),IF(I25="COTAÇÃO",VLOOKUP(B25,DADOS_COTACAO,12,0),VLOOKUP(B25,DADOS_COMPOSICAO,13,0)))))) -> 13.93 | M25: 3.043705
A27: DAC-4.2 | B27: FORNECIMENTO E EXECUÇÃO DE PILARES PRÉ-FABRICADOS | I27: CPU | J27: M³ | M27: =SUM(M28:XFD35) -> 2854.221233
B28: 88309 | C28: =IF(I28="SINAPI",VLOOKUP(B28,DADOS_SINAPI,2,0),IF(I28="SETOP",VLOOKUP(B28,DADOS_SETOP,2,0),IF(I28="SICRO",VLOOKUP(B28,DADOS_SICRO,2,0),IF(I28="SUDECAP",VLOOKUP(B28,DADOS_SUDECAP,2,0),IF(I28="COTAÇÃO",VLOOKUP(B28,DADOS_COTACAO,2,0),VLOOKUP(B28,DADOS_COMPOSICAO,2,0)))))) -> PEDREIRO COM ENCARGOS COMPLEMENTARES | I28: SINAPI | J28: =IF(I28="SINAPI",VLOOKUP(B28,DADOS_SINAPI,3,0),IF(I28="SETOP",VLOOKUP(B28,DADOS_SETOP,3,0),IF(I28="SICRO",VLOOKUP(B28,DADOS_SICRO,3,0),IF(I28="SUDECAP",VLOOKUP(B28,DADOS_SUDECAP,3,0),IF(I28="COTAÇÃO",VLOOKUP(B28,DADOS_COTACAO,9,0),VLOOKUP(B28,DADOS_COMPOSICAO,10,0)))))) -> H | K28: 1.759 | L28: =IF(I28="SINAPI",VLOOKUP(B28,DADOS_SINAPI,4,0),IF(I28="SETOP",VLOOKUP(B28,DADOS_SETOP,4,0),IF(I28="SICRO",VLOOKUP(B28,DADOS_SICRO,4,0),IF(I28="SUDECAP",VLOOKUP(B28,DADOS_SUDECAP,4,0),IF(I28="COTAÇÃO",VLOOKUP(B28,DADOS_COTACAO,12,0),VLOOKUP(B28,DADOS_COMPOSICAO,13,0)))))) -> 24.43 | M28: =K28*L28 -> 42.97237
B29: 88316 | C29: SERVENTE COM ENCARGOS COMPLEMENTARES | I29: SINAPI | J29: H | K29: 3.517 | L29: 17.77 | M29: 62.49709
B30: 89272 | C30: GUINDASTE HIDRÁULICO AUTOPROPELIDO, COM LANÇA TELESCÓPICA 28,80 M, CAPACIDADE MÁXIMA 30 T, POTÊNCIA 97 KW, TRAÇÃO 4 X 4 - CHP DIURNO. AF_11/2014 | I30: SINAPI | J30: CHP | K30: 1.053 | L30: 197.9 | M30: 208.3887
B31: 89273 | C31: =IF(I31="SINAPI",VLOOKUP(B31,DADOS_SINAPI,2,0),IF(I31="SETOP",VLOOKUP(B31,DADOS_SETOP,2,0),IF(I31="SICRO",VLOOKUP(B31,DADOS_SICRO,2,0),IF(I31="SUDECAP",VLOOKUP(B31,DADOS_SUDECAP,2,0),IF(I31="COTAÇÃO",VLOOKUP(B31,DADOS_COTACAO,2,0),VLOOKUP(B31,DADOS_COMPOSICAO,2,0)))))) -> GUINDASTE HIDRÁULICO AUTOPROPELIDO, COM LANÇA TELESCÓPICA 28,80 M, CAPACIDADE MÁXIMA 30 T, POTÊNCIA 97 KW, TRAÇÃO 4 X 4 - CHI DIURNO. AF_11/2014 | I31: SINAPI | J31: =IF(I31="SINAPI",VLOOKUP(B31,DADOS_SINAPI,3,0),IF(I31="SETOP",VLOOKUP(B31,DADOS_SETOP,3,0),IF(I31="SICRO",VLOOKUP(B31,DADOS_SICRO,3,0),IF(I31="SUDECAP",VLOOKUP(B31,DADOS_SUDECAP,3,0),IF(I31="COTAÇÃO",VLOOKUP(B31,DADOS_COTACAO,9,0),VLOOKUP(B31,DADOS_COMPOSICAO,10,0)))))) -> CHI | K31: 0.706 | L31: =IF(I31="SINAPI",VLOOKUP(B31,DADOS_SINAPI,4,0),IF(I31="SETOP",VLOOKUP(B31,DADOS_SETOP,4,0),IF(I31="SICRO",VLOOKUP(B31,DADOS_SICRO,4,0),IF(I31="SUDECAP",VLOOKUP(B31,DADOS_SUDECAP,4,0),IF(I31="COTAÇÃO",VLOOKUP(B31,DADOS_COTACAO,12,0),VLOOKUP(B31,DADOS_COMPOSICAO,13,0)))))) -> 89.75 | M31: 63.3635
B32: ED-49639 | C32: =IF(I32="SINAPI",VLOOKUP(B32,DADOS_SINAPI,2,0),IF(I32="SETOP",VLOOKUP(B32,DADOS_SETOP,2,0),IF(I32="SICRO",VLOOKUP(B32,DADOS_SICRO,2,0),IF(I32="SUDECAP",VLOOKUP(B32,DADOS_SUDECAP,2,0),IF(I32="COTAÇÃO",VLOOKUP(B32,DADOS_COTACAO,2,0),VLOOKUP(B32,DADOS_COMPOSICAO,2,0)))))) -> FORNECIMENTO DE CONCRETO ESTRUTURAL, USINADO BOMBEADO, COM FCK 30MPA, INCLUSIVE LANÇAMENTO, ADENSAMENTO E ACABAMENTO | I32: SETOP | J32: =IF(I32="SINAPI",VLOOKUP(B32,DADOS_SINAPI,3,0),IF(I32="SETOP",VLOOKUP(B32,DADOS_SETOP,3,0),IF(I32="SICRO",VLOOKUP(B32,DADOS_SICRO,3,0),IF(I32="SUDECAP",VLOOKUP(B32,DADOS_SUDECAP,3,0),IF(I32="COTAÇÃO",VLOOKUP(B32,DADOS_COTACAO,9,0),VLOOKUP(B32,DADOS_COMPOSICAO,10,0)))))) -> m3 | K32: 1 | L32: =IF(I32="SINAPI",VLOOKUP(B32,DADOS_SINAPI,4,0),IF(I32="SETOP",VLOOKUP(B32,DADOS_SETOP,4,0),IF(I32="SICRO",VLOOKUP(B32,DADOS_SICRO,4,0),IF(I32="SUDECAP",VLOOKUP(B32,DADOS_SUDECAP,4,0),IF(I32="COTAÇÃO",VLOOKUP(B32,DADOS_COTACAO,12,0),VLOOKUP(B32,DADOS_COMPOSICAO,13,0)))))) -> 749.64 | M32: 749.64
B33: ED-49647 | C33: =IF(I33="SINAPI",VLOOKUP(B33,DADOS_SINAPI,2,0),IF(I33="SETOP",VLOOKUP(B33,DADOS_SETOP,2,0),IF(I33="SICRO",VLOOKUP(B33,DADOS_SICRO,2,0),IF(I33="SUDECAP",VLOOKUP(B33,DADOS_SUDECAP,2,0),IF(I33="COTAÇÃO",VLOOKUP(B33,DADOS_COTACAO,2,0),VLOOKUP(B33,DADOS_COMPOSICAO,2,0)))))) -> FÔRMA E DESFORMA DE COMPENSADO PLASTIFICADO, ESP. 12MM, REAPROVEITAMENTO (5X), EXCLUSIVE ESCORAMENTO | I33: SETOP | J33: =IF(I33="SINAPI",VLOOKUP(B33,DADOS_SINAPI,3,0),IF(I33="SETOP",VLOOKUP(B33,DADOS_SETOP,3,0),IF(I33="SICRO",VLOOKUP(B33,DADOS_SICRO,3,0),IF(I33="SUDECAP",VLOOKUP(B33,DADOS_SUDECAP,3,0),IF(I33="COTAÇÃO",VLOOKUP(B33,DADOS_COTACAO,9,0),VLOOKUP(B33,DADOS_COMPOSICAO,10,0)))))) -> m2 | K33: 9.111239193 | L33: =IF(I33="SINAPI",VLOOKUP(B33,DADOS_SINAPI,4,0),IF(I33="SETOP",VLOOKUP(B33,DADOS_SETOP,4,0),IF(I33="SICRO",VLOOKUP(B33,DADOS_SICRO,4,0),IF(I33="SUDECAP",VLOOKUP(B33,DADOS_SUDECAP,4,0),IF(I33="COTAÇÃO",VLOOKUP(B33,DADOS_COTACAO,12,0),VLOOKUP(B33,DADOS_COMPOSICAO,13,0)))))) -> 53.12 | M33: 483.9890259
B34: ED-48298 | C34: =IF(I34="SINAPI",VLOOKUP(B34,DADOS_SINAPI,2,0),IF(I34="SETOP",VLOOKUP(B34,DADOS_SETOP,2,0),IF(I34="SICRO",VLOOKUP(B34,DADOS_SICRO,2,0),IF(I34="SUDECAP",VLOOKUP(B34,DADOS_SUDECAP,2,0),IF(I34="COTAÇÃO",VLOOKUP(B34,DADOS_COTACAO,2,0),VLOOKUP(B34,DADOS_COMPOSICAO,2,0)))))) -> CORTE, DOBRA E MONTAGEM DE AÇO CA-50/60, INCLUSIVE ESPAÇADOR | I34: SETOP | J34: =IF(I34="SINAPI",VLOOKUP(B34,DADOS_SINAPI,3,0),IF(I34="SETOP",VLOOKUP(B34,DADOS_SETOP,3,0),IF(I34="SICRO",VLOOKUP(B34,DADOS_SICRO,3,0),IF(I34="SUDECAP",VLOOKUP(B34,DADOS_SUDECAP,3,0),IF(I34="COTAÇÃO",VLOOKUP(B34,DADOS_COTACAO,9,0),VLOOKUP(B34,DADOS_COMPOSICAO,10,0)))))) -> Kg | K34: 83.9271854 | L34: =IF(I34="SINAPI",VLOOKUP(B34,DADOS_SINAPI,4,0),IF(I34="SETOP",VLOOKUP(B34,DADOS_SETOP,4,0),IF(I34="SICRO",VLOOKUP(B34,DADOS_SICRO,4,0),IF(I34="SUDECAP",VLOOKUP(B34,DADOS_SUDECAP,4,0),IF(I34="COTAÇÃO",VLOOKUP(B34,DADOS_COTACAO,12,0),VLOOKUP(B34,DADOS_COMPOSICAO,13,0)))))) -> 13.52 | M34: 1134.695547
B35: 89994 | C35: =IF(I35="SINAPI",VLOOKUP(B35,DADOS_SINAPI,2,0),IF(I35="SETOP",VLOOKUP(B35,DADOS_SETOP,2,0),IF(I35="SICRO",VLOOKUP(B35,DADOS_SICRO,2,0),IF(I35="SUDECAP",VLOOKUP(B35,DADOS_SUDECAP,2,0),IF(I35="COTAÇÃO",VLOOKUP(B35,DADOS_COTACAO,2,0),VLOOKUP(B35,DADOS_COMPOSICAO,2,0)))))) -> GRAUTEAMENTO DE CINTA INTERMEDIÁRIA OU DE CONTRAVERGA EM ALVENARIA ESTRUTURAL. AF_09/2021 | I35: SINAPI | J35: =IF(I35="SINAPI",VLOOKUP(B35,DADOS_SINAPI,3,0),IF(I35="SETOP",VLOOKUP(B35,DADOS_SETOP,3,0),IF(I35="SICRO",VLOOKUP(B35,DADOS_SICRO,3,0),IF(I35="SUDECAP",VLOOKUP(B35,DADOS_SUDECAP,3,0),IF(I35="COTAÇÃO",VLOOKUP(B35,DADOS_COTACAO,9,0),VLOOKUP(B35,DADOS_COMPOSICAO,10,0)))))) -> M3 | K35: 0.126 | L35: =IF(I35="SINAPI",VLOOKUP(B35,DADOS_SINAPI,4,0),IF(I35="SETOP",VLOOKUP(B35,DADOS_SETOP,4,0),IF(I35="SICRO",VLOOKUP(B35,DADOS_SICRO,4,0),IF(I35="SUDECAP",VLOOKUP(B35,DADOS_SUDECAP,4,0),IF(I35="COTAÇÃO",VLOOKUP(B35,DADOS_COTACAO,12,0),VLOOKUP(B35,DADOS_COMPOSICAO,13,0)))))) -> 862.5 | M35: 108.675
A37: DAC-4.3 | B37: FORNECIMENTO E EXECUÇÃO DE VIGAS PRÉ-FABRICADAS | I37: CPU | J37: M³ | M37: =SUM(M38:XFD44) -> 3110.667561
B38: 88309 | C38: =IF(I38="SINAPI",VLOOKUP(B38,DADOS_SINAPI,2,0),IF(I38="SETOP",VLOOKUP(B38,DADOS_SETOP,2,0),IF(I38="SICRO",VLOOKUP(B38,DADOS_SICRO,2,0),IF(I38="SUDECAP",VLOOKUP(B38,DADOS_SUDECAP,2,0),IF(I38="COTAÇÃO",VLOOKUP(B38,DADOS_COTACAO,2,0),VLOOKUP(B38,DADOS_COMPOSICAO,2,0)))))) -> PEDREIRO COM ENCARGOS COMPLEMENTARES | I38: SINAPI | J38: =IF(I38="SINAPI",VLOOKUP(B38,DADOS_SINAPI,3,0),IF(I38="SETOP",VLOOKUP(B38,DADOS_SETOP,3,0),IF(I38="SICRO",VLOOKUP(B38,DADOS_SICRO,3,0),IF(I38="SUDECAP",VLOOKUP(B38,DADOS_SUDECAP,3,0),IF(I38="COTAÇÃO",VLOOKUP(B38,DADOS_COTACAO,9,0),VLOOKUP(B38,DADOS_COMPOSICAO,10,0)))))) -> H | K38: 0.378 | L38: =IF(I38="SINAPI",VLOOKUP(B38,DADOS_SINAPI,4,0),IF(I38="SETOP",VLOOKUP(B38,DADOS_SETOP,4,0),IF(I38="SICRO",VLOOKUP(B38,DADOS_SICRO,4,0),IF(I38="SUDECAP",VLOOKUP(B38,DADOS_SUDECAP,4,0),IF(I38="COTAÇÃO",VLOOKUP(B38,DADOS_COTACAO,12,0),VLOOKUP(B38,DADOS_COMPOSICAO,13,0)))))) -> 24.43 | M38: =K38*L38 -> 9.23454
B39: 88316 | C39: SERVENTE COM ENCARGOS COMPLEMENTARES | I39: SINAPI | J39: H | K39: 0.756 | L39: 17.77 | M39: 13.43412
B40: 89272 | C40: GUINDASTE HIDRÁULICO AUTOPROPELIDO, COM LANÇA TELESCÓPICA 28,80 M, CAPACIDADE MÁXIMA 30 T, POTÊNCIA 97 KW, TRAÇÃO 4 X 4 - CHP DIURNO. AF_11/2014 | I40: SINAPI | J40: CHP | K40: 0.198 | L40: 197.9 | M40: 39.1842
B41: 89273 | C41: =IF(I41="SINAPI",VLOOKUP(B41,DADOS_SINAPI,2,0),IF(I41="SETOP",VLOOKUP(B41,DADOS_SETOP,2,0),IF(I41="SICRO",VLOOKUP(B41,DADOS_SICRO,2,0),IF(I41="SUDECAP",VLOOKUP(B41,DADOS_SUDECAP,2,0),IF(I41="COTAÇÃO",VLOOKUP(B41,DADOS_COTACAO,2,0),VLOOKUP(B41,DADOS_COMPOSICAO,2,0)))))) -> GUINDASTE HIDRÁULICO AUTOPROPELIDO, COM LANÇA TELESCÓPICA 28,80 M, CAPACIDADE MÁXIMA 30 T, POTÊNCIA 97 KW, TRAÇÃO 4 X 4 - CHI DIURNO. AF_11/2014 | I41: SINAPI | J41: =IF(I41="SINAPI",VLOOKUP(B41,DADOS_SINAPI,3,0),IF(I41="SETOP",VLOOKUP(B41,DADOS_SETOP,3,0),IF(I41="SICRO",VLOOKUP(B41,DADOS_SICRO,3,0),IF(I41="SUDECAP",VLOOKUP(B41,DADOS_SUDECAP,3,0),IF(I41="COTAÇÃO",VLOOKUP(B41,DADOS_COTACAO,9,0),VLOOKUP(B41,DADOS_COMPOSICAO,10,0)))))) -> CHI | K41: 0.18 | L41: =IF(I41="SINAPI",VLOOKUP(B41,DADOS_SINAPI,4,0),IF(I41="SETOP",VLOOKUP(B41,DADOS_SETOP,4,0),IF(I41="SICRO",VLOOKUP(B41,DADOS_SICRO,4,0),IF(I41="SUDECAP",VLOOKUP(B41,DADOS_SUDECAP,4,0),IF(I41="COTAÇÃO",VLOOKUP(B41,DADOS_COTACAO,12,0),VLOOKUP(B41,DADOS_COMPOSICAO,13,0)))))) -> 89.75 | M41: 16.155
B42: ED-49639 | C42: =IF(I42="SINAPI",VLOOKUP(B42,DADOS_SINAPI,2,0),IF(I42="SETOP",VLOOKUP(B42,DADOS_SETOP,2,0),IF(I42="SICRO",VLOOKUP(B42,DADOS_SICRO,2,0),IF(I42="SUDECAP",VLOOKUP(B42,DADOS_SUDECAP,2,0),IF(I42="COTAÇÃO",VLOOKUP(B42,DADOS_COTACAO,2,0),VLOOKUP(B42,DADOS_COMPOSICAO,2,0)))))) -> FORNECIMENTO DE CONCRETO ESTRUTURAL, USINADO BOMBEADO, COM FCK 30MPA, INCLUSIVE LANÇAMENTO, ADENSAMENTO E ACABAMENTO | I42: SETOP | J42: =IF(I42="SINAPI",VLOOKUP(B42,DADOS_SINAPI,3,0),IF(I42="SETOP",VLOOKUP(B42,DADOS_SETOP,3,0),IF(I42="SICRO",VLOOKUP(B42,DADOS_SICRO,3,0),IF(I42="SUDECAP",VLOOKUP(B42,DADOS_SUDECAP,3,0),IF(I42="COTAÇÃO",VLOOKUP(B42,DADOS_COTACAO,9,0),VLOOKUP(B42,DADOS_COMPOSICAO,10,0)))))) -> m3 | K42: 1 | L42: =IF(I42="SINAPI",VLOOKUP(B42,DADOS_SINAPI,4,0),IF(I42="SETOP",VLOOKUP(B42,DADOS_SETOP,4,0),IF(I42="SICRO",VLOOKUP(B42,DADOS_SICRO,4,0),IF(I42="SUDECAP",VLOOKUP(B42,DADOS_SUDECAP,4,0),IF(I42="COTAÇÃO",VLOOKUP(B42,DADOS_COTACAO,12,0),VLOOKUP(B42,DADOS_COMPOSICAO,13,0)))))) -> 749.64 | M42: 749.64
B43: ED-49647 | C43: =IF(I43="SINAPI",VLOOKUP(B43,DADOS_SINAPI,2,0),IF(I43="SETOP",VLOOKUP(B43,DADOS_SETOP,2,0),IF(I43="SICRO",VLOOKUP(B43,DADOS_SICRO,2,0),IF(I43="SUDECAP",VLOOKUP(B43,DADOS_SUDECAP,2,0),IF(I43="COTAÇÃO",VLOOKUP(B43,DADOS_COTACAO,2,0),VLOOKUP(B43,DADOS_COMPOSICAO,2,0)))))) -> FÔRMA E DESFORMA DE COMPENSADO PLASTIFICADO, ESP. 12MM, REAPROVEITAMENTO (5X), EXCLUSIVE ESCORAMENTO | I43: SETOP | J43: =IF(I43="SINAPI",VLOOKUP(B43,DADOS_SINAPI,3,0),IF(I43="SETOP",VLOOKUP(B43,DADOS_SETOP,3,0),IF(I43="SICRO",VLOOKUP(B43,DADOS_SICRO,3,0),IF(I43="SUDECAP",VLOOKUP(B43,DADOS_SUDECAP,3,0),IF(I43="COTAÇÃO",VLOOKUP(B43,DADOS_COTACAO,9,0),VLOOKUP(B43,DADOS_COMPOSICAO,10,0)))))) -> m2 | K43: 11.26573427 | L43: =IF(I43="SINAPI",VLOOKUP(B43,DADOS_SINAPI,4,0),IF(I43="SETOP",VLOOKUP(B43,DADOS_SETOP,4,0),IF(I43="SICRO",VLOOKUP(B43,DADOS_SICRO,4,0),IF(I43="SUDECAP",VLOOKUP(B43,DADOS_SUDECAP,4,0),IF(I43="COTAÇÃO",VLOOKUP(B43,DADOS_COTACAO,12,0),VLOOKUP(B43,DADOS_COMPOSICAO,13,0)))))) -> 53.12 | M43: 598.4358044
B44: ED-48298 | C44: =IF(I44="SINAPI",VLOOKUP(B44,DADOS_SINAPI,2,0),IF(I44="SETOP",VLOOKUP(B44,DADOS_SETOP,2,0),IF(I44="SICRO",VLOOKUP(B44,DADOS_SICRO,2,0),IF(I44="SUDECAP",VLOOKUP(B44,DADOS_SUDECAP,2,0),IF(I44="COTAÇÃO",VLOOKUP(B44,DADOS_COTACAO,2,0),VLOOKUP(B44,DADOS_COMPOSICAO,2,0)))))) -> CORTE, DOBRA E MONTAGEM DE AÇO CA-50/60, INCLUSIVE ESPAÇADOR | I44: SETOP | J44: =IF(I44="SINAPI",VLOOKUP(B44,DADOS_SINAPI,3,0),IF(I44="SETOP",VLOOKUP(B44,DADOS_SETOP,3,0),IF(I44="SICRO",VLOOKUP(B44,DADOS_SICRO,3,0),IF(I44="SUDECAP",VLOOKUP(B44,DADOS_SUDECAP,3,0),IF(I44="COTAÇÃO",VLOOKUP(B44,DADOS_COTACAO,9,0),VLOOKUP(B44,DADOS_COMPOSICAO,10,0)))))) -> Kg | K44: 124.5994006 | L44: =IF(I44="SINAPI",VLOOKUP(B44,DADOS_SINAPI,4,0),IF(I44="SETOP",VLOOKUP(B44,DADOS_SETOP,4,0),IF(I44="SICRO",VLOOKUP(B44,DADOS_SICRO,4,0),IF(I44="SUDECAP",VLOOKUP(B44,DADOS_SUDECAP,4,0),IF(I44="COTAÇÃO",VLOOKUP(B44,DADOS_COTACAO,12,0),VLOOKUP(B44,DADOS_COMPOSICAO,13,0)))))) -> 13.52 | M44: 1684.583896
A46: DAC-4.4 | B46: FORNECIMENTO E EXECUÇÃO DE LAJE ALVEOLAR | I46: CPU | J46: M³ | M46: =SUM(M47:XFD53) -> 2415.15227
B47: 88309 | C47: =IF(I47="SINAPI",VLOOKUP(B47,DADOS_SINAPI,2,0),IF(I47="SETOP",VLOOKUP(B47,DADOS_SETOP,2,0),IF(I47="SICRO",VLOOKUP(B47,DADOS_SICRO,2,0),IF(I47="SUDECAP",VLOOKUP(B47,DADOS_SUDECAP,2,0),IF(I47="COTAÇÃO",VLOOKUP(B47,DADOS_COTACAO,2,0),VLOOKUP(B47,DADOS_COMPOSICAO,2,0)))))) -> PEDREIRO COM ENCARGOS COMPLEMENTARES | I47: SINAPI | J47: =IF(I47="SINAPI",VLOOKUP(B47,DADOS_SINAPI,3,0),IF(I47="SETOP",VLOOKUP(B47,DADOS_SETOP,3,0),IF(I47="SICRO",VLOOKUP(B47,DADOS_SICRO,3,0),IF(I47="SUDECAP",VLOOKUP(B47,DADOS_SUDECAP,3,0),IF(I47="COTAÇÃO",VLOOKUP(B47,DADOS_COTACAO,9,0),VLOOKUP(B47,DADOS_COMPOSICAO,10,0)))))) -> H | K47: 0.256 | L47: =IF(I47="SINAPI",VLOOKUP(B47,DADOS_SINAPI,4,0),IF(I47="SETOP",VLOOKUP(B47,DADOS_SETOP,4,0),IF(I47="SICRO",VLOOKUP(B47,DADOS_SICRO,4,0),IF(I47="SUDECAP",VLOOKUP(B47,DADOS_SUDECAP,4,0),IF(I47="COTAÇÃO",VLOOKUP(B47,DADOS_COTACAO,12,0),VLOOKUP(B47,DADOS_COMPOSICAO,13,0)))))) -> 24.43 | M47: =K47*L47 -> 6.25408
B48: 88316 | C48: SERVENTE COM ENCARGOS COMPLEMENTARES | I48: SINAPI | J48: H | K48: 0.512 | L48: 17.77 | M48: 9.09824
B49: 89272 | C49: GUINDASTE HIDRÁULICO AUTOPROPELIDO, COM LANÇA TELESCÓPICA 28,80 M, CAPACIDADE MÁXIMA 30 T, POTÊNCIA 97 KW, TRAÇÃO 4 X 4 - CHP DIURNO. AF_11/2014 | I49: SINAPI | J49: CHP | K49: 0.133 | L49: 197.9 | M49: 26.3207
B50: 89273 | C50: =IF(I50="SINAPI",VLOOKUP(B50,DADOS_SINAPI,2,0),IF(I50="SETOP",VLOOKUP(B50,DADOS_SETOP,2,0),IF(I50="SICRO",VLOOKUP(B50,DADOS_SICRO,2,0),IF(I50="SUDECAP",VLOOKUP(B50,DADOS_SUDECAP,2,0),IF(I50="COTAÇÃO",VLOOKUP(B50,DADOS_COTACAO,2,0),VLOOKUP(B50,DADOS_COMPOSICAO,2,0)))))) -> GUINDASTE HIDRÁULICO AUTOPROPELIDO, COM LANÇA TELESCÓPICA 28,80 M, CAPACIDADE MÁXIMA 30 T, POTÊNCIA 97 KW, TRAÇÃO 4 X 4 - CHI DIURNO. AF_11/2014 | I50: SINAPI | J50: =IF(I50="SINAPI",VLOOKUP(B50,DADOS_SINAPI,3,0),IF(I50="SETOP",VLOOKUP(B50,DADOS_SETOP,3,0),IF(I50="SICRO",VLOOKUP(B50,DADOS_SICRO,3,0),IF(I50="SUDECAP",VLOOKUP(B50,DADOS_SUDECAP,3,0),IF(I50="COTAÇÃO",VLOOKUP(B50,DADOS_COTACAO,9,0),VLOOKUP(B50,DADOS_COMPOSICAO,10,0)))))) -> CHI | K50: 0.123 | L50: =IF(I50="SINAPI",VLOOKUP(B50,DADOS_SINAPI,4,0),IF(I50="SETOP",VLOOKUP(B50,DADOS_SETOP,4,0),IF(I50="SICRO",VLOOKUP(B50,DADOS_SICRO,4,0),IF(I50="SUDECAP",VLOOKUP(B50,DADOS_SUDECAP,4,0),IF(I50="COTAÇÃO",VLOOKUP(B50,DADOS_COTACAO,12,0),VLOOKUP(B50,DADOS_COMPOSICAO,13,0)))))) -> 89.75 | M50: 11.03925
B51: ED-49639 | C51: =IF(I51="SINAPI",VLOOKUP(B51,DADOS_SINAPI,2,0),IF(I51="SETOP",VLOOKUP(B51,DADOS_SETOP,2,0),IF(I51="SICRO",VLOOKUP(B51,DADOS_SICRO,2,0),IF(I51="SUDECAP",VLOOKUP(B51,DADOS_SUDECAP,2,0),IF(I51="COTAÇÃO",VLOOKUP(B51,DADOS_COTACAO,2,0),VLOOKUP(B51,DADOS_COMPOSICAO,2,0)))))) -> FORNECIMENTO DE CONCRETO ESTRUTURAL, USINADO BOMBEADO, COM FCK 30MPA, INCLUSIVE LANÇAMENTO, ADENSAMENTO E ACABAMENTO | I51: SETOP | J51: =IF(I51="SINAPI",VLOOKUP(B51,DADOS_SINAPI,3,0),IF(I51="SETOP",VLOOKUP(B51,DADOS_SETOP,3,0),IF(I51="SICRO",VLOOKUP(B51,DADOS_SICRO,3,0),IF(I51="SUDECAP",VLOOKUP(B51,DADOS_SUDECAP,3,0),IF(I51="COTAÇÃO",VLOOKUP(B51,DADOS_COTACAO,9,0),VLOOKUP(B51,DADOS_COMPOSICAO,10,0)))))) -> m3 | K51: 1 | L51: =IF(I51="SINAPI",VLOOKUP(B51,DADOS_SINAPI,4,0),IF(I51="SETOP",VLOOKUP(B51,DADOS_SETOP,4,0),IF(I51="SICRO",VLOOKUP(B51,DADOS_SICRO,4,0),IF(I51="SUDECAP",VLOOKUP(B51,DADOS_SUDECAP,4,0),IF(I51="COTAÇÃO",VLOOKUP(B51,DADOS_COTACAO,12,0),VLOOKUP(B51,DADOS_COMPOSICAO,13,0)))))) -> 749.64 | M51: 749.64
B52: ED-49647 | C52: =IF(I52="SINAPI",VLOOKUP(B52,DADOS_SINAPI,2,0),IF(I52="SETOP",VLOOKUP(B52,DADOS_SETOP,2,0),IF(I52="SICRO",VLOOKUP(B52,DADOS_SICRO,2,0),IF(I52="SUDECAP",VLOOKUP(B52,DADOS_SUDECAP,2,0),IF(I52="COTAÇÃO",VLOOKUP(B52,DADOS_COTACAO,2,0),VLOOKUP(B52,DADOS_COMPOSICAO,2,0)))))) -> FÔRMA E DESFORMA DE COMPENSADO PLASTIFICADO, ESP. 12MM, REAPROVEITAMENTO (5X), EXCLUSIVE ESCORAMENTO | I52: SETOP | J52: =IF(I52="SINAPI",VLOOKUP(B52,DADOS_SINAPI,3,0),IF(I52="SETOP",VLOOKUP(B52,DADOS_SETOP,3,0),IF(I52="SICRO",VLOOKUP(B52,DADOS_SICRO,3,0),IF(I52="SUDECAP",VLOOKUP(B52,DADOS_SUDECAP,3,0),IF(I52="COTAÇÃO",VLOOKUP(B52,DADOS_COTACAO,9,0),VLOOKUP(B52,DADOS_COMPOSICAO,10,0)))))) -> m2 | K52: 10 | L52: =IF(I52="SINAPI",VLOOKUP(B52,DADOS_SINAPI,4,0),IF(I52="SETOP",VLOOKUP(B52,DADOS_SETOP,4,0),IF(I52="SICRO",VLOOKUP(B52,DADOS_SICRO,4,0),IF(I52="SUDECAP",VLOOKUP(B52,DADOS_SUDECAP,4,0),IF(I52="COTAÇÃO",VLOOKUP(B52,DADOS_COTACAO,12,0),VLOOKUP(B52,DADOS_COMPOSICAO,13,0)))))) -> 53.12 | M52: 531.2
B53: ED-48298 | C53: =IF(I53="SINAPI",VLOOKUP(B53,DADOS_SINAPI,2,0),IF(I53="SETOP",VLOOKUP(B53,DADOS_SETOP,2,0),IF(I53="SICRO",VLOOKUP(B53,DADOS_SICRO,2,0),IF(I53="SUDECAP",VLOOKUP(B53,DADOS_SUDECAP,2,0),IF(I53="COTAÇÃO",VLOOKUP(B53,DADOS_COTACAO,2,0),VLOOKUP(B53,DADOS_COMPOSICAO,2,0)))))) -> CORTE, DOBRA E MONTAGEM DE AÇO CA-50/60, INCLUSIVE ESPAÇADOR | I53: SETOP | J53: =IF(I53="SINAPI",VLOOKUP(B53,DADOS_SINAPI,3,0),IF(I53="SETOP",VLOOKUP(B53,DADOS_SETOP,3,0),IF(I53="SICRO",VLOOKUP(B53,DADOS_SICRO,3,0),IF(I53="SUDECAP",VLOOKUP(B53,DADOS_SUDECAP,3,0),IF(I53="COTAÇÃO",VLOOKUP(B53,DADOS_COTACAO,9,0),VLOOKUP(B53,DADOS_COMPOSICAO,10,0)))))) -> Kg | K53: 80 | L53: =IF(I53="SINAPI",VLOOKUP(B53,DADOS_SINAPI,4,0),IF(I53="SETOP",VLOOKUP(B53,DADOS_SETOP,4,0),IF(I53="SICRO",VLOOKUP(B53,DADOS_SICRO,4,0),IF(I53="SUDECAP",VLOOKUP(B53,DADOS_SUDECAP,4,0),IF(I53="COTAÇÃO",VLOOKUP(B53,DADOS_COTACAO,12,0),VLOOKUP(B53,DADOS_COMPOSICAO,13,0)))))) -> 13.52 | M53: 1081.6
A55: DAC-4.5 | B55: DRENO DE BRITA 2 + AREIA | I55: CPU | J55: M³ | M55: =SUM(M56:XFD58) -> 130.2982
B56: 367 | C56: =IF(I56="SINAPI",VLOOKUP(B56,DADOS_SINAPI,2,0),IF(I56="SETOP",VLOOKUP(B56,DADOS_SETOP,2,0),IF(I56="SICRO",VLOOKUP(B56,DADOS_SICRO,2,0),IF(I56="SUDECAP",VLOOKUP(B56,DADOS_SUDECAP,2,0),IF(I56="COTAÇÃO",VLOOKUP(B56,DADOS_COTACAO,2,0),VLOOKUP(B56,DADOS_COMPOSICAO,2,0)))))) -> AREIA GROSSA - POSTO JAZIDA/FORNECEDOR (RETIRADO NA JAZIDA, SEM TRANSPORTE) | I56: SINAPI | J56: =IF(I56="SINAPI",VLOOKUP(B56,DADOS_SINAPI,3,0),IF(I56="SETOP",VLOOKUP(B56,DADOS_SETOP,3,0),IF(I56="SICRO",VLOOKUP(B56,DADOS_SICRO,3,0),IF(I56="SUDECAP",VLOOKUP(B56,DADOS_SUDECAP,3,0),IF(I56="COTAÇÃO",VLOOKUP(B56,DADOS_COTACAO,9,0),VLOOKUP(B56,DADOS_COMPOSICAO,10,0)))))) -> M3 | K56: 0.8 | L56: =IF(I56="SINAPI",VLOOKUP(B56,DADOS_SINAPI,4,0),IF(I56="SETOP",VLOOKUP(B56,DADOS_SETOP,4,0),IF(I56="SICRO",VLOOKUP(B56,DADOS_SICRO,4,0),IF(I56="SUDECAP",VLOOKUP(B56,DADOS_SUDECAP,4,0),IF(I56="COTAÇÃO",VLOOKUP(B56,DADOS_COTACAO,12,0),VLOOKUP(B56,DADOS_COMPOSICAO,13,0)))))) -> 98.77 | M56: =K56*L56 -> 79.016
B57: ED-50367 | C57: SERVENTE COM ENCARGOS COMPLEMENTARES | I57: SETOP | J57: hora | K57: 1.66 | L57: 17.77 | M57: 29.4982
B58: 4718 | C58: PEDRA BRITADA N. 2 (19 A 38 MM) POSTO PEDREIRA/FORNECEDOR, SEM FRETE | I58: SINAPI | J58: M3 | K58: 0.2 | L58: 108.92 | M58: 21.784
A60: 6 | B60: =VLOOKUP(A60,ORC!$D$24:$N$2945,2,0) -> ESQUADRIAS
A61: DAC-6.1 | B61: INSTALAÇÃO DE PORTA SANFONADA EM PVC, INCLUSIVE ACESSÓRIOS (PUXADOR E TRINCOS) | I61: CPU | J61: UN | M61: =SUM(M62:M63) -> 62.44172
B62: 88316 | C62: =IF(I62="SINAPI",VLOOKUP(B62,DADOS_SINAPI,2,0),IF(I62="SETOP",VLOOKUP(B62,DADOS_SETOP,2,0),IF(I62="SICRO",VLOOKUP(B62,DADOS_SICRO,2,0),IF(I62="SUDECAP",VLOOKUP(B62,DADOS_SUDECAP,2,0),IF(I62="COTAÇÃO",VLOOKUP(B62,DADOS_COTACAO,2,0),VLOOKUP(B62,DADOS_COMPOSICAO,2,0)))))) -> SERVENTE COM ENCARGOS COMPLEMENTARES | I62: SINAPI | J62: =IF(I62="SINAPI",VLOOKUP(B62,DADOS_SINAPI,3,0),IF(I62="SETOP",VLOOKUP(B62,DADOS_SETOP,3,0),IF(I62="SICRO",VLOOKUP(B62,DADOS_SICRO,3,0),IF(I62="SUDECAP",VLOOKUP(B62,DADOS_SUDECAP,3,0),IF(I62="COTAÇÃO",VLOOKUP(B62,DADOS_COTACAO,9,0),VLOOKUP(B62,DADOS_COMPOSICAO,10,0)))))) -> H | K62: 1.486 | L62: =IF(I62="SINAPI",VLOOKUP(B62,DADOS_SINAPI,4,0),IF(I62="SETOP",VLOOKUP(B62,DADOS_SETOP,4,0),IF(I62="SICRO",VLOOKUP(B62,DADOS_SICRO,4,0),IF(I62="SUDECAP",VLOOKUP(B62,DADOS_SUDECAP,4,0),IF(I62="COTAÇÃO",VLOOKUP(B62,DADOS_COTACAO,12,0),VLOOKUP(B62,DADOS_COMPOSICAO,13,0)))))) -> 17.77 | M62: =K62*L62 -> 26.40622
B63: 88315 | C63: =IF(I63="SINAPI",VLOOKUP(B63,DADOS_SINAPI,2,0),IF(I63="SETOP",VLOOKUP(B63,DADOS_SETOP,2,0),IF(I63="SICRO",VLOOKUP(B63,DADOS_SICRO,2,0),IF(I63="SUDECAP",VLOOKUP(B63,DADOS_SUDECAP,2,0),IF(I63="COTAÇÃO",VLOOKUP(B63,DADOS_COTACAO,2,0),VLOOKUP(B63,DADOS_COMPOSICAO,2,0)))))) -> SERRALHEIRO COM ENCARGOS COMPLEMENTARES | I63: SINAPI | J63: =IF(I63="SINAPI",VLOOKUP(B63,DADOS_SINAPI,3,0),IF(I63="SETOP",VLOOKUP(B63,DADOS_SETOP,3,0),IF(I63="SICRO",VLOOKUP(B63,DADOS_SICRO,3,0),IF(I63="SUDECAP",VLOOKUP(B63,DADOS_SUDECAP,3,0),IF(I63="COTAÇÃO",VLOOKUP(B63,DADOS_COTACAO,9,0),VLOOKUP(B63,DADOS_COMPOSICAO,10,0)))))) -> H | K63: 1.486 | L63: =IF(I63="SINAPI",VLOOKUP(B63,DADOS_SINAPI,4,0),IF(I63="SETOP",VLOOKUP(B63,DADOS_SETOP,4,0),IF(I63="SICRO",VLOOKUP(B63,DADOS_SICRO,4,0),IF(I63="SUDECAP",VLOOKUP(B63,DADOS_SUDECAP,4,0),IF(I63="COTAÇÃO",VLOOKUP(B63,DADOS_COTACAO,12,0),VLOOKUP(B63,DADOS_COMPOSICAO,13,0)))))) -> 24.25 | M63: 36.0355
A65: DAC-6.2 | B65: PORTA DE ABRIR COM MOLA HIDRÁULICA, EM VIDRO TEMPERADO, 2 FOLHAS DE 100X210 CM, ESPESSURA DD 10MM, INCLUSIVE ACESSÓRIOS. AF_01/2021 | I65: CPU | J65: UN | M65: =SUM(M66:M70) -> 3748.9293
B66: 88316 | C66: =IF(I66="SINAPI",VLOOKUP(B66,DADOS_SINAPI,2,0),IF(I66="SETOP",VLOOKUP(B66,DADOS_SETOP,2,0),IF(I66="SICRO",VLOOKUP(B66,DADOS_SICRO,2,0),IF(I66="SUDECAP",VLOOKUP(B66,DADOS_SUDECAP,2,0),IF(I66="COTAÇÃO",VLOOKUP(B66,DADOS_COTACAO,2,0),VLOOKUP(B66,DADOS_COMPOSICAO,2,0)))))) -> SERVENTE COM ENCARGOS COMPLEMENTARES | I66: SINAPI | J66: =IF(I66="SINAPI",VLOOKUP(B66,DADOS_SINAPI,3,0),IF(I66="SETOP",VLOOKUP(B66,DADOS_SETOP,3,0),IF(I66="SICRO",VLOOKUP(B66,DADOS_SICRO,3,0),IF(I66="SUDECAP",VLOOKUP(B66,DADOS_SUDECAP,3,0),IF(I66="COTAÇÃO",VLOOKUP(B66,DADOS_COTACAO,9,0),VLOOKUP(B66,DADOS_COMPOSICAO,10,0)))))) -> H | K66: 6.57 | L66: =IF(I66="SINAPI",VLOOKUP(B66,DADOS_SINAPI,4,0),IF(I66="SETOP",VLOOKUP(B66,DADOS_SETOP,4,0),IF(I66="SICRO",VLOOKUP(B66,DADOS_SICRO,4,0),IF(I66="SUDECAP",VLOOKUP(B66,DADOS_SUDECAP,4,0),IF(I66="COTAÇÃO",VLOOKUP(B66,DADOS_COTACAO,12,0),VLOOKUP(B66,DADOS_COMPOSICAO,13,0)))))) -> 17.77 | M66: =K66*L66 -> 116.7489
B67: 88325 | C67: =IF(I67="SINAPI",VLOOKUP(B67,DADOS_SINAPI,2,0),IF(I67="SETOP",VLOOKUP(B67,DADOS_SETOP,2,0),IF(I67="SICRO",VLOOKUP(B67,DADOS_SICRO,2,0),IF(I67="SUDECAP",VLOOKUP(B67,DADOS_SUDECAP,2,0),IF(I67="COTAÇÃO",VLOOKUP(B67,DADOS_COTACAO,2,0),VLOOKUP(B67,DADOS_COMPOSICAO,2,0)))))) -> VIDRACEIRO COM ENCARGOS COMPLEMENTARES | I67: SINAPI | J67: =IF(I67="SINAPI",VLOOKUP(B67,DADOS_SINAPI,3,0),IF(I67="SETOP",VLOOKUP(B67,DADOS_SETOP,3,0),IF(I67="SICRO",VLOOKUP(B67,DADOS_SICRO,3,0),IF(I67="SUDECAP",VLOOKUP(B67,DADOS_SUDECAP,3,0),IF(I67="COTAÇÃO",VLOOKUP(B67,DADOS_COTACAO,9,0),VLOOKUP(B67,DADOS_COMPOSICAO,10,0)))))) -> H | K67: 6.57 | L67: =IF(I67="SINAPI",VLOOKUP(B67,DADOS_SINAPI,4,0),IF(I67="SETOP",VLOOKUP(B67,DADOS_SETOP,4,0),IF(I67="SICRO",VLOOKUP(B67,DADOS_SICRO,4,0),IF(I67="SUDECAP",VLOOKUP(B67,DADOS_SUDECAP,4,0),IF(I67="COTAÇÃO",VLOOKUP(B67,DADOS_COTACAO,12,0),VLOOKUP(B67,DADOS_COMPOSICAO,13,0)))))) -> 19.72 | M67: 129.5604
B68: 3104 | C68: =IF(I68="SINAPI",VLOOKUP(B68,DADOS_SINAPI,2,0),IF(I68="SETOP",VLOOKUP(B68,DADOS_SETOP,2,0),IF(I68="SICRO",VLOOKUP(B68,DADOS_SICRO,2,0),IF(I68="SUDECAP",VLOOKUP(B68,DADOS_SUDECAP,2,0),IF(I68="COTAÇÃO",VLOOKUP(B68,DADOS_COTACAO,2,0),VLOOKUP(B68,DADOS_COMPOSICAO,2,0)))))) -> CONJ. DE FERRAGENS PARA PORTA DE VIDRO TEMPERADO, EM ZAMAC CROMADO, CONTEMPLANDO DOBRADICA INF., DOBRADICA SUP., PIVO PARA DOBRADICA INF., PIVO PARA DOBRADICA SUP., FECHADURA CENTRAL EM ZAMC. CROMADO, CONTRA FECHADURA DE PRESSAO | I68: SINAPI | J68: =IF(I68="SINAPI",VLOOKUP(B68,DADOS_SINAPI,3,0),IF(I68="SETOP",VLOOKUP(B68,DADOS_SETOP,3,0),IF(I68="SICRO",VLOOKUP(B68,DADOS_SICRO,3,0),IF(I68="SUDECAP",VLOOKUP(B68,DADOS_SUDECAP,3,0),IF(I68="COTAÇÃO",VLOOKUP(B68,DADOS_COTACAO,9,0),VLOOKUP(B68,DADOS_COMPOSICAO,10,0)))))) -> CJ | K68: 2 | L68: =IF(I68="SINAPI",VLOOKUP(B68,DADOS_SINAPI,4,0),IF(I68="SETOP",VLOOKUP(B68,DADOS_SETOP,4,0),IF(I68="SICRO",VLOOKUP(B68,DADOS_SICRO,4,0),IF(I68="SUDECAP",VLOOKUP(B68,DADOS_SUDECAP,4,0),IF(I68="COTAÇÃO",VLOOKUP(B68,DADOS_COTACAO,12,0),VLOOKUP(B68,DADOS_COMPOSICAO,13,0)))))) -> 150.85 | M68: 301.7
B69: 5031 | C69: =IF(I69="SINAPI",VLOOKUP(B69,DADOS_SINAPI,2,0),IF(I69="SETOP",VLOOKUP(B69,DADOS_SETOP,2,0),IF(I69="SICRO",VLOOKUP(B69,DADOS_SICRO,2,0),IF(I69="SUDECAP",VLOOKUP(B69,DADOS_SUDECAP,2,0),IF(I69="COTAÇÃO",VLOOKUP(B69,DADOS_COTACAO,2,0),VLOOKUP(B69,DADOS_COMPOSICAO,2,0)))))) -> VIDRO TEMPERADO INCOLOR PARA PORTA DE ABRIR, E = 10 MM (SEM FERRAGENS E SEM COLOCACAO) | I69: SINAPI | J69: =IF(I69="SINAPI",VLOOKUP(B69,DADOS_SINAPI,3,0),IF(I69="SETOP",VLOOKUP(B69,DADOS_SETOP,3,0),IF(I69="SICRO",VLOOKUP(B69,DADOS_SICRO,3,0),IF(I69="SUDECAP",VLOOKUP(B69,DADOS_SUDECAP,3,0),IF(I69="COTAÇÃO",VLOOKUP(B69,DADOS_COTACAO,9,0),VLOOKUP(B69,DADOS_COMPOSICAO,10,0)))))) -> M2 | K69: 4.2 | L69: =IF(I69="SINAPI",VLOOKUP(B69,DADOS_SINAPI,4,0),IF(I69="SETOP",VLOOKUP(B69,DADOS_SETOP,4,0),IF(I69="SICRO",VLOOKUP(B69,DADOS_SICRO,4,0),IF(I69="SUDECAP",VLOOKUP(B69,DADOS_SUDECAP,4,0),IF(I69="COTAÇÃO",VLOOKUP(B69,DADOS_COTACAO,12,0),VLOOKUP(B69,DADOS_COMPOSICAO,13,0)))))) -> 375 | M69: 1575
B70: 11499 | C70: =IF(I70="SINAPI",VLOOKUP(B70,DADOS_SINAPI,2,0),IF(I70="SETOP",VLOOKUP(B70,DADOS_SETOP,2,0),IF(I70="SICRO",VLOOKUP(B70,DADOS_SICRO,2,0),IF(I70="SUDECAP",VLOOKUP(B70,DADOS_SUDECAP,2,0),IF(I70="COTAÇÃO",VLOOKUP(B70,DADOS_COTACAO,2,0),VLOOKUP(B70,DADOS_COMPOSICAO,2,0)))))) -> MOLA HIDRAULICA DE PISO, PARA PORTAS DE ATE 1100 MM E PESO DE ATE 120 KG, COM CORPO EM ACO INOX | I70: SINAPI | J70: =IF(I70="SINAPI",VLOOKUP(B70,DADOS_SINAPI,3,0),IF(I70="SETOP",VLOOKUP(B70,DADOS_SETOP,3,0),IF(I70="SICRO",VLOOKUP(B70,DADOS_SICRO,3,0),IF(I70="SUDECAP",VLOOKUP(B70,DADOS_SUDECAP,3,0),IF(I70="COTAÇÃO",VLOOKUP(B70,DADOS_COTACAO,9,0),VLOOKUP(B70,DADOS_COMPOSICAO,10,0)))))) -> UN | K70: 2 | L70: =IF(I70="SINAPI",VLOOKUP(B70,DADOS_SINAPI,4,0),IF(I70="SETOP",VLOOKUP(B70,DADOS_SETOP,4,0),IF(I70="SICRO",VLOOKUP(B70,DADOS_SICRO,4,0),IF(I70="SUDECAP",VLOOKUP(B70,DADOS_SUDECAP,4,0),IF(I70="COTAÇÃO",VLOOKUP(B70,DADOS_COTACAO,12,0),VLOOKUP(B70,DADOS_COMPOSICAO,13,0)))))) -> 812.96 | M70: 1625.92
A72: DAC-6.3 | B72: PORTA DE ABRIR COM MOLA HIDRÁULICA, EM VIDRO TEMPERADO, 2 FOLHAS DE 80X210 CM, ESPESSURA DD 10MM, INCLUSIVE ACESSÓRIOS. AF_01/2021 | I72: CPU | J72: UN | M72: =SUM(M73:M77) -> 3433.9293
B73: 88316 | C73: =IF(I73="SINAPI",VLOOKUP(B73,DADOS_SINAPI,2,0),IF(I73="SETOP",VLOOKUP(B73,DADOS_SETOP,2,0),IF(I73="SICRO",VLOOKUP(B73,DADOS_SICRO,2,0),IF(I73="SUDECAP",VLOOKUP(B73,DADOS_SUDECAP,2,0),IF(I73="COTAÇÃO",VLOOKUP(B73,DADOS_COTACAO,2,0),VLOOKUP(B73,DADOS_COMPOSICAO,2,0)))))) -> SERVENTE COM ENCARGOS COMPLEMENTARES | I73: SINAPI | J73: =IF(I73="SINAPI",VLOOKUP(B73,DADOS_SINAPI,3,0),IF(I73="SETOP",VLOOKUP(B73,DADOS_SETOP,3,0),IF(I73="SICRO",VLOOKUP(B73,DADOS_SICRO,3,0),IF(I73="SUDECAP",VLOOKUP(B73,DADOS_SUDECAP,3,0),IF(I73="COTAÇÃO",VLOOKUP(B73,DADOS_COTACAO,9,0),VLOOKUP(B73,DADOS_COMPOSICAO,10,0)))))) -> H | K73: 6.57 | L73: =IF(I73="SINAPI",VLOOKUP(B73,DADOS_SINAPI,4,0),IF(I73="SETOP",VLOOKUP(B73,DADOS_SETOP,4,0),IF(I73="SICRO",VLOOKUP(B73,DADOS_SICRO,4,0),IF(I73="SUDECAP",VLOOKUP(B73,DADOS_SUDECAP,4,0),IF(I73="COTAÇÃO",VLOOKUP(B73,DADOS_COTACAO,12,0),VLOOKUP(B73,DADOS_COMPOSICAO,13,0)))))) -> 17.77 | M73: =K73*L73 -> 116.7489
B74: 88325 | C74: =IF(I74="SINAPI",VLOOKUP(B74,DADOS_SINAPI,2,0),IF(I74="SETOP",VLOOKUP(B74,DADOS_SETOP,2,0),IF(I74="SICRO",VLOOKUP(B74,DADOS_SICRO,2,0),IF(I74="SUDECAP",VLOOKUP(B74,DADOS_SUDECAP,2,0),IF(I74="COTAÇÃO",VLOOKUP(B74,DADOS_COTACAO,2,0),VLOOKUP(B74,DADOS_COMPOSICAO,2,0)))))) -> VIDRACEIRO COM ENCARGOS COMPLEMENTARES | I74: SINAPI | J74: =IF(I74="SINAPI",VLOOKUP(B74,DADOS_SINAPI,3,0),IF(I74="SETOP",VLOOKUP(B74,DADOS_SETOP,3,0),IF(I74="SICRO",VLOOKUP(B74,DADOS_SICRO,3,0),IF(I74="SUDECAP",VLOOKUP(B74,DADOS_SUDECAP,3,0),IF(I74="COTAÇÃO",VLOOKUP(B74,DADOS_COTACAO,9,0),VLOOKUP(B74,DADOS_COMPOSICAO,10,0)))))) -> H | K74: 6.57 | L74: =IF(I74="SINAPI",VLOOKUP(B74,DADOS_SINAPI,4,0),IF(I74="SETOP",VLOOKUP(B74,DADOS_SETOP,4,0),IF(I74="SICRO",VLOOKUP(B74,DADOS_SICRO,4,0),IF(I74="SUDECAP",VLOOKUP(B74,DADOS_SUDECAP,4,0),IF(I74="COTAÇÃO",VLOOKUP(B74,DADOS_COTACAO,12,0),VLOOKUP(B74,DADOS_COMPOSICAO,13,0)))))) -> 19.72 | M74: 129.5604
B75: 3104 | C75: =IF(I75="SINAPI",VLOOKUP(B75,DADOS_SINAPI,2,0),IF(I75="SETOP",VLOOKUP(B75,DADOS_SETOP,2,0),IF(I75="SICRO",VLOOKUP(B75,DADOS_SICRO,2,0),IF(I75="SUDECAP",VLOOKUP(B75,DADOS_SUDECAP,2,0),IF(I75="COTAÇÃO",VLOOKUP(B75,DADOS_COTACAO,2,0),VLOOKUP(B75,DADOS_COMPOSICAO,2,0)))))) -> CONJ. DE FERRAGENS PARA PORTA DE VIDRO TEMPERADO, EM ZAMAC CROMADO, CONTEMPLANDO DOBRADICA INF., DOBRADICA SUP., PIVO PARA DOBRADICA INF., PIVO PARA DOBRADICA SUP., FECHADURA CENTRAL EM ZAMC. CROMADO, CONTRA FECHADURA DE PRESSAO | I75: SINAPI | J75: =IF(I75="SINAPI",VLOOKUP(B75,DADOS_SINAPI,3,0),IF(I75="SETOP",VLOOKUP(B75,DADOS_SETOP,3,0),IF(I75="SICRO",VLOOKUP(B75,DADOS_SICRO,3,0),IF(I75="SUDECAP",VLOOKUP(B75,DADOS_SUDECAP,3,0),IF(I75="COTAÇÃO",VLOOKUP(B75,DADOS_COTACAO,9,0),VLOOKUP(B75,DADOS_COMPOSICAO,10,0)))))) -> CJ | K75: 2 | L75: =IF(I75="SINAPI",VLOOKUP(B75,DADOS_SINAPI,4,0),IF(I75="SETOP",VLOOKUP(B75,DADOS_SETOP,4,0),IF(I75="SICRO",VLOOKUP(B75,DADOS_SICRO,4,0),IF(I75="SUDECAP",VLOOKUP(B75,DADOS_SUDECAP,4,0),IF(I75="COTAÇÃO",VLOOKUP(B75,DADOS_COTACAO,12,0),VLOOKUP(B75,DADOS_COMPOSICAO,13,0)))))) -> 150.85 | M75: 301.7
B76: 5031 | C76: =IF(I76="SINAPI",VLOOKUP(B76,DADOS_SINAPI,2,0),IF(I76="SETOP",VLOOKUP(B76,DADOS_SETOP,2,0),IF(I76="SICRO",VLOOKUP(B76,DADOS_SICRO,2,0),IF(I76="SUDECAP",VLOOKUP(B76,DADOS_SUDECAP,2,0),IF(I76="COTAÇÃO",VLOOKUP(B76,DADOS_COTACAO,2,0),VLOOKUP(B76,DADOS_COMPOSICAO,2,0)))))) -> VIDRO TEMPERADO INCOLOR PARA PORTA DE ABRIR, E = 10 MM (SEM FERRAGENS E SEM COLOCACAO) | I76: SINAPI | J76: =IF(I76="SINAPI",VLOOKUP(B76,DADOS_SINAPI,3,0),IF(I76="SETOP",VLOOKUP(B76,DADOS_SETOP,3,0),IF(I76="SICRO",VLOOKUP(B76,DADOS_SICRO,3,0),IF(I76="SUDECAP",VLOOKUP(B76,DADOS_SUDECAP,3,0),IF(I76="COTAÇÃO",VLOOKUP(B76,DADOS_COTACAO,9,0),VLOOKUP(B76,DADOS_COMPOSICAO,10,0)))))) -> M2 | K76: =1.6*2.1 -> 3.36 | L76: =IF(I76="SINAPI",VLOOKUP(B76,DADOS_SINAPI,4,0),IF(I76="SETOP",VLOOKUP(B76,DADOS_SETOP,4,0),IF(I76="SICRO",VLOOKUP(B76,DADOS_SICRO,4,0),IF(I76="SUDECAP",VLOOKUP(B76,DADOS_SUDECAP,4,0),IF(I76="COTAÇÃO",VLOOKUP(B76,DADOS_COTACAO,12,0),VLOOKUP(B76,DADOS_COMPOSICAO,13,0)))))) -> 375 | M76: 1260
B77: 11499 | C77: =IF(I77="SINAPI",VLOOKUP(B77,DADOS_SINAPI,2,0),IF(I77="SETOP",VLOOKUP(B77,DADOS_SETOP,2,0),IF(I77="SICRO",VLOOKUP(B77,DADOS_SICRO,2,0),IF(I77="SUDECAP",VLOOKUP(B77,DADOS_SUDECAP,2,0),IF(I77="COTAÇÃO",VLOOKUP(B77,DADOS_COTACAO,2,0),VLOOKUP(B77,DADOS_COMPOSICAO,2,0)))))) -> MOLA HIDRAULICA DE PISO, PARA PORTAS DE ATE 1100 MM E PESO DE ATE 120 KG, COM CORPO EM ACO INOX | I77: SINAPI | J77: =IF(I77="SINAPI",VLOOKUP(B77,DADOS_SINAPI,3,0),IF(I77="SETOP",VLOOKUP(B77,DADOS_SETOP,3,0),IF(I77="SICRO",VLOOKUP(B77,DADOS_SICRO,3,0),IF(I77="SUDECAP",VLOOKUP(B77,DADOS_SUDECAP,3,0),IF(I77="COTAÇÃO",VLOOKUP(B77,DADOS_COTACAO,9,0),VLOOKUP(B77,DADOS_COMPOSICAO,10,0)))))) -> UN | K77: 2 | L77: =IF(I77="SINAPI",VLOOKUP(B77,DADOS_SINAPI,4,0),IF(I77="SETOP",VLOOKUP(B77,DADOS_SETOP,4,0),IF(I77="SICRO",VLOOKUP(B77,DADOS_SICRO,4,0),IF(I77="SUDECAP",VLOOKUP(B77,DADOS_SUDECAP,4,0),IF(I77="COTAÇÃO",VLOOKUP(B77,DADOS_COTACAO,12,0),VLOOKUP(B77,DADOS_COMPOSICAO,13,0)))))) -> 812.96 | M77: 1625.92
A79: DAC-6.4 | B79: ACABAMENTO PARA ESQUADRIAS EM ALUMÍNIO | I79: CPU | J79: M | M79: =SUM(M80:M82) -> 42.9775
B80: 88316 | C80: =IF(I80="SINAPI",VLOOKUP(B80,DADOS_SINAPI,2,0),IF(I80="SETOP",VLOOKUP(B80,DADOS_SETOP,2,0),IF(I80="SICRO",VLOOKUP(B80,DADOS_SICRO,2,0),IF(I80="SUDECAP",VLOOKUP(B80,DADOS_SUDECAP,2,0),IF(I80="COTAÇÃO",VLOOKUP(B80,DADOS_COTACAO,2,0),VLOOKUP(B80,DADOS_COMPOSICAO,2,0)))))) -> SERVENTE COM ENCARGOS COMPLEMENTARES | I80: SINAPI | J80: =IF(I80="SINAPI",VLOOKUP(B80,DADOS_SINAPI,3,0),IF(I80="SETOP",VLOOKUP(B80,DADOS_SETOP,3,0),IF(I80="SICRO",VLOOKUP(B80,DADOS_SICRO,3,0),IF(I80="SUDECAP",VLOOKUP(B80,DADOS_SUDECAP,3,0),IF(I80="COTAÇÃO",VLOOKUP(B80,DADOS_COTACAO,9,0),VLOOKUP(B80,DADOS_COMPOSICAO,10,0)))))) -> H | K80: 0.25 | L80: =IF(I80="SINAPI",VLOOKUP(B80,DADOS_SINAPI,4,0),IF(I80="SETOP",VLOOKUP(B80,DADOS_SETOP,4,0),IF(I80="SICRO",VLOOKUP(B80,DADOS_SICRO,4,0),IF(I80="SUDECAP",VLOOKUP(B80,DADOS_SUDECAP,4,0),IF(I80="COTAÇÃO",VLOOKUP(B80,DADOS_COTACAO,12,0),VLOOKUP(B80,DADOS_COMPOSICAO,13,0)))))) -> 17.77 | M80: =K80*L80 -> 4.4425
B81: 88309 | C81: =IF(I81="SINAPI",VLOOKUP(B81,DADOS_SINAPI,2,0),IF(I81="SETOP",VLOOKUP(B81,DADOS_SETOP,2,0),IF(I81="SICRO",VLOOKUP(B81,DADOS_SICRO,2,0),IF(I81="SUDECAP",VLOOKUP(B81,DADOS_SUDECAP,2,0),IF(I81="COTAÇÃO",VLOOKUP(B81,DADOS_COTACAO,2,0),VLOOKUP(B81,DADOS_COMPOSICAO,2,0)))))) -> PEDREIRO COM ENCARGOS COMPLEMENTARES | I81: SINAPI | J81: =IF(I81="SINAPI",VLOOKUP(B81,DADOS_SINAPI,3,0),IF(I81="SETOP",VLOOKUP(B81,DADOS_SETOP,3,0),IF(I81="SICRO",VLOOKUP(B81,DADOS_SICRO,3,0),IF(I81="SUDECAP",VLOOKUP(B81,DADOS_SUDECAP,3,0),IF(I81="COTAÇÃO",VLOOKUP(B81,DADOS_COTACAO,9,0),VLOOKUP(B81,DADOS_COMPOSICAO,10,0)))))) -> H | K81: 0.5 | L81: =IF(I81="SINAPI",VLOOKUP(B81,DADOS_SINAPI,4,0),IF(I81="SETOP",VLOOKUP(B81,DADOS_SETOP,4,0),IF(I81="SICRO",VLOOKUP(B81,DADOS_SICRO,4,0),IF(I81="SUDECAP",VLOOKUP(B81,DADOS_SUDECAP,4,0),IF(I81="COTAÇÃO",VLOOKUP(B81,DADOS_COTACAO,12,0),VLOOKUP(B81,DADOS_COMPOSICAO,13,0)))))) -> 24.43 | M81: 12.215
B82: 36888 | C82: =IF(I82="SINAPI",VLOOKUP(B82,DADOS_SINAPI,2,0),IF(I82="SETOP",VLOOKUP(B82,DADOS_SETOP,2,0),IF(I82="SICRO",VLOOKUP(B82,DADOS_SICRO,2,0),IF(I82="SUDECAP",VLOOKUP(B82,DADOS_SUDECAP,2,0),IF(I82="COTAÇÃO",VLOOKUP(B82,DADOS_COTACAO,2,0),VLOOKUP(B82,DADOS_COMPOSICAO,2,0)))))) -> GUARNICAO / MOLDURA / ARREMATE DE ACABAMENTO PARA ESQUADRIA, EM ALUMINIO PERFIL 25, ACABAMENTO ANODIZADO BRANCO OU BRILHANTE, PARA 1 FACE | I82: SINAPI | J82: =IF(I82="SINAPI",VLOOKUP(B82,DADOS_SINAPI,3,0),IF(I82="SETOP",VLOOKUP(B82,DADOS_SETOP,3,0),IF(I82="SICRO",VLOOKUP(B82,DADOS_SICRO,3,0),IF(I82="SUDECAP",VLOOKUP(B82,DADOS_SUDECAP,3,0),IF(I82="COTAÇÃO",VLOOKUP(B82,DADOS_COTACAO,9,0),VLOOKUP(B82,DADOS_COMPOSICAO,10,0)))))) -> M | K82: 1 | L82: =IF(I82="SINAPI",VLOOKUP(B82,DADOS_SINAPI,4,0),IF(I82="SETOP",VLOOKUP(B82,DADOS_SETOP,4,0),IF(I82="SICRO",VLOOKUP(B82,DADOS_SICRO,4,0),IF(I82="SUDECAP",VLOOKUP(B82,DADOS_SUDECAP,4,0),IF(I82="COTAÇÃO",VLOOKUP(B82,DADOS_COTACAO,12,0),VLOOKUP(B82,DADOS_COMPOSICAO,13,0)))))) -> 26.32 | M82: 26.32
A84: DAC-6.5 | B84: APLICAÇÃO DE PELÍCULA JATEADA EM ESQUADRIAS | I84: CPU | J84: M2 | M84: =SUM(M85:M86) -> 5.60846
B85: 88325 | C85: =IF(I85="SINAPI",VLOOKUP(B85,DADOS_SINAPI,2,0),IF(I85="SETOP",VLOOKUP(B85,DADOS_SETOP,2,0),IF(I85="SICRO",VLOOKUP(B85,DADOS_SICRO,2,0),IF(I85="SUDECAP",VLOOKUP(B85,DADOS_SUDECAP,2,0),IF(I85="COTAÇÃO",VLOOKUP(B85,DADOS_COTACAO,2,0),VLOOKUP(B85,DADOS_COMPOSICAO,2,0)))))) -> VIDRACEIRO COM ENCARGOS COMPLEMENTARES | I85: SINAPI | J85: =IF(I85="SINAPI",VLOOKUP(B85,DADOS_SINAPI,3,0),IF(I85="SETOP",VLOOKUP(B85,DADOS_SETOP,3,0),IF(I85="SICRO",VLOOKUP(B85,DADOS_SICRO,3,0),IF(I85="SUDECAP",VLOOKUP(B85,DADOS_SUDECAP,3,0),IF(I85="COTAÇÃO",VLOOKUP(B85,DADOS_COTACAO,9,0),VLOOKUP(B85,DADOS_COMPOSICAO,10,0)))))) -> H | K85: 0.143 | L85: =IF(I85="SINAPI",VLOOKUP(B85,DADOS_SINAPI,4,0),IF(I85="SETOP",VLOOKUP(B85,DADOS_SETOP,4,0),IF(I85="SICRO",VLOOKUP(B85,DADOS_SICRO,4,0),IF(I85="SUDECAP",VLOOKUP(B85,DADOS_SUDECAP,4,0),IF(I85="COTAÇÃO",VLOOKUP(B85,DADOS_COTACAO,12,0),VLOOKUP(B85,DADOS_COMPOSICAO,13,0)))))) -> 19.72 | M85: =K85*L85 -> 2.81996
B86: 88243 | C86: =IF(I86="SINAPI",VLOOKUP(B86,DADOS_SINAPI,2,0),IF(I86="SETOP",VLOOKUP(B86,DADOS_SETOP,2,0),IF(I86="SICRO",VLOOKUP(B86,DADOS_SICRO,2,0),IF(I86="SUDECAP",VLOOKUP(B86,DADOS_SUDECAP,2,0),IF(I86="COTAÇÃO",VLOOKUP(B86,DADOS_COTACAO,2,0),VLOOKUP(B86,DADOS_COMPOSICAO,2,0)))))) -> AJUDANTE ESPECIALIZADO COM ENCARGOS COMPLEMENTARES | I86: SINAPI | J86: =IF(I86="SINAPI",VLOOKUP(B86,DADOS_SINAPI,3,0),IF(I86="SETOP",VLOOKUP(B86,DADOS_SETOP,3,0),IF(I86="SICRO",VLOOKUP(B86,DADOS_SICRO,3,0),IF(I86="SUDECAP",VLOOKUP(B86,DADOS_SUDECAP,3,0),IF(I86="COTAÇÃO",VLOOKUP(B86,DADOS_COTACAO,9,0),VLOOKUP(B86,DADOS_COMPOSICAO,10,0)))))) -> H | K86: 0.143 | L86: =IF(I86="SINAPI",VLOOKUP(B86,DADOS_SINAPI,4,0),IF(I86="SETOP",VLOOKUP(B86,DADOS_SETOP,4,0),IF(I86="SICRO",VLOOKUP(B86,DADOS_SICRO,4,0),IF(I86="SUDECAP",VLOOKUP(B86,DADOS_SUDECAP,4,0),IF(I86="COTAÇÃO",VLOOKUP(B86,DADOS_COTACAO,12,0),VLOOKUP(B86,DADOS_COMPOSICAO,13,0)))))) -> 19.5 | M86: 2.7885
A88: DAC-6.6 | B88: PINTURA ESMALTE EM ESQUADRIA DE PVC, DUAS (2) DEMÃOS. | I88: CPU | J88: M2 | M88: =SUM(M89:M93) -> 23.4056
B89: 88310 | C89: =IF(I89="SINAPI",VLOOKUP(B89,DADOS_SINAPI,2,0),IF(I89="SETOP",VLOOKUP(B89,DADOS_SETOP,2,0),IF(I89="SICRO",VLOOKUP(B89,DADOS_SICRO,2,0),IF(I89="SUDECAP",VLOOKUP(B89,DADOS_SUDECAP,2,0),IF(I89="COTAÇÃO",VLOOKUP(B89,DADOS_COTACAO,2,0),VLOOKUP(B89,DADOS_COMPOSICAO,2,0)))))) -> PINTOR COM ENCARGOS COMPLEMENTARES | I89: SINAPI | J89: =IF(I89="SINAPI",VLOOKUP(B89,DADOS_SINAPI,3,0),IF(I89="SETOP",VLOOKUP(B89,DADOS_SETOP,3,0),IF(I89="SICRO",VLOOKUP(B89,DADOS_SICRO,3,0),IF(I89="SUDECAP",VLOOKUP(B89,DADOS_SUDECAP,3,0),IF(I89="COTAÇÃO",VLOOKUP(B89,DADOS_COTACAO,9,0),VLOOKUP(B89,DADOS_COMPOSICAO,10,0)))))) -> H | K89: 0.4 | L89: =IF(I89="SINAPI",VLOOKUP(B89,DADOS_SINAPI,4,0),IF(I89="SETOP",VLOOKUP(B89,DADOS_SETOP,4,0),IF(I89="SICRO",VLOOKUP(B89,DADOS_SICRO,4,0),IF(I89="SUDECAP",VLOOKUP(B89,DADOS_SUDECAP,4,0),IF(I89="COTAÇÃO",VLOOKUP(B89,DADOS_COTACAO,12,0),VLOOKUP(B89,DADOS_COMPOSICAO,13,0)))))) -> 25.66 | M89: =K89*L89 -> 10.264
B90: 100301 | C90: =IF(I90="SINAPI",VLOOKUP(B90,DADOS_SINAPI,2,0),IF(I90="SETOP",VLOOKUP(B90,DADOS_SETOP,2,0),IF(I90="SICRO",VLOOKUP(B90,DADOS_SICRO,2,0),IF(I90="SUDECAP",VLOOKUP(B90,DADOS_SUDECAP,2,0),IF(I90="COTAÇÃO",VLOOKUP(B90,DADOS_COTACAO,2,0),VLOOKUP(B90,DADOS_COMPOSICAO,2,0)))))) -> AJUDANTE DE PINTOR COM ENCARGOS COMPLEMENTARES | I90: SINAPI | J90: =IF(I90="SINAPI",VLOOKUP(B90,DADOS_SINAPI,3,0),IF(I90="SETOP",VLOOKUP(B90,DADOS_SETOP,3,0),IF(I90="SICRO",VLOOKUP(B90,DADOS_SICRO,3,0),IF(I90="SUDECAP",VLOOKUP(B90,DADOS_SUDECAP,3,0),IF(I90="COTAÇÃO",VLOOKUP(B90,DADOS_COTACAO,9,0),VLOOKUP(B90,DADOS_COMPOSICAO,10,0)))))) -> H | K90: 0.2 | L90: =IF(I90="SINAPI",VLOOKUP(B90,DADOS_SINAPI,4,0),IF(I90="SETOP",VLOOKUP(B90,DADOS_SETOP,4,0),IF(I90="SICRO",VLOOKUP(B90,DADOS_SICRO,4,0),IF(I90="SUDECAP",VLOOKUP(B90,DADOS_SUDECAP,4,0),IF(I90="COTAÇÃO",VLOOKUP(B90,DADOS_COTACAO,12,0),VLOOKUP(B90,DADOS_COMPOSICAO,13,0)))))) -> 21.05 | M90: 4.21
